{"text_format":"1","workbook":"xlsx","n_sheets":7,"sheets":["Generic Parameters","Download Service Parameters","OWS Parameters","OGC API Parameters","Collections","ListDomains","PARAMETERS"],"not_rendered":{"charts":0,"images":0,"macros":1,"external_links":0,"defined_names":8,"comments":0,"pivot_tables":0},"unopened":[],"bounds":{"document_bytes":16777216,"sheet_cells":100000,"rows_first":2000,"rows_last":500,"rows_between":2000,"halvings":0,"cell_chars":16384,"cell_head_chars":4096},"cells_cut":0,"cells_raw":0,"read":"whole","date_system":"1900"}

{"sheet":"Generic Parameters","index":0,"n_rows":19,"n_cols":5,"rows_kept":19,"cut":false,"hidden":false,"merged":[[1,1,1,2],[2,1,2,2],[3,1,3,2]]}
[null,null,null,null,"VERSION: 2024-12-18"]
[null,"READ BEFORE FILLING THIS PAGE",null,"LIRE AVANT DE REMPLIR CETTE PAGE"]
[null,"1. Fill in the generic parameters, then choose at least one service type to publish. Different service types can be published or updated separately or simultaneously, but the \"Publish\" operation can only be performed once per service type. ",null,"1. Remplissez les paramètres génériques, puis choisissez au moins un type de service à publier. Il est possible de publier ou mettre à jour les différents types de services séparemment ou simultanément, mais l'opération \"Publish\" ne peut être effectuée qu'une seule fois par type de service. "]
[null,"2. When a service type is selected, a new tab will open to enter additional parameters specific to each service type. The parameters entered in these tabs will be retained even if the service is deactivated, but it will not be processed by the CDTK.",null,"2. Quand un type de service est sélectionné, un nouvel onglet s'ouvrira pour entrer des paramètres supplémentaires propres à chaque type de service. Les paramètres entrés dans ces onglets seront conservés même si le service est désactivé, mais il ne sera pas traité par le CODC."]
[]
[null,"Use the button on the right to reset the form.\nUtilisez le bouton ci-contre pour réinitialiser le formulaire.",null,"  Use the button on the right to validate and export to JSON.\nUtilisez le bouton ci-contre pour valider et exporter en JSON."]
[null,"Generic Parameters\nParamètres génériques"]
[null,"Parameter Name\nNom du paramètre","Value\nValeur","ADDITIONAL INFORMATION","RENSEIGNEMENTS COMPLÉMENTAIRES"]
[null,"Operation*\nOpération*",null,"The operation the CDTK is required to perform.","L'opération que le CODC doit effectuer."]
[null,"Email address*\nAdresse courriel*",null,"The email adress of the publisher (must be already registered in the registry).","L'adresse courriel du publicateur (doit être déjà enregistrée dans le registre)."]
[null,"Organization acronym*\nAcronyme de l'organisation*",null,"Choose or type the English organization acronym to which the dataset will be related (must be already registered in the registry). Use acronyms from the list on this web page: https://www.tbs-sct.canada.ca/ap/fip-pcim/reg-eng.asp","Choisir ou taper l'acronyme anglais de l'organisation à laquelle le jeu de données sera lié (doit être déjà enregistré dans le registre). Utilisez les acronymes de la liste sur cette page web: https://www.tbs-sct.canada.ca/ap/fip-pcim/reg-fra.asp"]
[null,"Metadata Record Identifier (FGP Catalog)*\nIdentifiant des métadonnées (Catalogue PGF)*",null,"The metadata UUID from the FGP catalog. This UUID can be found under “File Identifier” in the “Additional Information” section of the FGP metadata page.","Le UUID des métadonnées du catalogue PGF. Ce UUID se trouve sous « Identifiant du fichier » dans la section « Informations supplémentaires » de la page de métadonnées PGF."]
[null,"Dataset name*\nNom du jeu de données*",null,"A significant name for the dataset that will be used to create the web services name. Use only alphanumerical characters, dashes and underscores (no spaces, no special or accentuated characters).","Un nom significatif pour le jeu de données qui sera utilisé pour créer le nom des services web. N'utilisez que des caractères alphanumériques, des tirets et des traits de soulignement (pas d'espaces, ni de caractères spéciaux ou accentués)."]
[]
[null,"Services Selection\nSélection des services"]
[null,"Service Type\nType de service","Value\nValeur","ADDITIONAL INFORMATION","RENSEIGNEMENTS COMPLÉMENTAIRES"]
[null,"Download service*\nService de téléchargement*","No / Non","A download service lets you upload files of any type to a FTP server accessible via a web browser. Both public and government-restricted servers are available.","Un service de téléchargement permet de déposer des fichiers de tous types sur un serveur FTP accessible via un navigateur web. Des serveurs publics et restreints au gouvernement sont disponibles."]
[null,"OWS (WMS/WFS/WCS)*","No / Non","OGC Web Services (OWS) enable a wide range of geospatial functionalities. They include data access, display and processing services. Available protocols include WMS (Web Map Service), WFS (Web Feature Service) and WCS (Web Coverage Service).","Les Services Web de l'OGC (OWS) permettent toutes sortes de fonctionnalités géospatiales. Ils comprennent des services d'accès aux données, d'affichage et de traitement des données. Les protocoles disponibles sont le WMS (Web Map Service), le WFS (Web Feature Service) et le WCS (Web Coverage Service)."]
[null,"OGC API (Features, Coverage, Maps)*","No / Non","OGC APIs are designed to facilitate the use of geospatial data on the web. These resource-centric standards leverage modern web development practices. The APIs available are the \"OGC API - Features\", the \"OGC API - Coverage\" and the \"OGC API - Maps\".","Les API de l'OGC sont conçus pour faciliter l'utilisation des données géospatiales sur le web, et d'intégrer ces données à tout autre type d'information. Ces normes centrées sur les ressources tirent parti des pratiques modernes de développement Web. Les APIs disponibles sont le \"OGC API - Features\", le \"OGC API - Coverage\" et le \"OGC API - Maps\"."]

{"sheet":"Download Service Parameters","index":1,"n_rows":12,"n_cols":5,"rows_kept":12,"cut":false,"hidden":true,"merged":[[1,1,1,2],[2,1,2,2]]}
[]
[null,"READ BEFORE FILLING THIS PAGE",null,"LIRE AVANT DE REMPLIR CETTE PAGE"]
[null,"Enter the download service settings here. If the download service is disabled in the generic settings tab, publishing, updating or unpublishing the download service will not be executed even if this tab is filled in.",null,"Entrez les paramètres du service de téléchargement ici. Si le service de téléchargement est désactivé dans l'onglet des paramètres génériques, la publication, la mise à jour ou la dépublication du service de téléchargement ne sera pas exécutée même si cet onglet est rempli."]
[]
[null,"Use the button on the right to reset the form.\nUtilisez le bouton ci-contre pour réinitialiser le formulaire.",null,"  Use the button on the right to validate and export to JSON.\nUtilisez le bouton ci-contre pour valider et exporter en JSON."]
[null,"Download Parameters\nParamètres de téléchargement"]
[null,"Parameter Name\nNom du paramètre","Value\nValeur","ADDITIONAL INFORMATION","RENSEIGNEMENTS COMPLÉMENTAIRES"]
[null,"Download folder name*\nNom du répertoire de téléchargement*",null,"Enter the name of the main folder in which all of your downloadable files will be uploaded. Therefore, the download folder in your input package MUST be named after the value inserted in this field (case sensitive) and compressed in ZIP format.","Entrez le nom du dossier principal dans lequel tous vos fichiers téléchargeables seront téléversés. Par conséquent, le dossier de téléchargement dans votre paquet d'entrée DOIT être nommé d'après la valeur insérée dans ce champ (sensible à la casse) et compressé au format ZIP."]
[null,"Core Subject (FTP sub folder name)*\nSujet de base (sous-dossier du FTP)*",null,"Please select the most relevant Core Subject Term for your dataset. The Core Subject Term (extracted from the government of Canada Core Subject Thesaurus) will be used on the FTP site as the name of the folder in which your download package will be uploaded, after the FTP domain and your organization acronym.","Veuillez sélectionner un sujet de base pertinent pour votre jeu de données. Le sujet de base (extrait du Thésaurus des sujets de base du gouvernement du Canada) sera utilisé sur le site FTP comme nom du dossier dans lequel votre paquet de téléchargement sera téléversé, après le domaine FTP et l'acronyme de votre organisation."]
[null,"File visibility\nVisibilité des fichiers",null,"The files can be either available to the general public* or restricted to the Canadian government network (currently not available). You can also enter custom server/datastore IDs. If nothing is selected, the default value is \"General public\".\n*Staging and Dev environments are not available outside the NRCan network.","Les fichiers peuvent être soit accessibles au grand public*, soit limités au réseau du gouvernement canadien (présentement non disponible). Vous pouvez aussi saisir un ID de serveur/datastore personnalisé.  Si aucune valeur n'est sélectionnée, la valeur par défaut est \"Grand public\".\n*Les environnements Staging et Dev ne sont pas disponibles en dehors du réseau de RNCan."]
[null,"FTP Server ID [Optional]\nID du serveur FTP [Facultatif]",null,"If you wish to use a specific FTP server, enter the ID here (contact the CDTK administrator to create one), otherwise the default FTP server assigned to your organization in the CDTK registry will be used. Manually selecting a FTP server will override the service visibility setting.","Si vous souhaitez utiliser un serveur FTP spécifique, entrez l'ID ici (contactez l'administrateur CODC pour en créer un), sinon, le serveur FTP par défaut assigné à votre organisation dans le registre CODC sera utilisé. Choisir manuellement un serveur supplantera le paramètre de visibilité du service."]
[null,"Datastore ID [Optional]\nID de l'entrepôt de données [Facultatif]",null,"If you wish to use a specific datastore, enter the ID here (contact the CDTK administrator to create one), otherwise the default datastore assigned to your organization in the CDTK registry will be used. ","Si vous souhaitez utiliser un entrepôt de données spécifique, entrez l'ID ici (contactez l'administrateur CODC pour en créer un), sinon, l'entrepôt de données par défaut assigné à votre organisation dans le registre CODC sera utilisé. "]

{"sheet":"OWS Parameters","index":2,"n_rows":21,"n_cols":6,"rows_kept":21,"cut":false,"hidden":true,"merged":[[16,1,16,2],[5,1,5,2],[7,2,7,3],[8,2,8,3],[9,2,9,3],[10,2,10,3],[2,1,2,3],[3,1,3,3],[1,1,1,3],[11,2,11,3],[14,2,14,3],[6,1,6,2],[6,3,6,4],[12,2,12,3],[13,2,13,3]]}
[]
[null,"READ BEFORE FILLING THIS PAGE",null,null,"LIRE AVANT DE REMPLIR CETTE PAGE"]
[null,"1. This section describes OWS web services (WMS, WFS and WCS). A QGIS project file in both official language is needed to publish these services. Fields marked with an asterisk are mandatory. Do not edit grayed out cells.",null,null,"1. Cette section détaille les services web de type OWS (WMS, WFS et WCS). Un fichier de projet QGIS dans les deux langues officielles est nécessaire pour publier ces services. Les champs identifiés par un astérisque sont obligatoires. Ne pas éditer les cellules grisées."]
[null,"2. Read the CDTK documentation (https://dips-spid.services.geo.ca/documentation/en/data.html#qgis-project) carefully before filling the Project Filename, especially regarding the naming conventions.",null,null,"2. Lire la documentation du CDTK (https://dips-spid.services.geo.ca/documentation/fr/data.html#qgis-project) soigneusement avant de remplir le nom de fichier du projet, en particulier en ce qui concerne les conventions de nommage."]
[]
[null,"Use the button on the right to reset the form.\nUtilisez le bouton ci-contre pour réinitialiser le formulaire.",null,null,"  Use the button on the right to validate and export to JSON.\nUtilisez le bouton ci-contre pour valider et exporter en JSON."]
[null,"OWS Service Type(s)\nType de service(s) OWS"]
[null,null,"Value / Valeur",null,"ADDITIONAL INFORMATION","RENSEIGNEMENTS COMPLÉMENTAIRES"]
[null,"Data Type*\nType de données*",null,null,"The data type determines the type of service to be published.","Le type de données déterminera le type service qui sera publié."]
[null,"Service Type(s)*\nType(s) de service*",{"$f":"_xlfn.IFS(C9=\"Raster / Matriciel\", \"WMS + WCS\", C9=\"Vector / Vectoriel\", \"WMS + WFS\", C9=\"Vector + Raster / Vectoriel + Matriciel\", \"WMS\", C9=\"\", \"\")","v":""},null,"If your project contains only vector data, it can be hosted as a WMS, WFS or both. If it's only raster data, it can be hosted as a WMS, WCS or both. If your project contains both vector and raster data, it will be hosted has a WMS.","Si votre projet ne contient que des données vectorielles, il peut être hébergé en tant que WMS, WFS ou les deux. S'il ne contient que des données matricielles, il peut être hébergé en tant que WMS, WCS ou les deux. Si votre projet contient des données vectorielles et des données matricielles, il sera hébergé en tant que WMS."]
[null,"Service visibility\nVisibilité du service",null,null,"The services can be either available to the general public* or restricted to the Canadian government network (currently not available). If nothing is selected, the default value is \"General public\".\n*Staging and Dev environments are not available  outside the NRCan network.","Les services peuvent être soit accessibles au grand public*, soit limités au réseau du gouvernement canadien (présentement non disponible). Si aucune valeur n'est sélectionnée, la valeur par défaut est \"Grand public\".\n*Les environnements Staging et Dev ne sont pas disponibles en dehors du réseau de RNCan."]
[null,"Server Type*\nType de serveur*",{"$f":"IF(ISBLANK(C9), \"\", \"QGIS\")","v":""},null,"The current CDTK only offers QGIS servers. This cells is reserved for future developments (i.e. MapServer).","Le CODC actuel ne propose que des serveurs QGIS. Cette cellule est réservée aux développements futurs (par exemple MapServer)."]
[null,"Server ID [Optional]\nID du serveur [Facultatif]",null,null,"This information is not necessary if you want to use the default server assigned to your organization in the CDTK Registry. If you want to use another server, register it in the registry (contact the CDTK Administrator) and enter the ID here. Choosing a server manually will override the Service visibily setting.","Cette information n'est pas nécessaire si vous utilisez le serveur par défaut assigné à votre organisation. Si vous souhaitez utiliser un autre serveur, enregistrez-le dans le registre (contactez l'administrateur CODC) et entrez l'ID ici. Choisir manuellement un serveur supplantera le paramètre de visibilité du service."]
[null,"Vector Datastore ID [Optional]\nID entrepôt vectoriel [Facultatif]",null,null,"Datastore for vector layers. This information is not required if you are using the default datastore assigned to your organization. If you wish to use another datastore, register it (contact your CDTK administrator) and enter the ID here. ","Entrepôt de données pour les couches vectorielles. Cette information n'est pas nécessaire si vous utilisez l'entrepôt de données par défaut assigné à votre organisation. Si vous souhaitez utiliser un autre entrepôt de données, enregistrez-le dans le registre (contactez l'administrateur CODC) et entrez l'ID ici. "]
[null,"Raster Datastore ID [Optional]\nID entrepôt matriciel [Facultatif]",null,null,"Datastore for raster layers. This information is not required if you are using the default datastore assigned to your organization. If you wish to use another datastore, register it (contact your CDTK administrator) and enter the ID here. ","Entrepôt de données pour les couches matricielles. Cette information n'est pas nécessaire si vous utilisez l'entrepôt de données par défaut assigné à votre organisation. Si vous souhaitez utiliser un autre entrepôt de données, enregistrez-le dans le registre (contactez l'administrateur CODC) et entrez l'ID ici. "]
[]
[null,"Map Service information\nInformations sur les services cartographiques"]
[null,null,"English / Anglais","French / Français","ADDITIONAL INFORMATION","RENSEIGNEMENTS COMPLÉMENTAIRES"]
[null,"Project Filename*\nNom de fichier du projet*",{"$f":"IF('Generic Parameters'!C13 <> \"\",'Generic Parameters'!C13 & \"_en.qgs\", \"\")","v":""},{"$f":"IF('Generic Parameters'!C13 <> \"\",'Generic Parameters'!C13 & \"_fr.qgs\", \"\")","v":""},"The QGIS project (.qgs) file names must be than the dataset name (Generic Parameters) appended with \"_en.qgs\" in English and \"_fr.qgs\" in French. The .qgz extension is not supported.","Le nom des fichiers du projet QGIS (.qgs) doit être composé du Nom du jeu de données (Paramètres génériques) suivi de « _en.qgs » en anglais et de « _fr.qgs » en français. L'extension .qgz n'est pas supportée."]
[null,"Service Name*\nNom du service*",{"$f":"IF('Generic Parameters'!C13 <> \"\",'Generic Parameters'!C13 & \"_en\", \"\")","v":""},{"$f":"IF('Generic Parameters'!C13 <> \"\",'Generic Parameters'!C13 & \"_fr\", \"\")","v":""},"The service name is created automatically based on the Dataset Name in the Generic Parameters.","Le nom du service est créé automatiquement sur la base du nom de l'ensemble de données dans les paramètres génériques."]
[null,"Service Folder Name*\nDossier du service*",{"$f":"IF('Generic Parameters'!C11 <> \"\",LOWER('Generic Parameters'!C11), \"\")","v":""},{"$f":"IF('Generic Parameters'!C11 <> \"\",LOWER('Generic Parameters'!C11), \"\")","v":""},"The name of the subfolder where the service will be deployed in the Datastore. This parameter is automatically imported from the Generic Parameters.","Le nom du sous-dossier dans lequel le service sera déployé dans le Datastore. Ce paramètre est automatiquement importé des paramètres génériques."]

{"sheet":"OGC API Parameters","index":3,"n_rows":20,"n_cols":6,"rows_kept":20,"cut":false,"hidden":true,"merged":[[19,1,19,2],[1,1,1,3],[2,1,2,3],[5,1,5,2],[7,1,7,2],[7,3,7,4],[17,2,17,3],[9,2,9,3],[8,2,8,3],[14,2,14,3],[10,2,10,3],[12,2,12,3],[16,2,16,3],[13,2,13,3],[11,2,11,3]]}
[]
[null,"READ BEFORE FILLING THIS PAGE",null,null,"LIRE AVANT DE REMPLIR CETTE PAGE"]
[null,"This section describes OGC API services (OGC API - Features and OGC API - Maps).\nPlease set all parameters before adding collections.\nYou can add up to 50 collections.\nFields marked with an asterisk are mandatory. Do not edit grayed out cells. ",null,null,"Cette section détaille les services web de type OGC API (OGC API - Features et OGC API - Maps).\nVeuillez définir tous les paramètres avant d'ajouter des collections.\nVous pouvez ajouter jusqu'à 50 collections.\nLes champs identifiés par un astérisque sont obligatoires. Ne pas éditer les cellules grisées."]
[]
[]
[null,"Use the button on the right to reset the form.\nUtilisez le bouton ci-contre pour réinitialiser le formulaire.",null,null,"  Use the button on the right to validate and export to JSON.\nUtilisez le bouton ci-contre pour valider et exporter en JSON."]
[null,null,null,"Reset button clears all added collections.\nLe bouton réinitialiser efface toutes les collections ajoutées."]
[null,"OWS Service Type(s)\nType de service(s) OWS"]
[null,null,"Value / Valeur",null,"ADDITIONAL INFORMATION","RENSEIGNEMENTS COMPLÉMENTAIRES"]
[null,"Data Type*\nType de données*",null,null,"The data type determines the type of service to be published.\nChanging the Data Type will clear all added collections.","Le type de données déterminera le type service qui sera publié.\nChanger le type de données supprimera toutes les collections ajoutées."]
[null,"Service Type(s)*\nType(s) de service*",{"$f":"IF(ISBLANK(C10),\"\",IF(C10=\"Vector / Vectoriel\",IF(ISBLANK('OWS Parameters'!C18),\"Features\",\"Features + Maps\"),IF(C10=\"Raster / Matriciel\",IF(ISBLANK('OWS Parameters'!C18),\"Coverage\",\"Coverage + Maps\"))))","v":""},null,"For vector collections, you can publish an OGC API - Features service. For raster collections, you can publish an OGC API - Coverage service. Both data types can be published as an OGC API - Maps service, but a WMS service is required to do so.","Pour les collections vectorielles, vous pouvez publier un service OGC API - Features. Pour les collections raster, vous pouvez publier un service OGC API - Coverage. Les deux types de données peuvent être publiés en tant que service OGC API - Maps, mais un service WMS est nécessaire pour ce faire."]
[null,"Group Name*\nNom du groupe*",null,null,"Enter a Group Name that represents all your collections. This name will be used in the service URL. Use only alphanumerical characters, dashes and underscores (no spaces, no special or accentuated characters).","Entrez un nom de groupe qui représente toutes vos collections. Ce nom sera utilisé dans l'URL du service. Utilisez uniquement des caractères alphanumériques, des tirets et des traits de soulignement (pas d'espaces, ni de caractères spéciaux ou accentués)."]
[null,"Service visibility *\nVisibilité du service *",null,null,"The services can be either available to the general public* or restricted to the Canadian government network (currently not available). If nothing is selected, the default value is \"General public\".\n*Staging and Dev environments are not available  outside the NRCan network.","Les services peuvent être soit accessibles au grand public*, soit limités au réseau du gouvernement canadien (présentement non disponible). Si aucune valeur n'est sélectionnée, la valeur par défaut est \"Grand public\".\n*Les environnements Staging et Dev ne sont pas disponibles en dehors du réseau de RNCan."]
[null,"Server ID [Optional]\nID du serveur [Facultatif]",null,null,"Leave this cell blank to use the default server for your organization, otherwise, you can enter a specific server ID. Choosing a server manually will override the Service visibily setting.","Laissez cette cellule vide pour utiliser le serveur par défaut de votre organisation, sinon vous pouvez saisir un ID de serveur spécifique. Choisir manuellement un serveur supplantera le paramètre de visibilité du service."]
[null,"Server Type*\nType de serveur*",{"$f":"IF(ISBLANK(C10), \"\", \"pygeoapi\")","v":""},null,"The current DDR only offers pygeoapi servers. This cell is reserved for future developments.","Le RDD actuel ne propose que des serveurs pygeoapi. Cette cellule est réservée pour les développements futurs."]
[null,"Provider Type*\nType de fournisseur*",{"$f":"IF(ISNUMBER(SEARCH(\"Features\",C11)),\"PostgreSQL\",IF(ISNUMBER(SEARCH(\"Coverage\",C11)),\"rasterio\",\"\"))","v":""},{"$f":"IF(ISNUMBER(SEARCH(\"Maps\",C11)),\"WMSFacade\",\"\")","v":""},"The provider type for Feature/Coverage, and for Maps protocols. The current DDR only offers the PostgreSQL provider for Features, the rasterio provider for Coverages and the WMSFacade provider for Maps. These cells are reserved for future developments.","Le type de fournisseur pour les protocoles Feature/Coverage et Maps. Le DDR actuel ne propose que le fournisseur PostgreSQL pour les Features, le fournisseur rasterio pour les Coverages et le fournisseur WMSFacade pour les Maps. Ces cellules sont réservées pour des développements futurs."]
[null,"Datastore*\nDépôt de données*",{"$f":"IF(ISBLANK(C10),\"\",IF(C10=\"Vector / Vectoriel\", \"CDTK Datastores (Geopackage provided) / Dépôts du CODC (Géopackage fourni)\", \"Geobase Datacube / Cube de données de Géobase\"))","v":""},null,"For vector data, you can either use the CDTK Datastores or a custom PostGIS datastore. If you use the CDTK datastore, please specify if you provide a Geopackage or if the data is already published in the datastore. For raster data, you can either use Geobase's Datacube or a custom datastore.","Pour les données vectorielles, vous pouvez utiliser les dépôts de données du CODC ou un dépôt PostGIS personnalisé.  Si vous utilisez le dépôt de données du CODC, veuillez préciser si vous fournissez un Géopackage ou si les données sont déjà publiées dans le dépôt de données du CODC. Pour les données matricielles, vous pouvez utiliser le cube de données de Géobase ou un dépôt de données personnalisé."]
[null,"Datastore ID [optional]",null,null,"Leave this cell blank to use the default datastore for your organization, otherwise, you can enter a specific datastore ID. If you are using a custom datastore, please contact the support team to setup a new connection.","Laissez cette cellule vide pour utiliser le dépôt de données par défaut de votre organisation, sinon vous pouvez saisir un ID de dépôt de données spécifique. Si vous utilisez un dépôt de données personnalisé, veuillez contacter l'équipe d'assistance pour créer une nouvelle connexion."]
[]
[null,"Click this button to add a collection.\nCliquez sur ce bouton pour ajouter une collection."]

{"sheet":"Collections","index":4,"n_rows":50,"n_cols":6,"rows_kept":50,"cut":false,"hidden":true,"merged":[[0,1,0,2],[4,2,4,3],[13,2,13,3],[1,2,1,3],[7,2,7,3],[12,2,12,3],[3,2,3,3],[2,2,2,3],[6,2,6,3],[5,2,5,3],[9,2,9,3],[11,2,11,3],[49,1,49,2],[8,2,8,3],[21,1,21,2],[14,2,14,3],[15,2,15,3],[23,1,23,2],[24,2,24,3],[26,2,26,3],[27,2,27,3],[38,2,38,3],[44,1,44,2],[34,2,34,3],[35,2,35,3],[36,2,36,3],[37,2,37,3],[5,0,7,0],[10,2,10,3],[31,2,31,3],[32,2,32,3],[31,0,34,0],[8,0,11,0],[33,2,33,3],[25,2,25,3]]}
[null,"Feature Collection Information\nInformations de la collection d'entités",null,{"$f":"\"# \" &  ROUNDUP((ROW()-18)/21,0)","v":"# -1"}]
[null,null,"Value / Valeur",null,"ADDITIONAL INFORMATION","RENSEIGNEMENTS COMPLÉMENTAIRES"]
[null,"Collection Name*\nNom de la collection*",null,null,"Enter a name for the collection. Use only alphanumerical characters, dashes and underscores (no spaces, no special or accentuated characters).","Entrez un nom pour la collection. N'utilisez que des caractères alphanumériques, des tirets et des traits de soulignement (pas d'espaces, ni de caractères spéciaux ou accentués)."]
[null,"Schema/Geopackage Name*\nNom du schéma/géopackage*",{"$f":"IF('OGC API Parameters'!C$17=\"CDTK Datastores (data already published) / Dépôts du CODC (données déjà publiées)\",LOWER('Generic Parameters'!C$11),\"\")","v":""},null,"If you publish data to a CDTK datastore and provide a Geopackage, please enter the name of the Geopackage. If you use a custom datastore, please enter the schema name where your data is saved.","Si vous publiez des données dans un dépôt de données du CODC et que vous fournissez un Géopackage, veuillez saisir le nom du Geopackage. Si vous utilisez un dépôt personnalisé, veuillez saisir le nom du schéma dans lequel vos données sont enregistrées."]
[null,"Feature Class Name*\nNom de la classe d'entités*",null,null,"If you provide data in a Geopackage (GPKG), enter the name of the vector feature class name.\nIf you use data from an existing data source, enter the layer name from the database.","Si vous fournissez des données dans un Géopackage (GPKG), entrez le nom de la classe d'entités vectorielles.\nSi vous utilisez des données provenant d'une source de données existante, saisissez le nom de la couche de la base de données."]
["Features","Data ID Field\nChamp ID des données",null,null,"In a GeoPackage (GPKG), the default field name for the feature identifier is \"fid\". If your GeoPackage uses another unique identifier field, enter it here.","Dans un GeoPackage (GPKG), le nom de champ par défaut pour l'identifiant de l'entité est \"fid\". Si votre GeoPackage utilise un autre champ d'identifiant unique, saisissez-le ici."]
[null,"Data Geometry Field\nChamp géométrie des données",null,null,"In a GeoPackage (GPKG), the default  field used to store the geometry is \"geom\". If your GeoPackage uses another field for the geometry, enter it here.","Dans un GeoPackage (GPKG), le champ par défaut utilisé pour stocker la géométrie est \"geom\". Si votre GeoPackage utilise un autre champ pour la géométrie, saisissez-le ici."]
[null,"Data Queryables\nAttributs interrogeables",null,null,"If you want to restrict data filtering to specific attributes, specify a comma-separated list of queryable attribute names. If nothing is specified, all attributes will be queryable.","Pour restreindre le filtrage des données à certains attributs, indiquez les attributs interrogeables séparés par des virgules. Si rien n'est spécifié, tous les attributs seront interrogeables."]
["Maps","WMS Service URL\nURL du service WMS",null,null,"Enter the URL of the underlying WMS Service for your OGC API - Maps.","Saisissez l'URL du service WMS sous-jacent pour votre API OGC - Maps."]
[null,"French WMS Service URL\nURL du service WMS français",null,null,"Enter the name of the underlying French WMS Service for your OGC API - Maps.","Saisissez le nom du service WMS français sous-jacent pour votre API OGC - Maps."]
[null,"WMS Layer Name\nNom de la couche du WMS",null,null,"Enter the name of the layer in your WMS Service that matches this collection.","Entrez le nom de la couche de votre service WMS qui correspond à cette collection."]
[null,"WMS Style Name\nNom du style du WMS",null,null,"If you want to use a specific symbology from the WMS Layer, enter its name here, otherwise the default style will be used.","Si vous souhaitez utiliser une symbologie spécifique de la couche WMS, saisissez son nom ici, sinon le style par défaut sera utilisé."]
[null,"Spatial Reference*\nRéférence spatiale*",null,null,"Enter the EPGS code of your data's Coordinate Reference System (example: 3978).","Saisissez le code EPGS du système de référence des coordonnées de vos données (exemple : 3978)."]
[null,"Extent (CRS84)*\nÉtendue (CRS84)*","-141.003,41.676,-52.617,83.114",null,"Enter the extent of your dataset in CRS84 lat/long coordinates (top left corner XY, lower right corner XY, example: -120,45,-90,60), or leave the provided default Canada extent.","Saisissez l'étendue de votre jeu de données en coordonnées CRS84 lat/long (coin supérieur gauche XY, coin inférieur droit XY, exemple : -120,45,-90,60), ou laissez l'étendue du Canada par défaut."]
[null,"Temporal Extent (Begin)*\nÉtendue temporelle (Début)*",null,null,"Enter the start date of your dataset's time range in YYYY-MM-DD format.","Saisissez la date de début de l'étendue temporelle de votre jeu de données en format AAAA-MM-JJ."]
[null,"Temporal Extent (End)\nÉtendue temporelle (Fin)",null,null,"Enter the end date of your dataset's time range in YYYY-MM-DD format. Leave blank for ongoing data.","Saisissez la date de fin de l'étendue temporelle de votre jeu de données en format AAAA-MM-JJ. Laisser en blanc pour les données en continu."]
[null,null,"English","Français","The following attributes are language-specific.","Les attributs suivants sont spécifiques à la langue."]
[null,"Title*\nTitre*",null,null,"Enter title of the collection in both official languages. ","Saisissez le nom de la collection dans les deux langues officielles."]
[null,"Description*\nDescription*",null,null,"Enter the description of the collection in both official languages.","Saisissez la description de la collection dans les deux langues officielles."]
[null,"Keywords*\nMots-clés*",null,null,"Enter a comma-separated list of keywords in both official languages for this collection. Example: keyword1,keyword2,keyword3","Saisissez une liste de mots-clés séparés par des virgules dans les deux langues officielles pour cette collection. Exemple: mot-clé1,mot-clé2,mot-clé3"]
[]
[null,"Click this button to add a collection.\nCliquez sur ce bouton pour ajouter une collection."]
[]
[null,"Coverage Collection Information\nInformations de la collection de couverture",null,{"$f":"\"# \" &  ROUNDUP((ROW()-18)/21,0)","v":"# 1"}]
[null,null,"Value / Valeur",null,"ADDITIONAL INFORMATION","RENSEIGNEMENTS COMPLÉMENTAIRES"]
[null,"Collection Name*\nNom de la collection*",null,null,"Enter a name for the collection. Use only alphanumerical characters, dashes and underscores (no spaces, no special or accentuated characters).","Entrez un nom pour la collection. N'utilisez que des caractères alphanumériques, des tirets et des traits de soulignement (pas d'espaces, ni de caractères spéciaux ou accentués)."]
[null,"Folder Name*\nNom du dossier*",null,null,"Enter the folder name containing the raster items you want to add as a collection.\nExample: https://datacube-prod-data-public.s3.ca-central-1.amazonaws.com/store/elevation/cdem-cdsm/cdem/cdem-canada-dem.tif","Saisissez le nom du dossier contenant les items raster que vous souhaitez ajouter en tant que collection.\nExemple : https://datacube-prod-data-public.s3.ca-central-1.amazonaws.com/store/elevation/cdem-cdsm/cdem/cdem-canada-dem.tif"]
[null,"Item Name*\nNom d'item*",null,null,"Enter the name of the raster item with its extension you want to add as a collection.\nExample: https://datacube-prod-data-public.s3.ca-central-1.amazonaws.com/store/elevation/cdem-cdsm/cdem/cdem-canada-dem.tif","Saisissez le nom de l'élément matriciel avec son extension que vous souhaitez ajouter en tant que collection. Exemple : https://datacube-prod-data-public.s3.ca-central-1.amazonaws.com/store/elevation/cdem-cdsm/cdem/cdem-canada-dem.tif"]
[]
[]
[]
["Maps","WMS Service URL\nURL du service WMS",null,null,"Enter the URL of the underlying WMS Service for your OGC API - Maps.","Saisissez l'URL du service WMS sous-jacent pour votre API OGC - Maps."]
[null,null,null,null,"Enter the name of the underlying French WMS Service for your OGC API - Maps.","Saisissez le nom du service WMS français sous-jacent pour votre API OGC - Maps."]
[null,"WMS Layer Name\nNom de la couche du WMS",null,null,"Enter the name of the layer in your WMS Service that matches this collection.","Entrez le nom de la couche de votre service WMS qui correspond à cette collection."]
[null,"WMS Style Name\nNom du style du WMS",null,null,"If you want to use a specific symbology from the WMS Layer, enter its name here, otherwise the default style will be used.","Si vous souhaitez utiliser une symbologie spécifique de la couche WMS, saisissez son nom ici, sinon le style par défaut sera utilisé."]
[null,"Spatial Reference*\nRéférence spatiale*",null,null,"Enter the EPGS code of your data's Coordinate Reference System (example: 3978).","Saisissez le code EPGS du système de référence des coordonnées de vos données (exemple : 3978)."]
[null,"Extent (CRS84)*\nÉtendue (CRS84)*","-141.003,41.676,-52.617,83.114",null,"Enter the extent of your dataset in CRS84 lat/long coordinates (top left corner XY, lower right corner XY, example: -120,45,-90,60), or leave the provided default Canada extent.","Saisissez l'étendue de votre jeu de données en coordonnées CRS84 lat/long (coin supérieur gauche XY, coin inférieur droit XY, exemple : -120,45,-90,60), ou laissez l'étendue du Canada par défaut."]
[null,"Temporal Extent (Begin)*\nÉtendue temporelle (Début)*",null,null,"Enter the start date of your dataset's time range in YYYY-MM-DD format.","Saisissez la date de début de l'étendue temporelle de votre jeu de données en format AAAA-MM-JJ."]
[null,"Temporal Extent (End)\nÉtendue temporelle (Fin)",null,null,"Enter the end date of your dataset's time range in YYYY-MM-DD format. Leave blank for ongoing data.","Saisissez la date de fin de l'étendue temporelle de votre jeu de données en format AAAA-MM-JJ. Laisser en blanc pour les données en continu."]
[null,null,"English","Français","The following attributes are language-specific.","Les attributs suivants sont spécifiques à la langue."]
[null,"Title*\nTitre*",null,null,"Enter title of the collection in both official languages. ","Saisissez le nom de la collection dans les deux langues officielles."]
[null,"Description*\nDescription*",null,null,"Enter the description of the collection in both official languages.","Saisissez la description de la collection dans les deux langues officielles."]
[null,"Keywords*\nMots-clés*",null,null,"Enter a comma-separated list of keywords in both official languages for this collection. Example: keyword1,keyword2,keyword3","Saisissez une liste de mots-clés séparés par des virgules dans les deux langues officielles pour cette collection. Exemple: mot-clé1,mot-clé2,mot-clé3"]
[]
[null,"Click this button to add a collection.\nCliquez sur ce bouton pour ajouter une collection.",null,null,null,{"$f":"LEN(C38)","v":0}]
[]
[]
[]
[]
[null,"The maximum number of collections has been reached (50).\nLe nombre maximal de collections a été atteint (50)."]

{"sheet":"ListDomains","index":5,"n_rows":2259,"n_cols":11,"rows_kept":2259,"cut":false,"hidden":true,"merged":[]}
[null,null,null,null,null,null,null,"CZS Collection Thematic (Name)","CZS Collection Thematic (UUID)",null,"Core Subject Term"]
[null,null,null,null,null,null,null,"en: Agriculture, construction and land use, \nfr: Agriculture, constructions et occupation du territoire","a78c820c-9e31-4296-bf75-a94384c1b1c5",null,"Abbreviations_Abreviation"]
[null,null,null,null,null,null,null,"en: Environment, \nfr: Environnement","f0611e86-5863-4761-902e-e58baba0c110",null,"Aboriginal-affairs_Affaires-autochtones"]
[null,"ServiceLanguage",null,null,null,null,null,"en: Fauna, flora and biodiversity, \nfr: Faune, flore et biodiversité","0f1c62fc-5325-483e-b2d9-fb98cfe397f5",null,"Aboriginal-businesses_Entreprise-autochtone"]
[null,"Bilingual",null,"true",null,"Map,Data,Query",null,"en: Hydrography and hydrology, \nfr: Hydrographie et hydrologie","13244ca2-83b5-4ccc-bc18-689829cd5b94",null,"Aboriginal-culture_Culture-autochtone"]
[null,"French",null,"false",null,"Map,Query",null,"en: Mining, energy and forestry, \nfr: Mines, énergie et exploitation forestière","9b1125c2-e280-4278-89c8-a497cf300f9e",null,"Aboriginal-governments_Gouvernement-autochtone"]
[null,"English",null,null,null,"Map,Data",null,"en: Science, technology and Earth observation, \nfr: Sciences, technologies et observation de la Terre","e7087e59-a57f-432b-81db-065f4d40e797",null,"Aboriginal-lands_Terres-autochtones"]
[null,null,null,null,null,null,null,"en: Society, \nfr: Société","9c9de3c4-e0dd-4c0d-b393-fce2147bf22f",null,"Aboriginal-languages_Langue-autochtone"]
[null,"General public / Grand public",null,null,null,"MapServer",null,"en: Topography, geology and natural disasters, \nfr: Topographie, géologie et catastrophes naturelles","2aaee1ae-e253-41bf-9f47-eeaa3a27e6a7",null,"Aboriginal-law_Droit-autochtone"]
[null,"Custom repository / Dépôt personnalisé",null,null,null,"ImageServer",null,"en: Toponymy and administrative boundaries, \nfr: Toponymie et limites administratives","40b7310c-1409-4fa8-a007-eda4fbb99fa1",null,"Aboriginal-peoples_Autochtones"]
[null,"Government network / Réseau du gouvernement",null,null,null,null,null,"en: Transport and communication networks, \nfr: Réseaux de transport et de communication","70187cc5-d8e7-4318-94e3-74e3586f8cf3",null,"Aboriginal-policing_Police-des-autochtones"]
[null,null,null,null,null,null,null,null,null,null,"Aboriginal-programs_Programme-pour-autochtones"]
[null,null,null,null,null,null,null,null,null,null,"Aboriginal-reserves_Reserve-autochtone"]
[null,null,null,null,null,null,null,null,null,null,"Aboriginal-rights_Droits-des-autochtones"]
[null,"DataSet Format",null,null,null,"OGC API (Features, Coverage)",null,null,null,null,"Aboriginal-youth_Jeune-autochtone"]
[null,"GeoPackage (.gpkg)",null,null,null,"OWS (WMS/WFS/WCS)",null,null,null,null,"Abortion_Avortement"]
[null,"URL",null,null,null,"OGC API (Features, Coverage) + OWS (WMS/WFS/WCS)",null,null,null,null,"Access-to-education_Acces-a-l-education"]
[null,null,null,null,null,null,null,null,null,null,"Access-to-information_Acces-a-l-information"]
[null,null,null,null,null,"Vector / Vectoriel",null,null,null,null,"Accessibility_Accessibilite"]
[null,null,null,null,null,"Raster / Matriciel",null,null,null,null,"Accessibility-for-persons-with-disabilities_Accessibilite-aux-personnes-handicapees"]
[null,null,null,null,null,"Vector + Raster / Vectoriel + Matriciel",null,null,null,null,"Accessible-transport_Transport-accessible"]
[null,null,null,null,null,null,null,null,null,null,"Accident-prevention_Prevention-des-accidents"]
[null,null,null,null,null,"WMS","WMS",null,null,null,"Accidents_Accident"]
[null,"File Geodatabase (.gdb.zip)",null,null,null,"WFS","WCS",null,null,null,"Accountability_Imputabilite"]
[null,"Shapefile (.shp.zip)",null,null,null,"WMS + WFS","WMS + WCS",null,null,null,"Accounting_Comptabilite"]
[null,"KML (.kml)",null,null,null,null,null,null,null,null,"Accounting-standards_Normes-comptables"]
[null,"KMZ (.kmz)",null,null,null,"Features",null,null,null,null,"Acculturation_Acculturation"]
[null,"JSON (.json)",null,null,null,"Maps",null,null,null,null,"Acid-rain_Pluies-acides"]
[null,"GeoJSON (.geojson)",null,null,null,"Features + Maps",null,null,null,null,"Acquisitions-Businesses_Acquisition-Entreprise"]
[null,"CSV (comma separated values) (.csv)",null,null,null,null,null,null,null,null,"Acquittal_Acquittement"]
[null,"Text File (.txt)",null,null,null,"Coverage",null,null,null,null,"Actuarial-science_Actuariat"]
[null,"Word Document (.doc, .docx)",null,null,null,"Maps",null,null,null,null,"Addiction_Dependance"]
[null,"PDF (.pdf)",null,null,null,"Coverage + Maps",null,null,null,null,"Adjustment_Adaptation"]
[null,"Excel File (.xls, .xlsx)",null,null,null,null,null,null,null,null,"Administrative-data_Donnees-administratives"]
[null,"HTML Document (.html)",null,null,null,"EN",null,null,null,null,"Administrative-law_Droit-administratif"]
[null,"XML (.xml)",null,null,null,"FR",null,null,null,null,"Administrative-services_Services-administratifs"]
[null,"MXD (.mxd)",null,null,null,null,null,null,null,null,"Administrative-writing_Redaction-administrative"]
[null,"TIFF (.tiff, .tif)",null,null,null,"Yes / Oui",null,null,null,null,"Adolescence_Adolescence"]
[null,"PNG (.png)",null,null,null,"No / Non",null,null,null,null,"Adolescents_Adolescent"]
[null,"JPG (.jpg, .jpeg)",null,null,null,null,null,null,null,null,"Adoption_Adoption"]
[null,"GIF (.gif)",null,null,null,"CDTK Datastores (Geopackage provided) / Dépôts du CODC (Géopackage fourni)",null,null,null,null,"Adoptive-parents_Parent-adoptif"]
[null,"Other",null,null,null,"CDTK Datastores (data already published) / Dépôts du CODC (données déjà publiées)",null,null,null,null,"Adulthood_Âge-adulte"]
[null,null,null,null,null,"Custom Datastore / Dépôt personnalisé",null,null,null,null,"Adults_Adulte"]
[null,null,null,null,null,"Geobase Datacube / Cube de données de Géobase",null,null,null,null,"Advertising_Publicite"]
[null,null,null,null,null,"Custom Datastore / Dépôt personnalisé",null,null,null,null,"Advisory-committees_Comite-consultatif"]
[null,null,null,null,null,null,null,null,null,null,"Advisory-services_Services-consultatifs"]
[null,null,null,null,null,null,null,null,null,null,"Advocacy_Defense-des-droits"]
[null,null,null,null,null,null,null,null,null,null,"Aerial-photography_Photographie-aerienne"]
[null,null,null,null,null,null,null,null,null,null,"Aeronautical-maps_Carte-aeronautique"]
[null,null,null,null,null,null,null,null,null,null,"Aerospace-industry_Industrie-de-l-aerospatiale"]
[null,"CanNor",null,null,null,"Publish / Publier",null,null,null,null,"Affirmative-action_Action-positive"]
[null,"CFIA",{"$f":"LOWER(B52)","v":"cfia"},null,null,"Update / Mettre à jour",null,null,null,null,"Afforestation_Boisement"]
[null,"CIRNAC","cirnac",null,null,"Unpublish / Dépublier",null,null,null,null,"Agenda_Ordre-du-jour"]
[null,"CNSC","cnsc",null,null,null,null,null,null,null,"Aging_Vieillissement"]
[null,"CSA","csa",null,null,null,null,null,null,null,"Agreements_Accord"]
[null,"Elections","elections",null,null,null,null,null,null,null,"Agri-food-industry_Industrie-agro-alimentaire"]
[null,"HC","hc",null,null,null,null,null,null,null,"Agri-food-products_Produit-agro-alimentaire"]
[null,"IAAC",null,null,null,null,null,null,null,null,"Agricultural-assistance_Aide-a-l-agriculture"]
[null,"INFC",{"$f":"LOWER(B59)","v":"infc"},null,null,null,null,null,null,null,"Agricultural-economics_Economie-agricole"]
[null,"ISED",{"$f":"LOWER(B60)","v":"ised"},null,null,null,null,null,null,null,"Agricultural-fairs_Foire-agricole"]
[null,"JUS",{"$f":"LOWER(B61)","v":"jus"},null,null,null,null,null,null,null,"Agricultural-policy_Politique-agricole"]
[null,"NRC",{"$f":"LOWER(B62)","v":"nrc"},null,null,null,null,null,null,null,"Agricultural-technology_Technologie-agricole"]
[null,"NRCan",null,null,null,null,null,null,null,null,"Agricultural-workers_Travailleur-agricole"]
[null,"PC",{"$f":"LOWER(B64)","v":"pc"},null,null,null,null,null,null,null,"Agriculture_Agriculture"]
[null,"PCH",{"$f":"LOWER(B65)","v":"pch"},null,null,null,null,null,null,null,"Agriculture-statistics_Statistiques-de-l-agriculture"]
[null,"PHAC",{"$f":"LOWER(B66)","v":"phac"},null,null,null,null,null,null,null,"Aid-programs_Programme-d-aide"]
[null,"PS",{"$f":"LOWER(B67)","v":"ps"},null,null,null,null,null,null,null,"AIDS-disease_Sida"]
[null,"StatCan",null,null,null,null,null,null,null,null,"Air_Air"]
[null,"TBS",{"$f":"LOWER(B69)","v":"tbs"},null,null,null,null,null,null,null,"Air-conditioning_Climatisation"]
[null,"TC",{"$f":"LOWER(B70)","v":"tc"},null,null,null,null,null,null,null,"Air-pollution_Pollution-atmospherique"]
[null,"VAC",{"$f":"LOWER(B71)","v":"vac"},null,null,null,null,null,null,null,"Air-quality_Qualite-de-l-air"]
[null,null,null,null,null,null,null,null,null,null,"Air-safety_Securite-aerienne"]
[null,null,null,null,null,null,null,null,null,null,"Air-temperature_Temperature-de-l-air"]
[null,null,null,null,null,null,null,null,null,null,"Air-transport_Transport-aerien"]
[null,null,null,null,null,null,null,null,null,null,"Air-transport-industry_Industrie-du-transport-aerien"]
[null,null,null,null,null,null,null,null,null,null,"Aircraft_Aeronef"]
[null,null,null,null,null,null,null,null,null,null,"Aircraft-accidents_Accident-d-aviation"]
[null,null,null,null,null,null,null,null,null,null,"Aircraft-anti-icing_Antigivrage-des-aeronefs"]
[null,null,null,null,null,null,null,null,null,null,"Aircraft-de-icing_Degivrage-des-aeronefs"]
[null,null,null,null,null,null,null,null,null,null,"Airlines_Compagnie-aerienne"]
[null,null,null,null,null,null,null,null,null,null,"Airplanes_Avion"]
[null,null,null,null,null,null,null,null,null,null,"Airport-authorities_Administration-aeroportuaire"]
[null,null,null,null,null,null,null,null,null,null,"Airports_Aeroport"]
[null,null,null,null,null,null,null,null,null,null,"Alcohol-consumption_Consommation-d-alcool"]
[null,null,null,null,null,null,null,null,null,null,"Alcohol-education_Prevention-de-l-alcoolisme"]
[null,null,null,null,null,null,null,null,null,null,"Alcoholic-beverages_Boisson-alcoolisee"]
[null,null,null,null,null,null,null,null,null,null,"Alcoholism_Alcoolisme"]
[null,null,null,null,null,null,null,null,null,null,"Allergies_Allergie"]
[null,null,null,null,null,null,null,null,null,null,"Allied-forces_Forces-alliees"]
[null,null,null,null,null,null,null,null,null,null,"Allotments_Allocation-de-credits"]
[null,null,null,null,null,null,null,null,null,null,"Allowances_Allocation"]
[null,null,null,null,null,null,null,null,null,null,"Almanacs_Almanach"]
[null,null,null,null,null,null,null,null,null,null,"Alternative-energy_Energie-de-remplacement"]
[null,null,null,null,null,null,null,null,null,null,"Alternative-fuels_Carburant-de-remplacement"]
[null,null,null,null,null,null,null,null,null,null,"Alternative-medicine_Medecine-douce"]
[null,null,null,null,null,null,null,null,null,null,"Alzheimers-disease_Maladie-d-Alzheimer"]
[null,null,null,null,null,null,null,null,null,null,"Amateur-sports_Sport-amateur"]
[null,null,null,null,null,null,null,null,null,null,"Amendments_Amendement"]
[null,null,null,null,null,null,null,null,null,null,"Amphibians_Amphibien"]
[null,null,null,null,null,null,null,null,null,null,"Analysis_Analyse"]
[null,null,null,null,null,null,null,null,null,null,"Analytics_Analytique"]
[null,null,null,null,null,null,null,null,null,null,"Anatomy_Anatomie"]
[null,null,null,null,null,null,null,null,null,null,"Animal-diseases_Maladie-animale"]
[null,null,null,null,null,null,null,null,null,null,"Animal-health_Sante-animale"]
[null,null,null,null,null,null,null,null,null,null,"Animal-husbandry_Elevage"]
[null,null,null,null,null,null,null,null,null,null,"Animal-inspection_Inspection-des-animaux"]
[null,null,null,null,null,null,null,null,null,null,"Animal-migrations_Migration-animale"]
[null,null,null,null,null,null,null,null,null,null,"Animal-nutrition_Alimentation-animale"]
[null,null,null,null,null,null,null,null,null,null,"Animal-populations_Population-animale"]
[null,null,null,null,null,null,null,null,null,null,"Animal-reproduction_Reproduction-animale"]
[null,null,null,null,null,null,null,null,null,null,"Animal-research_Recherche-sur-les-animaux"]
[null,null,null,null,null,null,null,null,null,null,"Animal-rights_Droits-des-animaux"]
[null,null,null,null,null,null,null,null,null,null,"Animal-testing_Experimentation-sur-les-animaux"]
[null,null,null,null,null,null,null,null,null,null,"Animals_Animal"]
[null,null,null,null,null,null,null,null,null,null,"Annual-reports_Rapport-annuel"]
[null,null,null,null,null,null,null,null,null,null,"Antarctic_Antarctique"]
[null,null,null,null,null,null,null,null,null,null,"Anthropology_Anthropologie"]
[null,null,null,null,null,null,null,null,null,null,"Anti-dumping_Droits-antidumping"]
[null,null,null,null,null,null,null,null,null,null,"Apartment-buildings_Immeuble-d-habitation"]
[null,null,null,null,null,null,null,null,null,null,"Appeals_Appel"]
[null,null,null,null,null,null,null,null,null,null,"Apples_Pomme"]
[null,null,null,null,null,null,null,null,null,null,"Applicants_Demandeur"]
[null,null,null,null,null,null,null,null,null,null,"Applied-research_Recherche-appliquee"]
[null,null,null,null,null,null,null,null,null,null,"Appointments_Nomination"]
[null,null,null,null,null,null,null,null,null,null,"Approval-processes_Procedure-d-agrement"]
[null,null,null,null,null,null,null,null,null,null,"Aquaculture_Aquaculture"]
[null,null,null,null,null,null,null,null,null,null,"Aquariums_Aquarium"]
[null,null,null,null,null,null,null,null,null,null,"Aquatic-animals_Animal-aquatique"]
[null,null,null,null,null,null,null,null,null,null,"Aquatic-birds_Oiseau-aquatique"]
[null,null,null,null,null,null,null,null,null,null,"Aquatic-ecosystems_Ecosysteme-aquatique"]
[null,null,null,null,null,null,null,null,null,null,"Aquatic-plants_Plante-aquatique"]
[null,null,null,null,null,null,null,null,null,null,"Aquatic-wildlife_Faune-aquatique"]
[null,null,null,null,null,null,null,null,null,null,"Arachnids_Arachnide"]
[null,null,null,null,null,null,null,null,null,null,"Arbitration_Arbitrage"]
[null,null,null,null,null,null,null,null,null,null,"Archaeological-investigations_Fouilles-archeologiques"]
[null,null,null,null,null,null,null,null,null,null,"Archaeology_Archeologie"]
[null,null,null,null,null,null,null,null,null,null,"Architectural-drawings_Dessin-d-architecture"]
[null,null,null,null,null,null,null,null,null,null,"Architectural-heritage_Patrimoine-architectural"]
[null,null,null,null,null,null,null,null,null,null,"Architectural-services_Service-de-l-architecture"]
[null,null,null,null,null,null,null,null,null,null,"Architecture_Architecture"]
[null,null,null,null,null,null,null,null,null,null,"Archives_Archives"]
[null,null,null,null,null,null,null,null,null,null,"Arctic_Arctique"]
[null,null,null,null,null,null,null,null,null,null,"Arctic-ecosystems_Ecosysteme-arctique"]
[null,null,null,null,null,null,null,null,null,null,"Armed-forces_Forces-armees"]
[null,null,null,null,null,null,null,null,null,null,"Armouries_Arsenal"]
[null,null,null,null,null,null,null,null,null,null,"Arms-control_Contrôle-des-armements"]
[null,null,null,null,null,null,null,null,null,null,"Arrests_Arrestation"]
[null,null,null,null,null,null,null,null,null,null,"Art-exhibitions_Exposition-d-oeuvres-d-art"]
[null,null,null,null,null,null,null,null,null,null,"Art-galleries_Galerie-d-art"]
[null,null,null,null,null,null,null,null,null,null,"Art-works_Œuvre-d-art"]
[null,null,null,null,null,null,null,null,null,null,"Artefacts_Artefact"]
[null,null,null,null,null,null,null,null,null,null,"Arthritis_Arthrite"]
[null,null,null,null,null,null,null,null,null,null,"Arthropods_Arthropode"]
[null,null,null,null,null,null,null,null,null,null,"Artificial-insemination_Insemination-artificielle"]
[null,null,null,null,null,null,null,null,null,null,"Artificial-intelligence_Intelligence-artificielle"]
[null,null,null,null,null,null,null,null,null,null,"Artists_Artiste"]
[null,null,null,null,null,null,null,null,null,null,"Arts_Arts"]
[null,null,null,null,null,null,null,null,null,null,"Assessment_Evaluation"]
[null,null,null,null,null,null,null,null,null,null,"Assets_Actif"]
[null,null,null,null,null,null,null,null,null,null,"Assignments_Affectation"]
[null,null,null,null,null,null,null,null,null,null,"Assistive-technologies_Technologie-d-aide"]
[null,null,null,null,null,null,null,null,null,null,"Associations_Association"]
[null,null,null,null,null,null,null,null,null,null,"Astronaut-training_Entraînement-des-astronautes"]
[null,null,null,null,null,null,null,null,null,null,"Astronauts_Astronaute"]
[null,null,null,null,null,null,null,null,null,null,"Astronomical-observatories_Observatoire"]
[null,null,null,null,null,null,null,null,null,null,"Astronomy_Astronomie"]
[null,null,null,null,null,null,null,null,null,null,"Athletes_Athlete"]
[null,null,null,null,null,null,null,null,null,null,"Atlantic-provinces_Provinces-atlantiques"]
[null,null,null,null,null,null,null,null,null,null,"Atlases_Atlas"]
[null,null,null,null,null,null,null,null,null,null,"Atmospheric-emissions_Emissions-atmospheriques"]
[null,null,null,null,null,null,null,null,null,null,"Attitudes_Attitude"]
[null,null,null,null,null,null,null,null,null,null,"Auctions_Vente-aux-encheres"]
[null,null,null,null,null,null,null,null,null,null,"Audiovisual-equipment_Equipement-audiovisuel"]
[null,null,null,null,null,null,null,null,null,null,"Audit_Verification"]
[null,null,null,null,null,null,null,null,null,null,"Authentication_Authentification"]
[null,null,null,null,null,null,null,null,null,null,"Authorization_Autorisation"]
[null,null,null,null,null,null,null,null,null,null,"Authors_Auteur"]
[null,null,null,null,null,null,null,null,null,null,"Automation_Automatisation"]
[null,null,null,null,null,null,null,null,null,null,"Automobile-industry_Industrie-de-l-automobile"]
[null,null,null,null,null,null,null,null,null,null,"Automobile-safety-equipment_Equipement-de-securite-automobile"]
[null,null,null,null,null,null,null,null,null,null,"Automobiles_Automobile"]
[null,null,null,null,null,null,null,null,null,null,"Avalanches_Avalanche"]
[null,null,null,null,null,null,null,null,null,null,"Aviation_Aviation"]
[null,null,null,null,null,null,null,null,null,null,"Aviation-industry_Industrie-de-l-aeronautique"]
[null,null,null,null,null,null,null,null,null,null,"Awards_Recompense"]
[null,null,null,null,null,null,null,null,null,null,"Awareness_Sensibilisation"]
[null,null,null,null,null,null,null,null,null,null,"Bacteria_Bacterie"]
[null,null,null,null,null,null,null,null,null,null,"Bacteriology_Bacteriologie"]
[null,null,null,null,null,null,null,null,null,null,"Banking_Operation-bancaire"]
[null,null,null,null,null,null,null,null,null,null,"Bankruptcies_Faillite"]
[null,null,null,null,null,null,null,null,null,null,"Banks_Banque"]
[null,null,null,null,null,null,null,null,null,null,"Barley_Orge"]
[null,null,null,null,null,null,null,null,null,null,"Battlefields_Champ-de-bataille"]
[null,null,null,null,null,null,null,null,null,null,"Beef-cattle_Bovin-de-boucherie"]
[null,null,null,null,null,null,null,null,null,null,"Beekeeping_Apiculture"]
[null,null,null,null,null,null,null,null,null,null,"Beer_Biere"]
[null,null,null,null,null,null,null,null,null,null,"Behaviour_Comportement"]
[null,null,null,null,null,null,null,null,null,null,"Benchmarks_Repere"]
[null,null,null,null,null,null,null,null,null,null,"Beneficiaries_Beneficiaire"]
[null,null,null,null,null,null,null,null,null,null,"Benefits_Avantages-sociaux"]
[null,null,null,null,null,null,null,null,null,null,"Best-practices_Meilleures-pratiques"]
[null,null,null,null,null,null,null,null,null,null,"Beverage-industry_Industrie-des-boissons"]
[null,null,null,null,null,null,null,null,null,null,"Beverages_Boisson"]
[null,null,null,null,null,null,null,null,null,null,"Bibliographic-data-interchange_Echange-de-donnees-bibliographiques"]
[null,null,null,null,null,null,null,null,null,null,"Bibliographies_Bibliographie"]
[null,null,null,null,null,null,null,null,null,null,"Bicycle-paths_Piste-cyclable"]
[null,null,null,null,null,null,null,null,null,null,"Bicycle-safety-equipment_Equipement-de-securite-cycliste"]
[null,null,null,null,null,null,null,null,null,null,"Bilingual-services_Services-bilingues"]
[null,null,null,null,null,null,null,null,null,null,"Bilingualism_Bilinguisme"]
[null,null,null,null,null,null,null,null,null,null,"Bills-of-sale_Acte-de-vente"]
[null,null,null,null,null,null,null,null,null,null,"Bioassay_Epreuve-biologique"]
[null,null,null,null,null,null,null,null,null,null,"Biochemicals_Produit-biochimique"]
[null,null,null,null,null,null,null,null,null,null,"Biochemistry_Biochimie"]
[null,null,null,null,null,null,null,null,null,null,"Biodegradation_Biodegradation"]
[null,null,null,null,null,null,null,null,null,null,"Bioenergy_Bioenergie"]
[null,null,null,null,null,null,null,null,null,null,"Bioethics_Bioethique"]
[null,null,null,null,null,null,null,null,null,null,"Biographies_Biographie"]
[null,null,null,null,null,null,null,null,null,null,"Biological-diversity_Diversite-biologique"]
[null,null,null,null,null,null,null,null,null,null,"Biological-products_Produit-biologique"]
[null,null,null,null,null,null,null,null,null,null,"Biological-warfare_Guerre-biologique"]
[null,null,null,null,null,null,null,null,null,null,"Biological-weapons_Arme-biologique"]
[null,null,null,null,null,null,null,null,null,null,"Biology_Biologie"]
[null,null,null,null,null,null,null,null,null,null,"Biomass_Biomasse"]
[null,null,null,null,null,null,null,null,null,null,"Biomedical-experiments_Experimentation-biomedicale"]
[null,null,null,null,null,null,null,null,null,null,"Biotechnology_Biotechnologie"]
[null,null,null,null,null,null,null,null,null,null,"Birds_Oiseau"]
[null,null,null,null,null,null,null,null,null,null,"Birth_Naissance"]
[null,null,null,null,null,null,null,null,null,null,"Birth-certificates_Certificat-de-naissance"]
[null,null,null,null,null,null,null,null,null,null,"Birth-rate_Taux-de-natalite"]
[null,null,null,null,null,null,null,null,null,null,"Blindness_Cecite"]
[null,null,null,null,null,null,null,null,null,null,"Blood-supply_Approvisionnement-en-sang"]
[null,null,null,null,null,null,null,null,null,null,"Board-of-directors_Conseil-d-administration"]
[null,null,null,null,null,null,null,null,null,null,"Bonds_Obligations"]
[null,null,null,null,null,null,null,null,null,null,"Booklets_Brochure"]
[null,null,null,null,null,null,null,null,null,null,"Books_Livre"]
[null,null,null,null,null,null,null,null,null,null,"Border-crossing_Passage-des-frontieres"]
[null,null,null,null,null,null,null,null,null,null,"Boreal-ecosystems_Ecosysteme-boreal"]
[null,null,null,null,null,null,null,null,null,null,"Borrowers_Emprunteur"]
[null,null,null,null,null,null,null,null,null,null,"Botanical-gardens_Jardin-botanique"]
[null,null,null,null,null,null,null,null,null,null,"Botany_Botanique"]
[null,null,null,null,null,null,null,null,null,null,"Boundaries_Frontiere"]
[null,null,null,null,null,null,null,null,null,null,"Boundary-waters_Eaux-limitrophes"]
[null,null,null,null,null,null,null,null,null,null,"Braille_Braille"]
[null,null,null,null,null,null,null,null,null,null,"Branches_Direction"]
[null,null,null,null,null,null,null,null,null,null,"Breast-cancer_Cancer-du-sein"]
[null,null,null,null,null,null,null,null,null,null,"Bridges_Pont"]
[null,null,null,null,null,null,null,null,null,null,"Briefing-papers_Document-d-information"]
[null,null,null,null,null,null,null,null,null,null,"Broadcasting_Radiodiffusion"]
[null,null,null,null,null,null,null,null,null,null,"Broadcasting-industry_Industrie-de-la-radiodiffusion"]
[null,null,null,null,null,null,null,null,null,null,"Budget-planning_Planification-budgetaire"]
[null,null,null,null,null,null,null,null,null,null,"Budgets_Budget"]
[null,null,null,null,null,null,null,null,null,null,"Buildings_Bâtiment"]
[null,null,null,null,null,null,null,null,null,null,"Burials_Inhumation"]
[null,null,null,null,null,null,null,null,null,null,"Buses_Autobus"]
[null,null,null,null,null,null,null,null,null,null,"Business-development_Developpement-de-l-entreprise"]
[null,null,null,null,null,null,null,null,null,null,"Business-intelligence_Renseignements-d-affaires"]
[null,null,null,null,null,null,null,null,null,null,"Business-loans_Prêt-a-l-entreprise"]
[null,null,null,null,null,null,null,null,null,null,"Business-names_Nom-commercial"]
[null,null,null,null,null,null,null,null,null,null,"Business-numbers_Numero-d-entreprise"]
[null,null,null,null,null,null,null,null,null,null,"Business-opportunities_Possibilite-d-affaires"]
[null,null,null,null,null,null,null,null,null,null,"Business-plans_Plan-d-affaires"]
[null,null,null,null,null,null,null,null,null,null,"Business-services_Services-aux-entreprises"]
[null,null,null,null,null,null,null,null,null,null,"Business-start-ups_Demarrage-d-une-entreprise"]
[null,null,null,null,null,null,null,null,null,null,"Business-types_Type-d-entreprise"]
[null,null,null,null,null,null,null,null,null,null,"Businesses_Entreprise"]
[null,null,null,null,null,null,null,null,null,null,"Butter_Beurre"]
[null,null,null,null,null,null,null,null,null,null,"Butterflies_Papillon"]
[null,null,null,null,null,null,null,null,null,null,"Buyers_Acheteur"]
[null,null,null,null,null,null,null,null,null,null,"By-elections_Election-partielle"]
[null,null,null,null,null,null,null,null,null,null,"By-laws_Reglement-administratif"]
[null,null,null,null,null,null,null,null,null,null,"Cabinet_Conseil-des-ministres"]
[null,null,null,null,null,null,null,null,null,null,"Cable-television_Câblodistribution"]
[null,null,null,null,null,null,null,null,null,null,"Caisses-populaires_Caisse-populaire"]
[null,null,null,null,null,null,null,null,null,null,"Calendar-year_Annee-civile"]
[null,null,null,null,null,null,null,null,null,null,"Call-for-tenders_Appel-d-offres"]
[null,null,null,null,null,null,null,null,null,null,"Canadian-American-relations_Relations-canado-americaines"]
[null,null,null,null,null,null,null,null,null,null,"Canadian-history_Histoire-du-Canada"]
[null,null,null,null,null,null,null,null,null,null,"Canadian-identity_Identite-canadienne"]
[null,null,null,null,null,null,null,null,null,null,"Canadian-literature_Litterature-canadienne"]
[null,null,null,null,null,null,null,null,null,null,"Canadian-studies_Etudes-canadiennes"]
[null,null,null,null,null,null,null,null,null,null,"Canals_Canal"]
[null,null,null,null,null,null,null,null,null,null,"Cancer_Cancer"]
[null,null,null,null,null,null,null,null,null,null,"Candidates_Candidat"]
[null,null,null,null,null,null,null,null,null,null,"Canola-oil_Huile-de-canola"]
[null,null,null,null,null,null,null,null,null,null,"Capital_Capital"]
[null,null,null,null,null,null,null,null,null,null,"Capital-markets_Marche-de-capitaux"]
[null,null,null,null,null,null,null,null,null,null,"Cardiovascular-diseases_Maladie-cardiovasculaire"]
[null,null,null,null,null,null,null,null,null,null,"Caregivers_Soignant"]
[null,null,null,null,null,null,null,null,null,null,"Carrots_Carotte"]
[null,null,null,null,null,null,null,null,null,null,"Cartographic-records_Archives-cartographiques"]
[null,null,null,null,null,null,null,null,null,null,"Cartography_Cartographie"]
[null,null,null,null,null,null,null,null,null,null,"Case-studies_Etude-de-cas"]
[null,null,null,null,null,null,null,null,null,null,"Casinos_Casino"]
[null,null,null,null,null,null,null,null,null,null,"Catalogues_Catalogue"]
[null,null,null,null,null,null,null,null,null,null,"Cataloguing_Catalogage"]
[null,null,null,null,null,null,null,null,null,null,"Cattle_Bovin"]
[null,null,null,null,null,null,null,null,null,null,"CD-ROMs_Cederom"]
[null,null,null,null,null,null,null,null,null,null,"Cells_Cellule"]
[null,null,null,null,null,null,null,null,null,null,"Cellular-telephones_Telephone-cellulaire"]
[null,null,null,null,null,null,null,null,null,null,"Cemeteries_Cimetiere"]
[null,null,null,null,null,null,null,null,null,null,"Censorship_Censure"]
[null,null,null,null,null,null,null,null,null,null,"Census_Recensement"]
[null,null,null,null,null,null,null,null,null,null,"Census-data_Donnees-du-recensement"]
[null,null,null,null,null,null,null,null,null,null,"Central-provinces_Provinces-du-Centre"]
[null,null,null,null,null,null,null,null,null,null,"Centralization_Centralisation"]
[null,null,null,null,null,null,null,null,null,null,"Ceramics_Ceramique"]
[null,null,null,null,null,null,null,null,null,null,"Cereals_Cereale"]
[null,null,null,null,null,null,null,null,null,null,"Certificate-of-origin_Certificat-d-origine"]
[null,null,null,null,null,null,null,null,null,null,"Certification_Accreditation"]
[null,null,null,null,null,null,null,null,null,null,"Change-of-address_Changement-d-adresse"]
[null,null,null,null,null,null,null,null,null,null,"Charitable-donations_Don-de-charite"]
[null,null,null,null,null,null,null,null,null,null,"Charitable-organizations_Organisme-de-bienfaisance"]
[null,null,null,null,null,null,null,null,null,null,"Charter-of-rights-and-freedoms_Charte-des-droits-et-libertes"]
[null,null,null,null,null,null,null,null,null,null,"Charters_Charte"]
[null,null,null,null,null,null,null,null,null,null,"Cheese_Fromage"]
[null,null,null,null,null,null,null,null,null,null,"Chemical-industry_Industrie-chimique"]
[null,null,null,null,null,null,null,null,null,null,"Chemical-warfare_Guerre-chimique"]
[null,null,null,null,null,null,null,null,null,null,"Chemical-weapons_Arme-chimique"]
[null,null,null,null,null,null,null,null,null,null,"Chemicals_Produit-chimique"]
[null,null,null,null,null,null,null,null,null,null,"Chemistry_Chimie"]
[null,null,null,null,null,null,null,null,null,null,"Chief-Electoral-Officer_Directeur-general-des-elections"]
[null,null,null,null,null,null,null,null,null,null,"Chief-Financial-Officer_Directeur-des-finances"]
[null,null,null,null,null,null,null,null,null,null,"Chief-Human-Resources-Officer_Dirigeant-principal-des-ressources-humaines"]
[null,null,null,null,null,null,null,null,null,null,"Chief-Information-Officer_Dirigeant-principal-de-l-information"]
[null,null,null,null,null,null,null,null,null,null,"Child-care_Soin-de-l-enfant"]
[null,null,null,null,null,null,null,null,null,null,"Child-custody_Garde-des-enfants"]
[null,null,null,null,null,null,null,null,null,null,"Child-development_Developpement-de-l-enfant"]
[null,null,null,null,null,null,null,null,null,null,"Child-poverty_Pauvrete-dans-l-enfance"]
[null,null,null,null,null,null,null,null,null,null,"Child-safety_Securite-de-l-enfant"]
[null,null,null,null,null,null,null,null,null,null,"Child-support_Pension-alimentaire"]
[null,null,null,null,null,null,null,null,null,null,"Childhood_Enfance"]
[null,null,null,null,null,null,null,null,null,null,"Childhood-diseases_Maladie-infantile"]
[null,null,null,null,null,null,null,null,null,null,"Children_Enfant"]
[null,null,null,null,null,null,null,null,null,null,"Childrens-books_Livre-pour-enfant"]
[null,null,null,null,null,null,null,null,null,null,"Childrens-health_Sante-de-l-enfant"]
[null,null,null,null,null,null,null,null,null,null,"Childrens-literature_Litterature-de-jeunesse"]
[null,null,null,null,null,null,null,null,null,null,"Childrens-rights_Droits-de-l-enfant"]
[null,null,null,null,null,null,null,null,null,null,"Chronic-diseases_Maladie-chronique"]
[null,null,null,null,null,null,null,null,null,null,"Cinema_Cinema"]
[null,null,null,null,null,null,null,null,null,null,"Citizen-participation_Participation-du-citoyen"]
[null,null,null,null,null,null,null,null,null,null,"Citizenship_Citoyennete"]
[null,null,null,null,null,null,null,null,null,null,"Citizenship-documents_Preuve-de-citoyennete"]
[null,null,null,null,null,null,null,null,null,null,"Civil-aviation_Aviation-civile"]
[null,null,null,null,null,null,null,null,null,null,"Civil-law_Droit-civil"]
[null,null,null,null,null,null,null,null,null,null,"Civil-rights_Droits-civils"]
[null,null,null,null,null,null,null,null,null,null,"Civilian-aircraft_Aeronef-civil"]
[null,null,null,null,null,null,null,null,null,null,"Claims_Revendication"]
[null,null,null,null,null,null,null,null,null,null,"Claims-processing_Traitement-des-demandes"]
[null,null,null,null,null,null,null,null,null,null,"Classification_Classification"]
[null,null,null,null,null,null,null,null,null,null,"Clean-technology_Technologie-propre"]
[null,null,null,null,null,null,null,null,null,null,"Client-satisfaction_Satisfaction-du-client"]
[null,null,null,null,null,null,null,null,null,null,"Clients_Client"]
[null,null,null,null,null,null,null,null,null,null,"Climate_Climat"]
[null,null,null,null,null,null,null,null,null,null,"Climate-archives_Archives-climatologiques"]
[null,null,null,null,null,null,null,null,null,null,"Climate-change_Changement-climatique"]
[null,null,null,null,null,null,null,null,null,null,"Cloning_Clonage"]
[null,null,null,null,null,null,null,null,null,null,"Clothing_Habillement"]
[null,null,null,null,null,null,null,null,null,null,"Clothing-industry_Industrie-du-vêtement"]
[null,null,null,null,null,null,null,null,null,null,"Coaching_Assistance-professionnelle"]
[null,null,null,null,null,null,null,null,null,null,"Coal_Charbon"]
[null,null,null,null,null,null,null,null,null,null,"Coast-guard_Garde-côtiere"]
[null,null,null,null,null,null,null,null,null,null,"Coastal-waters_Eaux-côtieres"]
[null,null,null,null,null,null,null,null,null,null,"Coasts_Littoral"]
[null,null,null,null,null,null,null,null,null,null,"Codes-of-practice_Code-de-pratiques"]
[null,null,null,null,null,null,null,null,null,null,"Coding_Codification"]
[null,null,null,null,null,null,null,null,null,null,"Coffee_Cafe"]
[null,null,null,null,null,null,null,null,null,null,"Coins_Piece-de-monnaie"]
[null,null,null,null,null,null,null,null,null,null,"Collaborative-research_Recherche-cooperative"]
[null,null,null,null,null,null,null,null,null,null,"Collections_Collection"]
[null,null,null,null,null,null,null,null,null,null,"Collective-agreements_Convention-collective"]
[null,null,null,null,null,null,null,null,null,null,"Collective-bargaining_Negociation-collective"]
[null,null,null,null,null,null,null,null,null,null,"Colleges_College"]
[null,null,null,null,null,null,null,null,null,null,"Colonization_Colonisation"]
[null,null,null,null,null,null,null,null,null,null,"Commemoration_Commemoration"]
[null,null,null,null,null,null,null,null,null,null,"Commercial-architecture_Architecture-commerciale"]
[null,null,null,null,null,null,null,null,null,null,"Commercial-buildings_Bâtiment-commercial"]
[null,null,null,null,null,null,null,null,null,null,"Commercial-law_Droit-commercial"]
[null,null,null,null,null,null,null,null,null,null,"Commercial-ships_Navire-commercial"]
[null,null,null,null,null,null,null,null,null,null,"Commercialization_Commercialisation"]
[null,null,null,null,null,null,null,null,null,null,"Commissions-of-inquiry_Commission-d-enquête"]
[null,null,null,null,null,null,null,null,null,null,"Committees_Comite"]
[null,null,null,null,null,null,null,null,null,null,"Commodities_Produit-de-base"]
[null,null,null,null,null,null,null,null,null,null,"Common-law-unions_Union-de-fait"]
[null,null,null,null,null,null,null,null,null,null,"Commonwealth_Commonwealth"]
[null,null,null,null,null,null,null,null,null,null,"Communications_Communications"]
[null,null,null,null,null,null,null,null,null,null,"Communications-equipment_Equipement-de-communications"]
[null,null,null,null,null,null,null,null,null,null,"Communications-industry_Industrie-des-communications"]
[null,null,null,null,null,null,null,null,null,null,"Community-development_Developpement-communautaire"]
[null,null,null,null,null,null,null,null,null,null,"Community-education_Education-communautaire"]
[null,null,null,null,null,null,null,null,null,null,"Community-infrastructures_Infrastructure-communautaire"]
[null,null,null,null,null,null,null,null,null,null,"Community-justice_Justice-communautaire"]
[null,null,null,null,null,null,null,null,null,null,"Community-partnerships_Partenariat-communautaire"]
[null,null,null,null,null,null,null,null,null,null,"Community-programs_Programme-communautaire"]
[null,null,null,null,null,null,null,null,null,null,"Community-radio_Radio-communautaire"]
[null,null,null,null,null,null,null,null,null,null,"Community-relations_Relations-communautaires"]
[null,null,null,null,null,null,null,null,null,null,"Community-services_Services-communautaires"]
[null,null,null,null,null,null,null,null,null,null,"Compact-discs_Disque-compact"]
[null,null,null,null,null,null,null,null,null,null,"Comparison_Comparaison"]
[null,null,null,null,null,null,null,null,null,null,"Competition_Concurrence"]
[null,null,null,null,null,null,null,null,null,null,"Competitiveness_Competitivite"]
[null,null,null,null,null,null,null,null,null,null,"Complaints_Plainte"]
[null,null,null,null,null,null,null,null,null,null,"Compliance_Conformite"]
[null,null,null,null,null,null,null,null,null,null,"Composting_Compostage"]
[null,null,null,null,null,null,null,null,null,null,"Comptrollership_Fonction-de-contrôleur"]
[null,null,null,null,null,null,null,null,null,null,"Computer-crime_Crime-informatique"]
[null,null,null,null,null,null,null,null,null,null,"Computer-networks_Reseau-informatique"]
[null,null,null,null,null,null,null,null,null,null,"Computer-programming_Programmation-d-ordinateur"]
[null,null,null,null,null,null,null,null,null,null,"Computer-science_Informatique"]
[null,null,null,null,null,null,null,null,null,null,"Computer-security_Securite-informatique"]
[null,null,null,null,null,null,null,null,null,null,"Computer-services_Services-informatiques"]
[null,null,null,null,null,null,null,null,null,null,"Computer-systems_Systeme-informatique"]
[null,null,null,null,null,null,null,null,null,null,"Computers_Ordinateur"]
[null,null,null,null,null,null,null,null,null,null,"Concrete_Beton"]
[null,null,null,null,null,null,null,null,null,null,"Conferences_Congres"]
[null,null,null,null,null,null,null,null,null,null,"Confidentiality_Confidentialite"]
[null,null,null,null,null,null,null,null,null,null,"Conflict-resolution_Resolution-de-conflit"]
[null,null,null,null,null,null,null,null,null,null,"Conflicts_Conflit"]
[null,null,null,null,null,null,null,null,null,null,"Conflicts-of-interest_Conflit-d-interêt"]
[null,null,null,null,null,null,null,null,null,null,"Conglomerates_Conglomerat"]
[null,null,null,null,null,null,null,null,null,null,"Conservation_Conservation"]
[null,null,null,null,null,null,null,null,null,null,"Conservation-areas_Aire-de-conservation"]
[null,null,null,null,null,null,null,null,null,null,"Consortia_Consortium"]
[null,null,null,null,null,null,null,null,null,null,"Constitution_Constitution"]
[null,null,null,null,null,null,null,null,null,null,"Constitutional-law_Droit-constitutionnel"]
[null,null,null,null,null,null,null,null,null,null,"Construction_Construction"]
[null,null,null,null,null,null,null,null,null,null,"Construction-industry_Industrie-de-la-construction"]
[null,null,null,null,null,null,null,null,null,null,"Construction-materials_Materiau-de-construction"]
[null,null,null,null,null,null,null,null,null,null,"Consular-services_Services-consulaires"]
[null,null,null,null,null,null,null,null,null,null,"Consultations_Consultation"]
[null,null,null,null,null,null,null,null,null,null,"Consulting_Service-conseil"]
[null,null,null,null,null,null,null,null,null,null,"Consumer-loans_Prêt-a-la-consommation"]
[null,null,null,null,null,null,null,null,null,null,"Consumer-products_Produit-de-consommation"]
[null,null,null,null,null,null,null,null,null,null,"Consumer-protection_Protection-du-consommateur"]
[null,null,null,null,null,null,null,null,null,null,"Consumerism_Consommation"]
[null,null,null,null,null,null,null,null,null,null,"Consumers_Consommateur"]
[null,null,null,null,null,null,null,null,null,null,"Contact_Personne-ressource"]
[null,null,null,null,null,null,null,null,null,null,"Contaminated-sites_Site-contamine"]
[null,null,null,null,null,null,null,null,null,null,"Continuing-education_Education-permanente"]
[null,null,null,null,null,null,null,null,null,null,"Contracting_Passation-des-marches"]
[null,null,null,null,null,null,null,null,null,null,"Contracts_Contrat"]
[null,null,null,null,null,null,null,null,null,null,"Contravention_Contravention"]
[null,null,null,null,null,null,null,null,null,null,"Control_Contrôle"]
[null,null,null,null,null,null,null,null,null,null,"Conviction_Condamnation"]
[null,null,null,null,null,null,null,null,null,null,"Cooking_Art-culinaire"]
[null,null,null,null,null,null,null,null,null,null,"Cooperation_Cooperation"]
[null,null,null,null,null,null,null,null,null,null,"Cooperation-agreements_Accord-de-cooperation"]
[null,null,null,null,null,null,null,null,null,null,"Cooperative-education_Enseignement-cooperatif"]
[null,null,null,null,null,null,null,null,null,null,"Cooperatives_Cooperative"]
[null,null,null,null,null,null,null,null,null,null,"Coordination_Coordination"]
[null,null,null,null,null,null,null,null,null,null,"Copyright_Droit-d-auteur"]
[null,null,null,null,null,null,null,null,null,null,"Copyright-clearance_Affranchissement-des-droits"]
[null,null,null,null,null,null,null,null,null,null,"Corn_Maïs"]
[null,null,null,null,null,null,null,null,null,null,"Corporate-image_Image-de-marque"]
[null,null,null,null,null,null,null,null,null,null,"Corporate-income-tax_Impôt-sur-le-revenu-des-societes"]
[null,null,null,null,null,null,null,null,null,null,"Corporate-names_Raison-sociale"]
[null,null,null,null,null,null,null,null,null,null,"Corporations_Societes"]
[null,null,null,null,null,null,null,null,null,null,"Correctional-institutions_Etablissement-penitentiaire"]
[null,null,null,null,null,null,null,null,null,null,"Correspondence_Correspondance"]
[null,null,null,null,null,null,null,null,null,null,"Corruption_Corruption"]
[null,null,null,null,null,null,null,null,null,null,"Cost-benefit-analysis_Analyse-coût-benefice"]
[null,null,null,null,null,null,null,null,null,null,"Costs_Coût"]
[null,null,null,null,null,null,null,null,null,null,"Costume_Costume"]
[null,null,null,null,null,null,null,null,null,null,"Counselling-services_Service-d-orientation"]
[null,null,null,null,null,null,null,null,null,null,"Couples_Couple"]
[null,null,null,null,null,null,null,null,null,null,"Court-appearances_Comparution"]
[null,null,null,null,null,null,null,null,null,null,"Court-decisions_Decision-du-tribunal"]
[null,null,null,null,null,null,null,null,null,null,"Courts_Tribunal"]
[null,null,null,null,null,null,null,null,null,null,"Crafts_Artisanat"]
[null,null,null,null,null,null,null,null,null,null,"Cream_Creme"]
[null,null,null,null,null,null,null,null,null,null,"Credit_Credit"]
[null,null,null,null,null,null,null,null,null,null,"Credit-unions_Societe-de-credit"]
[null,null,null,null,null,null,null,null,null,null,"Crime_Crime"]
[null,null,null,null,null,null,null,null,null,null,"Crime-against-humanity_Crime-contre-l-humanite"]
[null,null,null,null,null,null,null,null,null,null,"Crime-prevention_Prevention-de-la-criminalite"]
[null,null,null,null,null,null,null,null,null,null,"Criminal-code_Code-criminel"]
[null,null,null,null,null,null,null,null,null,null,"Criminal-investigations_Enquête-criminelle"]
[null,null,null,null,null,null,null,null,null,null,"Criminal-justice_Justice-penale"]
[null,null,null,null,null,null,null,null,null,null,"Criminal-law_Droit-criminel"]
[null,null,null,null,null,null,null,null,null,null,"Criminal-records_Casier-judiciaire"]
[null,null,null,null,null,null,null,null,null,null,"Crisis_Crise"]
[null,null,null,null,null,null,null,null,null,null,"Crop-insurance_Assurance-recolte"]
[null,null,null,null,null,null,null,null,null,null,"Crop-rotation_Rotation-des-cultures"]
[null,null,null,null,null,null,null,null,null,null,"Crops_Cultures"]
[null,null,null,null,null,null,null,null,null,null,"Crown-assets_Biens-de-la-Couronne"]
[null,null,null,null,null,null,null,null,null,null,"Crown-corporations_Societe-d-Etat"]
[null,null,null,null,null,null,null,null,null,null,"Crown-lands_Terres-de-la-Couronne"]
[null,null,null,null,null,null,null,null,null,null,"Cruise-ships_Navire-de-croisiere"]
[null,null,null,null,null,null,null,null,null,null,"Crustaceans_Crustace"]
[null,null,null,null,null,null,null,null,null,null,"Cryptography_Cryptographie"]
[null,null,null,null,null,null,null,null,null,null,"Cultural-development_Developpement-culturel"]
[null,null,null,null,null,null,null,null,null,null,"Cultural-diversity_Diversite-culturelle"]
[null,null,null,null,null,null,null,null,null,null,"Cultural-events_Evenement-culturel"]
[null,null,null,null,null,null,null,null,null,null,"Cultural-groups_Groupe-culturel"]
[null,null,null,null,null,null,null,null,null,null,"Cultural-heritage_Patrimoine-culturel"]
[null,null,null,null,null,null,null,null,null,null,"Cultural-industry_Industrie-culturelle"]
[null,null,null,null,null,null,null,null,null,null,"Cultural-institutions_Institution-culturelle"]
[null,null,null,null,null,null,null,null,null,null,"Cultural-policy_Politique-culturelle"]
[null,null,null,null,null,null,null,null,null,null,"Cultural-programming_Programmation-culturelle"]
[null,null,null,null,null,null,null,null,null,null,"Cultural-studies_Etudes-culturelles"]
[null,null,null,null,null,null,null,null,null,null,"Culture_Culture"]
[null,null,null,null,null,null,null,null,null,null,"Currency_Monnaie"]
[null,null,null,null,null,null,null,null,null,null,"Curriculum_Curriculum"]
[null,null,null,null,null,null,null,null,null,null,"Customer-services_Service-a-la-clientele"]
[null,null,null,null,null,null,null,null,null,null,"Customs_Coutume"]
[null,null,null,null,null,null,null,null,null,null,"Customs-and-excise_Douanes"]
[null,null,null,null,null,null,null,null,null,null,"Cycling_Cyclisme"]
[null,null,null,null,null,null,null,null,null,null,"Daily-life_Vie-quotidienne"]
[null,null,null,null,null,null,null,null,null,null,"Dairy-cattle_Bovin-laitier"]
[null,null,null,null,null,null,null,null,null,null,"Dairy-industry_Industrie-laitiere"]
[null,null,null,null,null,null,null,null,null,null,"Dairy-products_Produit-laitier"]
[null,null,null,null,null,null,null,null,null,null,"Dams_Barrage"]
[null,null,null,null,null,null,null,null,null,null,"Dance_Danse"]
[null,null,null,null,null,null,null,null,null,null,"Data-dictionaries_Dictionnaire-de-donnees"]
[null,null,null,null,null,null,null,null,null,null,"Data-mining_Exploration-de-donnees"]
[null,null,null,null,null,null,null,null,null,null,"Data-processing_Traitement-des-donnees"]
[null,null,null,null,null,null,null,null,null,null,"Data-protection_Protection-des-donnees"]
[null,null,null,null,null,null,null,null,null,null,"Databases_Base-de-donnees"]
[null,null,null,null,null,null,null,null,null,null,"Daycare_Garderie"]
[null,null,null,null,null,null,null,null,null,null,"Daylight-saving-time_Heure-avancee"]
[null,null,null,null,null,null,null,null,null,null,"Deafness_Surdite"]
[null,null,null,null,null,null,null,null,null,null,"Death_Mort"]
[null,null,null,null,null,null,null,null,null,null,"Death-certificates_Certificat-de-deces"]
[null,null,null,null,null,null,null,null,null,null,"Death-rate_Taux-de-mortalite"]
[null,null,null,null,null,null,null,null,null,null,"Debt_Dette"]
[null,null,null,null,null,null,null,null,null,null,"Debt-management_Gestion-de-la-dette"]
[null,null,null,null,null,null,null,null,null,null,"Debt-redemption_Remboursement-de-la-dette"]
[null,null,null,null,null,null,null,null,null,null,"Debtors_Debiteur"]
[null,null,null,null,null,null,null,null,null,null,"Decentralization_Decentralisation"]
[null,null,null,null,null,null,null,null,null,null,"Decision-making_Prise-de-decision"]
[null,null,null,null,null,null,null,null,null,null,"Decisions_Decision"]
[null,null,null,null,null,null,null,null,null,null,"Decontamination_Decontamination"]
[null,null,null,null,null,null,null,null,null,null,"Decorations_Decoration"]
[null,null,null,null,null,null,null,null,null,null,"Decorative-arts_Arts-decoratifs"]
[null,null,null,null,null,null,null,null,null,null,"Defaulted-loans_Prêt-non-rembourse"]
[null,null,null,null,null,null,null,null,null,null,"Defence-industry_Industrie-de-la-defense"]
[null,null,null,null,null,null,null,null,null,null,"Defence-policy_Politique-de-defense"]
[null,null,null,null,null,null,null,null,null,null,"Deficit_Deficit"]
[null,null,null,null,null,null,null,null,null,null,"Deforestation_Deboisement"]
[null,null,null,null,null,null,null,null,null,null,"Degenerative-diseases_Maladie-degenerative"]
[null,null,null,null,null,null,null,null,null,null,"Delegation-of-authority_Delegation-de-pouvoir"]
[null,null,null,null,null,null,null,null,null,null,"Delegations_Delegation"]
[null,null,null,null,null,null,null,null,null,null,"Deliveries_Livraison"]
[null,null,null,null,null,null,null,null,null,null,"Demand_Demande"]
[null,null,null,null,null,null,null,null,null,null,"Demining_Deminage"]
[null,null,null,null,null,null,null,null,null,null,"Demographic-data_Donnees-demographiques"]
[null,null,null,null,null,null,null,null,null,null,"Demographic-maps_Carte-demographique"]
[null,null,null,null,null,null,null,null,null,null,"Demographic-statistics_Statistiques-demographiques"]
[null,null,null,null,null,null,null,null,null,null,"Demography_Demographie"]
[null,null,null,null,null,null,null,null,null,null,"Dental-insurance_Assurance-dentaire"]
[null,null,null,null,null,null,null,null,null,null,"Departmental-relations_Relations-ministerielles"]
[null,null,null,null,null,null,null,null,null,null,"Departments_Ministere"]
[null,null,null,null,null,null,null,null,null,null,"Deportation_Deportation"]
[null,null,null,null,null,null,null,null,null,null,"Design_Conception"]
[null,null,null,null,null,null,null,null,null,null,"Destroyers_Destroyer"]
[null,null,null,null,null,null,null,null,null,null,"Detection_Detection"]
[null,null,null,null,null,null,null,null,null,null,"Developing-countries_Pays-en-developpement"]
[null,null,null,null,null,null,null,null,null,null,"Development_Developpement"]
[null,null,null,null,null,null,null,null,null,null,"Development-tools_Outil-de-developpement"]
[null,null,null,null,null,null,null,null,null,null,"Devolution_Transfert-de-responsabilites"]
[null,null,null,null,null,null,null,null,null,null,"Diabetes_Diabete"]
[null,null,null,null,null,null,null,null,null,null,"Diagnosis_Diagnostic"]
[null,null,null,null,null,null,null,null,null,null,"Diamonds_Diamant"]
[null,null,null,null,null,null,null,null,null,null,"Dictionaries_Dictionnaire"]
[null,null,null,null,null,null,null,null,null,null,"Diesel-fuel_Carburant-diesel"]
[null,null,null,null,null,null,null,null,null,null,"Digital-collections_Collection-numerique"]
[null,null,null,null,null,null,null,null,null,null,"Digital-elevation-data_Donnees-numeriques-d-elevation"]
[null,null,null,null,null,null,null,null,null,null,"Digital-libraries_Bibliotheque-numerique"]
[null,null,null,null,null,null,null,null,null,null,"Digital-recordings_Enregistrement-numerique"]
[null,null,null,null,null,null,null,null,null,null,"Digital-technology_Technologie-numerique"]
[null,null,null,null,null,null,null,null,null,null,"Digitization_Numerisation"]
[null,null,null,null,null,null,null,null,null,null,"Digitized-information_Information-numerisee"]
[null,null,null,null,null,null,null,null,null,null,"Diplomatic-missions_Mission-diplomatique"]
[null,null,null,null,null,null,null,null,null,null,"Direct-marketing_Marketing-direct"]
[null,null,null,null,null,null,null,null,null,null,"Directories_Repertoire"]
[null,null,null,null,null,null,null,null,null,null,"Disabilities_Deficience"]
[null,null,null,null,null,null,null,null,null,null,"Disability-pensions_Pension-d-invalidite"]
[null,null,null,null,null,null,null,null,null,null,"Disadvantaged-persons_Personne-defavorisee"]
[null,null,null,null,null,null,null,null,null,null,"Disaster-relief_Secours-en-cas-de-desastre"]
[null,null,null,null,null,null,null,null,null,null,"Disasters_Desastre"]
[null,null,null,null,null,null,null,null,null,null,"Disbursements_Decaissement"]
[null,null,null,null,null,null,null,null,null,null,"Discharge_Congediement"]
[null,null,null,null,null,null,null,null,null,null,"Disclosure-of-wrongdoing_Divulgation-d-actes-fautifs"]
[null,null,null,null,null,null,null,null,null,null,"Discounts_Rabais"]
[null,null,null,null,null,null,null,null,null,null,"Discrimination_Discrimination"]
[null,null,null,null,null,null,null,null,null,null,"Diseases_Maladie"]
[null,null,null,null,null,null,null,null,null,null,"Dismissal_Revocation"]
[null,null,null,null,null,null,null,null,null,null,"Disposal-services_Service-d-alienation"]
[null,null,null,null,null,null,null,null,null,null,"Dissolution_Dissolution"]
[null,null,null,null,null,null,null,null,null,null,"Distance-education_Formation-a-distance"]
[null,null,null,null,null,null,null,null,null,null,"Distribution_Distribution"]
[null,null,null,null,null,null,null,null,null,null,"Diversification_Diversification"]
[null,null,null,null,null,null,null,null,null,null,"Divestiture_Dessaisissement"]
[null,null,null,null,null,null,null,null,null,null,"Division-of-powers_Repartition-des-pouvoirs"]
[null,null,null,null,null,null,null,null,null,null,"Divisions_Division"]
[null,null,null,null,null,null,null,null,null,null,"Divorce_Divorce"]
[null,null,null,null,null,null,null,null,null,null,"Domestic-animals_Animal-domestique"]
[null,null,null,null,null,null,null,null,null,null,"Domestic-architecture_Architecture-domestique"]
[null,null,null,null,null,null,null,null,null,null,"Domestic-markets_Marche-interieur"]
[null,null,null,null,null,null,null,null,null,null,"Domestic-trade_Commerce-interieur"]
[null,null,null,null,null,null,null,null,null,null,"Domestic-waste_Dechets-domestiques"]
[null,null,null,null,null,null,null,null,null,null,"Donations_Don"]
[null,null,null,null,null,null,null,null,null,null,"Drainage_Drainage"]
[null,null,null,null,null,null,null,null,null,null,"Drawings_Dessin"]
[null,null,null,null,null,null,null,null,null,null,"Drilling_Forage"]
[null,null,null,null,null,null,null,null,null,null,"Drinking-water_Eau-potable"]
[null,null,null,null,null,null,null,null,null,null,"Driver-education_Cours-de-conduite-automobile"]
[null,null,null,null,null,null,null,null,null,null,"Driving_Conduite"]
[null,null,null,null,null,null,null,null,null,null,"Drought_Secheresse"]
[null,null,null,null,null,null,null,null,null,null,"Drug-addiction_Toxicomanie"]
[null,null,null,null,null,null,null,null,null,null,"Drug-education_Prevention-de-la-toxicomanie"]
[null,null,null,null,null,null,null,null,null,null,"Drug-insurance_Assurance-medicaments"]
[null,null,null,null,null,null,null,null,null,null,"Drug-labelling_Etiquetage-des-medicaments"]
[null,null,null,null,null,null,null,null,null,null,"Drug-laws_Loi-sur-les-medicaments"]
[null,null,null,null,null,null,null,null,null,null,"Drug-use_Consommation-de-drogues"]
[null,null,null,null,null,null,null,null,null,null,"Drugs_Medicament"]
[null,null,null,null,null,null,null,null,null,null,"Dumping_Dumping"]
[null,null,null,null,null,null,null,null,null,null,"Duty-to-accommodate_Obligation-d-adaptation"]
[null,null,null,null,null,null,null,null,null,null,"Earth-sciences_Sciences-de-la-terre"]
[null,null,null,null,null,null,null,null,null,null,"Earthquakes_Tremblement-de-terre"]
[null,null,null,null,null,null,null,null,null,null,"East-West-relations_Relations-est-ouest"]
[null,null,null,null,null,null,null,null,null,null,"Ecology_Ecologie"]
[null,null,null,null,null,null,null,null,null,null,"Economic-analysis_Analyse-economique"]
[null,null,null,null,null,null,null,null,null,null,"Economic-conditions_Conditions-economiques"]
[null,null,null,null,null,null,null,null,null,null,"Economic-crime_Crime-economique"]
[null,null,null,null,null,null,null,null,null,null,"Economic-development_Developpement-economique"]
[null,null,null,null,null,null,null,null,null,null,"Economic-forecasting_Prevision-economique"]
[null,null,null,null,null,null,null,null,null,null,"Economic-history_Histoire-economique"]
[null,null,null,null,null,null,null,null,null,null,"Economic-impact_Impact-economique"]
[null,null,null,null,null,null,null,null,null,null,"Economic-indicators_Indicateur-economique"]
[null,null,null,null,null,null,null,null,null,null,"Economic-issues_Questions-economiques"]
[null,null,null,null,null,null,null,null,null,null,"Economic-policy_Politique-economique"]
[null,null,null,null,null,null,null,null,null,null,"Economic-regulations_Reglementation-en-matiere-d-economie"]
[null,null,null,null,null,null,null,null,null,null,"Economic-research_Recherche-economique"]
[null,null,null,null,null,null,null,null,null,null,"Economic-sanctions_Sanction-economique"]
[null,null,null,null,null,null,null,null,null,null,"Economic-statistics_Statistiques-economiques"]
[null,null,null,null,null,null,null,null,null,null,"Economic-trends_Tendances-economiques"]
[null,null,null,null,null,null,null,null,null,null,"Economics_Science-economique"]
[null,null,null,null,null,null,null,null,null,null,"Economy_Economie"]
[null,null,null,null,null,null,null,null,null,null,"Ecosystems_Ecosysteme"]
[null,null,null,null,null,null,null,null,null,null,"Edible-oils-and-fats_Huiles-et-gras-comestibles"]
[null,null,null,null,null,null,null,null,null,null,"Education_Education-/-Enseignement"]
[null,null,null,null,null,null,null,null,null,null,"Education-indicators_Indicateur-de-l-education"]
[null,null,null,null,null,null,null,null,null,null,"Education-policy_Politique-educative"]
[null,null,null,null,null,null,null,null,null,null,"Educational-funding_Financement-de-l-education"]
[null,null,null,null,null,null,null,null,null,null,"Educational-guidance_Orientation-scolaire"]
[null,null,null,null,null,null,null,null,null,null,"Educational-institutions_Etablissement-d-enseignement"]
[null,null,null,null,null,null,null,null,null,null,"Educational-resources_Ressources-pedagogiques"]
[null,null,null,null,null,null,null,null,null,null,"Educational-technology_Technologie-educative"]
[null,null,null,null,null,null,null,null,null,null,"Eggs_Oeuf"]
[null,null,null,null,null,null,null,null,null,null,"Elder-abuse_Violence-faite-aux-personnes-âgees"]
[null,null,null,null,null,null,null,null,null,null,"Elderly-care_Soin-de-la-personne-âgee"]
[null,null,null,null,null,null,null,null,null,null,"Elections_Elections"]
[null,null,null,null,null,null,null,null,null,null,"Electoral-districts_Circonscription-electorale"]
[null,null,null,null,null,null,null,null,null,null,"Electoral-system_Systeme-electoral"]
[null,null,null,null,null,null,null,null,null,null,"Electric-power-stations_Centrale-electrique"]
[null,null,null,null,null,null,null,null,null,null,"Electric-vehicles_Vehicule-electrique"]
[null,null,null,null,null,null,null,null,null,null,"Electrical-appliances_Appareil-electrique"]
[null,null,null,null,null,null,null,null,null,null,"Electrical-equipment_Equipement-electrique"]
[null,null,null,null,null,null,null,null,null,null,"Electricity_Electricite"]
[null,null,null,null,null,null,null,null,null,null,"Electronic-commerce_Commerce-electronique"]
[null,null,null,null,null,null,null,null,null,null,"Electronic-data-interchange_Echange-electronique-d-information"]
[null,null,null,null,null,null,null,null,null,null,"Electronic-documents_Document-electronique"]
[null,null,null,null,null,null,null,null,null,null,"Electronic-equipment_Equipement-electronique"]
[null,null,null,null,null,null,null,null,null,null,"Electronic-government_Gouvernement-en-ligne"]
[null,null,null,null,null,null,null,null,null,null,"Electronic-information_Information-electronique"]
[null,null,null,null,null,null,null,null,null,null,"Electronic-mail_Courrier-electronique"]
[null,null,null,null,null,null,null,null,null,null,"Electronic-monitoring_Surveillance-electronique"]
[null,null,null,null,null,null,null,null,null,null,"Electronic-publishing_Edition-electronique"]
[null,null,null,null,null,null,null,null,null,null,"Electronic-waste_Dechets-electroniques"]
[null,null,null,null,null,null,null,null,null,null,"Electronics_Electronique"]
[null,null,null,null,null,null,null,null,null,null,"Electronics-industry_Industrie-de-l-electronique"]
[null,null,null,null,null,null,null,null,null,null,"Elementary-education_Enseignement-primaire"]
[null,null,null,null,null,null,null,null,null,null,"Elementary-schools_Ecole-primaire"]
[null,null,null,null,null,null,null,null,null,null,"Eligibility_Admissibilite"]
[null,null,null,null,null,null,null,null,null,null,"Emblems_Embleme"]
[null,null,null,null,null,null,null,null,null,null,"Emergency-preparedness_Protection-civile"]
[null,null,null,null,null,null,null,null,null,null,"Emergency-relief_Secours-d-urgence"]
[null,null,null,null,null,null,null,null,null,null,"Emergency-services_Services-d-urgence"]
[null,null,null,null,null,null,null,null,null,null,"Emigration_Emigration"]
[null,null,null,null,null,null,null,null,null,null,"Emission-control-technology_Technologie-antipollution"]
[null,null,null,null,null,null,null,null,null,null,"Employee-discipline_Discipline-du-travail"]
[null,null,null,null,null,null,null,null,null,null,"Employers_Employeur"]
[null,null,null,null,null,null,null,null,null,null,"Employment_Emploi"]
[null,null,null,null,null,null,null,null,null,null,"Employment-abroad_Emploi-a-l-etranger"]
[null,null,null,null,null,null,null,null,null,null,"Employment-act_Loi-sur-l-emploi"]
[null,null,null,null,null,null,null,null,null,null,"Employment-centres_Centre-d-emploi"]
[null,null,null,null,null,null,null,null,null,null,"Employment-equity_Equite-en-matiere-d-emploi"]
[null,null,null,null,null,null,null,null,null,null,"Employment-insurance_Assurance-emploi"]
[null,null,null,null,null,null,null,null,null,null,"Employment-opportunities_Possibilite-d-emploi"]
[null,null,null,null,null,null,null,null,null,null,"Employment-programs_Programme-d-emploi"]
[null,null,null,null,null,null,null,null,null,null,"Encyclopaedias_Encyclopedie"]
[null,null,null,null,null,null,null,null,null,null,"Endangered-species_Espece-menacee"]
[null,null,null,null,null,null,null,null,null,null,"Energy_Energie"]
[null,null,null,null,null,null,null,null,null,null,"Energy-conservation_Conservation-de-l-energie"]
[null,null,null,null,null,null,null,null,null,null,"Energy-efficiency_Rendement-energetique"]
[null,null,null,null,null,null,null,null,null,null,"Energy-management_Gestion-energetique"]
[null,null,null,null,null,null,null,null,null,null,"Energy-policy_Politique-energetique"]
[null,null,null,null,null,null,null,null,null,null,"Energy-production_Production-d-energie"]
[null,null,null,null,null,null,null,null,null,null,"Energy-supply_Disponibilites-energetiques"]
[null,null,null,null,null,null,null,null,null,null,"Energy-technology_Technologie-energetique"]
[null,null,null,null,null,null,null,null,null,null,"Energy-use_Consommation-d-energie"]
[null,null,null,null,null,null,null,null,null,null,"Enforcement_Contrôle-d-application"]
[null,null,null,null,null,null,null,null,null,null,"Engineering_Ingenierie"]
[null,null,null,null,null,null,null,null,null,null,"English-language_Anglais"]
[null,null,null,null,null,null,null,null,null,null,"English-second-language_Anglais-langue-seconde"]
[null,null,null,null,null,null,null,null,null,null,"Enrolment-applications_Demande-d-admission"]
[null,null,null,null,null,null,null,null,null,null,"Entitlement_Transfert-de-droit"]
[null,null,null,null,null,null,null,null,null,null,"Entomology_Entomologie"]
[null,null,null,null,null,null,null,null,null,null,"Entrepreneurs_Entrepreneur"]
[null,null,null,null,null,null,null,null,null,null,"Entrepreneurship_Entrepreneuriat"]
[null,null,null,null,null,null,null,null,null,null,"Entry-to-Canada_Entree-au-Canada"]
[null,null,null,null,null,null,null,null,null,null,"Environment_Environnement"]
[null,null,null,null,null,null,null,null,null,null,"Environmental-accidents_Accident-environnemental"]
[null,null,null,null,null,null,null,null,null,null,"Environmental-adaptation_Adaptation-a-l-environnement"]
[null,null,null,null,null,null,null,null,null,null,"Environmental-agreements_Accord-en-matiere-d-environnement"]
[null,null,null,null,null,null,null,null,null,null,"Environmental-economics_Economie-de-l-environnement"]
[null,null,null,null,null,null,null,null,null,null,"Environmental-education_Education-a-l-environnement"]
[null,null,null,null,null,null,null,null,null,null,"Environmental-emergencies_Urgence-environnementale"]
[null,null,null,null,null,null,null,null,null,null,"Environmental-hazards_Risque-pour-l-environnement"]
[null,null,null,null,null,null,null,null,null,null,"Environmental-impact_Impact-sur-l-environnement"]
[null,null,null,null,null,null,null,null,null,null,"Environmental-impact-assessment_Evaluation-environnementale"]
[null,null,null,null,null,null,null,null,null,null,"Environmental-indicators_Indicateur-environnemental"]
[null,null,null,null,null,null,null,null,null,null,"Environmental-law_Droit-de-l-environnement"]
[null,null,null,null,null,null,null,null,null,null,"Environmental-management_Gestion-de-l-environnement"]
[null,null,null,null,null,null,null,null,null,null,"Environmental-policy_Politique-environnementale"]
[null,null,null,null,null,null,null,null,null,null,"Environmental-programs_Programme-relatif-a-l-environnement"]
[null,null,null,null,null,null,null,null,null,null,"Environmental-protection_Protection-de-l-environnement"]
[null,null,null,null,null,null,null,null,null,null,"Environmental-quality_Qualite-de-l-environnement"]
[null,null,null,null,null,null,null,null,null,null,"Environmental-sciences_Sciences-de-l-environnement"]
[null,null,null,null,null,null,null,null,null,null,"Environmental-services_Services-environnementaux"]
[null,null,null,null,null,null,null,null,null,null,"Environmental-standards_Norme-relative-a-l-environnement"]
[null,null,null,null,null,null,null,null,null,null,"Environmental-technology_Technologie-environnementale"]
[null,null,null,null,null,null,null,null,null,null,"Epidemics_Epidemie"]
[null,null,null,null,null,null,null,null,null,null,"Epidemiology_Epidemiologie"]
[null,null,null,null,null,null,null,null,null,null,"Equal-opportunities_Egalite-des-chances"]
[null,null,null,null,null,null,null,null,null,null,"Equipment_Equipement"]
[null,null,null,null,null,null,null,null,null,null,"Equipment-industry_Industrie-de-l-equipement"]
[null,null,null,null,null,null,null,null,null,null,"Ergonomics_Ergonomie"]
[null,null,null,null,null,null,null,null,null,null,"Erosion_Erosion"]
[null,null,null,null,null,null,null,null,null,null,"Estates_Succession"]
[null,null,null,null,null,null,null,null,null,null,"Estimates_Previsions-budgetaires"]
[null,null,null,null,null,null,null,null,null,null,"Estuaries_Estuaire"]
[null,null,null,null,null,null,null,null,null,null,"Ethics_Ethique"]
[null,null,null,null,null,null,null,null,null,null,"Ethnic-groups_Groupe-ethnique"]
[null,null,null,null,null,null,null,null,null,null,"Ethnic-minorities_Minorite-ethnique"]
[null,null,null,null,null,null,null,null,null,null,"Ethnology_Ethnologie"]
[null,null,null,null,null,null,null,null,null,null,"Euthanasia_Euthanasie"]
[null,null,null,null,null,null,null,null,null,null,"Evacuations_Evacuation"]
[null,null,null,null,null,null,null,null,null,null,"Evidence_Preuve"]
[null,null,null,null,null,null,null,null,null,null,"Exchange-programs_Programme-d-echanges"]
[null,null,null,null,null,null,null,null,null,null,"Exchange-rates_Taux-de-change"]
[null,null,null,null,null,null,null,null,null,null,"Excise_Accise"]
[null,null,null,null,null,null,null,null,null,null,"Excise-taxes_Taxe-d-accise"]
[null,null,null,null,null,null,null,null,null,null,"Exclusion_Exclusion"]
[null,null,null,null,null,null,null,null,null,null,"Executives_Personnel-de-direction"]
[null,null,null,null,null,null,null,null,null,null,"Exemption_Derogation"]
[null,null,null,null,null,null,null,null,null,null,"Expectations_Attentes"]
[null,null,null,null,null,null,null,null,null,null,"Expenditure-management_Gestion-des-depenses"]
[null,null,null,null,null,null,null,null,null,null,"Expenditures_Depenses"]
[null,null,null,null,null,null,null,null,null,null,"Experiments_Experimentation"]
[null,null,null,null,null,null,null,null,null,null,"Expertise_Expertise"]
[null,null,null,null,null,null,null,null,null,null,"Explorations_Exploration"]
[null,null,null,null,null,null,null,null,null,null,"Explosions_Explosion"]
[null,null,null,null,null,null,null,null,null,null,"Explosives_Explosif"]
[null,null,null,null,null,null,null,null,null,null,"Exports_Exportation"]
[null,null,null,null,null,null,null,null,null,null,"Expropriation_Expropriation"]
[null,null,null,null,null,null,null,null,null,null,"External-relations_Relations-exterieures"]
[null,null,null,null,null,null,null,null,null,null,"Extraction_Extraction"]
[null,null,null,null,null,null,null,null,null,null,"Extradition_Extradition"]
[null,null,null,null,null,null,null,null,null,null,"Family_Famille"]
[null,null,null,null,null,null,null,null,null,null,"Family-allowances_Allocations-familiales"]
[null,null,null,null,null,null,null,null,null,null,"Family-businesses_Entreprise-familiale"]
[null,null,null,null,null,null,null,null,null,null,"Family-education_Education-familiale"]
[null,null,null,null,null,null,null,null,null,null,"Family-law_Droit-de-la-famille"]
[null,null,null,null,null,null,null,null,null,null,"Family-planning_Planification-des-naissances"]
[null,null,null,null,null,null,null,null,null,null,"Family-violence_Violence-familiale"]
[null,null,null,null,null,null,null,null,null,null,"Famine_Famine"]
[null,null,null,null,null,null,null,null,null,null,"Farm-buildings_Bâtiment-agricole"]
[null,null,null,null,null,null,null,null,null,null,"Farmlands_Terre-agricole"]
[null,null,null,null,null,null,null,null,null,null,"Farms_Exploitation-agricole"]
[null,null,null,null,null,null,null,null,null,null,"Feasibility-studies_Etude-de-faisabilite"]
[null,null,null,null,null,null,null,null,null,null,"Federal-contracts_Contrat-du-gouvernement-federal"]
[null,null,null,null,null,null,null,null,null,null,"Federal-departments_Ministere-du-gouvernement-federal"]
[null,null,null,null,null,null,null,null,null,null,"Federal-government_Gouvernement-federal"]
[null,null,null,null,null,null,null,null,null,null,"Federal-institutions_Institution-federale"]
[null,null,null,null,null,null,null,null,null,null,"Federal-programs_Programme-federal"]
[null,null,null,null,null,null,null,null,null,null,"Federal-provincial-agreements_Accord-federal-provincial"]
[null,null,null,null,null,null,null,null,null,null,"Federal-provincial-relations_Relations-federales-provinciales"]
[null,null,null,null,null,null,null,null,null,null,"Federal-taxes_Impôt-federal"]
[null,null,null,null,null,null,null,null,null,null,"Federal-territorial-agreements_Accord-federal-territorial"]
[null,null,null,null,null,null,null,null,null,null,"Federal-territorial-relations_Relations-federales-territoriales"]
[null,null,null,null,null,null,null,null,null,null,"Fees_Frais"]
[null,null,null,null,null,null,null,null,null,null,"Ferries_Traversier"]
[null,null,null,null,null,null,null,null,null,null,"Fertility_Fecondite"]
[null,null,null,null,null,null,null,null,null,null,"Fertilizers_Engrais"]
[null,null,null,null,null,null,null,null,null,null,"Festivals_Festival"]
[null,null,null,null,null,null,null,null,null,null,"Fiduciary-obligations_Obligation-fiduciaire"]
[null,null,null,null,null,null,null,null,null,null,"Film-industry_Industrie-cinematographique"]
[null,null,null,null,null,null,null,null,null,null,"Finance_Finances"]
[null,null,null,null,null,null,null,null,null,null,"Financial-analysis_Analyse-financiere"]
[null,null,null,null,null,null,null,null,null,null,"Financial-assistance_Aide-financiere"]
[null,null,null,null,null,null,null,null,null,null,"Financial-audit_Verification-comptable"]
[null,null,null,null,null,null,null,null,null,null,"Financial-crisis_Crise-financiere"]
[null,null,null,null,null,null,null,null,null,null,"Financial-institutions_Institution-financiere"]
[null,null,null,null,null,null,null,null,null,null,"Financial-management_Gestion-financiere"]
[null,null,null,null,null,null,null,null,null,null,"Financial-services_Services-financiers"]
[null,null,null,null,null,null,null,null,null,null,"Financial-statements_Etats-financiers"]
[null,null,null,null,null,null,null,null,null,null,"Financing-companies_Societe-de-financement"]
[null,null,null,null,null,null,null,null,null,null,"Fines_Amende"]
[null,null,null,null,null,null,null,null,null,null,"Fire_Incendie"]
[null,null,null,null,null,null,null,null,null,null,"Fire-prevention_Prevention-des-incendies"]
[null,null,null,null,null,null,null,null,null,null,"Firearms_Arme-a-feu"]
[null,null,null,null,null,null,null,null,null,null,"Fiscal-agreements_Accord-fiscal"]
[null,null,null,null,null,null,null,null,null,null,"Fiscal-assistance_Aide-fiscale"]
[null,null,null,null,null,null,null,null,null,null,"Fiscal-issues_Questions-fiscales"]
[null,null,null,null,null,null,null,null,null,null,"Fiscal-law_Droit-fiscal"]
[null,null,null,null,null,null,null,null,null,null,"Fiscal-policy_Politique-fiscale"]
[null,null,null,null,null,null,null,null,null,null,"Fish_Poisson"]
[null,null,null,null,null,null,null,null,null,null,"Fish-farming_Pisciculture"]
[null,null,null,null,null,null,null,null,null,null,"Fisheries_Pêcheries"]
[null,null,null,null,null,null,null,null,null,null,"Fisheries-management_Gestion-des-pêches"]
[null,null,null,null,null,null,null,null,null,null,"Fisheries-policy_Politique-des-pêches"]
[null,null,null,null,null,null,null,null,null,null,"Fisheries-products_Produit-de-la-pêche"]
[null,null,null,null,null,null,null,null,null,null,"Fisheries-resources_Ressources-halieutiques"]
[null,null,null,null,null,null,null,null,null,null,"Fisheries-technology_Technologie-de-la-pêche"]
[null,null,null,null,null,null,null,null,null,null,"Fishing-Sport_Pêche-sportive"]
[null,null,null,null,null,null,null,null,null,null,"Fishing-area_Zone-de-pêche"]
[null,null,null,null,null,null,null,null,null,null,"Fishing-permits_Permis-de-pêche"]
[null,null,null,null,null,null,null,null,null,null,"Fishing-rights_Droits-de-pêche"]
[null,null,null,null,null,null,null,null,null,null,"Fishing-ships_Navire-de-pêche"]
[null,null,null,null,null,null,null,null,null,null,"Fitness_Condition-physique"]
[null,null,null,null,null,null,null,null,null,null,"Flags_Drapeau"]
[null,null,null,null,null,null,null,null,null,null,"Fleet-management_Gestion-du-parc-automobile"]
[null,null,null,null,null,null,null,null,null,null,"Floods_Inondation"]
[null,null,null,null,null,null,null,null,null,null,"Floors_Plancher"]
[null,null,null,null,null,null,null,null,null,null,"Flora_Flore"]
[null,null,null,null,null,null,null,null,null,null,"Flowcharts_Organigramme"]
[null,null,null,null,null,null,null,null,null,null,"Fluorides_Fluorure"]
[null,null,null,null,null,null,null,null,null,null,"Folk-art_Art-populaire"]
[null,null,null,null,null,null,null,null,null,null,"Folklore_Folklore"]
[null,null,null,null,null,null,null,null,null,null,"Food_Aliment"]
[null,null,null,null,null,null,null,null,null,null,"Food-inspection_Inspection-des-aliments"]
[null,null,null,null,null,null,null,null,null,null,"Food-irradiation_Irradiation-des-aliments"]
[null,null,null,null,null,null,null,null,null,null,"Food-labelling_Etiquetage-des-aliments"]
[null,null,null,null,null,null,null,null,null,null,"Food-policy_Politique-alimentaire"]
[null,null,null,null,null,null,null,null,null,null,"Food-processing_Transformation-des-aliments"]
[null,null,null,null,null,null,null,null,null,null,"Food-safety_Salubrite-des-aliments"]
[null,null,null,null,null,null,null,null,null,null,"Food-security_Securite-alimentaire"]
[null,null,null,null,null,null,null,null,null,null,"Food-supply_Disponibilites-alimentaires"]
[null,null,null,null,null,null,null,null,null,null,"Forage-crops_Cultures-fourrageres"]
[null,null,null,null,null,null,null,null,null,null,"Forecasting_Prevision"]
[null,null,null,null,null,null,null,null,null,null,"Foreign-affairs_Affaires-etrangeres"]
[null,null,null,null,null,null,null,null,null,null,"Foreign-aid_Aide-a-l-etranger"]
[null,null,null,null,null,null,null,null,null,null,"Foreign-investments_Investissement-etranger"]
[null,null,null,null,null,null,null,null,null,null,"Foreign-languages_Langue-etrangere"]
[null,null,null,null,null,null,null,null,null,null,"Foreign-payments_Paiement-etranger"]
[null,null,null,null,null,null,null,null,null,null,"Foreign-policy_Politique-etrangere"]
[null,null,null,null,null,null,null,null,null,null,"Foreign-service_Service-diplomatique"]
[null,null,null,null,null,null,null,null,null,null,"Foreign-students_Etudiant-etranger"]
[null,null,null,null,null,null,null,null,null,null,"Forensics_Medecine-legale"]
[null,null,null,null,null,null,null,null,null,null,"Forest-fires_Incendie-de-forêt"]
[null,null,null,null,null,null,null,null,null,null,"Forest-management_Gestion-forestiere"]
[null,null,null,null,null,null,null,null,null,null,"Forestry_Foresterie"]
[null,null,null,null,null,null,null,null,null,null,"Forestry-industry_Industrie-forestiere"]
[null,null,null,null,null,null,null,null,null,null,"Forestry-policy_Politique-forestiere"]
[null,null,null,null,null,null,null,null,null,null,"Forestry-products_Produit-forestier"]
[null,null,null,null,null,null,null,null,null,null,"Forestry-technology_Technologie-forestiere"]
[null,null,null,null,null,null,null,null,null,null,"Forests_Forêt"]
[null,null,null,null,null,null,null,null,null,null,"Forgery_Falsification"]
[null,null,null,null,null,null,null,null,null,null,"Forms_Formulaire"]
[null,null,null,null,null,null,null,null,null,null,"Fossils_Fossile"]
[null,null,null,null,null,null,null,null,null,null,"Foster-care-placement_Placement-en-famille-d-accueil"]
[null,null,null,null,null,null,null,null,null,null,"Foster-children_Enfant-en-famille-d-accueil"]
[null,null,null,null,null,null,null,null,null,null,"Foster-families_Famille-d-accueil"]
[null,null,null,null,null,null,null,null,null,null,"Franchises_Franchise"]
[null,null,null,null,null,null,null,null,null,null,"Francophonie_Francophonie"]
[null,null,null,null,null,null,null,null,null,null,"Fraud_Fraude"]
[null,null,null,null,null,null,null,null,null,null,"Free-trade_Libre-echange"]
[null,null,null,null,null,null,null,null,null,null,"Free-trade-agreements_Accord-de-libre-echange"]
[null,null,null,null,null,null,null,null,null,null,"Freedom-of-information_Liberte-d-information"]
[null,null,null,null,null,null,null,null,null,null,"Freight_Fret"]
[null,null,null,null,null,null,null,null,null,null,"French-in-the-workplace_Français-au-travail"]
[null,null,null,null,null,null,null,null,null,null,"French-language_Français"]
[null,null,null,null,null,null,null,null,null,null,"French-second-language_Français-langue-seconde"]
[null,null,null,null,null,null,null,null,null,null,"Frequently-asked-questions_Foire-aux-questions"]
[null,null,null,null,null,null,null,null,null,null,"Fresh-water_Eau-douce"]
[null,null,null,null,null,null,null,null,null,null,"Freshwater-fish_Poisson-d-eau-douce"]
[null,null,null,null,null,null,null,null,null,null,"Frigates_Fregate"]
[null,null,null,null,null,null,null,null,null,null,"Fruit-crops_Cultures-fruitieres"]
[null,null,null,null,null,null,null,null,null,null,"Fruits_Fruit"]
[null,null,null,null,null,null,null,null,null,null,"Fuel-supply_Disponibilites-en-combustible"]
[null,null,null,null,null,null,null,null,null,null,"Fuels_Combustible"]
[null,null,null,null,null,null,null,null,null,null,"Fugitives-from-justice_Fugitif-recherche-par-la-justice"]
[null,null,null,null,null,null,null,null,null,null,"Full-time-employment_Emploi-a-temps-plein"]
[null,null,null,null,null,null,null,null,null,null,"Functional-foods_Aliment-fonctionnel"]
[null,null,null,null,null,null,null,null,null,null,"Functions_Fonction"]
[null,null,null,null,null,null,null,null,null,null,"Funding_Financement"]
[null,null,null,null,null,null,null,null,null,null,"Fundraising_Collecte-de-fonds"]
[null,null,null,null,null,null,null,null,null,null,"Fungi_Champignon"]
[null,null,null,null,null,null,null,null,null,null,"Fungicides_Fongicide"]
[null,null,null,null,null,null,null,null,null,null,"Furniture_Ameublement"]
[null,null,null,null,null,null,null,null,null,null,"Furniture-industry_Industrie-du-meuble"]
[null,null,null,null,null,null,null,null,null,null,"Furs_Fourrure"]
[null,null,null,null,null,null,null,null,null,null,"Future_Futur"]
[null,null,null,null,null,null,null,null,null,null,"Gambling_Jeu-de-hasard"]
[null,null,null,null,null,null,null,null,null,null,"Game-Wildlife_Gibier"]
[null,null,null,null,null,null,null,null,null,null,"Games_Jeu"]
[null,null,null,null,null,null,null,null,null,null,"Gangs_Gangs"]
[null,null,null,null,null,null,null,null,null,null,"Gardening_Jardinage"]
[null,null,null,null,null,null,null,null,null,null,"Gardens_Jardin"]
[null,null,null,null,null,null,null,null,null,null,"Gas-industry_Industrie-gaziere"]
[null,null,null,null,null,null,null,null,null,null,"Gases_Gaz"]
[null,null,null,null,null,null,null,null,null,null,"Gasoline_Essence"]
[null,null,null,null,null,null,null,null,null,null,"Gazetteers_Repertoire-geographique"]
[null,null,null,null,null,null,null,null,null,null,"Gender-discrimination_Discrimination-sexuelle"]
[null,null,null,null,null,null,null,null,null,null,"Gender-equality_Egalite-des-sexes"]
[null,null,null,null,null,null,null,null,null,null,"Genealogy_Genealogie"]
[null,null,null,null,null,null,null,null,null,null,"Genetic-engineering_Genie-genetique"]
[null,null,null,null,null,null,null,null,null,null,"Genetically-modified-foods_Aliment-genetiquement-modifie"]
[null,null,null,null,null,null,null,null,null,null,"Genetically-modified-organisms_Organisme-genetiquement-modifie"]
[null,null,null,null,null,null,null,null,null,null,"Genetics_Genetique"]
[null,null,null,null,null,null,null,null,null,null,"Genomics_Genomique"]
[null,null,null,null,null,null,null,null,null,null,"Geochemistry_Geochimie"]
[null,null,null,null,null,null,null,null,null,null,"Geochronology_Geochronologie"]
[null,null,null,null,null,null,null,null,null,null,"Geodesy_Geodesie"]
[null,null,null,null,null,null,null,null,null,null,"Geographic-data_Donnees-geographiques"]
[null,null,null,null,null,null,null,null,null,null,"Geographic-information-systems_Systeme-d-information-geographique"]
[null,null,null,null,null,null,null,null,null,null,"Geographical-maps_Carte-geographique"]
[null,null,null,null,null,null,null,null,null,null,"Geography_Geographie"]
[null,null,null,null,null,null,null,null,null,null,"Geological-maps_Carte-geologique"]
[null,null,null,null,null,null,null,null,null,null,"Geology_Geologie"]
[null,null,null,null,null,null,null,null,null,null,"Geomatics_Geomatique"]
[null,null,null,null,null,null,null,null,null,null,"Geomorphology_Geomorphologie"]
[null,null,null,null,null,null,null,null,null,null,"Geophysics_Geophysique"]
[null,null,null,null,null,null,null,null,null,null,"Geothermal-energy_Energie-geothermique"]
[null,null,null,null,null,null,null,null,null,null,"Geriatrics_Geriatrie"]
[null,null,null,null,null,null,null,null,null,null,"Gerontology_Gerontologie"]
[null,null,null,null,null,null,null,null,null,null,"Gift-books_Livre-cadeau"]
[null,null,null,null,null,null,null,null,null,null,"Glaciers_Glacier"]
[null,null,null,null,null,null,null,null,null,null,"Glass_Verre"]
[null,null,null,null,null,null,null,null,null,null,"Glass-industry_Industrie-du-verre"]
[null,null,null,null,null,null,null,null,null,null,"Global-positioning-systems_Systeme-de-positionnement-global"]
[null,null,null,null,null,null,null,null,null,null,"Global-warming_Rechauffement-de-la-planete"]
[null,null,null,null,null,null,null,null,null,null,"Globalization_Mondialisation"]
[null,null,null,null,null,null,null,null,null,null,"Gold_Or"]
[null,null,null,null,null,null,null,null,null,null,"Goods-and-services-tax_Taxe-sur-les-produits-et-services"]
[null,null,null,null,null,null,null,null,null,null,"Governance_Gouvernance"]
[null,null,null,null,null,null,null,null,null,null,"Government-communications_Communications-gouvernementales"]
[null,null,null,null,null,null,null,null,null,null,"Government-departments_Ministere-gouvernemental"]
[null,null,null,null,null,null,null,null,null,null,"Government-information_Information-gouvernementale"]
[null,null,null,null,null,null,null,null,null,null,"Government-leader_Leader-du-gouvernement"]
[null,null,null,null,null,null,null,null,null,null,"Government-libraries_Bibliotheque-gouvernementale"]
[null,null,null,null,null,null,null,null,null,null,"Government-plans_Plan-gouvernemental"]
[null,null,null,null,null,null,null,null,null,null,"Government-policy_Politique-gouvernementale"]
[null,null,null,null,null,null,null,null,null,null,"Government-priorities_Priorite-gouvernementale"]
[null,null,null,null,null,null,null,null,null,null,"Government-publications_Publication-gouvernementale"]
[null,null,null,null,null,null,null,null,null,null,"Government-services_Services-gouvernementaux"]
[null,null,null,null,null,null,null,null,null,null,"Governments_Gouvernement"]
[null,null,null,null,null,null,null,null,null,null,"Governor-General_Gouverneur-general"]
[null,null,null,null,null,null,null,null,null,null,"Grain-elevators_Silo-a-grains"]
[null,null,null,null,null,null,null,null,null,null,"Grains_Grain"]
[null,null,null,null,null,null,null,null,null,null,"Grants_Subvention"]
[null,null,null,null,null,null,null,null,null,null,"Grapes_Raisin"]
[null,null,null,null,null,null,null,null,null,null,"Graphic-arts_Arts-graphiques"]
[null,null,null,null,null,null,null,null,null,null,"Grasslands_Pâturage"]
[null,null,null,null,null,null,null,null,null,null,"Green-products_Produit-ecologique"]
[null,null,null,null,null,null,null,null,null,null,"Greenhouse-effect_Effet-de-serre"]
[null,null,null,null,null,null,null,null,null,null,"Greenhouse-gases_Gaz-a-effet-de-serre"]
[null,null,null,null,null,null,null,null,null,null,"Greenhouses_Serre"]
[null,null,null,null,null,null,null,null,null,null,"Gross-domestic-product_Produit-interieur-brut"]
[null,null,null,null,null,null,null,null,null,null,"Gross-national-product_Produit-national-brut"]
[null,null,null,null,null,null,null,null,null,null,"Groundwater_Eau-souterraine"]
[null,null,null,null,null,null,null,null,null,null,"Growth-capital_Capital-de-croissance"]
[null,null,null,null,null,null,null,null,null,null,"Guidelines_Lignes-directrices"]
[null,null,null,null,null,null,null,null,null,null,"Habitats_Habitat"]
[null,null,null,null,null,null,null,null,null,null,"Handbooks_Manuel"]
[null,null,null,null,null,null,null,null,null,null,"Handling_Manutention"]
[null,null,null,null,null,null,null,null,null,null,"Harassment_Harcelement"]
[null,null,null,null,null,null,null,null,null,null,"Harbour-authorities_Administration-portuaire"]
[null,null,null,null,null,null,null,null,null,null,"Harbours_Port"]
[null,null,null,null,null,null,null,null,null,null,"Hard-rocks_Roche-dure"]
[null,null,null,null,null,null,null,null,null,null,"Harmonized-sales-tax_Taxe-de-vente-harmonisee"]
[null,null,null,null,null,null,null,null,null,null,"Harvest_Recolte"]
[null,null,null,null,null,null,null,null,null,null,"Hatcheries_Couveuse"]
[null,null,null,null,null,null,null,null,null,null,"Hazardous-materials_Matiere-dangereuse"]
[null,null,null,null,null,null,null,null,null,null,"Hazardous-materials-transport_Transport-des-matieres-dangereuses"]
[null,null,null,null,null,null,null,null,null,null,"Hazardous-waste_Dechets-dangereux"]
[null,null,null,null,null,null,null,null,null,null,"Headquarters_Siege-social"]
[null,null,null,null,null,null,null,null,null,null,"Health_Sante"]
[null,null,null,null,null,null,null,null,null,null,"Health-care_Soins-de-sante"]
[null,null,null,null,null,null,null,null,null,null,"Health-care-facilities_Etablissement-de-sante"]
[null,null,null,null,null,null,null,null,null,null,"Health-care-industry_Industrie-des-soins-de-sante"]
[null,null,null,null,null,null,null,null,null,null,"Health-care-products_Produit-de-soins-de-sante"]
[null,null,null,null,null,null,null,null,null,null,"Health-care-quality_Qualite-des-soins-de-sante"]
[null,null,null,null,null,null,null,null,null,null,"Health-care-system_Systeme-de-soins-de-sante"]
[null,null,null,null,null,null,null,null,null,null,"Health-hazards_Risque-pour-la-sante"]
[null,null,null,null,null,null,null,null,null,null,"Health-impact_Impact-sur-la-sante"]
[null,null,null,null,null,null,null,null,null,null,"Health-indicators_Indicateur-de-sante"]
[null,null,null,null,null,null,null,null,null,null,"Health-insurance_Assurance-maladie"]
[null,null,null,null,null,null,null,null,null,null,"Health-policy_Politique-en-matiere-de-sante"]
[null,null,null,null,null,null,null,null,null,null,"Health-professionals_Professionnel-de-la-sante"]
[null,null,null,null,null,null,null,null,null,null,"Health-promotion_Promotion-de-la-sante"]
[null,null,null,null,null,null,null,null,null,null,"Health-protection_Protection-de-la-sante"]
[null,null,null,null,null,null,null,null,null,null,"Health-sciences_Sciences-de-la-sante"]
[null,null,null,null,null,null,null,null,null,null,"Hearing-disabilities_Deficience-auditive"]
[null,null,null,null,null,null,null,null,null,null,"Hearings_Audience"]
[null,null,null,null,null,null,null,null,null,null,"Heating_Chauffage"]
[null,null,null,null,null,null,null,null,null,null,"Helicopters_Helicoptere"]
[null,null,null,null,null,null,null,null,null,null,"Hepatitis_Hepatite"]
[null,null,null,null,null,null,null,null,null,null,"Heraldry_Heraldique"]
[null,null,null,null,null,null,null,null,null,null,"Herbaria_Herbier"]
[null,null,null,null,null,null,null,null,null,null,"Herbicides_Herbicide"]
[null,null,null,null,null,null,null,null,null,null,"Heredity_Heredite"]
[null,null,null,null,null,null,null,null,null,null,"Heritage_Patrimoine"]
[null,null,null,null,null,null,null,null,null,null,"Heritage-buildings_Edifice-patrimonial"]
[null,null,null,null,null,null,null,null,null,null,"Heritage-conservation_Protection-du-patrimoine"]
[null,null,null,null,null,null,null,null,null,null,"Heritage-languages_Langue-ancestrale"]
[null,null,null,null,null,null,null,null,null,null,"Hibernation_Hibernation"]
[null,null,null,null,null,null,null,null,null,null,"High-technology_Technologie-de-pointe"]
[null,null,null,null,null,null,null,null,null,null,"Hiking_Randonnee-pedestre"]
[null,null,null,null,null,null,null,null,null,null,"Historic-sites_Lieu-historique"]
[null,null,null,null,null,null,null,null,null,null,"Historical-hydrometric-data_Donnees-hydrometriques-historiques"]
[null,null,null,null,null,null,null,null,null,null,"Historical-research_Recherche-historique"]
[null,null,null,null,null,null,null,null,null,null,"Historical-societies_Societe-d-histoire"]
[null,null,null,null,null,null,null,null,null,null,"History_Histoire"]
[null,null,null,null,null,null,null,null,null,null,"Hockey_Hockey"]
[null,null,null,null,null,null,null,null,null,null,"Hogs_Porc"]
[null,null,null,null,null,null,null,null,null,null,"Holidays_Jour-ferie"]
[null,null,null,null,null,null,null,null,null,null,"Home-based-businesses_Entreprise-domiciliaire"]
[null,null,null,null,null,null,null,null,null,null,"Home-economics_Economie-domestique"]
[null,null,null,null,null,null,null,null,null,null,"Home-renovations_Renovation-domiciliaire"]
[null,null,null,null,null,null,null,null,null,null,"Homelessness_Sans-abri"]
[null,null,null,null,null,null,null,null,null,null,"Homeopathy_Homeopathie"]
[null,null,null,null,null,null,null,null,null,null,"Homicide_Homicide"]
[null,null,null,null,null,null,null,null,null,null,"Honey_Miel"]
[null,null,null,null,null,null,null,null,null,null,"Horses_Cheval"]
[null,null,null,null,null,null,null,null,null,null,"Horticulture_Horticulture"]
[null,null,null,null,null,null,null,null,null,null,"Hospitality-industry_Industrie-hôteliere"]
[null,null,null,null,null,null,null,null,null,null,"House-of-Commons_Chambre-des-communes"]
[null,null,null,null,null,null,null,null,null,null,"Household-equipment_Equipement-menager"]
[null,null,null,null,null,null,null,null,null,null,"Household-finance_Credit-menager"]
[null,null,null,null,null,null,null,null,null,null,"Household-income_Revenu-familial"]
[null,null,null,null,null,null,null,null,null,null,"Housing_Logement"]
[null,null,null,null,null,null,null,null,null,null,"Housing-assistance_Aide-au-logement"]
[null,null,null,null,null,null,null,null,null,null,"Hovercraft_Aeroglisseur"]
[null,null,null,null,null,null,null,null,null,null,"Human-beings_Être-humain"]
[null,null,null,null,null,null,null,null,null,null,"Human-capital_Capital-humain"]
[null,null,null,null,null,null,null,null,null,null,"Human-resources_Ressources-humaines"]
[null,null,null,null,null,null,null,null,null,null,"Human-rights_Droits-de-la-personne"]
[null,null,null,null,null,null,null,null,null,null,"Human-security_Securite-humaine"]
[null,null,null,null,null,null,null,null,null,null,"Human-trafficking_Traite-de-personnes"]
[null,null,null,null,null,null,null,null,null,null,"Humanitarian-aid_Aide-humanitaire"]
[null,null,null,null,null,null,null,null,null,null,"Humanitarian-crisis_Crise-humanitaire"]
[null,null,null,null,null,null,null,null,null,null,"Humanities_Sciences-humaines"]
[null,null,null,null,null,null,null,null,null,null,"Humidity_Humidite"]
[null,null,null,null,null,null,null,null,null,null,"Humour_Humour"]
[null,null,null,null,null,null,null,null,null,null,"Hunger_Faim"]
[null,null,null,null,null,null,null,null,null,null,"Hunting-Sport_Chasse-sportive"]
[null,null,null,null,null,null,null,null,null,null,"Hunting-permits_Permis-de-chasse"]
[null,null,null,null,null,null,null,null,null,null,"Hydroelectric-plants_Centrale-hydroelectrique"]
[null,null,null,null,null,null,null,null,null,null,"Hydrogeology_Hydrogeologie"]
[null,null,null,null,null,null,null,null,null,null,"Hydrography_Hydrographie"]
[null,null,null,null,null,null,null,null,null,null,"Hydrology_Hydrologie"]
[null,null,null,null,null,null,null,null,null,null,"Hydrometric-network_Reseau-hydrometrique"]
[null,null,null,null,null,null,null,null,null,null,"Hydrometric-station_Station-hydrometrique"]
[null,null,null,null,null,null,null,null,null,null,"Hydrometry_Hydrometrie"]
[null,null,null,null,null,null,null,null,null,null,"Hydroponics_Culture-hydroponique"]
[null,null,null,null,null,null,null,null,null,null,"Hydropower_Hydroelectricite"]
[null,null,null,null,null,null,null,null,null,null,"Hygiene_Hygiene"]
[null,null,null,null,null,null,null,null,null,null,"Ice_Glace"]
[null,null,null,null,null,null,null,null,null,null,"Ice-caps_Calotte-glaciaire"]
[null,null,null,null,null,null,null,null,null,null,"Icebreakers_Brise-glace"]
[null,null,null,null,null,null,null,null,null,null,"Ichthyology_Ichtyologie"]
[null,null,null,null,null,null,null,null,null,null,"Identification_Identification"]
[null,null,null,null,null,null,null,null,null,null,"Idioms_Idiome"]
[null,null,null,null,null,null,null,null,null,null,"Igneous-rocks_Roche-ignee"]
[null,null,null,null,null,null,null,null,null,null,"Illustrations_Illustration"]
[null,null,null,null,null,null,null,null,null,null,"Immigrants_Immigrant"]
[null,null,null,null,null,null,null,null,null,null,"Immigration_Immigration"]
[null,null,null,null,null,null,null,null,null,null,"Immigration-policy_Politique-d-immigration"]
[null,null,null,null,null,null,null,null,null,null,"Immunization_Immunisation"]
[null,null,null,null,null,null,null,null,null,null,"Impact-studies_Etude-d-impact"]
[null,null,null,null,null,null,null,null,null,null,"Implementation_Implantation"]
[null,null,null,null,null,null,null,null,null,null,"Imports_Importation"]
[null,null,null,null,null,null,null,null,null,null,"Imprisonment_Emprisonnement"]
[null,null,null,null,null,null,null,null,null,null,"Incentives_Incitatif"]
[null,null,null,null,null,null,null,null,null,null,"Income_Revenu"]
[null,null,null,null,null,null,null,null,null,null,"Income-security_Securite-du-revenu"]
[null,null,null,null,null,null,null,null,null,null,"Income-tax_Impôt-sur-le-revenu"]
[null,null,null,null,null,null,null,null,null,null,"Incorporation_Incorporation"]
[null,null,null,null,null,null,null,null,null,null,"Indemnities_Indemnite"]
[null,null,null,null,null,null,null,null,null,null,"Independent-living_Autonomie-personnelle"]
[null,null,null,null,null,null,null,null,null,null,"Indexes_Index"]
[null,null,null,null,null,null,null,null,null,null,"Indians_Indiens"]
[null,null,null,null,null,null,null,null,null,null,"Indicators_Indicateur"]
[null,null,null,null,null,null,null,null,null,null,"Industrial-buildings_Bâtiment-industriel"]
[null,null,null,null,null,null,null,null,null,null,"Industrial-design_Dessin-industriel"]
[null,null,null,null,null,null,null,null,null,null,"Industrial-development_Developpement-industriel"]
[null,null,null,null,null,null,null,null,null,null,"Industrial-management_Gestion-industrielle"]
[null,null,null,null,null,null,null,null,null,null,"Industrial-policy_Politique-industrielle"]
[null,null,null,null,null,null,null,null,null,null,"Industrial-productivity_Productivite-industrielle"]
[null,null,null,null,null,null,null,null,null,null,"Industrial-products_Produit-industriel"]
[null,null,null,null,null,null,null,null,null,null,"Industrial-research_Recherche-industrielle"]
[null,null,null,null,null,null,null,null,null,null,"Industrial-technology_Technologie-industrielle"]
[null,null,null,null,null,null,null,null,null,null,"Industrial-waste_Dechets-industriels"]
[null,null,null,null,null,null,null,null,null,null,"Industrial-workers_Travailleur-de-l-industrie"]
[null,null,null,null,null,null,null,null,null,null,"Industry_Industrie"]
[null,null,null,null,null,null,null,null,null,null,"Industry-analysis_Analyse-de-l-industrie"]
[null,null,null,null,null,null,null,null,null,null,"Industry-assistance_Aide-a-l-industrie"]
[null,null,null,null,null,null,null,null,null,null,"Industry-classification_Classification-des-industries"]
[null,null,null,null,null,null,null,null,null,null,"Inequality_Inegalite"]
[null,null,null,null,null,null,null,null,null,null,"Infant-care_Soin-du-nouveau-ne"]
[null,null,null,null,null,null,null,null,null,null,"Infant-nutrition_Alimentation-du-nouveau-ne"]
[null,null,null,null,null,null,null,null,null,null,"Infants_Nouveau-ne"]
[null,null,null,null,null,null,null,null,null,null,"Infected-blood_Sang-contamine"]
[null,null,null,null,null,null,null,null,null,null,"Infectious-diseases_Maladie-infectieuse"]
[null,null,null,null,null,null,null,null,null,null,"Inflation_Inflation"]
[null,null,null,null,null,null,null,null,null,null,"Influenza_Grippe"]
[null,null,null,null,null,null,null,null,null,null,"Information_Information"]
[null,null,null,null,null,null,null,null,null,null,"Information-bulletin_Bulletin-d-information"]
[null,null,null,null,null,null,null,null,null,null,"Information-dissemination_Diffusion-de-l-information"]
[null,null,null,null,null,null,null,null,null,null,"Information-management_Gestion-de-l-information"]
[null,null,null,null,null,null,null,null,null,null,"Information-policy_Politique-d-information"]
[null,null,null,null,null,null,null,null,null,null,"Information-requests_Demande-d-information"]
[null,null,null,null,null,null,null,null,null,null,"Information-systems_Systeme-d-information"]
[null,null,null,null,null,null,null,null,null,null,"Information-technology_Technologie-de-l-information"]
[null,null,null,null,null,null,null,null,null,null,"Infrastructures_Infrastructure"]
[null,null,null,null,null,null,null,null,null,null,"Inheritance_Heritage"]
[null,null,null,null,null,null,null,null,null,null,"Initial-public-offering_Placement-initial"]
[null,null,null,null,null,null,null,null,null,null,"Injunctions_Injonction"]
[null,null,null,null,null,null,null,null,null,null,"Injuries_Blessure"]
[null,null,null,null,null,null,null,null,null,null,"Inland-waters_Eaux-interieures"]
[null,null,null,null,null,null,null,null,null,null,"Inmates_Detenu"]
[null,null,null,null,null,null,null,null,null,null,"Innovation_Innovation"]
[null,null,null,null,null,null,null,null,null,null,"Innu_Innu"]
[null,null,null,null,null,null,null,null,null,null,"Inquiry_Enquête-publique"]
[null,null,null,null,null,null,null,null,null,null,"Insecticides_Insecticide"]
[null,null,null,null,null,null,null,null,null,null,"Insects_Insecte"]
[null,null,null,null,null,null,null,null,null,null,"Inspection_Inspection"]
[null,null,null,null,null,null,null,null,null,null,"Instructional-materials_Materiel-didactique"]
[null,null,null,null,null,null,null,null,null,null,"Insulation_Isolation-thermique"]
[null,null,null,null,null,null,null,null,null,null,"Insurable-earnings_Remuneration-assurable"]
[null,null,null,null,null,null,null,null,null,null,"Insurance_Assurance"]
[null,null,null,null,null,null,null,null,null,null,"Insurance-companies_Compagnie-d-assurances"]
[null,null,null,null,null,null,null,null,null,null,"Integrated-management_Gestion-integree"]
[null,null,null,null,null,null,null,null,null,null,"Integration_Integration"]
[null,null,null,null,null,null,null,null,null,null,"Intellectual-capital_Capital-intellectuel"]
[null,null,null,null,null,null,null,null,null,null,"Intellectual-disabilities_Deficience-intellectuelle"]
[null,null,null,null,null,null,null,null,null,null,"Intellectual-property_Propriete-intellectuelle"]
[null,null,null,null,null,null,null,null,null,null,"Intelligent-systems_Systeme-intelligent"]
[null,null,null,null,null,null,null,null,null,null,"Intelligent-transportation-systems_Systeme-de-transport-intelligent"]
[null,null,null,null,null,null,null,null,null,null,"Intercity-transport_Transport-interurbain"]
[null,null,null,null,null,null,null,null,null,null,"Interest-groups_Groupe-d-interêt"]
[null,null,null,null,null,null,null,null,null,null,"Interest-rates_Taux-d-interêt"]
[null,null,null,null,null,null,null,null,null,null,"Intergovernmental-organizations_Organisme-intergouvernemental"]
[null,null,null,null,null,null,null,null,null,null,"Intergovernmental-relations_Relations-intergouvernementales"]
[null,null,null,null,null,null,null,null,null,null,"Interlibrary-loans_Prêt-entre-bibliotheques"]
[null,null,null,null,null,null,null,null,null,null,"Internal-audits_Verification-interne"]
[null,null,null,null,null,null,null,null,null,null,"Internal-migration_Migration-interne"]
[null,null,null,null,null,null,null,null,null,null,"International-adoption_Adoption-internationale"]
[null,null,null,null,null,null,null,null,null,null,"International-agreements_Accord-international"]
[null,null,null,null,null,null,null,null,null,null,"International-business-development_Developpement-du-commerce-international"]
[null,null,null,null,null,null,null,null,null,null,"International-cooperation_Cooperation-internationale"]
[null,null,null,null,null,null,null,null,null,null,"International-courts_Tribunal-international"]
[null,null,null,null,null,null,null,null,null,null,"International-development_Developpement-international"]
[null,null,null,null,null,null,null,null,null,null,"International-economics_Economie-internationale"]
[null,null,null,null,null,null,null,null,null,null,"International-exhibitions_Exposition-internationale"]
[null,null,null,null,null,null,null,null,null,null,"International-finance_Finances-internationales"]
[null,null,null,null,null,null,null,null,null,null,"International-law_Droit-international"]
[null,null,null,null,null,null,null,null,null,null,"International-markets_Marche-international"]
[null,null,null,null,null,null,null,null,null,null,"International-organizations_Organisme-international"]
[null,null,null,null,null,null,null,null,null,null,"International-programs_Programme-international"]
[null,null,null,null,null,null,null,null,null,null,"International-security_Securite-internationale"]
[null,null,null,null,null,null,null,null,null,null,"International-telecommunications_Telecommunications-internationales"]
[null,null,null,null,null,null,null,null,null,null,"International-trade_Commerce-exterieur"]
[null,null,null,null,null,null,null,null,null,null,"International-transport_Transport-international"]
[null,null,null,null,null,null,null,null,null,null,"International-travel_Voyage-international"]
[null,null,null,null,null,null,null,null,null,null,"Internet_Internet"]
[null,null,null,null,null,null,null,null,null,null,"Internships_Stage"]
[null,null,null,null,null,null,null,null,null,null,"Interpersonal-relations_Relations-interpersonnelles"]
[null,null,null,null,null,null,null,null,null,null,"Interpretation_Interpretation"]
[null,null,null,null,null,null,null,null,null,null,"Interprovincial-relations_Relations-interprovinciales"]
[null,null,null,null,null,null,null,null,null,null,"Interprovincial-transport_Transport-interprovincial"]
[null,null,null,null,null,null,null,null,null,null,"Interviews_Entrevue"]
[null,null,null,null,null,null,null,null,null,null,"Intimidation_Intimidation"]
[null,null,null,null,null,null,null,null,null,null,"Intranets_Intranet"]
[null,null,null,null,null,null,null,null,null,null,"Inuit_Inuit"]
[null,null,null,null,null,null,null,null,null,null,"Invasive-species_Espece-envahissante"]
[null,null,null,null,null,null,null,null,null,null,"Inventions_Invention"]
[null,null,null,null,null,null,null,null,null,null,"Inventories_Inventaire"]
[null,null,null,null,null,null,null,null,null,null,"Investigations_Enquête"]
[null,null,null,null,null,null,null,null,null,null,"Investigative-bodies_Organisme-d-enquête"]
[null,null,null,null,null,null,null,null,null,null,"Investment-policy_Politique-d-investissement"]
[null,null,null,null,null,null,null,null,null,null,"Investments_Investissement"]
[null,null,null,null,null,null,null,null,null,null,"Irradiation_Irradiation"]
[null,null,null,null,null,null,null,null,null,null,"Irregular-migration_Migration-clandestine"]
[null,null,null,null,null,null,null,null,null,null,"Irrigation_Irrigation"]
[null,null,null,null,null,null,null,null,null,null,"Isolated-communities_Communaute-isolee"]
[null,null,null,null,null,null,null,null,null,null,"Jewellery_Joaillerie"]
[null,null,null,null,null,null,null,null,null,null,"Job-applications_Demande-d-emploi"]
[null,null,null,null,null,null,null,null,null,null,"Job-classification_Classification-des-emplois"]
[null,null,null,null,null,null,null,null,null,null,"Job-creation_Creation-d-emploi"]
[null,null,null,null,null,null,null,null,null,null,"Job-description_Description-de-poste"]
[null,null,null,null,null,null,null,null,null,null,"Job-promotion_Promotion-en-emploi"]
[null,null,null,null,null,null,null,null,null,null,"Job-search_Recherche-d-emploi"]
[null,null,null,null,null,null,null,null,null,null,"Journalism_Journalisme"]
[null,null,null,null,null,null,null,null,null,null,"Judges_Juge"]
[null,null,null,null,null,null,null,null,null,null,"Jurisprudence_Philosophie-du-droit"]
[null,null,null,null,null,null,null,null,null,null,"Justice-system_Systeme-judiciaire"]
[null,null,null,null,null,null,null,null,null,null,"Juvenile-court_Tribunal-de-la-jeunesse"]
[null,null,null,null,null,null,null,null,null,null,"Knowledge-based-economy_Economie-du-savoir"]
[null,null,null,null,null,null,null,null,null,null,"Knowledge-management_Gestion-du-savoir"]
[null,null,null,null,null,null,null,null,null,null,"Knowledge-transfer_Transmission-du-savoir"]
[null,null,null,null,null,null,null,null,null,null,"Labelling_Etiquetage"]
[null,null,null,null,null,null,null,null,null,null,"Laboratories_Laboratoire"]
[null,null,null,null,null,null,null,null,null,null,"Labour_Travail"]
[null,null,null,null,null,null,null,null,null,null,"Labour-code_Code-du-travail"]
[null,null,null,null,null,null,null,null,null,null,"Labour-disputes_Conflit-de-travail"]
[null,null,null,null,null,null,null,null,null,null,"Labour-force_Main-d-oeuvre"]
[null,null,null,null,null,null,null,null,null,null,"Labour-law_Droit-du-travail"]
[null,null,null,null,null,null,null,null,null,null,"Labour-market_Marche-du-travail"]
[null,null,null,null,null,null,null,null,null,null,"Labour-mobility_Mobilite-de-la-main-d-oeuvre"]
[null,null,null,null,null,null,null,null,null,null,"Labour-relations_Relations-de-travail"]
[null,null,null,null,null,null,null,null,null,null,"Labour-standards_Normes-du-travail"]
[null,null,null,null,null,null,null,null,null,null,"Labour-union-training_Formation-syndicale"]
[null,null,null,null,null,null,null,null,null,null,"Labour-unions_Syndicat"]
[null,null,null,null,null,null,null,null,null,null,"Lakes_Lac"]
[null,null,null,null,null,null,null,null,null,null,"Land-claims_Revendication-territoriale"]
[null,null,null,null,null,null,null,null,null,null,"Land-cover_Couverture-du-sol"]
[null,null,null,null,null,null,null,null,null,null,"Land-management_Gestion-des-terres"]
[null,null,null,null,null,null,null,null,null,null,"Landmines_Mine-terrestre"]
[null,null,null,null,null,null,null,null,null,null,"Landslides_Glissement-de-terrain"]
[null,null,null,null,null,null,null,null,null,null,"Language-education_Enseignement-des-langues"]
[null,null,null,null,null,null,null,null,null,null,"Language-groups_Groupe-linguistique"]
[null,null,null,null,null,null,null,null,null,null,"Language-minorities_Minorite-linguistique"]
[null,null,null,null,null,null,null,null,null,null,"Language-policy_Politique-linguistique"]
[null,null,null,null,null,null,null,null,null,null,"Language-rights_Droits-linguistiques"]
[null,null,null,null,null,null,null,null,null,null,"Language-training_Formation-linguistique"]
[null,null,null,null,null,null,null,null,null,null,"Languages_Langue"]
[null,null,null,null,null,null,null,null,null,null,"Law_Droit"]
[null,null,null,null,null,null,null,null,null,null,"Lead_Plomb"]
[null,null,null,null,null,null,null,null,null,null,"Leader-of-the-Official-Opposition_Chef-de-l-Opposition-officielle"]
[null,null,null,null,null,null,null,null,null,null,"Leadership_Leadership"]
[null,null,null,null,null,null,null,null,null,null,"Learning_Apprentissage"]
[null,null,null,null,null,null,null,null,null,null,"Learning-disabilities_Trouble-d-apprentissage"]
[null,null,null,null,null,null,null,null,null,null,"Lease_Bail"]
[null,null,null,null,null,null,null,null,null,null,"Leasing_Location"]
[null,null,null,null,null,null,null,null,null,null,"Leave-of-absence_Conge"]
[null,null,null,null,null,null,null,null,null,null,"Legal-aid_Aide-juridique"]
[null,null,null,null,null,null,null,null,null,null,"Legal-documents_Document-juridique"]
[null,null,null,null,null,null,null,null,null,null,"Legal-issues_Questions-juridiques"]
[null,null,null,null,null,null,null,null,null,null,"Legal-obligations_Obligation-legale"]
[null,null,null,null,null,null,null,null,null,null,"Legal-rights_Garantie-juridique"]
[null,null,null,null,null,null,null,null,null,null,"Legal-services_Services-juridiques"]
[null,null,null,null,null,null,null,null,null,null,"Legislation_Legislation"]
[null,null,null,null,null,null,null,null,null,null,"Legislative-assemblies_Assemblee-legislative"]
[null,null,null,null,null,null,null,null,null,null,"Legislative-writing_Redaction-des-lois"]
[null,null,null,null,null,null,null,null,null,null,"Lettuce_Laitue"]
[null,null,null,null,null,null,null,null,null,null,"Liability_Creance"]
[null,null,null,null,null,null,null,null,null,null,"Libraries_Bibliotheque"]
[null,null,null,null,null,null,null,null,null,null,"Licensing_Attribution-de-permis"]
[null,null,null,null,null,null,null,null,null,null,"Lieutenant-Governor_Lieutenant-gouverneur"]
[null,null,null,null,null,null,null,null,null,null,"Life-expectancy_Esperance-de-vie"]
[null,null,null,null,null,null,null,null,null,null,"Life-insurance_Assurance-vie"]
[null,null,null,null,null,null,null,null,null,null,"Life-sciences_Sciences-de-la-vie"]
[null,null,null,null,null,null,null,null,null,null,"Life-skills_Habiletes-fondamentales"]
[null,null,null,null,null,null,null,null,null,null,"Lifestyle_Mode-de-vie"]
[null,null,null,null,null,null,null,null,null,null,"Lighthouses_Phare"]
[null,null,null,null,null,null,null,null,null,null,"Lighting_Eclairage"]
[null,null,null,null,null,null,null,null,null,null,"Linguistic-diversity_Diversite-linguistique"]
[null,null,null,null,null,null,null,null,null,null,"Linguistic-duality_Dualite-linguistique"]
[null,null,null,null,null,null,null,null,null,null,"Literacy_Alphabetisation"]
[null,null,null,null,null,null,null,null,null,null,"Literature_Litterature"]
[null,null,null,null,null,null,null,null,null,null,"Litigation_Litige"]
[null,null,null,null,null,null,null,null,null,null,"Livestock_Betail"]
[null,null,null,null,null,null,null,null,null,null,"Living-organisms_Organisme-vivant"]
[null,null,null,null,null,null,null,null,null,null,"Loans_Prêt"]
[null,null,null,null,null,null,null,null,null,null,"Lobbying_Lobbying"]
[null,null,null,null,null,null,null,null,null,null,"Local-governments_Administration-locale"]
[null,null,null,null,null,null,null,null,null,null,"Locks_Ecluse"]
[null,null,null,null,null,null,null,null,null,null,"Logging-industry_Industrie-de-l-exploitation-forestiere"]
[null,null,null,null,null,null,null,null,null,null,"Logistical-support_Soutien-logistique"]
[null,null,null,null,null,null,null,null,null,null,"Logistics_Logistique"]
[null,null,null,null,null,null,null,null,null,null,"Lotteries_Loterie"]
[null,null,null,null,null,null,null,null,null,null,"Low-income_Faible-revenu"]
[null,null,null,null,null,null,null,null,null,null,"Lumber-industry_Industrie-du-bois-d-oeuvre"]
[null,null,null,null,null,null,null,null,null,null,"Machine-readable-data_Donnees-lisibles-par-machine"]
[null,null,null,null,null,null,null,null,null,null,"Macroeconomic-analysis_Analyse-macro-economique"]
[null,null,null,null,null,null,null,null,null,null,"Magnetism_Magnetisme"]
[null,null,null,null,null,null,null,null,null,null,"Maintenance_Entretien"]
[null,null,null,null,null,null,null,null,null,null,"Mammals_Mammifere"]
[null,null,null,null,null,null,null,null,null,null,"Management_Gestion"]
[null,null,null,null,null,null,null,null,null,null,"Management-information-systems_Systeme-d-information-de-gestion"]
[null,null,null,null,null,null,null,null,null,null,"Management-tool_Outil-de-gestion"]
[null,null,null,null,null,null,null,null,null,null,"Mandate_Mandat"]
[null,null,null,null,null,null,null,null,null,null,"Manufacturing-industry_Industrie-de-la-fabrication"]
[null,null,null,null,null,null,null,null,null,null,"Manure_Fumier"]
[null,null,null,null,null,null,null,null,null,null,"Manuscripts_Manuscrit"]
[null,null,null,null,null,null,null,null,null,null,"Maple-products_Produit-de-l-erable"]
[null,null,null,null,null,null,null,null,null,null,"Maps_Carte"]
[null,null,null,null,null,null,null,null,null,null,"Marijuana_Marijuana"]
[null,null,null,null,null,null,null,null,null,null,"Marinas_Port-de-plaisance"]
[null,null,null,null,null,null,null,null,null,null,"Marine-accidents_Accident-maritime"]
[null,null,null,null,null,null,null,null,null,null,"Marine-biology_Biologie-marine"]
[null,null,null,null,null,null,null,null,null,null,"Marine-conservation-areas_Aire-marine-de-conservation"]
[null,null,null,null,null,null,null,null,null,null,"Marine-equipment_Equipement-maritime"]
[null,null,null,null,null,null,null,null,null,null,"Marine-heritage_Patrimoine-maritime"]
[null,null,null,null,null,null,null,null,null,null,"Marine-installations_Installations-maritimes"]
[null,null,null,null,null,null,null,null,null,null,"Marine-safety_Securite-nautique"]
[null,null,null,null,null,null,null,null,null,null,"Marine-safety-equipment_Equipement-de-securite-nautique"]
[null,null,null,null,null,null,null,null,null,null,"Marital-status_Etat-matrimonial"]
[null,null,null,null,null,null,null,null,null,null,"Maritime-law_Droit-maritime"]
[null,null,null,null,null,null,null,null,null,null,"Market-analysis_Analyse-de-marche"]
[null,null,null,null,null,null,null,null,null,null,"Market-development_Developpement-des-marches"]
[null,null,null,null,null,null,null,null,null,null,"Market-entry_Entree-sur-le-marche"]
[null,null,null,null,null,null,null,null,null,null,"Market-place_Lieu-du-marche"]
[null,null,null,null,null,null,null,null,null,null,"Marketing_Marketing"]
[null,null,null,null,null,null,null,null,null,null,"Marketing-campaigns_Campagne-de-marketing"]
[null,null,null,null,null,null,null,null,null,null,"Marketplace-services_Services-aux-marches"]
[null,null,null,null,null,null,null,null,null,null,"Markets_Marche"]
[null,null,null,null,null,null,null,null,null,null,"Marriage_Mariage"]
[null,null,null,null,null,null,null,null,null,null,"Material-management_Gestion-du-materiel"]
[null,null,null,null,null,null,null,null,null,null,"Materials-technology_Technologie-des-materiaux"]
[null,null,null,null,null,null,null,null,null,null,"Maternity-benefits_Prestation-de-maternite"]
[null,null,null,null,null,null,null,null,null,null,"Mathematics_Mathematiques"]
[null,null,null,null,null,null,null,null,null,null,"Measurement_Mesure"]
[null,null,null,null,null,null,null,null,null,null,"Meat_Viande"]
[null,null,null,null,null,null,null,null,null,null,"Mechanical-engineering_Genie-mecanique"]
[null,null,null,null,null,null,null,null,null,null,"Media_Media"]
[null,null,null,null,null,null,null,null,null,null,"Media-monitoring_Surveillance-des-medias"]
[null,null,null,null,null,null,null,null,null,null,"Media-relations_Relations-avec-les-medias"]
[null,null,null,null,null,null,null,null,null,null,"Mediation_Mediation"]
[null,null,null,null,null,null,null,null,null,null,"Medical-law_Droit-medical"]
[null,null,null,null,null,null,null,null,null,null,"Medical-products_Produit-medical"]
[null,null,null,null,null,null,null,null,null,null,"Medical-products-industry_Industrie-des-produits-medicaux"]
[null,null,null,null,null,null,null,null,null,null,"Medical-records_Dossier-medical"]
[null,null,null,null,null,null,null,null,null,null,"Medical-research_Recherche-medicale"]
[null,null,null,null,null,null,null,null,null,null,"Medical-technology_Technologie-medicale"]
[null,null,null,null,null,null,null,null,null,null,"Medicinal-plants_Plante-medicinale"]
[null,null,null,null,null,null,null,null,null,null,"Medicine_Medecine"]
[null,null,null,null,null,null,null,null,null,null,"Meetings_Reunion"]
[null,null,null,null,null,null,null,null,null,null,"Members-of-the-House-of-Commons_Depute-federal"]
[null,null,null,null,null,null,null,null,null,null,"Members-of-the-Senate_Senateur"]
[null,null,null,null,null,null,null,null,null,null,"Men_Homme"]
[null,null,null,null,null,null,null,null,null,null,"Mental-health_Sante-mentale"]
[null,null,null,null,null,null,null,null,null,null,"Mentoring_Mentorat"]
[null,null,null,null,null,null,null,null,null,null,"Mercury_Mercure"]
[null,null,null,null,null,null,null,null,null,null,"Mergers_Fusion"]
[null,null,null,null,null,null,null,null,null,null,"Merit_Merite"]
[null,null,null,null,null,null,null,null,null,null,"Metadata_Metadonnees"]
[null,null,null,null,null,null,null,null,null,null,"Metals_Metal"]
[null,null,null,null,null,null,null,null,null,null,"Metalworking-industry_Industrie-metallurgique"]
[null,null,null,null,null,null,null,null,null,null,"Metamorphic-rocks_Roche-metamorphique"]
[null,null,null,null,null,null,null,null,null,null,"Metamorphism_Metamorphisme"]
[null,null,null,null,null,null,null,null,null,null,"Meteorological-data_Donnees-meteorologiques"]
[null,null,null,null,null,null,null,null,null,null,"Meteorology_Meteorologie"]
[null,null,null,null,null,null,null,null,null,null,"Methadone_Methadone"]
[null,null,null,null,null,null,null,null,null,null,"Methodology_Methodologie"]
[null,null,null,null,null,null,null,null,null,null,"Métis_Metis"]
[null,null,null,null,null,null,null,null,null,null,"Metric-system_Systeme-metrique"]
[null,null,null,null,null,null,null,null,null,null,"Microbiology_Microbiologie"]
[null,null,null,null,null,null,null,null,null,null,"Microeconomic-analysis_Analyse-micro-economique"]
[null,null,null,null,null,null,null,null,null,null,"Microeconomic-policy_Politique-microeconomique"]
[null,null,null,null,null,null,null,null,null,null,"Microelectronics_Microelectronique"]
[null,null,null,null,null,null,null,null,null,null,"Micrographics_Micrographie"]
[null,null,null,null,null,null,null,null,null,null,"Microorganisms_Microorganisme"]
[null,null,null,null,null,null,null,null,null,null,"Migrant-workers_Travailleur-migrant"]
[null,null,null,null,null,null,null,null,null,null,"Migration_Migration"]
[null,null,null,null,null,null,null,null,null,null,"Migratory-birds_Oiseau-migrateur"]
[null,null,null,null,null,null,null,null,null,null,"Military-aircraft_Aeronef-militaire"]
[null,null,null,null,null,null,null,null,null,null,"Military-architecture_Architecture-militaire"]
[null,null,null,null,null,null,null,null,null,null,"Military-aviation_Aviation-militaire"]
[null,null,null,null,null,null,null,null,null,null,"Military-colleges_College-militaire"]
[null,null,null,null,null,null,null,null,null,null,"Military-command_Commandement-militaire"]
[null,null,null,null,null,null,null,null,null,null,"Military-communications_Communications-militaires"]
[null,null,null,null,null,null,null,null,null,null,"Military-engineering_Genie-militaire"]
[null,null,null,null,null,null,null,null,null,null,"Military-history_Histoire-militaire"]
[null,null,null,null,null,null,null,null,null,null,"Military-installations_Installations-militaires"]
[null,null,null,null,null,null,null,null,null,null,"Military-law_Droit-militaire"]
[null,null,null,null,null,null,null,null,null,null,"Military-personnel_Personnel-militaire"]
[null,null,null,null,null,null,null,null,null,null,"Military-police_Police-militaire"]
[null,null,null,null,null,null,null,null,null,null,"Military-technology_Technologie-militaire"]
[null,null,null,null,null,null,null,null,null,null,"Military-training_Formation-militaire"]
[null,null,null,null,null,null,null,null,null,null,"Milk_Lait"]
[null,null,null,null,null,null,null,null,null,null,"Minerals_Minerai"]
[null,null,null,null,null,null,null,null,null,null,"Minimum-wage_Salaire-minimum"]
[null,null,null,null,null,null,null,null,null,null,"Mining-accidents_Accident-minier"]
[null,null,null,null,null,null,null,null,null,null,"Mining-industry_Industrie-miniere"]
[null,null,null,null,null,null,null,null,null,null,"Mining-technology_Technologie-miniere"]
[null,null,null,null,null,null,null,null,null,null,"Ministers_Ministre"]
[null,null,null,null,null,null,null,null,null,null,"Minorities_Minorite"]
[null,null,null,null,null,null,null,null,null,null,"Minority-language-education_Enseignement-dans-la-langue-de-la-minorite"]
[null,null,null,null,null,null,null,null,null,null,"Minutes_Proces-verbal"]
[null,null,null,null,null,null,null,null,null,null,"Misappropriation-of-funds_Detournement-de-fonds"]
[null,null,null,null,null,null,null,null,null,null,"Mission-statements_Enonce-de-mission"]
[null,null,null,null,null,null,null,null,null,null,"Model-forests_Forêt-modele"]
[null,null,null,null,null,null,null,null,null,null,"Modelling_Modelisation"]
[null,null,null,null,null,null,null,null,null,null,"Models_Modele"]
[null,null,null,null,null,null,null,null,null,null,"Modernization_Modernisation"]
[null,null,null,null,null,null,null,null,null,null,"Molluscs_Mollusque"]
[null,null,null,null,null,null,null,null,null,null,"Monarchy_Monarchie"]
[null,null,null,null,null,null,null,null,null,null,"Monetary-policy_Politique-monetaire"]
[null,null,null,null,null,null,null,null,null,null,"Monographic-series_Collection-de-monographies"]
[null,null,null,null,null,null,null,null,null,null,"Monuments_Monument"]
[null,null,null,null,null,null,null,null,null,null,"Moratorium_Moratoire"]
[null,null,null,null,null,null,null,null,null,null,"Mortgage-assistance_Aide-hypothecaire"]
[null,null,null,null,null,null,null,null,null,null,"Mortgage-insurance_Assurance-hypothecaire"]
[null,null,null,null,null,null,null,null,null,null,"Mortgage-loans_Prêt-hypothecaire"]
[null,null,null,null,null,null,null,null,null,null,"Mother-tongue_Langue-maternelle"]
[null,null,null,null,null,null,null,null,null,null,"Motor-vehicles_Vehicule-automobile"]
[null,null,null,null,null,null,null,null,null,null,"Mountains_Montagne"]
[null,null,null,null,null,null,null,null,null,null,"Multiculturalism_Multiculturalisme"]
[null,null,null,null,null,null,null,null,null,null,"Multilateral-agreement-on-investment_Accord-multilateral-sur-l-investissement"]
[null,null,null,null,null,null,null,null,null,null,"Multilateral-agreements_Accord-multilateral"]
[null,null,null,null,null,null,null,null,null,null,"Multilateral-programs_Programme-multilateral"]
[null,null,null,null,null,null,null,null,null,null,"Multilingualism_Multilinguisme"]
[null,null,null,null,null,null,null,null,null,null,"Multimedia_Multimedia"]
[null,null,null,null,null,null,null,null,null,null,"Multinational-corporations_Multinationale"]
[null,null,null,null,null,null,null,null,null,null,"Municipal-buildings_Edifice-municipal"]
[null,null,null,null,null,null,null,null,null,null,"Municipalities_Municipalite"]
[null,null,null,null,null,null,null,null,null,null,"Museum-collections_Collection-museale"]
[null,null,null,null,null,null,null,null,null,null,"Museums_Musee"]
[null,null,null,null,null,null,null,null,null,null,"Music_Musique"]
[null,null,null,null,null,null,null,null,null,null,"Music-industry_Industrie-de-la-musique"]
[null,null,null,null,null,null,null,null,null,null,"Music-scores_Partition-musicale"]
[null,null,null,null,null,null,null,null,null,null,"Mutual-insurance-companies_Societe-mutuelle-d-assurances"]
[null,null,null,null,null,null,null,null,null,null,"Nanotechnology_Nanotechnologie"]
[null,null,null,null,null,null,null,null,null,null,"Narcotic-control_Lutte-anti-drogue"]
[null,null,null,null,null,null,null,null,null,null,"Narcotics_Drogue"]
[null,null,null,null,null,null,null,null,null,null,"National-anthems_Hymne-national"]
[null,null,null,null,null,null,null,null,null,null,"National-archives_Archives-nationales"]
[null,null,null,null,null,null,null,null,null,null,"National-bibliographies_Bibliographie-nationale"]
[null,null,null,null,null,null,null,null,null,null,"National-Capital_Capitale-nationale"]
[null,null,null,null,null,null,null,null,null,null,"National-debt_Dette-nationale"]
[null,null,null,null,null,null,null,null,null,null,"National-heritage_Patrimoine-national"]
[null,null,null,null,null,null,null,null,null,null,"National-income_Revenu-national"]
[null,null,null,null,null,null,null,null,null,null,"National-libraries_Bibliotheque-nationale"]
[null,null,null,null,null,null,null,null,null,null,"National-parks_Parc-national"]
[null,null,null,null,null,null,null,null,null,null,"National-security_Securite-nationale"]
[null,null,null,null,null,null,null,null,null,null,"National-symbols_Symbole-national"]
[null,null,null,null,null,null,null,null,null,null,"Nationalism_Nationalisme"]
[null,null,null,null,null,null,null,null,null,null,"Natural-disasters_Catastrophe-naturelle"]
[null,null,null,null,null,null,null,null,null,null,"Natural-gas_Gaz-naturel"]
[null,null,null,null,null,null,null,null,null,null,"Natural-heritage_Patrimoine-naturel"]
[null,null,null,null,null,null,null,null,null,null,"Natural-history_Histoire-naturelle"]
[null,null,null,null,null,null,null,null,null,null,"Natural-resources_Ressources-naturelles"]
[null,null,null,null,null,null,null,null,null,null,"Natural-sciences_Sciences-naturelles"]
[null,null,null,null,null,null,null,null,null,null,"Nature-conservation_Conservation-de-la-nature"]
[null,null,null,null,null,null,null,null,null,null,"Nautical-charts_Carte-marine"]
[null,null,null,null,null,null,null,null,null,null,"Navigation_Navigation"]
[null,null,null,null,null,null,null,null,null,null,"Navigation-systems_Systeme-d-aide-a-la-navigation"]
[null,null,null,null,null,null,null,null,null,null,"Needs_Besoins"]
[null,null,null,null,null,null,null,null,null,null,"Negotiations_Negociation"]
[null,null,null,null,null,null,null,null,null,null,"Networks_Reseau"]
[null,null,null,null,null,null,null,null,null,null,"Newsletters_Bulletin"]
[null,null,null,null,null,null,null,null,null,null,"Newspapers_Journal"]
[null,null,null,null,null,null,null,null,null,null,"Nomenclature_Nomenclature"]
[null,null,null,null,null,null,null,null,null,null,"Non-profit-organizations_Organisme-a-but-non-lucratif"]
[null,null,null,null,null,null,null,null,null,null,"Non-renewable-resources_Ressources-non-renouvelables"]
[null,null,null,null,null,null,null,null,null,null,"Non-Status-Indians_Indien-non-inscrit"]
[null,null,null,null,null,null,null,null,null,null,"Nongovernmental-organizations_Organisation-non-gouvernementale"]
[null,null,null,null,null,null,null,null,null,null,"Nonprescription-drugs_Medicament-en-vente-libre"]
[null,null,null,null,null,null,null,null,null,null,"North-South-relations_Relations-nord-sud"]
[null,null,null,null,null,null,null,null,null,null,"Northern-Canada_Nord-canadien"]
[null,null,null,null,null,null,null,null,null,null,"Northern-development_Developpement-du-Nord"]
[null,null,null,null,null,null,null,null,null,null,"Northern-studies_Etudes-nordiques"]
[null,null,null,null,null,null,null,null,null,null,"Northerners_Habitant-du-Nord"]
[null,null,null,null,null,null,null,null,null,null,"Nuclear-energy_Energie-nucleaire"]
[null,null,null,null,null,null,null,null,null,null,"Nuclear-facilities_Installations-nucleaires"]
[null,null,null,null,null,null,null,null,null,null,"Nuclear-medicine_Medecine-nucleaire"]
[null,null,null,null,null,null,null,null,null,null,"Nuclear-power-plants_Centrale-nucleaire"]
[null,null,null,null,null,null,null,null,null,null,"Nuclear-technology_Technologie-nucleaire"]
[null,null,null,null,null,null,null,null,null,null,"Nuclear-weapons_Arme-nucleaire"]
[null,null,null,null,null,null,null,null,null,null,"Numeracy_Numeratie"]
[null,null,null,null,null,null,null,null,null,null,"Numismatics_Numismatique"]
[null,null,null,null,null,null,null,null,null,null,"Nutrition_Alimentation"]
[null,null,null,null,null,null,null,null,null,null,"Oats_Avoine"]
[null,null,null,null,null,null,null,null,null,null,"Obesity_Obesite"]
[null,null,null,null,null,null,null,null,null,null,"Objectives_Objectif"]
[null,null,null,null,null,null,null,null,null,null,"Occupational-accidents_Accident-de-travail"]
[null,null,null,null,null,null,null,null,null,null,"Occupational-diseases_Maladie-professionnelle"]
[null,null,null,null,null,null,null,null,null,null,"Occupational-health_Sante-au-travail"]
[null,null,null,null,null,null,null,null,null,null,"Occupational-safety_Securite-au-travail"]
[null,null,null,null,null,null,null,null,null,null,"Occupations_Profession"]
[null,null,null,null,null,null,null,null,null,null,"Ocean-energy_Energie-marine"]
[null,null,null,null,null,null,null,null,null,null,"Ocean-floor_Fond-marin"]
[null,null,null,null,null,null,null,null,null,null,"Oceanography_Oceanographie"]
[null,null,null,null,null,null,null,null,null,null,"Oceans_Ocean"]
[null,null,null,null,null,null,null,null,null,null,"Offences_Infraction"]
[null,null,null,null,null,null,null,null,null,null,"Office-automation_Bureautique"]
[null,null,null,null,null,null,null,null,null,null,"Office-consolidations_Codification-administrative"]
[null,null,null,null,null,null,null,null,null,null,"Office-equipment_Equipement-de-bureau"]
[null,null,null,null,null,null,null,null,null,null,"Office-management_Gestion-administrative"]
[null,null,null,null,null,null,null,null,null,null,"Office-supplies_Fournitures-de-bureau"]
[null,null,null,null,null,null,null,null,null,null,"Official-languages_Langue-officielle"]
[null,null,null,null,null,null,null,null,null,null,"Official-languages-promotion_Promotion-des-langues-officielles"]
[null,null,null,null,null,null,null,null,null,null,"Official-residences_Residence-officielle"]
[null,null,null,null,null,null,null,null,null,null,"Offprints_Tire-a-part"]
[null,null,null,null,null,null,null,null,null,null,"Offshore-area_Zone-extracôtiere"]
[null,null,null,null,null,null,null,null,null,null,"Offshore-drilling_Forage-en-mer"]
[null,null,null,null,null,null,null,null,null,null,"Oil-sands_Sables-bitumineux"]
[null,null,null,null,null,null,null,null,null,null,"Oil-spills_Deversement-de-petrole"]
[null,null,null,null,null,null,null,null,null,null,"Old-age_Vieillesse"]
[null,null,null,null,null,null,null,null,null,null,"Olympic-games_Jeux-olympiques"]
[null,null,null,null,null,null,null,null,null,null,"Ombudsman_Protecteur-du-citoyen"]
[null,null,null,null,null,null,null,null,null,null,"Open-data_Donnees-ouvertes"]
[null,null,null,null,null,null,null,null,null,null,"Open-government_Gouvernement-ouvert"]
[null,null,null,null,null,null,null,null,null,null,"Operations_Fonctionnement"]
[null,null,null,null,null,null,null,null,null,null,"Oral-communication_Communication-orale"]
[null,null,null,null,null,null,null,null,null,null,"Oral-health_Sante-buccodentaire"]
[null,null,null,null,null,null,null,null,null,null,"Orchestras_Orchestre"]
[null,null,null,null,null,null,null,null,null,null,"Organ-transplantation_Transplantation-d-organes"]
[null,null,null,null,null,null,null,null,null,null,"Organic-foods_Aliment-biologique"]
[null,null,null,null,null,null,null,null,null,null,"Organizations_Organisation"]
[null,null,null,null,null,null,null,null,null,null,"Organized-crime_Crime-organise"]
[null,null,null,null,null,null,null,null,null,null,"Ornamental-plants_Plante-ornementale"]
[null,null,null,null,null,null,null,null,null,null,"Ornaments_Parure"]
[null,null,null,null,null,null,null,null,null,null,"Ornithology_Ornithologie"]
[null,null,null,null,null,null,null,null,null,null,"Outdoor-recreation_Loisir-de-plein-air"]
[null,null,null,null,null,null,null,null,null,null,"Outfitters_Pourvoirie"]
[null,null,null,null,null,null,null,null,null,null,"Outreach-services_Depistage"]
[null,null,null,null,null,null,null,null,null,null,"Ozone_Ozone"]
[null,null,null,null,null,null,null,null,null,null,"Ozone-depletion_Appauvrissement-de-l-ozone"]
[null,null,null,null,null,null,null,null,null,null,"Packaging_Emballage"]
[null,null,null,null,null,null,null,null,null,null,"Pain_Douleur"]
[null,null,null,null,null,null,null,null,null,null,"Painting_Peinture"]
[null,null,null,null,null,null,null,null,null,null,"Palaeontology_Paleontologie"]
[null,null,null,null,null,null,null,null,null,null,"Paleobotany_Paleobotanique"]
[null,null,null,null,null,null,null,null,null,null,"Panamerican-games_Jeux-panamericains"]
[null,null,null,null,null,null,null,null,null,null,"Parasites_Parasite"]
[null,null,null,null,null,null,null,null,null,null,"Parenting_Art-d-être-parent"]
[null,null,null,null,null,null,null,null,null,null,"Parents_Parent"]
[null,null,null,null,null,null,null,null,null,null,"Pari-mutuel-betting_Pari-mutuel"]
[null,null,null,null,null,null,null,null,null,null,"Parking_Stationnement"]
[null,null,null,null,null,null,null,null,null,null,"Parks_Parc"]
[null,null,null,null,null,null,null,null,null,null,"Parliament_Parlement"]
[null,null,null,null,null,null,null,null,null,null,"Parliamentary-committees_Commission-parlementaire"]
[null,null,null,null,null,null,null,null,null,null,"Parliamentary-leaders_Leader-parlementaire"]
[null,null,null,null,null,null,null,null,null,null,"Parliamentary-procedure_Procedure-parlementaire"]
[null,null,null,null,null,null,null,null,null,null,"Parole_Liberation-conditionnelle"]
[null,null,null,null,null,null,null,null,null,null,"Part-time-employment_Emploi-a-temps-partiel"]
[null,null,null,null,null,null,null,null,null,null,"Part-time-students_Etudiant-a-temps-partiel"]
[null,null,null,null,null,null,null,null,null,null,"Participation_Participation"]
[null,null,null,null,null,null,null,null,null,null,"Partnerships_Partenariat"]
[null,null,null,null,null,null,null,null,null,null,"Passports_Passeport"]
[null,null,null,null,null,null,null,null,null,null,"Patented-medicines_Medicament-brevete"]
[null,null,null,null,null,null,null,null,null,null,"Patents_Brevet"]
[null,null,null,null,null,null,null,null,null,null,"Paternity-benefits_Prestation-de-paternite"]
[null,null,null,null,null,null,null,null,null,null,"Pay-equity_Equite-salariale"]
[null,null,null,null,null,null,null,null,null,null,"Peace_Paix"]
[null,null,null,null,null,null,null,null,null,null,"Peacekeeping_Maintien-de-la-paix"]
[null,null,null,null,null,null,null,null,null,null,"Peacekeeping-forces_Forces-de-maintien-de-la-paix"]
[null,null,null,null,null,null,null,null,null,null,"Pensions_Pension"]
[null,null,null,null,null,null,null,null,null,null,"Perceptions_Perception"]
[null,null,null,null,null,null,null,null,null,null,"Performance-assessment_Evaluation-du-rendement"]
[null,null,null,null,null,null,null,null,null,null,"Performance-indicators_Indicateur-de-performance"]
[null,null,null,null,null,null,null,null,null,null,"Performing-arts_Arts-d-interpretation"]
[null,null,null,null,null,null,null,null,null,null,"Perinatal-care_Soins-perinataux"]
[null,null,null,null,null,null,null,null,null,null,"Periodicals_Publication-en-serie"]
[null,null,null,null,null,null,null,null,null,null,"Permafrost_Pergelisol"]
[null,null,null,null,null,null,null,null,null,null,"Permits_Permis"]
[null,null,null,null,null,null,null,null,null,null,"Personal-assets_Biens-mobiliers"]
[null,null,null,null,null,null,null,null,null,null,"Personal-care-products_Produit-de-soins-personnels"]
[null,null,null,null,null,null,null,null,null,null,"Personal-digital-assistant_Assistant-numerique-personnel"]
[null,null,null,null,null,null,null,null,null,null,"Personal-finance_Finances-personnelles"]
[null,null,null,null,null,null,null,null,null,null,"Personal-income_Revenu-individuel"]
[null,null,null,null,null,null,null,null,null,null,"Personal-income-tax_Impôt-sur-le-revenu-des-particuliers"]
[null,null,null,null,null,null,null,null,null,null,"Personal-information_Renseignements-personnels"]
[null,null,null,null,null,null,null,null,null,null,"Personal-information-banks_Fichier-de-renseignements-personnels"]
[null,null,null,null,null,null,null,null,null,null,"Personnel-management_Gestion-du-personnel"]
[null,null,null,null,null,null,null,null,null,null,"Persons-with-disabilities_Personne-handicapee"]
[null,null,null,null,null,null,null,null,null,null,"Pesticides_Pesticide"]
[null,null,null,null,null,null,null,null,null,null,"Pests_Organisme-nuisible"]
[null,null,null,null,null,null,null,null,null,null,"Petroleum_Petrole"]
[null,null,null,null,null,null,null,null,null,null,"Petroleum-industry_Industrie-petroliere"]
[null,null,null,null,null,null,null,null,null,null,"Petrology_Petrologie"]
[null,null,null,null,null,null,null,null,null,null,"Pharmaceutical-industry_Industrie-pharmaceutique"]
[null,null,null,null,null,null,null,null,null,null,"Pharmacology_Pharmacologie"]
[null,null,null,null,null,null,null,null,null,null,"Philately_Philatelie"]
[null,null,null,null,null,null,null,null,null,null,"Philosophy_Philosophie"]
[null,null,null,null,null,null,null,null,null,null,"Photographs_Photographie-Image"]
[null,null,null,null,null,null,null,null,null,null,"Photography_Photographie-Art"]
[null,null,null,null,null,null,null,null,null,null,"Physical-disabilities_Deficience-physique"]
[null,null,null,null,null,null,null,null,null,null,"Physical-sciences_Sciences-physiques"]
[null,null,null,null,null,null,null,null,null,null,"Physics_Physique"]
[null,null,null,null,null,null,null,null,null,null,"Physiology_Physiologie"]
[null,null,null,null,null,null,null,null,null,null,"Pilotage_Pilotage"]
[null,null,null,null,null,null,null,null,null,null,"Pioneers_Pionnier"]
[null,null,null,null,null,null,null,null,null,null,"Pipelines_Pipeline"]
[null,null,null,null,null,null,null,null,null,null,"Plain-language_Langage-simple"]
[null,null,null,null,null,null,null,null,null,null,"Planetariums_Planetarium"]
[null,null,null,null,null,null,null,null,null,null,"Planning_Planification"]
[null,null,null,null,null,null,null,null,null,null,"Plant-diseases_Maladie-des-plantes"]
[null,null,null,null,null,null,null,null,null,null,"Plants_Plante"]
[null,null,null,null,null,null,null,null,null,null,"Plastics-industry_Industrie-des-matieres-plastiques"]
[null,null,null,null,null,null,null,null,null,null,"Pleasure-craft_Bateau-de-plaisance"]
[null,null,null,null,null,null,null,null,null,null,"Poaching_Braconnage"]
[null,null,null,null,null,null,null,null,null,null,"Poetry_Poesie"]
[null,null,null,null,null,null,null,null,null,null,"Poisoning_Empoisonnement"]
[null,null,null,null,null,null,null,null,null,null,"Polar-regions_Region-polaire"]
[null,null,null,null,null,null,null,null,null,null,"Polar-sciences_Science-polaire"]
[null,null,null,null,null,null,null,null,null,null,"Police-services_Service-de-police"]
[null,null,null,null,null,null,null,null,null,null,"Policing_Maintien-de-l-ordre-public"]
[null,null,null,null,null,null,null,null,null,null,"Policy_Politique"]
[null,null,null,null,null,null,null,null,null,null,"Policy-development_Elaboration-des-politiques"]
[null,null,null,null,null,null,null,null,null,null,"Policy-instruments_Instrument-de-politique"]
[null,null,null,null,null,null,null,null,null,null,"Policy-review_Examen-des-politiques"]
[null,null,null,null,null,null,null,null,null,null,"Political-parties_Parti-politique"]
[null,null,null,null,null,null,null,null,null,null,"Political-science_Science-politique"]
[null,null,null,null,null,null,null,null,null,null,"Politics_Vie-politique"]
[null,null,null,null,null,null,null,null,null,null,"Pollutants_Polluant"]
[null,null,null,null,null,null,null,null,null,null,"Pollution_Pollution"]
[null,null,null,null,null,null,null,null,null,null,"Pollution-control_Lutte-contre-la-pollution"]
[null,null,null,null,null,null,null,null,null,null,"Pollution-prevention_Prevention-de-la-pollution"]
[null,null,null,null,null,null,null,null,null,null,"Popular-culture_Culture-populaire"]
[null,null,null,null,null,null,null,null,null,null,"Population_Population"]
[null,null,null,null,null,null,null,null,null,null,"Population-distribution_Repartition-de-la-population"]
[null,null,null,null,null,null,null,null,null,null,"Pornography_Pornography"]
[null,null,null,null,null,null,null,null,null,null,"Portfolio_Portefeuille"]
[null,null,null,null,null,null,null,null,null,null,"Position-papers_Expose-de-principe"]
[null,null,null,null,null,null,null,null,null,null,"Postal-services_Service-postal"]
[null,null,null,null,null,null,null,null,null,null,"Posters_Affiche"]
[null,null,null,null,null,null,null,null,null,null,"Postsecondary-education_Enseignement-postsecondaire"]
[null,null,null,null,null,null,null,null,null,null,"Potatoes_Pomme-de-terre"]
[null,null,null,null,null,null,null,null,null,null,"Pottery_Poterie"]
[null,null,null,null,null,null,null,null,null,null,"Poultry_Volaille"]
[null,null,null,null,null,null,null,null,null,null,"Poverty_Pauvrete"]
[null,null,null,null,null,null,null,null,null,null,"Prairie-ecosystems_Ecosysteme-prairial"]
[null,null,null,null,null,null,null,null,null,null,"Precious-metals_Metal-precieux"]
[null,null,null,null,null,null,null,null,null,null,"Precipitation_Precipitation"]
[null,null,null,null,null,null,null,null,null,null,"Pregnancy_Grossesse"]
[null,null,null,null,null,null,null,null,null,null,"Premiums_Prime"]
[null,null,null,null,null,null,null,null,null,null,"Preschool-education_Education-prescolaire"]
[null,null,null,null,null,null,null,null,null,null,"Prescription-drugs_Medicament-d-ordonnance"]
[null,null,null,null,null,null,null,null,null,null,"Press-releases_Communique-de-presse"]
[null,null,null,null,null,null,null,null,null,null,"Prevention_Prevention"]
[null,null,null,null,null,null,null,null,null,null,"Preventive-medicine_Medecine-preventive"]
[null,null,null,null,null,null,null,null,null,null,"Price-indexes_Indice-des-prix"]
[null,null,null,null,null,null,null,null,null,null,"Price-regulation_Reglementation-des-prix"]
[null,null,null,null,null,null,null,null,null,null,"Prices_Prix"]
[null,null,null,null,null,null,null,null,null,null,"Pricing_Etablissement-des-prix"]
[null,null,null,null,null,null,null,null,null,null,"Primary-industry_Industrie-primaire"]
[null,null,null,null,null,null,null,null,null,null,"Primates_Primate"]
[null,null,null,null,null,null,null,null,null,null,"Prime-Minister_Premier-ministre"]
[null,null,null,null,null,null,null,null,null,null,"Printing_Imprimerie"]
[null,null,null,null,null,null,null,null,null,null,"Prints_Gravure"]
[null,null,null,null,null,null,null,null,null,null,"Privacy_Vie-privee"]
[null,null,null,null,null,null,null,null,null,null,"Private-investments_Investissement-prive"]
[null,null,null,null,null,null,null,null,null,null,"Private-pensions_Pension-privee"]
[null,null,null,null,null,null,null,null,null,null,"Private-schools_Ecole-privee"]
[null,null,null,null,null,null,null,null,null,null,"Private-sector_Secteur-prive"]
[null,null,null,null,null,null,null,null,null,null,"Privatization_Privatisation"]
[null,null,null,null,null,null,null,null,null,null,"Pro-bono-legal-services_Services-juridiques-benevoles"]
[null,null,null,null,null,null,null,null,null,null,"Probate_Homologation"]
[null,null,null,null,null,null,null,null,null,null,"Proceeds-of-crime_Produit-de-la-criminalite"]
[null,null,null,null,null,null,null,null,null,null,"Processing_Traitement"]
[null,null,null,null,null,null,null,null,null,null,"Product-codes_Code-de-produit"]
[null,null,null,null,null,null,null,null,null,null,"Product-development_Developpement-de-produit"]
[null,null,null,null,null,null,null,null,null,null,"Product-recalls_Rappel-de-produit"]
[null,null,null,null,null,null,null,null,null,null,"Production_Production"]
[null,null,null,null,null,null,null,null,null,null,"Productivity_Productivite"]
[null,null,null,null,null,null,null,null,null,null,"Products_Produit"]
[null,null,null,null,null,null,null,null,null,null,"Professional-associations_Association-professionnelle"]
[null,null,null,null,null,null,null,null,null,null,"Professional-development_Developpement-professionnel"]
[null,null,null,null,null,null,null,null,null,null,"Profiles_Profil"]
[null,null,null,null,null,null,null,null,null,null,"Profitability_Rentabilite"]
[null,null,null,null,null,null,null,null,null,null,"Program-assessment_Evaluation-de-programme"]
[null,null,null,null,null,null,null,null,null,null,"Program-delivery_Realisation-de-programme"]
[null,null,null,null,null,null,null,null,null,null,"Program-development_Elaboration-de-programme"]
[null,null,null,null,null,null,null,null,null,null,"Program-management_Gestion-de-programme"]
[null,null,null,null,null,null,null,null,null,null,"Program-review_Revision-de-programme"]
[null,null,null,null,null,null,null,null,null,null,"Programming_Programmation"]
[null,null,null,null,null,null,null,null,null,null,"Programs_Programme"]
[null,null,null,null,null,null,null,null,null,null,"Progress-reports_Rapport-d-etape"]
[null,null,null,null,null,null,null,null,null,null,"Prohibition_Interdiction"]
[null,null,null,null,null,null,null,null,null,null,"Project-management_Gestion-de-projet"]
[null,null,null,null,null,null,null,null,null,null,"Pronunciation_Prononciation"]
[null,null,null,null,null,null,null,null,null,null,"Propaganda_Propagande"]
[null,null,null,null,null,null,null,null,null,null,"Propane_Propane"]
[null,null,null,null,null,null,null,null,null,null,"Property_Biens"]
[null,null,null,null,null,null,null,null,null,null,"Property-and-casualty-insurance_Assurance-sur-les-biens-et-risques"]
[null,null,null,null,null,null,null,null,null,null,"Property-management_Gestion-des-biens"]
[null,null,null,null,null,null,null,null,null,null,"Property-tax_Impôt-foncier"]
[null,null,null,null,null,null,null,null,null,null,"Prospecting_Prospection"]
[null,null,null,null,null,null,null,null,null,null,"Prostitution_Prostitution"]
[null,null,null,null,null,null,null,null,null,null,"Protected-species_Espece-protegee"]
[null,null,null,null,null,null,null,null,null,null,"Protocol_Protocole"]
[null,null,null,null,null,null,null,null,null,null,"Prototyping_Prototypage"]
[null,null,null,null,null,null,null,null,null,null,"Provinces_Province"]
[null,null,null,null,null,null,null,null,null,null,"Provincial-governments_Gouvernement-provincial"]
[null,null,null,null,null,null,null,null,null,null,"Provincial-institutions_Institution-provinciale"]
[null,null,null,null,null,null,null,null,null,null,"Provincial-parks_Parc-provincial"]
[null,null,null,null,null,null,null,null,null,null,"Provincial-taxes_Impôt-provincial"]
[null,null,null,null,null,null,null,null,null,null,"Psychology_Psychologie"]
[null,null,null,null,null,null,null,null,null,null,"Public-private-partnerships_Partenariat-public-prive"]
[null,null,null,null,null,null,null,null,null,null,"Public-access_Acces-public"]
[null,null,null,null,null,null,null,null,null,null,"Public-accounts_Comptes-publics"]
[null,null,null,null,null,null,null,null,null,null,"Public-administration_Administration-publique"]
[null,null,null,null,null,null,null,null,null,null,"Public-architecture_Architecture-publique"]
[null,null,null,null,null,null,null,null,null,null,"Public-buildings_Edifice-public"]
[null,null,null,null,null,null,null,null,null,null,"Public-diplomacy_Diplomatie-ouverte"]
[null,null,null,null,null,null,null,null,null,null,"Public-expenditures_Depenses-publiques"]
[null,null,null,null,null,null,null,null,null,null,"Public-finance_Finances-publiques"]
[null,null,null,null,null,null,null,null,null,null,"Public-funding_Financement-public"]
[null,null,null,null,null,null,null,null,null,null,"Public-hearings_Audience-publique"]
[null,null,null,null,null,null,null,null,null,null,"Public-libraries_Bibliotheque-publique"]
[null,null,null,null,null,null,null,null,null,null,"Public-notices_Avis-public"]
[null,null,null,null,null,null,null,null,null,null,"Public-opinion_Opinion-publique"]
[null,null,null,null,null,null,null,null,null,null,"Public-opinion-polls_Sondage-d-opinion"]
[null,null,null,null,null,null,null,null,null,null,"Public-pensions_Pension-publique"]
[null,null,null,null,null,null,null,null,null,null,"Public-relations_Relations-publiques"]
[null,null,null,null,null,null,null,null,null,null,"Public-safety_Securite-publique"]
[null,null,null,null,null,null,null,null,null,null,"Public-schools_Ecole-publique"]
[null,null,null,null,null,null,null,null,null,null,"Public-sector_Secteur-public"]
[null,null,null,null,null,null,null,null,null,null,"Public-service_Fonction-publique"]
[null,null,null,null,null,null,null,null,null,null,"Public-transit_Transport-en-commun"]
[null,null,null,null,null,null,null,null,null,null,"Public-works_Travaux-publics"]
[null,null,null,null,null,null,null,null,null,null,"Publishing_Edition"]
[null,null,null,null,null,null,null,null,null,null,"Pulp-and-paper-industry_Industrie-des-pâtes-et-papiers"]
[null,null,null,null,null,null,null,null,null,null,"Purchasing_Achat"]
[null,null,null,null,null,null,null,null,null,null,"Qualifications_Qualifications"]
[null,null,null,null,null,null,null,null,null,null,"Quality-control_Contrôle-de-la-qualite"]
[null,null,null,null,null,null,null,null,null,null,"Quality-of-life_Qualite-de-vie"]
[null,null,null,null,null,null,null,null,null,null,"Quality-of-service_Qualite-de-service"]
[null,null,null,null,null,null,null,null,null,null,"Quality-standards_Norme-de-qualite"]
[null,null,null,null,null,null,null,null,null,null,"Quarantine_Quarantaine"]
[null,null,null,null,null,null,null,null,null,null,"Quarterly-financial-reports_Rapport-financier-trimestriel"]
[null,null,null,null,null,null,null,null,null,null,"Questionnaires_Questionnaire"]
[null,null,null,null,null,null,null,null,null,null,"Quilting_Matelassage"]
[null,null,null,null,null,null,null,null,null,null,"Race-relations_Relations-raciales"]
[null,null,null,null,null,null,null,null,null,null,"Racial-discrimination_Discrimination-raciale"]
[null,null,null,null,null,null,null,null,null,null,"Radar_Radar"]
[null,null,null,null,null,null,null,null,null,null,"Radiation_Rayonnement"]
[null,null,null,null,null,null,null,null,null,null,"Radio_Radio"]
[null,null,null,null,null,null,null,null,null,null,"Radioactive-materials_Matiere-radioactive"]
[null,null,null,null,null,null,null,null,null,null,"Radioactive-waste_Dechets-radioactifs"]
[null,null,null,null,null,null,null,null,null,null,"Radioactivity_Radioactivite"]
[null,null,null,null,null,null,null,null,null,null,"Rail-companies_Compagnie-ferroviaire"]
[null,null,null,null,null,null,null,null,null,null,"Rail-transport_Transport-ferroviaire"]
[null,null,null,null,null,null,null,null,null,null,"Rail-transport-industry_Industrie-du-transport-ferroviaire"]
[null,null,null,null,null,null,null,null,null,null,"Railway-accidents_Accident-ferroviaire"]
[null,null,null,null,null,null,null,null,null,null,"Railway-installations_Installations-ferroviaires"]
[null,null,null,null,null,null,null,null,null,null,"Railway-networks_Reseau-ferroviaire"]
[null,null,null,null,null,null,null,null,null,null,"Railway-safety_Securite-ferroviaire"]
[null,null,null,null,null,null,null,null,null,null,"Rates_Taux"]
[null,null,null,null,null,null,null,null,null,null,"Reading_Lecture"]
[null,null,null,null,null,null,null,null,null,null,"Real-time-hydrometric-data_Donnees-hydrometriques-en-temps-reel"]
[null,null,null,null,null,null,null,null,null,null,"Real-estate_Immobilier"]
[null,null,null,null,null,null,null,null,null,null,"Real-estate-industry_Industrie-de-l-immobilier"]
[null,null,null,null,null,null,null,null,null,null,"Real-property-services_Services-immobiliers"]
[null,null,null,null,null,null,null,null,null,null,"Receiver-General_Receveur-general"]
[null,null,null,null,null,null,null,null,null,null,"Reciprocal-agreements_Accord-de-reciprocite"]
[null,null,null,null,null,null,null,null,null,null,"Record-of-employment_Releve-d-emploi"]
[null,null,null,null,null,null,null,null,null,null,"Records_Dossier"]
[null,null,null,null,null,null,null,null,null,null,"Records-disposal_Elimination-des-documents"]
[null,null,null,null,null,null,null,null,null,null,"Records-management_Gestion-des-documents"]
[null,null,null,null,null,null,null,null,null,null,"Records-retention_Conservation-des-documents"]
[null,null,null,null,null,null,null,null,null,null,"Recourse_Recours"]
[null,null,null,null,null,null,null,null,null,null,"Recoveries_Recouvrement"]
[null,null,null,null,null,null,null,null,null,null,"Recreation_Loisir"]
[null,null,null,null,null,null,null,null,null,null,"Recreational-facilities_Installations-recreatives"]
[null,null,null,null,null,null,null,null,null,null,"Recruiting_Recrutement"]
[null,null,null,null,null,null,null,null,null,null,"Recyclable-materials_Matiere-recyclable"]
[null,null,null,null,null,null,null,null,null,null,"Recycling_Recyclage"]
[null,null,null,null,null,null,null,null,null,null,"Red-tape-burdens_Fardeau-administratif"]
[null,null,null,null,null,null,null,null,null,null,"Red-tape-reduction_Reduction-du-fardeau-administratif"]
[null,null,null,null,null,null,null,null,null,null,"Reference-services_Service-de-reference"]
[null,null,null,null,null,null,null,null,null,null,"Reforestation_Reboisement"]
[null,null,null,null,null,null,null,null,null,null,"Reform_Reforme"]
[null,null,null,null,null,null,null,null,null,null,"Refrigeration-equipment_Equipement-de-refrigeration"]
[null,null,null,null,null,null,null,null,null,null,"Refugees_Refugie"]
[null,null,null,null,null,null,null,null,null,null,"Regional-cooperation_Cooperation-regionale"]
[null,null,null,null,null,null,null,null,null,null,"Regional-development_Developpement-regional"]
[null,null,null,null,null,null,null,null,null,null,"Regional-markets_Marche-regional"]
[null,null,null,null,null,null,null,null,null,null,"Regions_Region"]
[null,null,null,null,null,null,null,null,null,null,"Registers_Registre"]
[null,null,null,null,null,null,null,null,null,null,"Registration_Enregistrement"]
[null,null,null,null,null,null,null,null,null,null,"Regulation_Reglementation"]
[null,null,null,null,null,null,null,null,null,null,"Regulations_Reglements"]
[null,null,null,null,null,null,null,null,null,null,"Regulatory-agencies_Organisme-de-reglementation"]
[null,null,null,null,null,null,null,null,null,null,"Rehabilitation_Readaptation"]
[null,null,null,null,null,null,null,null,null,null,"Religion_Religion"]
[null,null,null,null,null,null,null,null,null,null,"Religious-architecture_Architecture-religieuse"]
[null,null,null,null,null,null,null,null,null,null,"Religious-buildings_Edifice-religieux"]
[null,null,null,null,null,null,null,null,null,null,"Religious-heritage_Patrimoine-religieux"]
[null,null,null,null,null,null,null,null,null,null,"Religious-history_Histoire-religieuse"]
[null,null,null,null,null,null,null,null,null,null,"Remote-sensing_Teledetection"]
[null,null,null,null,null,null,null,null,null,null,"Renewable-energy_Energie-renouvelable"]
[null,null,null,null,null,null,null,null,null,null,"Renewable-resources_Ressources-renouvelables"]
[null,null,null,null,null,null,null,null,null,null,"Reports_Rapport"]
[null,null,null,null,null,null,null,null,null,null,"Representatives_Representant"]
[null,null,null,null,null,null,null,null,null,null,"Reproductive-technology_Technologie-de-la-reproduction"]
[null,null,null,null,null,null,null,null,null,null,"Reprography_Reprographie"]
[null,null,null,null,null,null,null,null,null,null,"Reptiles_Reptile"]
[null,null,null,null,null,null,null,null,null,null,"Rescue_Sauvetage"]
[null,null,null,null,null,null,null,null,null,null,"Rescue-equipment_Equipement-de-sauvetage"]
[null,null,null,null,null,null,null,null,null,null,"Research_Recherche"]
[null,null,null,null,null,null,null,null,null,null,"Research-and-development_Recherche-et-developpement"]
[null,null,null,null,null,null,null,null,null,null,"Research-chairs_Chaire-de-recherche"]
[null,null,null,null,null,null,null,null,null,null,"Research-grants_Subvention-de-recherche"]
[null,null,null,null,null,null,null,null,null,null,"Research-institutes_Institut-de-recherche"]
[null,null,null,null,null,null,null,null,null,null,"Residential-schools_Ecole-residentielle"]
[null,null,null,null,null,null,null,null,null,null,"Resignation_Demission"]
[null,null,null,null,null,null,null,null,null,null,"Resource-allocation_Allocation-des-ressources"]
[null,null,null,null,null,null,null,null,null,null,"Resource-development_Exploitation-des-ressources"]
[null,null,null,null,null,null,null,null,null,null,"Resources-conservation_Conservation-des-ressources"]
[null,null,null,null,null,null,null,null,null,null,"Resources-management_Gestion-des-ressources"]
[null,null,null,null,null,null,null,null,null,null,"Respiratory-diseases_Maladie-respiratoire"]
[null,null,null,null,null,null,null,null,null,null,"Restaurants_Restaurant"]
[null,null,null,null,null,null,null,null,null,null,"Restoration_Restauration"]
[null,null,null,null,null,null,null,null,null,null,"Restructuring_Restructuration"]
[null,null,null,null,null,null,null,null,null,null,"Retail-trade_Commerce-de-detail"]
[null,null,null,null,null,null,null,null,null,null,"Retention-of-staff_Maintien-de-l-effectif"]
[null,null,null,null,null,null,null,null,null,null,"Retirement_Retraite"]
[null,null,null,null,null,null,null,null,null,null,"Retraining_Formation-de-reconversion"]
[null,null,null,null,null,null,null,null,null,null,"Review_Examen"]
[null,null,null,null,null,null,null,null,null,null,"Revision_Revision"]
[null,null,null,null,null,null,null,null,null,null,"Risk-management_Gestion-des-risques"]
[null,null,null,null,null,null,null,null,null,null,"Risk-premiums_Prime-de-risque"]
[null,null,null,null,null,null,null,null,null,null,"Rivers_Fleuve-/-Riviere"]
[null,null,null,null,null,null,null,null,null,null,"Road-accidents_Accident-de-la-route"]
[null,null,null,null,null,null,null,null,null,null,"Road-construction_Construction-routiere"]
[null,null,null,null,null,null,null,null,null,null,"Road-maps_Carte-routiere"]
[null,null,null,null,null,null,null,null,null,null,"Road-networks_Reseau-routier"]
[null,null,null,null,null,null,null,null,null,null,"Road-safety_Securite-routiere"]
[null,null,null,null,null,null,null,null,null,null,"Road-transport_Transport-routier"]
[null,null,null,null,null,null,null,null,null,null,"Robotics_Robotique"]
[null,null,null,null,null,null,null,null,null,null,"Rodenticides_Rodenticide"]
[null,null,null,null,null,null,null,null,null,null,"Rodents_Rongeur"]
[null,null,null,null,null,null,null,null,null,null,"Roles_Rôle"]
[null,null,null,null,null,null,null,null,null,null,"Royalties_Redevances"]
[null,null,null,null,null,null,null,null,null,null,"Rubber-industry_Industrie-du-caoutchouc"]
[null,null,null,null,null,null,null,null,null,null,"Rural-communities_Communaute-rurale"]
[null,null,null,null,null,null,null,null,null,null,"Rural-development_Developpement-rural"]
[null,null,null,null,null,null,null,null,null,null,"Rural-environment_Milieu-rural"]
[null,null,null,null,null,null,null,null,null,null,"Safety_Securite"]
[null,null,null,null,null,null,null,null,null,null,"Safety-education_Enseignement-de-la-securite"]
[null,null,null,null,null,null,null,null,null,null,"Safety-equipment_Equipement-de-securite"]
[null,null,null,null,null,null,null,null,null,null,"Safety-measures_Mesure-de-securite"]
[null,null,null,null,null,null,null,null,null,null,"Safety-regulations_Reglementation-en-matiere-de-securite"]
[null,null,null,null,null,null,null,null,null,null,"Safety-standards_Norme-de-securite"]
[null,null,null,null,null,null,null,null,null,null,"Sailboats_Voilier"]
[null,null,null,null,null,null,null,null,null,null,"Salaries_Salaire"]
[null,null,null,null,null,null,null,null,null,null,"Sales_Vente"]
[null,null,null,null,null,null,null,null,null,null,"Sales-taxes_Taxe-de-vente"]
[null,null,null,null,null,null,null,null,null,null,"Salt-water_Eau-salee"]
[null,null,null,null,null,null,null,null,null,null,"Salt-water-fish_Poisson-de-mer"]
[null,null,null,null,null,null,null,null,null,null,"Same-sex-couples_Couple-de-même-sexe"]
[null,null,null,null,null,null,null,null,null,null,"Samples_Echantillon"]
[null,null,null,null,null,null,null,null,null,null,"Satellites_Satellite"]
[null,null,null,null,null,null,null,null,null,null,"Savings_Epargne"]
[null,null,null,null,null,null,null,null,null,null,"Scholarships_Bourse-d-etudes"]
[null,null,null,null,null,null,null,null,null,null,"School-boards_Commission-scolaire"]
[null,null,null,null,null,null,null,null,null,null,"Schools_Ecole"]
[null,null,null,null,null,null,null,null,null,null,"Science-education_Enseignement-des-sciences"]
[null,null,null,null,null,null,null,null,null,null,"Science-policy_Politique-scientifique"]
[null,null,null,null,null,null,null,null,null,null,"Sciences_Sciences"]
[null,null,null,null,null,null,null,null,null,null,"Scientific-equipment_Equipement-scientifique"]
[null,null,null,null,null,null,null,null,null,null,"Scientific-information_Information-scientifique"]
[null,null,null,null,null,null,null,null,null,null,"Scientific-research_Recherche-scientifique"]
[null,null,null,null,null,null,null,null,null,null,"Scientists_Scientifique"]
[null,null,null,null,null,null,null,null,null,null,"Screening-Medicine_Depistage-Medecine"]
[null,null,null,null,null,null,null,null,null,null,"Sculpture_Sculpture"]
[null,null,null,null,null,null,null,null,null,null,"Seafood_Fruits-de-mer"]
[null,null,null,null,null,null,null,null,null,null,"Sealing_Chasse-au-phoque"]
[null,null,null,null,null,null,null,null,null,null,"Seals_Phoque"]
[null,null,null,null,null,null,null,null,null,null,"Seas_Mer"]
[null,null,null,null,null,null,null,null,null,null,"Seasonal-employment_Emploi-saisonnier"]
[null,null,null,null,null,null,null,null,null,null,"Second-language-assessment_Evaluation-de-la-langue-seconde"]
[null,null,null,null,null,null,null,null,null,null,"Second-language-education_Enseignement-de-la-langue-seconde"]
[null,null,null,null,null,null,null,null,null,null,"Second-languages_Langue-seconde"]
[null,null,null,null,null,null,null,null,null,null,"Secondary-education_Enseignement-secondaire"]
[null,null,null,null,null,null,null,null,null,null,"Secondary-industry_Industrie-secondaire"]
[null,null,null,null,null,null,null,null,null,null,"Secondary-schools_Ecole-secondaire"]
[null,null,null,null,null,null,null,null,null,null,"Sections_Section"]
[null,null,null,null,null,null,null,null,null,null,"Sector-analysis_Analyse-sectorielle"]
[null,null,null,null,null,null,null,null,null,null,"Securities_Valeurs-mobilieres"]
[null,null,null,null,null,null,null,null,null,null,"Security-intelligence_Renseignement-de-securite"]
[null,null,null,null,null,null,null,null,null,null,"Security-investigations_Enquête-de-securite"]
[null,null,null,null,null,null,null,null,null,null,"Sedimentary-rocks_Roche-sedimentaire"]
[null,null,null,null,null,null,null,null,null,null,"Sedimentology_Sedimentologie"]
[null,null,null,null,null,null,null,null,null,null,"Sediments_Sediment"]
[null,null,null,null,null,null,null,null,null,null,"Seismology_Sismologie"]
[null,null,null,null,null,null,null,null,null,null,"Seizure-of-property_Saisie"]
[null,null,null,null,null,null,null,null,null,null,"Selection_Selection"]
[null,null,null,null,null,null,null,null,null,null,"Self-employment_Emploi-autonome"]
[null,null,null,null,null,null,null,null,null,null,"Self-government_Autonomie-gouvernementale"]
[null,null,null,null,null,null,null,null,null,null,"Semen_Sperme"]
[null,null,null,null,null,null,null,null,null,null,"Senate_Senat"]
[null,null,null,null,null,null,null,null,null,null,"Seniors_Aîne"]
[null,null,null,null,null,null,null,null,null,null,"Service-agreements_Accord-de-service"]
[null,null,null,null,null,null,null,null,null,null,"Service-contracts_Contrat-de-service"]
[null,null,null,null,null,null,null,null,null,null,"Service-industry_Industrie-des-services"]
[null,null,null,null,null,null,null,null,null,null,"Services_Service"]
[null,null,null,null,null,null,null,null,null,null,"Severance-pay_Indemnite-de-cessation-d-emploi"]
[null,null,null,null,null,null,null,null,null,null,"Sewing_Couture"]
[null,null,null,null,null,null,null,null,null,null,"Sexual-harassment_Harcelement-sexuel"]
[null,null,null,null,null,null,null,null,null,null,"Sexual-offences_Infraction-sexuelle"]
[null,null,null,null,null,null,null,null,null,null,"Sexual-orientation_Orientation-sexuelle"]
[null,null,null,null,null,null,null,null,null,null,"Sexually-transmitted-diseases_Maladie-transmise-sexuellement"]
[null,null,null,null,null,null,null,null,null,null,"Shares_Action"]
[null,null,null,null,null,null,null,null,null,null,"Sheep_Mouton"]
[null,null,null,null,null,null,null,null,null,null,"Shipbuilding_Construction-navale"]
[null,null,null,null,null,null,null,null,null,null,"Shipping_Expedition"]
[null,null,null,null,null,null,null,null,null,null,"Ships_Navire"]
[null,null,null,null,null,null,null,null,null,null,"Shoe-industry_Industrie-de-la-chaussure"]
[null,null,null,null,null,null,null,null,null,null,"Shortage_Penurie"]
[null,null,null,null,null,null,null,null,null,null,"Side-effects_Effet-secondaire"]
[null,null,null,null,null,null,null,null,null,null,"Signs_Signalisation"]
[null,null,null,null,null,null,null,null,null,null,"Silver_Argent-Minerai"]
[null,null,null,null,null,null,null,null,null,null,"Single-parent-families_Famille-monoparentale"]
[null,null,null,null,null,null,null,null,null,null,"Site-management_Gestion-de-site"]
[null,null,null,null,null,null,null,null,null,null,"Skating_Patinage"]
[null,null,null,null,null,null,null,null,null,null,"Ski-trails_Piste-de-ski"]
[null,null,null,null,null,null,null,null,null,null,"Skiing_Ski"]
[null,null,null,null,null,null,null,null,null,null,"Skills_Habiletes"]
[null,null,null,null,null,null,null,null,null,null,"Skills-transfer_Transfert-d-habiletes"]
[null,null,null,null,null,null,null,null,null,null,"Slaughtering_Abattage-d-animaux"]
[null,null,null,null,null,null,null,null,null,null,"Slides_Diapositive"]
[null,null,null,null,null,null,null,null,null,null,"Small-business-loans_Prêt-a-la-petite-entreprise"]
[null,null,null,null,null,null,null,null,null,null,"Small-businesses_Petite-entreprise"]
[null,null,null,null,null,null,null,null,null,null,"Smog_Smog"]
[null,null,null,null,null,null,null,null,null,null,"Smoking_Tabagisme"]
[null,null,null,null,null,null,null,null,null,null,"Smoking-prevention_Prevention-du-tabagisme"]
[null,null,null,null,null,null,null,null,null,null,"Snow_Neige"]
[null,null,null,null,null,null,null,null,null,null,"Social-assistance_Aide-sociale"]
[null,null,null,null,null,null,null,null,null,null,"Social-conditions_Conditions-sociales"]
[null,null,null,null,null,null,null,null,null,null,"Social-development_Developpement-social"]
[null,null,null,null,null,null,null,null,null,null,"Social-equity_Equite-sociale"]
[null,null,null,null,null,null,null,null,null,null,"Social-history_Histoire-sociale"]
[null,null,null,null,null,null,null,null,null,null,"Social-indicators_Indicateur-social"]
[null,null,null,null,null,null,null,null,null,null,"Social-insurance-number_Numero-d-assurance-sociale"]
[null,null,null,null,null,null,null,null,null,null,"Social-issues_Questions-sociales"]
[null,null,null,null,null,null,null,null,null,null,"Social-life_Vie-sociale"]
[null,null,null,null,null,null,null,null,null,null,"Social-media_Media-social"]
[null,null,null,null,null,null,null,null,null,null,"Social-movement_Mouvement-social"]
[null,null,null,null,null,null,null,null,null,null,"Social-policy_Politique-sociale"]
[null,null,null,null,null,null,null,null,null,null,"Social-problems_Probleme-social"]
[null,null,null,null,null,null,null,null,null,null,"Social-programs_Programmes-sociaux"]
[null,null,null,null,null,null,null,null,null,null,"Social-rights_Droits-sociaux"]
[null,null,null,null,null,null,null,null,null,null,"Social-sciences_Sciences-sociales"]
[null,null,null,null,null,null,null,null,null,null,"Social-security_Securite-sociale"]
[null,null,null,null,null,null,null,null,null,null,"Social-services_Services-sociaux"]
[null,null,null,null,null,null,null,null,null,null,"Social-statistics_Statistiques-sociales"]
[null,null,null,null,null,null,null,null,null,null,"Social-structure_Structure-sociale"]
[null,null,null,null,null,null,null,null,null,null,"Social-surveys_Enquête-sociale"]
[null,null,null,null,null,null,null,null,null,null,"Social-trends_Tendances-sociales"]
[null,null,null,null,null,null,null,null,null,null,"Socioeconomic-analysis_Analyse-socio-economique"]
[null,null,null,null,null,null,null,null,null,null,"Socioeconomic-data_Donnees-socio-economiques"]
[null,null,null,null,null,null,null,null,null,null,"Sociology_Sociologie"]
[null,null,null,null,null,null,null,null,null,null,"Software_Logiciel"]
[null,null,null,null,null,null,null,null,null,null,"Soil_Sol"]
[null,null,null,null,null,null,null,null,null,null,"Soil-conservation_Preservation-des-sols"]
[null,null,null,null,null,null,null,null,null,null,"Soil-pollution_Pollution-des-sols"]
[null,null,null,null,null,null,null,null,null,null,"Soil-quality_Qualite-des-sols"]
[null,null,null,null,null,null,null,null,null,null,"Soil-taxonomy_Classification-des-sols"]
[null,null,null,null,null,null,null,null,null,null,"Solar-energy_Energie-solaire"]
[null,null,null,null,null,null,null,null,null,null,"Solar-heating_Chauffage-solaire"]
[null,null,null,null,null,null,null,null,null,null,"Sole-proprietorships_Entreprise-individuelle"]
[null,null,null,null,null,null,null,null,null,null,"Solvents_Solvant"]
[null,null,null,null,null,null,null,null,null,null,"Sound-archives_Archives-sonores"]
[null,null,null,null,null,null,null,null,null,null,"Sound-recordings_Enregistrement-sonore"]
[null,null,null,null,null,null,null,null,null,null,"Sovereignty_Souverainete"]
[null,null,null,null,null,null,null,null,null,null,"Space-exploration_Exploration-spatiale"]
[null,null,null,null,null,null,null,null,null,null,"Space-sciences_Sciences-de-l-espace"]
[null,null,null,null,null,null,null,null,null,null,"Space-station_Station-orbitale"]
[null,null,null,null,null,null,null,null,null,null,"Space-technology_Technologie-spatiale"]
[null,null,null,null,null,null,null,null,null,null,"Special-libraries_Bibliotheque-specialisee"]
[null,null,null,null,null,null,null,null,null,null,"Specifications_Specification"]
[null,null,null,null,null,null,null,null,null,null,"Spectrum-management_Gestion-du-spectre"]
[null,null,null,null,null,null,null,null,null,null,"Sponsorship_Commandite"]
[null,null,null,null,null,null,null,null,null,null,"Sports_Sport"]
[null,null,null,null,null,null,null,null,null,null,"Sports-events_Evenement-sportif"]
[null,null,null,null,null,null,null,null,null,null,"Staffing_Dotation"]
[null,null,null,null,null,null,null,null,null,null,"Stamps_Timbre"]
[null,null,null,null,null,null,null,null,null,null,"Standard-of-living_Niveau-de-vie"]
[null,null,null,null,null,null,null,null,null,null,"Standardization_Normalisation"]
[null,null,null,null,null,null,null,null,null,null,"Standards_Norme"]
[null,null,null,null,null,null,null,null,null,null,"Standing-offers_Offre-permanente"]
[null,null,null,null,null,null,null,null,null,null,"State-ceremonial_Ceremonial-d-Etat"]
[null,null,null,null,null,null,null,null,null,null,"Statements_Declaration"]
[null,null,null,null,null,null,null,null,null,null,"Stationery_Papeterie"]
[null,null,null,null,null,null,null,null,null,null,"Statistical-analysis_Analyse-statistique"]
[null,null,null,null,null,null,null,null,null,null,"Statistical-profile_Profil-statistique"]
[null,null,null,null,null,null,null,null,null,null,"Statistics_Statistiques"]
[null,null,null,null,null,null,null,null,null,null,"Status-Indians_Indien-inscrit"]
[null,null,null,null,null,null,null,null,null,null,"Status-of-disabled-persons_Condition-de-la-personne-handicapee"]
[null,null,null,null,null,null,null,null,null,null,"Status-of-the-elderly_Condition-de-la-personne-âgee"]
[null,null,null,null,null,null,null,null,null,null,"Status-of-women_Condition-de-la-femme"]
[null,null,null,null,null,null,null,null,null,null,"Steel_Acier"]
[null,null,null,null,null,null,null,null,null,null,"Stem-cells_Cellule-souche"]
[null,null,null,null,null,null,null,null,null,null,"Stewardship_Gerance"]
[null,null,null,null,null,null,null,null,null,null,"Stock-markets_Marche-des-valeurs"]
[null,null,null,null,null,null,null,null,null,null,"Storage_Entreposage"]
[null,null,null,null,null,null,null,null,null,null,"Storms_Tempête"]
[null,null,null,null,null,null,null,null,null,null,"Strategic-management_Gestion-strategique"]
[null,null,null,null,null,null,null,null,null,null,"Strategies_Strategie"]
[null,null,null,null,null,null,null,null,null,null,"Stratigraphy_Stratigraphie"]
[null,null,null,null,null,null,null,null,null,null,"Streams_Ruisseau"]
[null,null,null,null,null,null,null,null,null,null,"Structural-geology_Tectonique"]
[null,null,null,null,null,null,null,null,null,null,"Student-labour_Travail-etudiant"]
[null,null,null,null,null,null,null,null,null,null,"Student-loans_Prêt-etudiant"]
[null,null,null,null,null,null,null,null,null,null,"Students_Etudiant"]
[null,null,null,null,null,null,null,null,null,null,"Studies-abroad_Etudes-a-l-etranger"]
[null,null,null,null,null,null,null,null,null,null,"Style-manuals_Guide-de-redaction"]
[null,null,null,null,null,null,null,null,null,null,"Submarines_Sous-marin"]
[null,null,null,null,null,null,null,null,null,null,"Submissions_Presentation"]
[null,null,null,null,null,null,null,null,null,null,"Subsidized-housing_Logement-subventionne"]
[null,null,null,null,null,null,null,null,null,null,"Suicide_Suicide"]
[null,null,null,null,null,null,null,null,null,null,"Supervision_Supervision"]
[null,null,null,null,null,null,null,null,null,null,"Supplementary-estimates_Budget-supplementaire-des-depenses"]
[null,null,null,null,null,null,null,null,null,null,"Supplements_Supplement"]
[null,null,null,null,null,null,null,null,null,null,"Suppliers_Fournisseur"]
[null,null,null,null,null,null,null,null,null,null,"Supplies_Approvisionnements"]
[null,null,null,null,null,null,null,null,null,null,"Supply_Offre"]
[null,null,null,null,null,null,null,null,null,null,"Support-businesses_Entreprise-de-soutien"]
[null,null,null,null,null,null,null,null,null,null,"Surface-water_Eau-de-surface"]
[null,null,null,null,null,null,null,null,null,null,"Surficial-geology_Geologie-des-depôts-meubles"]
[null,null,null,null,null,null,null,null,null,null,"Surplus_Surplus"]
[null,null,null,null,null,null,null,null,null,null,"Surveying_Arpentage"]
[null,null,null,null,null,null,null,null,null,null,"Surveys_Sondage"]
[null,null,null,null,null,null,null,null,null,null,"Survival_Survie"]
[null,null,null,null,null,null,null,null,null,null,"Survivor-benefits_Prestation-au-survivant"]
[null,null,null,null,null,null,null,null,null,null,"Suspension_Suspension"]
[null,null,null,null,null,null,null,null,null,null,"Sustainable-development_Developpement-durable"]
[null,null,null,null,null,null,null,null,null,null,"Sustainable-transportation_Transport-durable"]
[null,null,null,null,null,null,null,null,null,null,"Symbols_Symbole"]
[null,null,null,null,null,null,null,null,null,null,"Systems_Systeme"]
[null,null,null,null,null,null,null,null,null,null,"Tables_Tableau"]
[null,null,null,null,null,null,null,null,null,null,"Tariff-barriers_Barriere-tarifaire"]
[null,null,null,null,null,null,null,null,null,null,"Tariff-protection_Protection-des-tarifs-douaniers"]
[null,null,null,null,null,null,null,null,null,null,"Tariff-relief_Allegement-tarifaire"]
[null,null,null,null,null,null,null,null,null,null,"Tariffs_Tarif-douanier"]
[null,null,null,null,null,null,null,null,null,null,"Tax-avoidance_Evitement-fiscal"]
[null,null,null,null,null,null,null,null,null,null,"Tax-benefits_Avantage-fiscal"]
[null,null,null,null,null,null,null,null,null,null,"Tax-credits_Credit-d-impôt"]
[null,null,null,null,null,null,null,null,null,null,"Tax-fraud_Fraude-fiscale"]
[null,null,null,null,null,null,null,null,null,null,"Tax-incentives_Incitatif-fiscal"]
[null,null,null,null,null,null,null,null,null,null,"Tax-refunds_Remboursement-d-impôt"]
[null,null,null,null,null,null,null,null,null,null,"Taxation-regulations_Reglementation-en-matiere-de-taxation"]
[null,null,null,null,null,null,null,null,null,null,"Taxes_Impôt"]
[null,null,null,null,null,null,null,null,null,null,"Taxonomy_Taxonomie"]
[null,null,null,null,null,null,null,null,null,null,"Tea_The"]
[null,null,null,null,null,null,null,null,null,null,"Teachers_Enseignant"]
[null,null,null,null,null,null,null,null,null,null,"Technical-education_Enseignement-technique"]
[null,null,null,null,null,null,null,null,null,null,"Technical-reports_Rapport-technique"]
[null,null,null,null,null,null,null,null,null,null,"Technical-services_Services-techniques"]
[null,null,null,null,null,null,null,null,null,null,"Technical-writing_Redaction-technique"]
[null,null,null,null,null,null,null,null,null,null,"Technological-innovation_Innovation-technologique"]
[null,null,null,null,null,null,null,null,null,null,"Technology_Technologie"]
[null,null,null,null,null,null,null,null,null,null,"Technology-policy_Politique-technologique"]
[null,null,null,null,null,null,null,null,null,null,"Technology-transfer_Transfert-technologique"]
[null,null,null,null,null,null,null,null,null,null,"Telecommunications_Telecommunications"]
[null,null,null,null,null,null,null,null,null,null,"Telecommunications-networks_Reseau-de-telecommunications"]
[null,null,null,null,null,null,null,null,null,null,"Telecommunications-policy_Politique-en-matiere-de-telecommunications"]
[null,null,null,null,null,null,null,null,null,null,"Teleconferencing_Teleconference"]
[null,null,null,null,null,null,null,null,null,null,"Telegraph_Telegraphe"]
[null,null,null,null,null,null,null,null,null,null,"Telehealth_Telesante"]
[null,null,null,null,null,null,null,null,null,null,"Telemedicine_Telemedecine"]
[null,null,null,null,null,null,null,null,null,null,"Telephone-directories_Repertoire-telephonique"]
[null,null,null,null,null,null,null,null,null,null,"Telephones_Telephone"]
[null,null,null,null,null,null,null,null,null,null,"Television_Television"]
[null,null,null,null,null,null,null,null,null,null,"Telework_Teletravail"]
[null,null,null,null,null,null,null,null,null,null,"Temperature_Temperature"]
[null,null,null,null,null,null,null,null,null,null,"Templates_Modeles"]
[null,null,null,null,null,null,null,null,null,null,"Temporary-employment_Emploi-temporaire"]
[null,null,null,null,null,null,null,null,null,null,"Tenders_Soumission"]
[null,null,null,null,null,null,null,null,null,null,"Term-loans_Prêt-a-terme"]
[null,null,null,null,null,null,null,null,null,null,"Termination-of-employment_Cessation-d-emploi"]
[null,null,null,null,null,null,null,null,null,null,"Terminology_Terminologie"]
[null,null,null,null,null,null,null,null,null,null,"Terms-of-reference_Cadre-de-reference"]
[null,null,null,null,null,null,null,null,null,null,"Terms-of-use_Condition-d-utilisation"]
[null,null,null,null,null,null,null,null,null,null,"Terrestrial-ecosystems_Ecosysteme-terrestre"]
[null,null,null,null,null,null,null,null,null,null,"Territorial-governments_Gouvernement-territorial"]
[null,null,null,null,null,null,null,null,null,null,"Territorial-parks_Parc-territorial"]
[null,null,null,null,null,null,null,null,null,null,"Territories_Territoire"]
[null,null,null,null,null,null,null,null,null,null,"Terrorism_Terrorisme"]
[null,null,null,null,null,null,null,null,null,null,"Testimony_Temoignage"]
[null,null,null,null,null,null,null,null,null,null,"Testing_Test"]
[null,null,null,null,null,null,null,null,null,null,"Textile-industry_Industrie-textile"]
[null,null,null,null,null,null,null,null,null,null,"Textiles_Textile"]
[null,null,null,null,null,null,null,null,null,null,"Theatre_Theâtre"]
[null,null,null,null,null,null,null,null,null,null,"Therapy_Therapie"]
[null,null,null,null,null,null,null,null,null,null,"Thesauri_Thesaurus"]
[null,null,null,null,null,null,null,null,null,null,"Tides_Maree"]
[null,null,null,null,null,null,null,null,null,null,"Time_Temps"]
[null,null,null,null,null,null,null,null,null,null,"Time-zones_Fuseau-horaire"]
[null,null,null,null,null,null,null,null,null,null,"Tissues_Tissu-Biologie"]
[null,null,null,null,null,null,null,null,null,null,"Tobacco-industry_Industrie-du-tabac"]
[null,null,null,null,null,null,null,null,null,null,"Tolls_Peage"]
[null,null,null,null,null,null,null,null,null,null,"Tooling_Outillage"]
[null,null,null,null,null,null,null,null,null,null,"Tools_Outil"]
[null,null,null,null,null,null,null,null,null,null,"Topographical-maps_Carte-topographique"]
[null,null,null,null,null,null,null,null,null,null,"Topography_Topographie"]
[null,null,null,null,null,null,null,null,null,null,"Toponymy_Toponymie"]
[null,null,null,null,null,null,null,null,null,null,"Tourism_Tourisme"]
[null,null,null,null,null,null,null,null,null,null,"Tourism-facilities_Installations-touristiques"]
[null,null,null,null,null,null,null,null,null,null,"Toxic-spills_Deversement-de-substances-toxiques"]
[null,null,null,null,null,null,null,null,null,null,"Toxic-substances_Substance-toxique"]
[null,null,null,null,null,null,null,null,null,null,"Toxicology_Toxicologie"]
[null,null,null,null,null,null,null,null,null,null,"Toys_Jouet"]
[null,null,null,null,null,null,null,null,null,null,"Trade_Commerce"]
[null,null,null,null,null,null,null,null,null,null,"Trade-agreements_Accord-commercial"]
[null,null,null,null,null,null,null,null,null,null,"Trade-disputes_Differend-commercial"]
[null,null,null,null,null,null,null,null,null,null,"Trade-missions_Delegation-commerciale"]
[null,null,null,null,null,null,null,null,null,null,"Trade-negotiations_Negociation-commerciale"]
[null,null,null,null,null,null,null,null,null,null,"Trade-office_Bureau-commercial"]
[null,null,null,null,null,null,null,null,null,null,"Trade-policy_Politique-commerciale"]
[null,null,null,null,null,null,null,null,null,null,"Trade-promotion_Promotion-du-commerce"]
[null,null,null,null,null,null,null,null,null,null,"Trade-relations_Relations-commerciales"]
[null,null,null,null,null,null,null,null,null,null,"Trade-shows_Salon-professionnel"]
[null,null,null,null,null,null,null,null,null,null,"Trademarks_Marque-de-commerce"]
[null,null,null,null,null,null,null,null,null,null,"Train-stations_Gare-ferroviaire"]
[null,null,null,null,null,null,null,null,null,null,"Training_Formation"]
[null,null,null,null,null,null,null,null,null,null,"Training-centres_Centre-de-formation"]
[null,null,null,null,null,null,null,null,null,null,"Trains_Train"]
[null,null,null,null,null,null,null,null,null,null,"Transborder-data-flow_Flux-transfrontiere-de-donnees"]
[null,null,null,null,null,null,null,null,null,null,"Transfer-payments_Paiement-de-transfert"]
[null,null,null,null,null,null,null,null,null,null,"Transfers_Transfert"]
[null,null,null,null,null,null,null,null,null,null,"Transfers-of-personnel_Mutation-de-personnel"]
[null,null,null,null,null,null,null,null,null,null,"Transformation_Transformation"]
[null,null,null,null,null,null,null,null,null,null,"Translation_Traduction"]
[null,null,null,null,null,null,null,null,null,null,"Transplantation-Medicine_Transplantation-Medecine"]
[null,null,null,null,null,null,null,null,null,null,"Transport_Transport"]
[null,null,null,null,null,null,null,null,null,null,"Transport-industry_Industrie-du-transport"]
[null,null,null,null,null,null,null,null,null,null,"Transport-policy_Politique-des-transports"]
[null,null,null,null,null,null,null,null,null,null,"Transportation-safety_Securite-des-transports"]
[null,null,null,null,null,null,null,null,null,null,"Trapping_Piegeage"]
[null,null,null,null,null,null,null,null,null,null,"Travel_Voyage"]
[null,null,null,null,null,null,null,null,null,null,"Travel-documents_Titre-de-voyage"]
[null,null,null,null,null,null,null,null,null,null,"Treasury-board_Conseil-du-Tresor"]
[null,null,null,null,null,null,null,null,null,null,"Treasury-Board-Secretariat_Secretariat-du-Conseil-du-Tresor"]
[null,null,null,null,null,null,null,null,null,null,"Trees_Arbre"]
[null,null,null,null,null,null,null,null,null,null,"Trends_Tendances"]
[null,null,null,null,null,null,null,null,null,null,"Trucking-industry_Industrie-du-camionnage"]
[null,null,null,null,null,null,null,null,null,null,"Trucks_Camion"]
[null,null,null,null,null,null,null,null,null,null,"Trust-companies_Societe-de-fiducie"]
[null,null,null,null,null,null,null,null,null,null,"Trustees_Fiduciaire"]
[null,null,null,null,null,null,null,null,null,null,"Tsunamis_Tsunami"]
[null,null,null,null,null,null,null,null,null,null,"Tunnels_Tunnel"]
[null,null,null,null,null,null,null,null,null,null,"Ultraviolet-radiation_Rayonnement-ultraviolet"]
[null,null,null,null,null,null,null,null,null,null,"Unemployment_Chômage"]
[null,null,null,null,null,null,null,null,null,null,"Universities_Universite"]
[null,null,null,null,null,null,null,null,null,null,"Unpaid-work_Travail-non-remunere"]
[null,null,null,null,null,null,null,null,null,null,"Urban-communities_Communaute-urbaine"]
[null,null,null,null,null,null,null,null,null,null,"Urban-development_Developpement-urbain"]
[null,null,null,null,null,null,null,null,null,null,"Urban-environment_Milieu-urbain"]
[null,null,null,null,null,null,null,null,null,null,"Urban-planning_Urbanisme"]
[null,null,null,null,null,null,null,null,null,null,"Urban-transit_Transport-urbain"]
[null,null,null,null,null,null,null,null,null,null,"User-education_Formation-des-utilisateurs"]
[null,null,null,null,null,null,null,null,null,null,"Uses_Utilisation"]
[null,null,null,null,null,null,null,null,null,null,"Utilities_Services-publics"]
[null,null,null,null,null,null,null,null,null,null,"Vacations_Vacances"]
[null,null,null,null,null,null,null,null,null,null,"Values_Valeurs"]
[null,null,null,null,null,null,null,null,null,null,"Vandalism_Vandalisme"]
[null,null,null,null,null,null,null,null,null,null,"Vegetable-crops_Cultures-maraîcheres"]
[null,null,null,null,null,null,null,null,null,null,"Vegetables_Legume"]
[null,null,null,null,null,null,null,null,null,null,"Vehicles_Vehicule"]
[null,null,null,null,null,null,null,null,null,null,"Vendors_Vendeur"]
[null,null,null,null,null,null,null,null,null,null,"Venture-capital_Capital-de-risque"]
[null,null,null,null,null,null,null,null,null,null,"Vessels_Embarcation"]
[null,null,null,null,null,null,null,null,null,null,"Veteran-pensions_Pension-des-anciens-combattants"]
[null,null,null,null,null,null,null,null,null,null,"Veterans_Ancien-combattant"]
[null,null,null,null,null,null,null,null,null,null,"Veterinary-drugs_Medicament-veterinaire"]
[null,null,null,null,null,null,null,null,null,null,"Veterinary-medicine_Medecine-veterinaire"]
[null,null,null,null,null,null,null,null,null,null,"Victims_Victime"]
[null,null,null,null,null,null,null,null,null,null,"Videorecordings_Enregistrement-video"]
[null,null,null,null,null,null,null,null,null,null,"Violence_Violence"]
[null,null,null,null,null,null,null,null,null,null,"Violence-against-children_Violence-faite-aux-enfants"]
[null,null,null,null,null,null,null,null,null,null,"Violence-against-women_Violence-faite-aux-femmes"]
[null,null,null,null,null,null,null,null,null,null,"Virtual-exhibitions_Exposition-virtuelle"]
[null,null,null,null,null,null,null,null,null,null,"Viruses_Virus"]
[null,null,null,null,null,null,null,null,null,null,"Visas_Visa"]
[null,null,null,null,null,null,null,null,null,null,"Visible-minorities_Minorite-visible"]
[null,null,null,null,null,null,null,null,null,null,"Visits-of-state_Visite-officielle"]
[null,null,null,null,null,null,null,null,null,null,"Visual-archives_Archives-visuelles"]
[null,null,null,null,null,null,null,null,null,null,"Visual-arts_Arts-visuels"]
[null,null,null,null,null,null,null,null,null,null,"Visual-disabilities_Deficience-visuelle"]
[null,null,null,null,null,null,null,null,null,null,"Vital-statistics_Statistiques-de-l-etat-civil"]
[null,null,null,null,null,null,null,null,null,null,"Vitamins_Vitamine"]
[null,null,null,null,null,null,null,null,null,null,"Viticulture_Viticulture"]
[null,null,null,null,null,null,null,null,null,null,"Vocational-guidance_Orientation-professionnelle"]
[null,null,null,null,null,null,null,null,null,null,"Vocational-rehabilitation_Readaptation-professionnelle"]
[null,null,null,null,null,null,null,null,null,null,"Vocational-training_Formation-professionnelle"]
[null,null,null,null,null,null,null,null,null,null,"Voice-mail_Messagerie-vocale"]
[null,null,null,null,null,null,null,null,null,null,"Volcanoes_Volcan"]
[null,null,null,null,null,null,null,null,null,null,"Volunteer-work_Benevolat"]
[null,null,null,null,null,null,null,null,null,null,"War_Guerre"]
[null,null,null,null,null,null,null,null,null,null,"War-crimes_Crime-de-guerre"]
[null,null,null,null,null,null,null,null,null,null,"War-memorials_Cenotaphe"]
[null,null,null,null,null,null,null,null,null,null,"Warranties_Garantie"]
[null,null,null,null,null,null,null,null,null,null,"Warrants_Mandat-de-perquisition"]
[null,null,null,null,null,null,null,null,null,null,"Waste_Dechets"]
[null,null,null,null,null,null,null,null,null,null,"Waste-management_Gestion-des-dechets"]
[null,null,null,null,null,null,null,null,null,null,"Waste-water_Eaux-usees"]
[null,null,null,null,null,null,null,null,null,null,"Water_Eau"]
[null,null,null,null,null,null,null,null,null,null,"Water-conservation_Conservation-de-l-eau"]
[null,null,null,null,null,null,null,null,null,null,"Water-demand_Besoins-en-eau"]
[null,null,null,null,null,null,null,null,null,null,"Water-management_Gestion-de-l-eau"]
[null,null,null,null,null,null,null,null,null,null,"Water-pollution_Pollution-de-l-eau"]
[null,null,null,null,null,null,null,null,null,null,"Water-quality_Qualite-de-l-eau"]
[null,null,null,null,null,null,null,null,null,null,"Water-supply_Approvisionnement-en-eau"]
[null,null,null,null,null,null,null,null,null,null,"Water-transport_Transport-maritime"]
[null,null,null,null,null,null,null,null,null,null,"Water-transport-industry_Industrie-du-transport-maritime"]
[null,null,null,null,null,null,null,null,null,null,"Water-use_Utilisation-de-l-eau"]
[null,null,null,null,null,null,null,null,null,null,"Watercourses_Cours-d-eau"]
[null,null,null,null,null,null,null,null,null,null,"Watersheds_Bassin-hydrologique"]
[null,null,null,null,null,null,null,null,null,null,"Waterways_Voie-navigable"]
[null,null,null,null,null,null,null,null,null,null,"Weapons_Arme"]
[null,null,null,null,null,null,null,null,null,null,"Weather_Temps-Meteorologie"]
[null,null,null,null,null,null,null,null,null,null,"Weather-forecasts_Previsions-meteorologiques"]
[null,null,null,null,null,null,null,null,null,null,"Weather-warnings_Alerte-meteorologique"]
[null,null,null,null,null,null,null,null,null,null,"Weaving_Tissage"]
[null,null,null,null,null,null,null,null,null,null,"Web-usability_Facilite-d-emploi-du-Web"]
[null,null,null,null,null,null,null,null,null,null,"Websites_Site-Web"]
[null,null,null,null,null,null,null,null,null,null,"Weeds_Plante-nuisible"]
[null,null,null,null,null,null,null,null,null,null,"Western-provinces_Provinces-de-l-Ouest"]
[null,null,null,null,null,null,null,null,null,null,"Wetlands_Zone-humide"]
[null,null,null,null,null,null,null,null,null,null,"Whales_Baleine"]
[null,null,null,null,null,null,null,null,null,null,"Whaling_Chasse-a-la-baleine"]
[null,null,null,null,null,null,null,null,null,null,"Wharfs_Quai"]
[null,null,null,null,null,null,null,null,null,null,"Wheat_Ble"]
[null,null,null,null,null,null,null,null,null,null,"Wheelchairs_Fauteuil-roulant"]
[null,null,null,null,null,null,null,null,null,null,"Whistleblower-protection_Protection-des-denonciateurs"]
[null,null,null,null,null,null,null,null,null,null,"Wholesale-trade_Commerce-de-gros"]
[null,null,null,null,null,null,null,null,null,null,"Wild-plants_Plante-sauvage"]
[null,null,null,null,null,null,null,null,null,null,"Wildlife_Faune"]
[null,null,null,null,null,null,null,null,null,null,"Wildlife-management_Gestion-de-la-faune"]
[null,null,null,null,null,null,null,null,null,null,"Wind_Vent"]
[null,null,null,null,null,null,null,null,null,null,"Wind-energy_Energie-eolienne"]
[null,null,null,null,null,null,null,null,null,null,"Wine_Vin"]
[null,null,null,null,null,null,null,null,null,null,"Wine-industry_Industrie-vinicole"]
[null,null,null,null,null,null,null,null,null,null,"Winter-sports_Sport-d-hiver"]
[null,null,null,null,null,null,null,null,null,null,"Women_Femme"]
[null,null,null,null,null,null,null,null,null,null,"Womens-health_Sante-de-la-femme"]
[null,null,null,null,null,null,null,null,null,null,"Women-workers_Travailleuse"]
[null,null,null,null,null,null,null,null,null,null,"Wood_Bois"]
[null,null,null,null,null,null,null,null,null,null,"Woodworking-industry_Industrie-du-bois"]
[null,null,null,null,null,null,null,null,null,null,"Work-organization_Organisation-du-travail"]
[null,null,null,null,null,null,null,null,null,null,"Work-permits_Permis-de-travail"]
[null,null,null,null,null,null,null,null,null,null,"Workers_Travailleur"]
[null,null,null,null,null,null,null,null,null,null,"Working-capital_Fonds-de-roulement"]
[null,null,null,null,null,null,null,null,null,null,"Working-conditions_Conditions-de-travail"]
[null,null,null,null,null,null,null,null,null,null,"Workplace_Milieu-de-travail"]
[null,null,null,null,null,null,null,null,null,null,"Workplace-automation_Automatisation-du-travail"]
[null,null,null,null,null,null,null,null,null,null,"Workplace-pollution_Pollution-en-milieu-de-travail"]
[null,null,null,null,null,null,null,null,null,null,"Workplace-violence_Violence-en-milieu-de-travail"]
[null,null,null,null,null,null,null,null,null,null,"World-heritage_Patrimoine-mondial"]
[null,null,null,null,null,null,null,null,null,null,"World-War-1914-1918_Guerre-mondiale-1914-1918"]
[null,null,null,null,null,null,null,null,null,null,"World-War-1939-1945_Guerre-mondiale-1939-1945"]
[null,null,null,null,null,null,null,null,null,null,"Writing_Redaction"]
[null,null,null,null,null,null,null,null,null,null,"Xenotransplantation_Xenotransplantation"]
[null,null,null,null,null,null,null,null,null,null,"Yearbooks_Annuaire"]
[null,null,null,null,null,null,null,null,null,null,"Yogurt_Yogourt"]
[null,null,null,null,null,null,null,null,null,null,"Young-adults_Jeune-adulte"]
[null,null,null,null,null,null,null,null,null,null,"Young-offenders_Jeune-contrevenant"]
[null,null,null,null,null,null,null,null,null,null,"Youth_Jeunesse"]
[null,null,null,null,null,null,null,null,null,null,"Zoological-gardens_Jardin-zoologique"]
[null,null,null,null,null,null,null,null,null,null,"Zoology_Zoologie"]

{"sheet":"PARAMETERS","index":6,"n_rows":52,"n_cols":61,"rows_kept":52,"cut":false,"hidden":true,"merged":[]}
["operation","department","email","dataset_name","metadata_uuid","Download","OWS","OAPI","server_id","datastore_id","folder_name","core_subject_term","server_id","vector_datastore_id","raster_datastore_id","WMS","WFS","WCS","project_filename","service_name","project_filename_fr","service_name_fr","OAPIM","OAPIF","OAPIC","collection_name","group_name","server_id","datastore_id","provider_name","provider_type","collection_description_en","collection_description_fr","collection_keywords_en","collection_keywords_fr","collection_title_en","collection_title_fr","collection_crs","extents_spatial_bbox","extents_spatial_crs","extents_temporal_begin","extents_temporal_end","folder_path","item_name","format_name","format_mimetype","data_queryables","feature_name","schema_name","data_id_field","data_geom_field","format_name","format_mimetype","wms_service_url_en","wms_service_url_fr","options_layer","options_style","raster_vector","ows_data_type","oapi_data_type","one_collection"]
[{"$f":"_xlfn.SWITCH('Generic Parameters'!C9, \"Publish / Publier\",\"Publish\",\"Update / Mettre à jour\",\"Update\",\"Unpublish / Dépublier\",\"Unpublish\",\"#\")","v":"#"},{"$f":"IF(ISBLANK('Generic Parameters'!C11),\"#\",'Generic Parameters'!C11)","v":"#"},{"$f":"IF(ISBLANK('Generic Parameters'!C10),\"#\",'Generic Parameters'!C10)","v":"#"},{"$f":"IF(ISBLANK('Generic Parameters'!C13),\"#\",'Generic Parameters'!C13)","v":"#"},{"$f":"IF(ISBLANK('Generic Parameters'!C12),\"#\",'Generic Parameters'!C12)","v":"#"},{"$f":"_xlfn.SWITCH('Generic Parameters'!C17,\"Yes / Oui\",\"True\",\"No / Non\",\"False\",\"#\")","v":"False"},{"$f":"_xlfn.SWITCH('Generic Parameters'!C18,\"Yes / Oui\",\"True\",\"No / Non\",\"False\",\"#\")","v":"False"},{"$f":"_xlfn.SWITCH('Generic Parameters'!C19,\"Yes / Oui\",\"True\",\"No / Non\",\"False\",\"#\")","v":"False"},{"$f":"IF(ISBLANK('Download Service Parameters'!C11),IF('Download Service Parameters'!C10=\"Government network / Réseau du gouvernement\",\"DDR_DOWNLOAD_INTERNAL\",\"\"),'Download Service Parameters'!C11)","v":""},{"$f":"IF(ISBLANK('Download Service Parameters'!C12),\"\",'Download Service Parameters'!C12)","v":""},{"$f":"IF(ISBLANK('Download Service Parameters'!C8),\"#\",'Download Service Parameters'!C8)","v":"#"},{"$f":"IF(ISBLANK('Download Service Parameters'!C9),\"#\",'Download Service Parameters'!C9)","v":"#"},{"$f":"IF(ISBLANK('OWS Parameters'!C13),IF('OWS Parameters'!C$11=\"Government network / Réseau du gouvernement\",\"DDR_QGS_INTERNAL\",\"\"),'OWS Parameters'!C13)","v":""},{"$f":"IF(ISBLANK('OWS Parameters'!C14),\"\",'OWS Parameters'!C14)","v":""},{"$f":"IF(ISBLANK('OWS Parameters'!C15),\"\",'OWS Parameters'!C15)","v":""},{"$f":"IF(OR('OWS Parameters'!C10=\"WMS\",'OWS Parameters'!C10=\"WMS + WFS\",'OWS Parameters'!C10=\"WMS + WCS\"),\"True\",IF(ISBLANK('OWS Parameters'!C10),\"#\",\"False\"))","v":"False"},{"$f":"IF(OR('OWS Parameters'!C10=\"WFS\",'OWS Parameters'!C10=\"WMS + WFS\"),\"True\",\"False\")","v":"False"},{"$f":"IF(OR('OWS Parameters'!C10=\"WCS\",'OWS Parameters'!C10=\"WMS + WCS\"),\"True\",\"False\")","v":"False"},{"$f":"IF(ISBLANK('OWS Parameters'!C19),\"#\",'OWS Parameters'!C19)","v":""},{"$f":"IF(ISBLANK('OWS Parameters'!C20),\"\",'OWS Parameters'!C20)","v":""},{"$f":"IF(ISBLANK('OWS Parameters'!D19),\"\",'OWS Parameters'!D19)","v":""},{"$f":"IF(ISBLANK('OWS Parameters'!D20),\"\",'OWS Parameters'!D20)","v":""},{"$f":"IF(ISBLANK('OGC API Parameters'!C11),\"#\",IF(OR('OGC API Parameters'!C11=\"Maps\",'OGC API Parameters'!C11=\"Features + Maps\",'OGC API Parameters'!C11=\"Coverage + Maps\"),\"True\",IF(ISBLANK('OGC API Parameters'!C10),\"#\",\"False\")))","v":"#"},{"$f":"IF(ISBLANK('OGC API Parameters'!C11),\"#\",IF(OR('OGC API Parameters'!C11=\"Features\",'OGC API Parameters'!C11=\"Features + Maps\"),\"True\",\"False\"))","v":"False"},{"$f":"IF(ISBLANK('OGC API Parameters'!C11),\"#\",IF(OR('OGC API Parameters'!C11=\"Coverage\",'OGC API Parameters'!C11=\"Coverage + Maps\"),\"True\",\"False\"))","v":"False"},{"$f":"IF(ISBLANK('OGC API Parameters'!$C$22),IF(ISBLANK('OGC API Parameters'!$B$22),\"\",\"#\"),'OGC API Parameters'!$C$22)","v":""},{"$f":"IF(ISBLANK('Generic Parameters'!C13),\"#\",'Generic Parameters'!C13)","v":"#"},{"$f":"IF(ISBLANK('OGC API Parameters'!C14),IF('OGC API Parameters'!C13=\"Government network / Réseau du gouvernement\",\"CDTK_PYGEOAPI_SERVER_INTERNAL\",\"\"),IF(ISBLANK('OGC API Parameters'!C14),\"\",'OGC API Parameters'!C14))","v":""},{"$f":"IF('OGC API Parameters'!C17=\"Geobase Datacube / Cube de données de Géobase\",\"CDTK_DATACUBE_DATASTORE_1\",IF(ISBLANK('OGC API Parameters'!C18),\"\",'OGC API Parameters'!C18))","v":""},{"$f":"IF('OGC API Parameters'!C16=\"\",\"#\",'OGC API Parameters'!C16)","v":"#"},{"$f":"_xlfn.SWITCH('OGC API Parameters'!C11,\"Features\",\"feature\",\"Features + Maps\",\"feature\",\"Coverage\",\"coverage\",\"Coverage + Maps\",\"coverage\",\"\")","v":""},{"$f":"IF(ISBLANK('OGC API Parameters'!$C$38),IF(ISBLANK('OGC API Parameters'!$B$38),\"\",\"#\"),SUBSTITUTE('OGC API Parameters'!$C$38,CHAR(10),\"\\n\"))","v":""},{"$f":"IF(ISBLANK('OGC API Parameters'!$D$38),IF(ISBLANK('OGC API Parameters'!$B$38),\"\",\"#\"),SUBSTITUTE('OGC API Parameters'!$D$38,CHAR(10),\"\\n\"))","v":""},{"$f":"IF(ISBLANK('OGC API Parameters'!$B$39),\"\",\"#\")","v":""},{"$f":"IF(ISBLANK('OGC API Parameters'!$B$39),\"\",\"#\")","v":""},{"$f":"IF(ISBLANK('OGC API Parameters'!$C$37),IF(ISBLANK('OGC API Parameters'!$B$37),\"\",\"#\"),'OGC API Parameters'!$C$37)","v":""},{"$f":"IF(ISBLANK('OGC API Parameters'!$D$37),IF(ISBLANK('OGC API Parameters'!$B$37),\"\",\"#\"),'OGC API Parameters'!$D$37)","v":""},{"$f":"IF(ISBLANK('OGC API Parameters'!$C$32),IF(ISBLANK('OGC API Parameters'!$B$32),\"\",\"#\"),'OGC API Parameters'!$C$32)","v":""},{"$f":"IF(ISBLANK('OGC API Parameters'!$C$33),IF(ISBLANK('OGC API Parameters'!$B$33),\"\",\"#\"),\"[\" & 'OGC API Parameters'!$C$33 & \"]\")","v":""},{"$f":"IF(ISBLANK('OGC API Parameters'!$C$33),\"\",\"http://www.opengis.net/def/crs/OGC/1.3/CRS84\")","v":""},{"$f":"IF(ISBLANK('OGC API Parameters'!$C$34),IF(ISBLANK('OGC API Parameters'!$B$34),\"\",\"#\"),'OGC API Parameters'!$C$34)","v":""},{"$f":"IF(ISBLANK('OGC API Parameters'!$C$35),IF(ISBLANK('OGC API Parameters'!$B$35),\"\",\"\"),'OGC API Parameters'!$C$35)","v":""},{"$f":"IF('OGC API Parameters'!$C$10=\"Raster / Matriciel\",IF(ISBLANK('OGC API Parameters'!C$23),IF(ISBLANK('OGC API Parameters'!B$23),\"\",\"#\"),\"/\" & 'OGC API Parameters'!C$23),\"\")","v":""},{"$f":"IF('OGC API Parameters'!$C$10=\"Raster / Matriciel\",IF(ISBLANK('OGC API Parameters'!C$24),IF(ISBLANK('OGC API Parameters'!B$24),\"\",\"#\"),'OGC API Parameters'!C$24),\"\")","v":""},{"$f":"IF(AND('OGC API Parameters'!C10=\"Raster / Matriciel\",ISNUMBER(SEARCH(\"Coverage\",'OGC API Parameters'!C11))),\"GTiff\",\"\")","v":""},{"$f":"IF(AND('OGC API Parameters'!C10=\"Raster / Matriciel\",ISNUMBER(SEARCH(\"Coverage\",'OGC API Parameters'!C11))),\"image/tiff\",\"\")","v":""},"[]",{"$f":"IF('OGC API Parameters'!$C$10=\"Vector / Vectoriel\",IF(OR(ISBLANK('OGC API Parameters'!C$23),ISBLANK('OGC API Parameters'!C$24)),IF(ISBLANK('OGC API Parameters'!B$24),\"\",\"#\"),IF(AND('OGC API Parameters'!C$17=\"CDTK Datastores (Geopackage provided) / Dépôts du CODC (Géopackage fourni)\",'Generic Parameters'!C18=\"No / Non\"),\"gpkg::\" & 'OGC API Parameters'!C$23 & IF(RIGHT('OGC API Parameters'!C$23,5)<>\".gpkg\",\".gpkg\",\"\") & \"|\" & 'OGC API Parameters'!C$24,\"postgis::\" & 'OGC API Parameters'!C$24)),\"\")","v":""},{"$f":"IF('OGC API Parameters'!$C$10=\"Vector / Vectoriel\",IF(AND(ISBLANK('OGC API Parameters'!C$23),ISBLANK('OGC API Parameters'!B$23)),\"\",IF(LEFT('OGC API Parameters'!C$17,4)=\"CDTK\",IF(OR(ISBLANK('Generic Parameters'!C$11),LEN('OGC API Parameters'!C$23)=0),\"#\",LOWER('Generic Parameters'!C$11)),IF('OGC API Parameters'!C$23=\"\",\"#\",'OGC API Parameters'!C$23))),\"\")","v":""},{"$f":"IF(AND(ISNUMBER(SEARCH(\"Features\",'OGC API Parameters'!C$11)),NOT(ISBLANK('OGC API Parameters'!B$25))),IF(ISBLANK('OGC API Parameters'!C$25),\"fid\",'OGC API Parameters'!C$25),\"\")","v":""},{"$f":"IF(AND(ISNUMBER(SEARCH(\"Features\",'OGC API Parameters'!C$11)),NOT(ISBLANK('OGC API Parameters'!B$26))),IF(ISBLANK('OGC API Parameters'!C$26),\"geom\",'OGC API Parameters'!C$26),\"\")","v":""},{"$f":"IF(ISNUMBER(SEARCH(\"Maps\",'OGC API Parameters'!C11)),\"png\",\"\")","v":""},{"$f":"IF(ISNUMBER(SEARCH(\"Maps\",'OGC API Parameters'!C11)),\"image/png\",\"\")","v":""},{"$f":"IF(AND(ISNUMBER(SEARCH(\"Maps\",'OGC API Parameters'!C$11)),NOT(ISBLANK('OGC API Parameters'!B$28))),IF(ISBLANK('OGC API Parameters'!C$28),\"#\",'OGC API Parameters'!C$28),\"\")","v":""},{"$f":"IF(AND(ISNUMBER(SEARCH(\"Maps\",'OGC API Parameters'!C$11)),NOT(ISBLANK('OGC API Parameters'!B$29))),IF(ISBLANK('OGC API Parameters'!C$29),\"#\",'OGC API Parameters'!C$29),\"\")","v":""},{"$f":"IF(AND(ISNUMBER(SEARCH(\"Maps\",'OGC API Parameters'!C$11)),NOT(ISBLANK('OGC API Parameters'!B$30))),IF(ISBLANK('OGC API Parameters'!C$30),\"#\",'OGC API Parameters'!C$30),\"\")","v":""},{"$f":"IF(AND(ISNUMBER(SEARCH(\"Maps\",'OGC API Parameters'!C$11)),NOT(ISBLANK('OGC API Parameters'!B$31))),IF(ISBLANK('OGC API Parameters'!C$31),\"default\",'OGC API Parameters'!C$31),\"\")","v":""},{"$f":"_xlfn.SWITCH('OGC API Parameters'!C10,\"Vector / Vectoriel\",\"vector\",\"Raster / Matriciel\",\"raster\",\"#\")","v":"#"},{"$f":"IF(ISBLANK('OWS Parameters'!C9),\"#\",\"\")","v":"#"},{"$f":"IF(ISBLANK('OGC API Parameters'!C10),\"#\",\"\")","v":"#"},{"$f":"IF('Generic Parameters'!C19=\"Yes / Oui\",IF(ISBLANK('OGC API Parameters'!B22),\"#\",\"\"),\"\")","v":""}]
[null,null,null,null,null,null,null,null,null,null,null,null,null,null,null,null,null,null,null,null,null,null,null,null,null,{"$f":"IF(ISBLANK('OGC API Parameters'!$C$43),IF(ISBLANK('OGC API Parameters'!$B$43),\"\",\"#\"),'OGC API Parameters'!$C$43)","v":""},null,null,null,{"$f":"IF('OGC API Parameters'!D16=\"\",\"#\",'OGC API Parameters'!D16)","v":"#"},{"$f":"_xlfn.SWITCH('OGC API Parameters'!C11,\"Features + Maps\",\"map\",\"Maps\",\"map\",\"Coverage + Maps\",\"map\",\"\")","v":""},{"$f":"IF(ISBLANK('OGC API Parameters'!$C$59),IF(ISBLANK('OGC API Parameters'!$B$59),\"\",\"#\"),SUBSTITUTE('OGC API Parameters'!$C$59,CHAR(10),\"\\n\"))","v":""},{"$f":"IF(ISBLANK('OGC API Parameters'!$D$59),IF(ISBLANK('OGC API Parameters'!$B$59),\"\",\"#\"),SUBSTITUTE('OGC API Parameters'!$D$59,CHAR(10),\"\\n\"))","v":""},{"$f":"IF(ISBLANK('OGC API Parameters'!$B$60),\"\",\"#\")","v":""},{"$f":"IF(ISBLANK('OGC API Parameters'!$B$60),\"\",\"#\")","v":""},{"$f":"IF(ISBLANK('OGC API Parameters'!$C$58),IF(ISBLANK('OGC API Parameters'!$B$58),\"\",\"#\"),'OGC API Parameters'!$C$58)","v":""},{"$f":"IF(ISBLANK('OGC API Parameters'!$D$58),IF(ISBLANK('OGC API Parameters'!$B$58),\"\",\"#\"),'OGC API Parameters'!$D$58)","v":""},{"$f":"IF(ISBLANK('OGC API Parameters'!$C$53),IF(ISBLANK('OGC API Parameters'!$B$53),\"\",\"#\"),'OGC API Parameters'!$C$53)","v":""},{"$f":"IF(ISBLANK('OGC API Parameters'!$C$54),IF(ISBLANK('OGC API Parameters'!$B$54),\"\",\"#\"),\"[\" & 'OGC API Parameters'!$C$54 & \"]\")","v":""},{"$f":"IF(ISBLANK('OGC API Parameters'!$C$54),\"\",\"http://www.opengis.net/def/crs/OGC/1.3/CRS84\")","v":""},{"$f":"IF(ISBLANK('OGC API Parameters'!$C$55),IF(ISBLANK('OGC API Parameters'!$B$55),\"\",\"#\"),'OGC API Parameters'!$C$55)","v":""},{"$f":"IF(ISBLANK('OGC API Parameters'!$C$56),IF(ISBLANK('OGC API Parameters'!$B$56),\"\",\"\"),'OGC API Parameters'!$C$56)","v":""},{"$f":"IF('OGC API Parameters'!$C$10=\"Raster / Matriciel\",IF(ISBLANK('OGC API Parameters'!C$44),IF(ISBLANK('OGC API Parameters'!B$44),\"\",\"#\"),\"/\" & 'OGC API Parameters'!C$44),\"\")","v":""},{"$f":"IF('OGC API Parameters'!$C$10=\"Raster / Matriciel\",IF(ISBLANK('OGC API Parameters'!C$45),IF(ISBLANK('OGC API Parameters'!B$45),\"\",\"#\"),'OGC API Parameters'!C$45),\"\")","v":""},null,null,"[]",{"$f":"IF('OGC API Parameters'!$C$10=\"Vector / Vectoriel\",IF(OR(ISBLANK('OGC API Parameters'!C$44),ISBLANK('OGC API Parameters'!C$45)),IF(ISBLANK('OGC API Parameters'!B$45),\"\",\"#\"),IF(AND('OGC API Parameters'!C$17=\"CDTK Datastores (Geopackage provided) / Dépôts du CODC (Géopackage fourni)\",'Generic Parameters'!C18=\"No / Non\"),\"gpkg::\" & 'OGC API Parameters'!C$44 & IF(RIGHT('OGC API Parameters'!C$44,5)<>\".gpkg\",\".gpkg\",\"\") & \"|\" & 'OGC API Parameters'!C$45,\"postgis::\" & 'OGC API Parameters'!C$45)),\"\")","v":""},{"$f":"IF('OGC API Parameters'!$C$10=\"Vector / Vectoriel\",IF(AND(ISBLANK('OGC API Parameters'!C$44),ISBLANK('OGC API Parameters'!B$44)),\"\",IF(LEFT('OGC API Parameters'!C$17,4)=\"CDTK\",IF(OR(ISBLANK('Generic Parameters'!C$11),LEN('OGC API Parameters'!C$44)=0),\"#\",LOWER('Generic Parameters'!C$11)),IF('OGC API Parameters'!C$44=\"\",\"#\",'OGC API Parameters'!C$44))),\"\")","v":""},{"$f":"IF(AND(ISNUMBER(SEARCH(\"Features\",'OGC API Parameters'!C$11)),NOT(ISBLANK('OGC API Parameters'!B$46))),IF(ISBLANK('OGC API Parameters'!C$46),\"fid\",'OGC API Parameters'!C$46),\"\")","v":""},{"$f":"IF(AND(ISNUMBER(SEARCH(\"Features\",'OGC API Parameters'!C$11)),NOT(ISBLANK('OGC API Parameters'!B$47))),IF(ISBLANK('OGC API Parameters'!C$47),\"geom\",'OGC API Parameters'!C$47),\"\")","v":""},null,null,{"$f":"IF(AND(ISNUMBER(SEARCH(\"Maps\",'OGC API Parameters'!C$11)),NOT(ISBLANK('OGC API Parameters'!B$49))),IF(ISBLANK('OGC API Parameters'!C$49),\"#\",'OGC API Parameters'!C$49),\"\")","v":""},{"$f":"IF(AND(ISNUMBER(SEARCH(\"Maps\",'OGC API Parameters'!C$11)),NOT(ISBLANK('OGC API Parameters'!B$50))),IF(ISBLANK('OGC API Parameters'!C$50),\"#\",'OGC API Parameters'!C$50),\"\")","v":""},{"$f":"IF(AND(ISNUMBER(SEARCH(\"Maps\",'OGC API Parameters'!C$11)),NOT(ISBLANK('OGC API Parameters'!B$51))),IF(ISBLANK('OGC API Parameters'!C$51),\"#\",'OGC API Parameters'!C$51),\"\")","v":""},{"$f":"IF(AND(ISNUMBER(SEARCH(\"Maps\",'OGC API Parameters'!C$11)),NOT(ISBLANK('OGC API Parameters'!B$52))),IF(ISBLANK('OGC API Parameters'!C$52),\"default\",'OGC API Parameters'!C$52),\"\")","v":""}]
[null,null,null,null,null,null,null,null,null,null,null,null,null,null,null,null,null,null,null,null,null,null,null,null,null,{"$f":"IF(ISBLANK('OGC API Parameters'!$C$64),IF(ISBLANK('OGC API Parameters'!$B$64),\"\",\"#\"),'OGC API Parameters'!$C$64)","v":""},null,null,null,null,null,{"$f":"IF(ISBLANK('OGC API Parameters'!$C$80),IF(ISBLANK('OGC API Parameters'!$B$80),\"\",\"#\"),SUBSTITUTE('OGC API Parameters'!$C$80,CHAR(10),\"\\n\"))","v":""},{"$f":"IF(ISBLANK('OGC API Parameters'!$D$80),IF(ISBLANK('OGC API Parameters'!$B$80),\"\",\"#\"),SUBSTITUTE('OGC API Parameters'!$D$80,CHAR(10),\"\\n\"))","v":""},{"$f":"IF(ISBLANK('OGC API Parameters'!$B$81),\"\",\"#\")","v":""},{"$f":"IF(ISBLANK('OGC API Parameters'!$B$81),\"\",\"#\")","v":""},{"$f":"IF(ISBLANK('OGC API Parameters'!$C$79),IF(ISBLANK('OGC API Parameters'!$B$79),\"\",\"#\"),'OGC API Parameters'!$C$79)","v":""},{"$f":"IF(ISBLANK('OGC API Parameters'!$D$79),IF(ISBLANK('OGC API Parameters'!$B$79),\"\",\"#\"),'OGC API Parameters'!$D$79)","v":""},{"$f":"IF(ISBLANK('OGC API Parameters'!$C$74),IF(ISBLANK('OGC API Parameters'!$B$74),\"\",\"#\"),'OGC API Parameters'!$C$74)","v":""},{"$f":"IF(ISBLANK('OGC API Parameters'!$C$75),IF(ISBLANK('OGC API Parameters'!$B$75),\"\",\"#\"),\"[\" & 'OGC API Parameters'!$C$75 & \"]\")","v":""},{"$f":"IF(ISBLANK('OGC API Parameters'!$C$75),\"\",\"http://www.opengis.net/def/crs/OGC/1.3/CRS84\")","v":""},{"$f":"IF(ISBLANK('OGC API Parameters'!$C$76),IF(ISBLANK('OGC API Parameters'!$B$76),\"\",\"#\"),'OGC API Parameters'!$C$76)","v":""},{"$f":"IF(ISBLANK('OGC API Parameters'!$C$77),IF(ISBLANK('OGC API Parameters'!$B$77),\"\",\"\"),'OGC API Parameters'!$C$77)","v":""},{"$f":"IF('OGC API Parameters'!$C$10=\"Raster / Matriciel\",IF(ISBLANK('OGC API Parameters'!C$65),IF(ISBLANK('OGC API Parameters'!B$65),\"\",\"#\"),\"/\" & 'OGC API Parameters'!C$65),\"\")","v":""},{"$f":"IF('OGC API Parameters'!$C$10=\"Raster / Matriciel\",IF(ISBLANK('OGC API Parameters'!C$66),IF(ISBLANK('OGC API Parameters'!B$66),\"\",\"#\"),'OGC API Parameters'!C$66),\"\")","v":""},null,null,"[]",{"$f":"IF('OGC API Parameters'!$C$10=\"Vector / Vectoriel\",IF(OR(ISBLANK('OGC API Parameters'!C$65),ISBLANK('OGC API Parameters'!C$66)),IF(ISBLANK('OGC API Parameters'!B$66),\"\",\"#\"),IF(AND('OGC API Parameters'!C$17=\"CDTK Datastores (Geopackage provided) / Dépôts du CODC (Géopackage fourni)\",'Generic Parameters'!C18=\"No / Non\"),\"gpkg::\" & 'OGC API Parameters'!C$65 & IF(RIGHT('OGC API Parameters'!C$65,5)<>\".gpkg\",\".gpkg\",\"\") & \"|\" & 'OGC API Parameters'!C$66,\"postgis::\" & 'OGC API Parameters'!C$66)),\"\")","v":""},{"$f":"IF('OGC API Parameters'!$C$10=\"Vector / Vectoriel\",IF(AND(ISBLANK('OGC API Parameters'!C$65),ISBLANK('OGC API Parameters'!B$65)),\"\",IF(LEFT('OGC API Parameters'!C$17,4)=\"CDTK\",IF(OR(ISBLANK('Generic Parameters'!C$11),LEN('OGC API Parameters'!C$65)=0),\"#\",LOWER('Generic Parameters'!C$11)),IF('OGC API Parameters'!C$65=\"\",\"#\",'OGC API Parameters'!C$65))),\"\")","v":""},{"$f":"IF(AND(ISNUMBER(SEARCH(\"Features\",'OGC API Parameters'!C$11)),NOT(ISBLANK('OGC API Parameters'!B$67))),IF(ISBLANK('OGC API Parameters'!C$67),\"fid\",'OGC API Parameters'!C$67),\"\")","v":""},{"$f":"IF(AND(ISNUMBER(SEARCH(\"Features\",'OGC API Parameters'!C$11)),NOT(ISBLANK('OGC API Parameters'!B$68))),IF(ISBLANK('OGC API Parameters'!C$68),\"geom\",'OGC API Parameters'!C$68),\"\")","v":""},null,null,{"$f":"IF(AND(ISNUMBER(SEARCH(\"Maps\",'OGC API Parameters'!C$11)),NOT(ISBLANK('OGC API Parameters'!B$70))),IF(ISBLANK('OGC API Parameters'!C$70),\"#\",'OGC API Parameters'!C$70),\"\")","v":""},{"$f":"IF(AND(ISNUMBER(SEARCH(\"Maps\",'OGC API Parameters'!C$11)),NOT(ISBLANK('OGC API Parameters'!B$71))),IF(ISBLANK('OGC API Parameters'!C$71),\"#\",'OGC API Parameters'!C$71),\"\")","v":""},{"$f":"IF(AND(ISNUMBER(SEARCH(\"Maps\",'OGC API Parameters'!C$11)),NOT(ISBLANK('OGC API Parameters'!B$72))),IF(ISBLANK('OGC API Parameters'!C$72),\"#\",'OGC API Parameters'!C$72),\"\")","v":""},{"$f":"IF(AND(ISNUMBER(SEARCH(\"Maps\",'OGC API Parameters'!C$11)),NOT(ISBLANK('OGC API Parameters'!B$73))),IF(ISBLANK('OGC API Parameters'!C$73),\"default\",'OGC API Parameters'!C$73),\"\")","v":""}]
[null,null,null,null,null,null,null,null,null,null,null,null,null,null,null,null,null,null,null,null,null,null,null,null,null,{"$f":"IF(ISBLANK('OGC API Parameters'!$C$85),IF(ISBLANK('OGC API Parameters'!$B$85),\"\",\"#\"),'OGC API Parameters'!$C$85)","v":""},null,null,null,null,null,{"$f":"IF(ISBLANK('OGC API Parameters'!$C$101),IF(ISBLANK('OGC API Parameters'!$B$101),\"\",\"#\"),SUBSTITUTE('OGC API Parameters'!$C$101,CHAR(10),\"\\n\"))","v":""},{"$f":"IF(ISBLANK('OGC API Parameters'!$D$101),IF(ISBLANK('OGC API Parameters'!$B$101),\"\",\"#\"),SUBSTITUTE('OGC API Parameters'!$D$101,CHAR(10),\"\\n\"))","v":""},{"$f":"IF(ISBLANK('OGC API Parameters'!$B$102),\"\",\"#\")","v":""},{"$f":"IF(ISBLANK('OGC API Parameters'!$B$102),\"\",\"#\")","v":""},{"$f":"IF(ISBLANK('OGC API Parameters'!$C$100),IF(ISBLANK('OGC API Parameters'!$B$100),\"\",\"#\"),'OGC API Parameters'!$C$100)","v":""},{"$f":"IF(ISBLANK('OGC API Parameters'!$D$100),IF(ISBLANK('OGC API Parameters'!$B$100),\"\",\"#\"),'OGC API Parameters'!$D$100)","v":""},{"$f":"IF(ISBLANK('OGC API Parameters'!$C$95),IF(ISBLANK('OGC API Parameters'!$B$95),\"\",\"#\"),'OGC API Parameters'!$C$95)","v":""},{"$f":"IF(ISBLANK('OGC API Parameters'!$C$96),IF(ISBLANK('OGC API Parameters'!$B$96),\"\",\"#\"),\"[\" & 'OGC API Parameters'!$C$96 & \"]\")","v":""},{"$f":"IF(ISBLANK('OGC API Parameters'!$C$96),\"\",\"http://www.opengis.net/def/crs/OGC/1.3/CRS84\")","v":""},{"$f":"IF(ISBLANK('OGC API Parameters'!$C$97),IF(ISBLANK('OGC API Parameters'!$B$97),\"\",\"#\"),'OGC API Parameters'!$C$97)","v":""},{"$f":"IF(ISBLANK('OGC API Parameters'!$C$98),IF(ISBLANK('OGC API Parameters'!$B$98),\"\",\"\"),'OGC API Parameters'!$C$98)","v":""},{"$f":"IF('OGC API Parameters'!$C$10=\"Raster / Matriciel\",IF(ISBLANK('OGC API Parameters'!C$86),IF(ISBLANK('OGC API Parameters'!B$86),\"\",\"#\"),\"/\" & 'OGC API Parameters'!C$86),\"\")","v":""},{"$f":"IF('OGC API Parameters'!$C$10=\"Raster / Matriciel\",IF(ISBLANK('OGC API Parameters'!C$87),IF(ISBLANK('OGC API Parameters'!B$87),\"\",\"#\"),'OGC API Parameters'!C$87),\"\")","v":""},null,null,"[]",{"$f":"IF('OGC API Parameters'!$C$10=\"Vector / Vectoriel\",IF(OR(ISBLANK('OGC API Parameters'!C$86),ISBLANK('OGC API Parameters'!C$87)),IF(ISBLANK('OGC API Parameters'!B$87),\"\",\"#\"),IF(AND('OGC API Parameters'!C$17=\"CDTK Datastores (Geopackage provided) / Dépôts du CODC (Géopackage fourni)\",'Generic Parameters'!C18=\"No / Non\"),\"gpkg::\" & 'OGC API Parameters'!C$86 & IF(RIGHT('OGC API Parameters'!C$86,5)<>\".gpkg\",\".gpkg\",\"\") & \"|\" & 'OGC API Parameters'!C$87,\"postgis::\" & 'OGC API Parameters'!C$87)),\"\")","v":""},{"$f":"IF('OGC API Parameters'!$C$10=\"Vector / Vectoriel\",IF(AND(ISBLANK('OGC API Parameters'!C$86),ISBLANK('OGC API Parameters'!B$86)),\"\",IF(LEFT('OGC API Parameters'!C$17,4)=\"CDTK\",IF(OR(ISBLANK('Generic Parameters'!C$11),LEN('OGC API Parameters'!C$86)=0),\"#\",LOWER('Generic Parameters'!C$11)),IF('OGC API Parameters'!C$86=\"\",\"#\",'OGC API Parameters'!C$86))),\"\")","v":""},{"$f":"IF(AND(ISNUMBER(SEARCH(\"Features\",'OGC API Parameters'!C$11)),NOT(ISBLANK('OGC API Parameters'!B$88))),IF(ISBLANK('OGC API Parameters'!C$88),\"fid\",'OGC API Parameters'!C$88),\"\")","v":""},{"$f":"IF(AND(ISNUMBER(SEARCH(\"Features\",'OGC API Parameters'!C$11)),NOT(ISBLANK('OGC API Parameters'!B$89))),IF(ISBLANK('OGC API Parameters'!C$89),\"geom\",'OGC API Parameters'!C$89),\"\")","v":""},null,null,{"$f":"IF(AND(ISNUMBER(SEARCH(\"Maps\",'OGC API Parameters'!C$11)),NOT(ISBLANK('OGC API Parameters'!B$91))),IF(ISBLANK('OGC API Parameters'!C$91),\"#\",'OGC API Parameters'!C$91),\"\")","v":""},{"$f":"IF(AND(ISNUMBER(SEARCH(\"Maps\",'OGC API Parameters'!C$11)),NOT(ISBLANK('OGC API Parameters'!B$92))),IF(ISBLANK('OGC API Parameters'!C$92),\"#\",'OGC API Parameters'!C$92),\"\")","v":""},{"$f":"IF(AND(ISNUMBER(SEARCH(\"Maps\",'OGC API Parameters'!C$11)),NOT(ISBLANK('OGC API Parameters'!B$93))),IF(ISBLANK('OGC API Parameters'!C$93),\"#\",'OGC API Parameters'!C$93),\"\")","v":""},{"$f":"IF(AND(ISNUMBER(SEARCH(\"Maps\",'OGC API Parameters'!C$11)),NOT(ISBLANK('OGC API Parameters'!B$94))),IF(ISBLANK('OGC API Parameters'!C$94),\"default\",'OGC API Parameters'!C$94),\"\")","v":""}]
[null,null,null,null,null,null,null,null,null,null,null,null,null,null,null,null,null,null,null,null,null,null,null,null,null,{"$f":"IF(ISBLANK('OGC API Parameters'!$C$106),IF(ISBLANK('OGC API Parameters'!$B$106),\"\",\"#\"),'OGC API Parameters'!$C$106)","v":""},null,null,null,null,null,{"$f":"IF(ISBLANK('OGC API Parameters'!$C$122),IF(ISBLANK('OGC API Parameters'!$B$122),\"\",\"#\"),SUBSTITUTE('OGC API Parameters'!$C$122,CHAR(10),\"\\n\"))","v":""},{"$f":"IF(ISBLANK('OGC API Parameters'!$D$122),IF(ISBLANK('OGC API Parameters'!$B$122),\"\",\"#\"),SUBSTITUTE('OGC API Parameters'!$D$122,CHAR(10),\"\\n\"))","v":""},{"$f":"IF(ISBLANK('OGC API Parameters'!$B$123),\"\",\"#\")","v":""},{"$f":"IF(ISBLANK('OGC API Parameters'!$B$123),\"\",\"#\")","v":""},{"$f":"IF(ISBLANK('OGC API Parameters'!$C$121),IF(ISBLANK('OGC API Parameters'!$B$121),\"\",\"#\"),'OGC API Parameters'!$C$121)","v":""},{"$f":"IF(ISBLANK('OGC API Parameters'!$D$121),IF(ISBLANK('OGC API Parameters'!$B$121),\"\",\"#\"),'OGC API Parameters'!$D$121)","v":""},{"$f":"IF(ISBLANK('OGC API Parameters'!$C$116),IF(ISBLANK('OGC API Parameters'!$B$116),\"\",\"#\"),'OGC API Parameters'!$C$116)","v":""},{"$f":"IF(ISBLANK('OGC API Parameters'!$C$117),IF(ISBLANK('OGC API Parameters'!$B$117),\"\",\"#\"),\"[\" & 'OGC API Parameters'!$C$117 & \"]\")","v":""},{"$f":"IF(ISBLANK('OGC API Parameters'!$C$117),\"\",\"http://www.opengis.net/def/crs/OGC/1.3/CRS84\")","v":""},{"$f":"IF(ISBLANK('OGC API Parameters'!$C$118),IF(ISBLANK('OGC API Parameters'!$B$118),\"\",\"#\"),'OGC API Parameters'!$C$118)","v":""},{"$f":"IF(ISBLANK('OGC API Parameters'!$C$119),IF(ISBLANK('OGC API Parameters'!$B$119),\"\",\"\"),'OGC API Parameters'!$C$119)","v":""},{"$f":"IF('OGC API Parameters'!$C$10=\"Raster / Matriciel\",IF(ISBLANK('OGC API Parameters'!C$107),IF(ISBLANK('OGC API Parameters'!B$107),\"\",\"#\"),\"/\" & 'OGC API Parameters'!C$107),\"\")","v":""},{"$f":"IF('OGC API Parameters'!$C$10=\"Raster / Matriciel\",IF(ISBLANK('OGC API Parameters'!C$108),IF(ISBLANK('OGC API Parameters'!B$108),\"\",\"#\"),'OGC API Parameters'!C$108),\"\")","v":""},null,null,"[]",{"$f":"IF('OGC API Parameters'!$C$10=\"Vector / Vectoriel\",IF(OR(ISBLANK('OGC API Parameters'!C$107),ISBLANK('OGC API Parameters'!C$108)),IF(ISBLANK('OGC API Parameters'!B$108),\"\",\"#\"),IF(AND('OGC API Parameters'!C$17=\"CDTK Datastores (Geopackage provided) / Dépôts du CODC (Géopackage fourni)\",'Generic Parameters'!C18=\"No / Non\"),\"gpkg::\" & 'OGC API Parameters'!C$107 & IF(RIGHT('OGC API Parameters'!C$107,5)<>\".gpkg\",\".gpkg\",\"\") & \"|\" & 'OGC API Parameters'!C$108,\"postgis::\" & 'OGC API Parameters'!C$108)),\"\")","v":""},{"$f":"IF('OGC API Parameters'!$C$10=\"Vector / Vectoriel\",IF(AND(ISBLANK('OGC API Parameters'!C$107),ISBLANK('OGC API Parameters'!B$107)),\"\",IF(LEFT('OGC API Parameters'!C$17,4)=\"CDTK\",IF(OR(ISBLANK('Generic Parameters'!C$11),LEN('OGC API Parameters'!C$107)=0),\"#\",LOWER('Generic Parameters'!C$11)),IF('OGC API Parameters'!C$107=\"\",\"#\",'OGC API Parameters'!C$107))),\"\")","v":""},{"$f":"IF(AND(ISNUMBER(SEARCH(\"Features\",'OGC API Parameters'!C$11)),NOT(ISBLANK('OGC API Parameters'!B$109))),IF(ISBLANK('OGC API Parameters'!C$109),\"fid\",'OGC API Parameters'!C$109),\"\")","v":""},{"$f":"IF(AND(ISNUMBER(SEARCH(\"Features\",'OGC API Parameters'!C$11)),NOT(ISBLANK('OGC API Parameters'!B$110))),IF(ISBLANK('OGC API Parameters'!C$110),\"geom\",'OGC API Parameters'!C$110),\"\")","v":""},null,null,{"$f":"IF(AND(ISNUMBER(SEARCH(\"Maps\",'OGC API Parameters'!C$11)),NOT(ISBLANK('OGC API Parameters'!B$112))),IF(ISBLANK('OGC API Parameters'!C$112),\"#\",'OGC API Parameters'!C$112),\"\")","v":""},{"$f":"IF(AND(ISNUMBER(SEARCH(\"Maps\",'OGC API Parameters'!C$11)),NOT(ISBLANK('OGC API Parameters'!B$113))),IF(ISBLANK('OGC API Parameters'!C$113),\"#\",'OGC API Parameters'!C$113),\"\")","v":""},{"$f":"IF(AND(ISNUMBER(SEARCH(\"Maps\",'OGC API Parameters'!C$11)),NOT(ISBLANK('OGC API Parameters'!B$114))),IF(ISBLANK('OGC API Parameters'!C$114),\"#\",'OGC API Parameters'!C$114),\"\")","v":""},{"$f":"IF(AND(ISNUMBER(SEARCH(\"Maps\",'OGC API Parameters'!C$11)),NOT(ISBLANK('OGC API Parameters'!B$115))),IF(ISBLANK('OGC API Parameters'!C$115),\"default\",'OGC API Parameters'!C$115),\"\")","v":""}]
[null,null,null,null,null,null,null,null,null,null,null,null,null,null,null,null,null,null,null,null,null,null,null,null,null,{"$f":"IF(ISBLANK('OGC API Parameters'!$C$127),IF(ISBLANK('OGC API Parameters'!$B$127),\"\",\"#\"),'OGC API Parameters'!$C$127)","v":""},null,null,null,null,null,{"$f":"IF(ISBLANK('OGC API Parameters'!$C$143),IF(ISBLANK('OGC API Parameters'!$B$143),\"\",\"#\"),SUBSTITUTE('OGC API Parameters'!$C$143,CHAR(10),\"\\n\"))","v":""},{"$f":"IF(ISBLANK('OGC API Parameters'!$D$143),IF(ISBLANK('OGC API Parameters'!$B$143),\"\",\"#\"),SUBSTITUTE('OGC API Parameters'!$D$143,CHAR(10),\"\\n\"))","v":""},{"$f":"IF(ISBLANK('OGC API Parameters'!$B$144),\"\",\"#\")","v":""},{"$f":"IF(ISBLANK('OGC API Parameters'!$B$144),\"\",\"#\")","v":""},{"$f":"IF(ISBLANK('OGC API Parameters'!$C$142),IF(ISBLANK('OGC API Parameters'!$B$142),\"\",\"#\"),'OGC API Parameters'!$C$142)","v":""},{"$f":"IF(ISBLANK('OGC API Parameters'!$D$142),IF(ISBLANK('OGC API Parameters'!$B$142),\"\",\"#\"),'OGC API Parameters'!$D$142)","v":""},{"$f":"IF(ISBLANK('OGC API Parameters'!$C$137),IF(ISBLANK('OGC API Parameters'!$B$137),\"\",\"#\"),'OGC API Parameters'!$C$137)","v":""},{"$f":"IF(ISBLANK('OGC API Parameters'!$C$138),IF(ISBLANK('OGC API Parameters'!$B$138),\"\",\"#\"),\"[\" & 'OGC API Parameters'!$C$138 & \"]\")","v":""},{"$f":"IF(ISBLANK('OGC API Parameters'!$C$138),\"\",\"http://www.opengis.net/def/crs/OGC/1.3/CRS84\")","v":""},{"$f":"IF(ISBLANK('OGC API Parameters'!$C$139),IF(ISBLANK('OGC API Parameters'!$B$139),\"\",\"#\"),'OGC API Parameters'!$C$139)","v":""},{"$f":"IF(ISBLANK('OGC API Parameters'!$C$140),IF(ISBLANK('OGC API Parameters'!$B$140),\"\",\"\"),'OGC API Parameters'!$C$140)","v":""},{"$f":"IF('OGC API Parameters'!$C$10=\"Raster / Matriciel\",IF(ISBLANK('OGC API Parameters'!C$128),IF(ISBLANK('OGC API Parameters'!B$128),\"\",\"#\"),\"/\" & 'OGC API Parameters'!C$128),\"\")","v":""},{"$f":"IF('OGC API Parameters'!$C$10=\"Raster / Matriciel\",IF(ISBLANK('OGC API Parameters'!C$129),IF(ISBLANK('OGC API Parameters'!B$129),\"\",\"#\"),'OGC API Parameters'!C$129),\"\")","v":""},null,null,"[]",{"$f":"IF('OGC API Parameters'!$C$10=\"Vector / Vectoriel\",IF(OR(ISBLANK('OGC API Parameters'!C$128),ISBLANK('OGC API Parameters'!C$129)),IF(ISBLANK('OGC API Parameters'!B$129),\"\",\"#\"),IF(AND('OGC API Parameters'!C$17=\"CDTK Datastores (Geopackage provided) / Dépôts du CODC (Géopackage fourni)\",'Generic Parameters'!C18=\"No / Non\"),\"gpkg::\" & 'OGC API Parameters'!C$128 & IF(RIGHT('OGC API Parameters'!C$128,5)<>\".gpkg\",\".gpkg\",\"\") & \"|\" & 'OGC API Parameters'!C$129,\"postgis::\" & 'OGC API Parameters'!C$129)),\"\")","v":""},{"$f":"IF('OGC API Parameters'!$C$10=\"Vector / Vectoriel\",IF(AND(ISBLANK('OGC API Parameters'!C$128),ISBLANK('OGC API Parameters'!B$128)),\"\",IF(LEFT('OGC API Parameters'!C$17,4)=\"CDTK\",IF(OR(ISBLANK('Generic Parameters'!C$11),LEN('OGC API Parameters'!C$128)=0),\"#\",LOWER('Generic Parameters'!C$11)),IF('OGC API Parameters'!C$128=\"\",\"#\",'OGC API Parameters'!C$128))),\"\")","v":""},{"$f":"IF(AND(ISNUMBER(SEARCH(\"Features\",'OGC API Parameters'!C$11)),NOT(ISBLANK('OGC API Parameters'!B$130))),IF(ISBLANK('OGC API Parameters'!C$130),\"fid\",'OGC API Parameters'!C$130),\"\")","v":""},{"$f":"IF(AND(ISNUMBER(SEARCH(\"Features\",'OGC API Parameters'!C$11)),NOT(ISBLANK('OGC API Parameters'!B$131))),IF(ISBLANK('OGC API Parameters'!C$131),\"geom\",'OGC API Parameters'!C$131),\"\")","v":""},null,null,{"$f":"IF(AND(ISNUMBER(SEARCH(\"Maps\",'OGC API Parameters'!C$11)),NOT(ISBLANK('OGC API Parameters'!B$133))),IF(ISBLANK('OGC API Parameters'!C$133),\"#\",'OGC API Parameters'!C$133),\"\")","v":""},{"$f":"IF(AND(ISNUMBER(SEARCH(\"Maps\",'OGC API Parameters'!C$11)),NOT(ISBLANK('OGC API Parameters'!B$134))),IF(ISBLANK('OGC API Parameters'!C$134),\"#\",'OGC API Parameters'!C$134),\"\")","v":""},{"$f":"IF(AND(ISNUMBER(SEARCH(\"Maps\",'OGC API Parameters'!C$11)),NOT(ISBLANK('OGC API Parameters'!B$135))),IF(ISBLANK('OGC API Parameters'!C$135),\"#\",'OGC API Parameters'!C$135),\"\")","v":""},{"$f":"IF(AND(ISNUMBER(SEARCH(\"Maps\",'OGC API Parameters'!C$11)),NOT(ISBLANK('OGC API Parameters'!B$136))),IF(ISBLANK('OGC API Parameters'!C$136),\"default\",'OGC API Parameters'!C$136),\"\")","v":""}]
[null,null,null,null,null,null,null,null,null,null,null,null,null,null,null,null,null,null,null,null,null,null,null,null,null,{"$f":"IF(ISBLANK('OGC API Parameters'!$C$148),IF(ISBLANK('OGC API Parameters'!$B$148),\"\",\"#\"),'OGC API Parameters'!$C$148)","v":""},null,null,null,null,null,{"$f":"IF(ISBLANK('OGC API Parameters'!$C$164),IF(ISBLANK('OGC API Parameters'!$B$164),\"\",\"#\"),SUBSTITUTE('OGC API Parameters'!$C$164,CHAR(10),\"\\n\"))","v":""},{"$f":"IF(ISBLANK('OGC API Parameters'!$D$164),IF(ISBLANK('OGC API Parameters'!$B$164),\"\",\"#\"),SUBSTITUTE('OGC API Parameters'!$D$164,CHAR(10),\"\\n\"))","v":""},{"$f":"IF(ISBLANK('OGC API Parameters'!$B$165),\"\",\"#\")","v":""},{"$f":"IF(ISBLANK('OGC API Parameters'!$B$165),\"\",\"#\")","v":""},{"$f":"IF(ISBLANK('OGC API Parameters'!$C$163),IF(ISBLANK('OGC API Parameters'!$B$163),\"\",\"#\"),'OGC API Parameters'!$C$163)","v":""},{"$f":"IF(ISBLANK('OGC API Parameters'!$D$163),IF(ISBLANK('OGC API Parameters'!$B$163),\"\",\"#\"),'OGC API Parameters'!$D$163)","v":""},{"$f":"IF(ISBLANK('OGC API Parameters'!$C$158),IF(ISBLANK('OGC API Parameters'!$B$158),\"\",\"#\"),'OGC API Parameters'!$C$158)","v":""},{"$f":"IF(ISBLANK('OGC API Parameters'!$C$159),IF(ISBLANK('OGC API Parameters'!$B$159),\"\",\"#\"),\"[\" & 'OGC API Parameters'!$C$159 & \"]\")","v":""},{"$f":"IF(ISBLANK('OGC API Parameters'!$C$159),\"\",\"http://www.opengis.net/def/crs/OGC/1.3/CRS84\")","v":""},{"$f":"IF(ISBLANK('OGC API Parameters'!$C$160),IF(ISBLANK('OGC API Parameters'!$B$160),\"\",\"#\"),'OGC API Parameters'!$C$160)","v":""},{"$f":"IF(ISBLANK('OGC API Parameters'!$C$161),IF(ISBLANK('OGC API Parameters'!$B$161),\"\",\"\"),'OGC API Parameters'!$C$161)","v":""},{"$f":"IF('OGC API Parameters'!$C$10=\"Raster / Matriciel\",IF(ISBLANK('OGC API Parameters'!C$149),IF(ISBLANK('OGC API Parameters'!B$149),\"\",\"#\"),\"/\" & 'OGC API Parameters'!C$149),\"\")","v":""},{"$f":"IF('OGC API Parameters'!$C$10=\"Raster / Matriciel\",IF(ISBLANK('OGC API Parameters'!C$150),IF(ISBLANK('OGC API Parameters'!B$150),\"\",\"#\"),'OGC API Parameters'!C$150),\"\")","v":""},null,null,"[]",{"$f":"IF('OGC API Parameters'!$C$10=\"Vector / Vectoriel\",IF(OR(ISBLANK('OGC API Parameters'!C$149),ISBLANK('OGC API Parameters'!C$150)),IF(ISBLANK('OGC API Parameters'!B$150),\"\",\"#\"),IF(AND('OGC API Parameters'!C$17=\"CDTK Datastores (Geopackage provided) / Dépôts du CODC (Géopackage fourni)\",'Generic Parameters'!C18=\"No / Non\"),\"gpkg::\" & 'OGC API Parameters'!C$149 & IF(RIGHT('OGC API Parameters'!C$149,5)<>\".gpkg\",\".gpkg\",\"\") & \"|\" & 'OGC API Parameters'!C$150,\"postgis::\" & 'OGC API Parameters'!C$150)),\"\")","v":""},{"$f":"IF('OGC API Parameters'!$C$10=\"Vector / Vectoriel\",IF(AND(ISBLANK('OGC API Parameters'!C$149),ISBLANK('OGC API Parameters'!B$149)),\"\",IF(LEFT('OGC API Parameters'!C$17,4)=\"CDTK\",IF(OR(ISBLANK('Generic Parameters'!C$11),LEN('OGC API Parameters'!C$149)=0),\"#\",LOWER('Generic Parameters'!C$11)),IF('OGC API Parameters'!C$149=\"\",\"#\",'OGC API Parameters'!C$149))),\"\")","v":""},{"$f":"IF(AND(ISNUMBER(SEARCH(\"Features\",'OGC API Parameters'!C$11)),NOT(ISBLANK('OGC API Parameters'!B$151))),IF(ISBLANK('OGC API Parameters'!C$151),\"fid\",'OGC API Parameters'!C$151),\"\")","v":""},{"$f":"IF(AND(ISNUMBER(SEARCH(\"Features\",'OGC API Parameters'!C$11)),NOT(ISBLANK('OGC API Parameters'!B$152))),IF(ISBLANK('OGC API Parameters'!C$152),\"geom\",'OGC API Parameters'!C$152),\"\")","v":""},null,null,{"$f":"IF(AND(ISNUMBER(SEARCH(\"Maps\",'OGC API Parameters'!C$11)),NOT(ISBLANK('OGC API Parameters'!B$154))),IF(ISBLANK('OGC API Parameters'!C$154),\"#\",'OGC API Parameters'!C$154),\"\")","v":""},{"$f":"IF(AND(ISNUMBER(SEARCH(\"Maps\",'OGC API Parameters'!C$11)),NOT(ISBLANK('OGC API Parameters'!B$155))),IF(ISBLANK('OGC API Parameters'!C$155),\"#\",'OGC API Parameters'!C$155),\"\")","v":""},{"$f":"IF(AND(ISNUMBER(SEARCH(\"Maps\",'OGC API Parameters'!C$11)),NOT(ISBLANK('OGC API Parameters'!B$156))),IF(ISBLANK('OGC API Parameters'!C$156),\"#\",'OGC API Parameters'!C$156),\"\")","v":""},{"$f":"IF(AND(ISNUMBER(SEARCH(\"Maps\",'OGC API Parameters'!C$11)),NOT(ISBLANK('OGC API Parameters'!B$157))),IF(ISBLANK('OGC API Parameters'!C$157),\"default\",'OGC API Parameters'!C$157),\"\")","v":""}]
[null,null,null,null,null,null,null,null,null,null,null,null,null,null,null,null,null,null,null,null,null,null,null,null,null,{"$f":"IF(ISBLANK('OGC API Parameters'!$C$169),IF(ISBLANK('OGC API Parameters'!$B$169),\"\",\"#\"),'OGC API Parameters'!$C$169)","v":""},null,null,null,null,null,{"$f":"IF(ISBLANK('OGC API Parameters'!$C$185),IF(ISBLANK('OGC API Parameters'!$B$185),\"\",\"#\"),SUBSTITUTE('OGC API Parameters'!$C$185,CHAR(10),\"\\n\"))","v":""},{"$f":"IF(ISBLANK('OGC API Parameters'!$D$185),IF(ISBLANK('OGC API Parameters'!$B$185),\"\",\"#\"),SUBSTITUTE('OGC API Parameters'!$D$185,CHAR(10),\"\\n\"))","v":""},{"$f":"IF(ISBLANK('OGC API Parameters'!$B$186),\"\",\"#\")","v":""},{"$f":"IF(ISBLANK('OGC API Parameters'!$B$186),\"\",\"#\")","v":""},{"$f":"IF(ISBLANK('OGC API Parameters'!$C$184),IF(ISBLANK('OGC API Parameters'!$B$184),\"\",\"#\"),'OGC API Parameters'!$C$184)","v":""},{"$f":"IF(ISBLANK('OGC API Parameters'!$D$184),IF(ISBLANK('OGC API Parameters'!$B$184),\"\",\"#\"),'OGC API Parameters'!$D$184)","v":""},{"$f":"IF(ISBLANK('OGC API Parameters'!$C$179),IF(ISBLANK('OGC API Parameters'!$B$179),\"\",\"#\"),'OGC API Parameters'!$C$179)","v":""},{"$f":"IF(ISBLANK('OGC API Parameters'!$C$180),IF(ISBLANK('OGC API Parameters'!$B$180),\"\",\"#\"),\"[\" & 'OGC API Parameters'!$C$180 & \"]\")","v":""},{"$f":"IF(ISBLANK('OGC API Parameters'!$C$180),\"\",\"http://www.opengis.net/def/crs/OGC/1.3/CRS84\")","v":""},{"$f":"IF(ISBLANK('OGC API Parameters'!$C$181),IF(ISBLANK('OGC API Parameters'!$B$181),\"\",\"#\"),'OGC API Parameters'!$C$181)","v":""},{"$f":"IF(ISBLANK('OGC API Parameters'!$C$182),IF(ISBLANK('OGC API Parameters'!$B$182),\"\",\"\"),'OGC API Parameters'!$C$182)","v":""},{"$f":"IF('OGC API Parameters'!$C$10=\"Raster / Matriciel\",IF(ISBLANK('OGC API Parameters'!C$170),IF(ISBLANK('OGC API Parameters'!B$170),\"\",\"#\"),\"/\" & 'OGC API Parameters'!C$170),\"\")","v":""},{"$f":"IF('OGC API Parameters'!$C$10=\"Raster / Matriciel\",IF(ISBLANK('OGC API Parameters'!C$171),IF(ISBLANK('OGC API Parameters'!B$171),\"\",\"#\"),'OGC API Parameters'!C$171),\"\")","v":""},null,null,"[]",{"$f":"IF('OGC API Parameters'!$C$10=\"Vector / Vectoriel\",IF(OR(ISBLANK('OGC API Parameters'!C$170),ISBLANK('OGC API Parameters'!C$171)),IF(ISBLANK('OGC API Parameters'!B$171),\"\",\"#\"),IF(AND('OGC API Parameters'!C$17=\"CDTK Datastores (Geopackage provided) / Dépôts du CODC (Géopackage fourni)\",'Generic Parameters'!C18=\"No / Non\"),\"gpkg::\" & 'OGC API Parameters'!C$170 & IF(RIGHT('OGC API Parameters'!C$170,5)<>\".gpkg\",\".gpkg\",\"\") & \"|\" & 'OGC API Parameters'!C$171,\"postgis::\" & 'OGC API Parameters'!C$171)),\"\")","v":""},{"$f":"IF('OGC API Parameters'!$C$10=\"Vector / Vectoriel\",IF(AND(ISBLANK('OGC API Parameters'!C$170),ISBLANK('OGC API Parameters'!B$170)),\"\",IF(LEFT('OGC API Parameters'!C$17,4)=\"CDTK\",IF(OR(ISBLANK('Generic Parameters'!C$11),LEN('OGC API Parameters'!C$170)=0),\"#\",LOWER('Generic Parameters'!C$11)),IF('OGC API Parameters'!C$170=\"\",\"#\",'OGC API Parameters'!C$170))),\"\")","v":""},{"$f":"IF(AND(ISNUMBER(SEARCH(\"Features\",'OGC API Parameters'!C$11)),NOT(ISBLANK('OGC API Parameters'!B$172))),IF(ISBLANK('OGC API Parameters'!C$172),\"fid\",'OGC API Parameters'!C$172),\"\")","v":""},{"$f":"IF(AND(ISNUMBER(SEARCH(\"Features\",'OGC API Parameters'!C$11)),NOT(ISBLANK('OGC API Parameters'!B$173))),IF(ISBLANK('OGC API Parameters'!C$173),\"geom\",'OGC API Parameters'!C$173),\"\")","v":""},null,null,{"$f":"IF(AND(ISNUMBER(SEARCH(\"Maps\",'OGC API Parameters'!C$11)),NOT(ISBLANK('OGC API Parameters'!B$175))),IF(ISBLANK('OGC API Parameters'!C$175),\"#\",'OGC API Parameters'!C$175),\"\")","v":""},{"$f":"IF(AND(ISNUMBER(SEARCH(\"Maps\",'OGC API Parameters'!C$11)),NOT(ISBLANK('OGC API Parameters'!B$176))),IF(ISBLANK('OGC API Parameters'!C$176),\"#\",'OGC API Parameters'!C$176),\"\")","v":""},{"$f":"IF(AND(ISNUMBER(SEARCH(\"Maps\",'OGC API Parameters'!C$11)),NOT(ISBLANK('OGC API Parameters'!B$177))),IF(ISBLANK('OGC API Parameters'!C$177),\"#\",'OGC API Parameters'!C$177),\"\")","v":""},{"$f":"IF(AND(ISNUMBER(SEARCH(\"Maps\",'OGC API Parameters'!C$11)),NOT(ISBLANK('OGC API Parameters'!B$178))),IF(ISBLANK('OGC API Parameters'!C$178),\"default\",'OGC API Parameters'!C$178),\"\")","v":""}]
[null,null,null,null,null,null,null,null,null,null,null,null,null,null,null,null,null,null,null,null,null,null,null,null,null,{"$f":"IF(ISBLANK('OGC API Parameters'!$C$190),IF(ISBLANK('OGC API Parameters'!$B$190),\"\",\"#\"),'OGC API Parameters'!$C$190)","v":""},null,null,null,null,null,{"$f":"IF(ISBLANK('OGC API Parameters'!$C$206),IF(ISBLANK('OGC API Parameters'!$B$206),\"\",\"#\"),SUBSTITUTE('OGC API Parameters'!$C$206,CHAR(10),\"\\n\"))","v":""},{"$f":"IF(ISBLANK('OGC API Parameters'!$D$206),IF(ISBLANK('OGC API Parameters'!$B$206),\"\",\"#\"),SUBSTITUTE('OGC API Parameters'!$D$206,CHAR(10),\"\\n\"))","v":""},{"$f":"IF(ISBLANK('OGC API Parameters'!$B$207),\"\",\"#\")","v":""},{"$f":"IF(ISBLANK('OGC API Parameters'!$B$207),\"\",\"#\")","v":""},{"$f":"IF(ISBLANK('OGC API Parameters'!$C$205),IF(ISBLANK('OGC API Parameters'!$B$205),\"\",\"#\"),'OGC API Parameters'!$C$205)","v":""},{"$f":"IF(ISBLANK('OGC API Parameters'!$D$205),IF(ISBLANK('OGC API Parameters'!$B$205),\"\",\"#\"),'OGC API Parameters'!$D$205)","v":""},{"$f":"IF(ISBLANK('OGC API Parameters'!$C$200),IF(ISBLANK('OGC API Parameters'!$B$200),\"\",\"#\"),'OGC API Parameters'!$C$200)","v":""},{"$f":"IF(ISBLANK('OGC API Parameters'!$C$201),IF(ISBLANK('OGC API Parameters'!$B$201),\"\",\"#\"),\"[\" & 'OGC API Parameters'!$C$201 & \"]\")","v":""},{"$f":"IF(ISBLANK('OGC API Parameters'!$C$201),\"\",\"http://www.opengis.net/def/crs/OGC/1.3/CRS84\")","v":""},{"$f":"IF(ISBLANK('OGC API Parameters'!$C$202),IF(ISBLANK('OGC API Parameters'!$B$202),\"\",\"#\"),'OGC API Parameters'!$C$202)","v":""},{"$f":"IF(ISBLANK('OGC API Parameters'!$C$203),IF(ISBLANK('OGC API Parameters'!$B$203),\"\",\"\"),'OGC API Parameters'!$C$203)","v":""},{"$f":"IF('OGC API Parameters'!$C$10=\"Raster / Matriciel\",IF(ISBLANK('OGC API Parameters'!C$191),IF(ISBLANK('OGC API Parameters'!B$191),\"\",\"#\"),\"/\" & 'OGC API Parameters'!C$191),\"\")","v":""},{"$f":"IF('OGC API Parameters'!$C$10=\"Raster / Matriciel\",IF(ISBLANK('OGC API Parameters'!C$192),IF(ISBLANK('OGC API Parameters'!B$192),\"\",\"#\"),'OGC API Parameters'!C$192),\"\")","v":""},null,null,"[]",{"$f":"IF('OGC API Parameters'!$C$10=\"Vector / Vectoriel\",IF(OR(ISBLANK('OGC API Parameters'!C$191),ISBLANK('OGC API Parameters'!C$192)),IF(ISBLANK('OGC API Parameters'!B$192),\"\",\"#\"),IF(AND('OGC API Parameters'!C$17=\"CDTK Datastores (Geopackage provided) / Dépôts du CODC (Géopackage fourni)\",'Generic Parameters'!C18=\"No / Non\"),\"gpkg::\" & 'OGC API Parameters'!C$191 & IF(RIGHT('OGC API Parameters'!C$191,5)<>\".gpkg\",\".gpkg\",\"\") & \"|\" & 'OGC API Parameters'!C$192,\"postgis::\" & 'OGC API Parameters'!C$192)),\"\")","v":""},{"$f":"IF('OGC API Parameters'!$C$10=\"Vector / Vectoriel\",IF(AND(ISBLANK('OGC API Parameters'!C$191),ISBLANK('OGC API Parameters'!B$191)),\"\",IF(LEFT('OGC API Parameters'!C$17,4)=\"CDTK\",IF(OR(ISBLANK('Generic Parameters'!C$11),LEN('OGC API Parameters'!C$191)=0),\"#\",LOWER('Generic Parameters'!C$11)),IF('OGC API Parameters'!C$191=\"\",\"#\",'OGC API Parameters'!C$191))),\"\")","v":""},{"$f":"IF(AND(ISNUMBER(SEARCH(\"Features\",'OGC API Parameters'!C$11)),NOT(ISBLANK('OGC API Parameters'!B$193))),IF(ISBLANK('OGC API Parameters'!C$193),\"fid\",'OGC API Parameters'!C$193),\"\")","v":""},{"$f":"IF(AND(ISNUMBER(SEARCH(\"Features\",'OGC API Parameters'!C$11)),NOT(ISBLANK('OGC API Parameters'!B$194))),IF(ISBLANK('OGC API Parameters'!C$194),\"geom\",'OGC API Parameters'!C$194),\"\")","v":""},null,null,{"$f":"IF(AND(ISNUMBER(SEARCH(\"Maps\",'OGC API Parameters'!C$11)),NOT(ISBLANK('OGC API Parameters'!B$196))),IF(ISBLANK('OGC API Parameters'!C$196),\"#\",'OGC API Parameters'!C$196),\"\")","v":""},{"$f":"IF(AND(ISNUMBER(SEARCH(\"Maps\",'OGC API Parameters'!C$11)),NOT(ISBLANK('OGC API Parameters'!B$197))),IF(ISBLANK('OGC API Parameters'!C$197),\"#\",'OGC API Parameters'!C$197),\"\")","v":""},{"$f":"IF(AND(ISNUMBER(SEARCH(\"Maps\",'OGC API Parameters'!C$11)),NOT(ISBLANK('OGC API Parameters'!B$198))),IF(ISBLANK('OGC API Parameters'!C$198),\"#\",'OGC API Parameters'!C$198),\"\")","v":""},{"$f":"IF(AND(ISNUMBER(SEARCH(\"Maps\",'OGC API Parameters'!C$11)),NOT(ISBLANK('OGC API Parameters'!B$199))),IF(ISBLANK('OGC API Parameters'!C$199),\"default\",'OGC API Parameters'!C$199),\"\")","v":""}]
[null,null,null,null,null,null,null,null,null,null,null,null,null,null,null,null,null,null,null,null,null,null,null,null,null,{"$f":"IF(ISBLANK('OGC API Parameters'!$C$211),IF(ISBLANK('OGC API Parameters'!$B$211),\"\",\"#\"),'OGC API Parameters'!$C$211)","v":""},null,null,null,null,null,{"$f":"IF(ISBLANK('OGC API Parameters'!$C$227),IF(ISBLANK('OGC API Parameters'!$B$227),\"\",\"#\"),SUBSTITUTE('OGC API Parameters'!$C$227,CHAR(10),\"\\n\"))","v":""},{"$f":"IF(ISBLANK('OGC API Parameters'!$D$227),IF(ISBLANK('OGC API Parameters'!$B$227),\"\",\"#\"),SUBSTITUTE('OGC API Parameters'!$D$227,CHAR(10),\"\\n\"))","v":""},{"$f":"IF(ISBLANK('OGC API Parameters'!$B$228),\"\",\"#\")","v":""},{"$f":"IF(ISBLANK('OGC API Parameters'!$B$228),\"\",\"#\")","v":""},{"$f":"IF(ISBLANK('OGC API Parameters'!$C$226),IF(ISBLANK('OGC API Parameters'!$B$226),\"\",\"#\"),'OGC API Parameters'!$C$226)","v":""},{"$f":"IF(ISBLANK('OGC API Parameters'!$D$226),IF(ISBLANK('OGC API Parameters'!$B$226),\"\",\"#\"),'OGC API Parameters'!$D$226)","v":""},{"$f":"IF(ISBLANK('OGC API Parameters'!$C$221),IF(ISBLANK('OGC API Parameters'!$B$221),\"\",\"#\"),'OGC API Parameters'!$C$221)","v":""},{"$f":"IF(ISBLANK('OGC API Parameters'!$C$222),IF(ISBLANK('OGC API Parameters'!$B$222),\"\",\"#\"),\"[\" & 'OGC API Parameters'!$C$222 & \"]\")","v":""},{"$f":"IF(ISBLANK('OGC API Parameters'!$C$222),\"\",\"http://www.opengis.net/def/crs/OGC/1.3/CRS84\")","v":""},{"$f":"IF(ISBLANK('OGC API Parameters'!$C$223),IF(ISBLANK('OGC API Parameters'!$B$223),\"\",\"#\"),'OGC API Parameters'!$C$223)","v":""},{"$f":"IF(ISBLANK('OGC API Parameters'!$C$224),IF(ISBLANK('OGC API Parameters'!$B$224),\"\",\"\"),'OGC API Parameters'!$C$224)","v":""},{"$f":"IF('OGC API Parameters'!$C$10=\"Raster / Matriciel\",IF(ISBLANK('OGC API Parameters'!C$212),IF(ISBLANK('OGC API Parameters'!B$212),\"\",\"#\"),\"/\" & 'OGC API Parameters'!C$212),\"\")","v":""},{"$f":"IF('OGC API Parameters'!$C$10=\"Raster / Matriciel\",IF(ISBLANK('OGC API Parameters'!C$213),IF(ISBLANK('OGC API Parameters'!B$213),\"\",\"#\"),'OGC API Parameters'!C$213),\"\")","v":""},null,null,"[]",{"$f":"IF('OGC API Parameters'!$C$10=\"Vector / Vectoriel\",IF(OR(ISBLANK('OGC API Parameters'!C$212),ISBLANK('OGC API Parameters'!C$213)),IF(ISBLANK('OGC API Parameters'!B$213),\"\",\"#\"),IF(AND('OGC API Parameters'!C$17=\"CDTK Datastores (Geopackage provided) / Dépôts du CODC (Géopackage fourni)\",'Generic Parameters'!C18=\"No / Non\"),\"gpkg::\" & 'OGC API Parameters'!C$212 & IF(RIGHT('OGC API Parameters'!C$212,5)<>\".gpkg\",\".gpkg\",\"\") & \"|\" & 'OGC API Parameters'!C$213,\"postgis::\" & 'OGC API Parameters'!C$213)),\"\")","v":""},{"$f":"IF('OGC API Parameters'!$C$10=\"Vector / Vectoriel\",IF(AND(ISBLANK('OGC API Parameters'!C$212),ISBLANK('OGC API Parameters'!B$212)),\"\",IF(LEFT('OGC API Parameters'!C$17,4)=\"CDTK\",IF(OR(ISBLANK('Generic Parameters'!C$11),LEN('OGC API Parameters'!C$212)=0),\"#\",LOWER('Generic Parameters'!C$11)),IF('OGC API Parameters'!C$212=\"\",\"#\",'OGC API Parameters'!C$212))),\"\")","v":""},{"$f":"IF(AND(ISNUMBER(SEARCH(\"Features\",'OGC API Parameters'!C$11)),NOT(ISBLANK('OGC API Parameters'!B$214))),IF(ISBLANK('OGC API Parameters'!C$214),\"fid\",'OGC API Parameters'!C$214),\"\")","v":""},{"$f":"IF(AND(ISNUMBER(SEARCH(\"Features\",'OGC API Parameters'!C$11)),NOT(ISBLANK('OGC API Parameters'!B$215))),IF(ISBLANK('OGC API Parameters'!C$215),\"geom\",'OGC API Parameters'!C$215),\"\")","v":""},null,null,{"$f":"IF(AND(ISNUMBER(SEARCH(\"Maps\",'OGC API Parameters'!C$11)),NOT(ISBLANK('OGC API Parameters'!B$217))),IF(ISBLANK('OGC API Parameters'!C$217),\"#\",'OGC API Parameters'!C$217),\"\")","v":""},{"$f":"IF(AND(ISNUMBER(SEARCH(\"Maps\",'OGC API Parameters'!C$11)),NOT(ISBLANK('OGC API Parameters'!B$218))),IF(ISBLANK('OGC API Parameters'!C$218),\"#\",'OGC API Parameters'!C$218),\"\")","v":""},{"$f":"IF(AND(ISNUMBER(SEARCH(\"Maps\",'OGC API Parameters'!C$11)),NOT(ISBLANK('OGC API Parameters'!B$219))),IF(ISBLANK('OGC API Parameters'!C$219),\"#\",'OGC API Parameters'!C$219),\"\")","v":""},{"$f":"IF(AND(ISNUMBER(SEARCH(\"Maps\",'OGC API Parameters'!C$11)),NOT(ISBLANK('OGC API Parameters'!B$220))),IF(ISBLANK('OGC API Parameters'!C$220),\"default\",'OGC API Parameters'!C$220),\"\")","v":""}]
[null,null,null,null,null,null,null,null,null,null,null,null,null,null,null,null,null,null,null,null,null,null,null,null,null,{"$f":"IF(ISBLANK('OGC API Parameters'!$C$232),IF(ISBLANK('OGC API Parameters'!$B$232),\"\",\"#\"),'OGC API Parameters'!$C$232)","v":""},null,null,null,null,null,{"$f":"IF(ISBLANK('OGC API Parameters'!$C$248),IF(ISBLANK('OGC API Parameters'!$B$248),\"\",\"#\"),SUBSTITUTE('OGC API Parameters'!$C$248,CHAR(10),\"\\n\"))","v":""},{"$f":"IF(ISBLANK('OGC API Parameters'!$D$248),IF(ISBLANK('OGC API Parameters'!$B$248),\"\",\"#\"),SUBSTITUTE('OGC API Parameters'!$D$248,CHAR(10),\"\\n\"))","v":""},{"$f":"IF(ISBLANK('OGC API Parameters'!$B$249),\"\",\"#\")","v":""},{"$f":"IF(ISBLANK('OGC API Parameters'!$B$249),\"\",\"#\")","v":""},{"$f":"IF(ISBLANK('OGC API Parameters'!$C$247),IF(ISBLANK('OGC API Parameters'!$B$247),\"\",\"#\"),'OGC API Parameters'!$C$247)","v":""},{"$f":"IF(ISBLANK('OGC API Parameters'!$D$247),IF(ISBLANK('OGC API Parameters'!$B$247),\"\",\"#\"),'OGC API Parameters'!$D$247)","v":""},{"$f":"IF(ISBLANK('OGC API Parameters'!$C$242),IF(ISBLANK('OGC API Parameters'!$B$242),\"\",\"#\"),'OGC API Parameters'!$C$242)","v":""},{"$f":"IF(ISBLANK('OGC API Parameters'!$C$243),IF(ISBLANK('OGC API Parameters'!$B$243),\"\",\"#\"),\"[\" & 'OGC API Parameters'!$C$243 & \"]\")","v":""},{"$f":"IF(ISBLANK('OGC API Parameters'!$C$243),\"\",\"http://www.opengis.net/def/crs/OGC/1.3/CRS84\")","v":""},{"$f":"IF(ISBLANK('OGC API Parameters'!$C$244),IF(ISBLANK('OGC API Parameters'!$B$244),\"\",\"#\"),'OGC API Parameters'!$C$244)","v":""},{"$f":"IF(ISBLANK('OGC API Parameters'!$C$245),IF(ISBLANK('OGC API Parameters'!$B$245),\"\",\"\"),'OGC API Parameters'!$C$245)","v":""},{"$f":"IF('OGC API Parameters'!$C$10=\"Raster / Matriciel\",IF(ISBLANK('OGC API Parameters'!C$233),IF(ISBLANK('OGC API Parameters'!B$233),\"\",\"#\"),\"/\" & 'OGC API Parameters'!C$233),\"\")","v":""},{"$f":"IF('OGC API Parameters'!$C$10=\"Raster / Matriciel\",IF(ISBLANK('OGC API Parameters'!C$234),IF(ISBLANK('OGC API Parameters'!B$234),\"\",\"#\"),'OGC API Parameters'!C$234),\"\")","v":""},null,null,"[]",{"$f":"IF('OGC API Parameters'!$C$10=\"Vector / Vectoriel\",IF(OR(ISBLANK('OGC API Parameters'!C$233),ISBLANK('OGC API Parameters'!C$234)),IF(ISBLANK('OGC API Parameters'!B$234),\"\",\"#\"),IF(AND('OGC API Parameters'!C$17=\"CDTK Datastores (Geopackage provided) / Dépôts du CODC (Géopackage fourni)\",'Generic Parameters'!C18=\"No / Non\"),\"gpkg::\" & 'OGC API Parameters'!C$233 & IF(RIGHT('OGC API Parameters'!C$233,5)<>\".gpkg\",\".gpkg\",\"\") & \"|\" & 'OGC API Parameters'!C$234,\"postgis::\" & 'OGC API Parameters'!C$234)),\"\")","v":""},{"$f":"IF('OGC API Parameters'!$C$10=\"Vector / Vectoriel\",IF(AND(ISBLANK('OGC API Parameters'!C$233),ISBLANK('OGC API Parameters'!B$233)),\"\",IF(LEFT('OGC API Parameters'!C$17,4)=\"CDTK\",IF(OR(ISBLANK('Generic Parameters'!C$11),LEN('OGC API Parameters'!C$233)=0),\"#\",LOWER('Generic Parameters'!C$11)),IF('OGC API Parameters'!C$233=\"\",\"#\",'OGC API Parameters'!C$233))),\"\")","v":""},{"$f":"IF(AND(ISNUMBER(SEARCH(\"Features\",'OGC API Parameters'!C$11)),NOT(ISBLANK('OGC API Parameters'!B$235))),IF(ISBLANK('OGC API Parameters'!C$235),\"fid\",'OGC API Parameters'!C$235),\"\")","v":""},{"$f":"IF(AND(ISNUMBER(SEARCH(\"Features\",'OGC API Parameters'!C$11)),NOT(ISBLANK('OGC API Parameters'!B$236))),IF(ISBLANK('OGC API Parameters'!C$236),\"geom\",'OGC API Parameters'!C$236),\"\")","v":""},null,null,{"$f":"IF(AND(ISNUMBER(SEARCH(\"Maps\",'OGC API Parameters'!C$11)),NOT(ISBLANK('OGC API Parameters'!B$238))),IF(ISBLANK('OGC API Parameters'!C$238),\"#\",'OGC API Parameters'!C$238),\"\")","v":""},{"$f":"IF(AND(ISNUMBER(SEARCH(\"Maps\",'OGC API Parameters'!C$11)),NOT(ISBLANK('OGC API Parameters'!B$239))),IF(ISBLANK('OGC API Parameters'!C$239),\"#\",'OGC API Parameters'!C$239),\"\")","v":""},{"$f":"IF(AND(ISNUMBER(SEARCH(\"Maps\",'OGC API Parameters'!C$11)),NOT(ISBLANK('OGC API Parameters'!B$240))),IF(ISBLANK('OGC API Parameters'!C$240),\"#\",'OGC API Parameters'!C$240),\"\")","v":""},{"$f":"IF(AND(ISNUMBER(SEARCH(\"Maps\",'OGC API Parameters'!C$11)),NOT(ISBLANK('OGC API Parameters'!B$241))),IF(ISBLANK('OGC API Parameters'!C$241),\"default\",'OGC API Parameters'!C$241),\"\")","v":""}]
[null,null,null,null,null,null,null,null,null,null,null,null,null,null,null,null,null,null,null,null,null,null,null,null,null,{"$f":"IF(ISBLANK('OGC API Parameters'!$C$253),IF(ISBLANK('OGC API Parameters'!$B$253),\"\",\"#\"),'OGC API Parameters'!$C$253)","v":""},null,null,null,null,null,{"$f":"IF(ISBLANK('OGC API Parameters'!$C$269),IF(ISBLANK('OGC API Parameters'!$B$269),\"\",\"#\"),SUBSTITUTE('OGC API Parameters'!$C$269,CHAR(10),\"\\n\"))","v":""},{"$f":"IF(ISBLANK('OGC API Parameters'!$D$269),IF(ISBLANK('OGC API Parameters'!$B$269),\"\",\"#\"),SUBSTITUTE('OGC API Parameters'!$D$269,CHAR(10),\"\\n\"))","v":""},{"$f":"IF(ISBLANK('OGC API Parameters'!$B$270),\"\",\"#\")","v":""},{"$f":"IF(ISBLANK('OGC API Parameters'!$B$270),\"\",\"#\")","v":""},{"$f":"IF(ISBLANK('OGC API Parameters'!$C$268),IF(ISBLANK('OGC API Parameters'!$B$268),\"\",\"#\"),'OGC API Parameters'!$C$268)","v":""},{"$f":"IF(ISBLANK('OGC API Parameters'!$D$268),IF(ISBLANK('OGC API Parameters'!$B$268),\"\",\"#\"),'OGC API Parameters'!$D$268)","v":""},{"$f":"IF(ISBLANK('OGC API Parameters'!$C$263),IF(ISBLANK('OGC API Parameters'!$B$263),\"\",\"#\"),'OGC API Parameters'!$C$263)","v":""},{"$f":"IF(ISBLANK('OGC API Parameters'!$C$264),IF(ISBLANK('OGC API Parameters'!$B$264),\"\",\"#\"),\"[\" & 'OGC API Parameters'!$C$264 & \"]\")","v":""},{"$f":"IF(ISBLANK('OGC API Parameters'!$C$264),\"\",\"http://www.opengis.net/def/crs/OGC/1.3/CRS84\")","v":""},{"$f":"IF(ISBLANK('OGC API Parameters'!$C$265),IF(ISBLANK('OGC API Parameters'!$B$265),\"\",\"#\"),'OGC API Parameters'!$C$265)","v":""},{"$f":"IF(ISBLANK('OGC API Parameters'!$C$266),IF(ISBLANK('OGC API Parameters'!$B$266),\"\",\"\"),'OGC API Parameters'!$C$266)","v":""},{"$f":"IF('OGC API Parameters'!$C$10=\"Raster / Matriciel\",IF(ISBLANK('OGC API Parameters'!C$254),IF(ISBLANK('OGC API Parameters'!B$254),\"\",\"#\"),\"/\" & 'OGC API Parameters'!C$254),\"\")","v":""},{"$f":"IF('OGC API Parameters'!$C$10=\"Raster / Matriciel\",IF(ISBLANK('OGC API Parameters'!C$255),IF(ISBLANK('OGC API Parameters'!B$255),\"\",\"#\"),'OGC API Parameters'!C$255),\"\")","v":""},null,null,"[]",{"$f":"IF('OGC API Parameters'!$C$10=\"Vector / Vectoriel\",IF(OR(ISBLANK('OGC API Parameters'!C$254),ISBLANK('OGC API Parameters'!C$255)),IF(ISBLANK('OGC API Parameters'!B$255),\"\",\"#\"),IF(AND('OGC API Parameters'!C$17=\"CDTK Datastores (Geopackage provided) / Dépôts du CODC (Géopackage fourni)\",'Generic Parameters'!C18=\"No / Non\"),\"gpkg::\" & 'OGC API Parameters'!C$254 & IF(RIGHT('OGC API Parameters'!C$254,5)<>\".gpkg\",\".gpkg\",\"\") & \"|\" & 'OGC API Parameters'!C$255,\"postgis::\" & 'OGC API Parameters'!C$255)),\"\")","v":""},{"$f":"IF('OGC API Parameters'!$C$10=\"Vector / Vectoriel\",IF(AND(ISBLANK('OGC API Parameters'!C$254),ISBLANK('OGC API Parameters'!B$254)),\"\",IF(LEFT('OGC API Parameters'!C$17,4)=\"CDTK\",IF(OR(ISBLANK('Generic Parameters'!C$11),LEN('OGC API Parameters'!C$254)=0),\"#\",LOWER('Generic Parameters'!C$11)),IF('OGC API Parameters'!C$254=\"\",\"#\",'OGC API Parameters'!C$254))),\"\")","v":""},{"$f":"IF(AND(ISNUMBER(SEARCH(\"Features\",'OGC API Parameters'!C$11)),NOT(ISBLANK('OGC API Parameters'!B$256))),IF(ISBLANK('OGC API Parameters'!C$256),\"fid\",'OGC API Parameters'!C$256),\"\")","v":""},{"$f":"IF(AND(ISNUMBER(SEARCH(\"Features\",'OGC API Parameters'!C$11)),NOT(ISBLANK('OGC API Parameters'!B$257))),IF(ISBLANK('OGC API Parameters'!C$257),\"geom\",'OGC API Parameters'!C$257),\"\")","v":""},null,null,{"$f":"IF(AND(ISNUMBER(SEARCH(\"Maps\",'OGC API Parameters'!C$11)),NOT(ISBLANK('OGC API Parameters'!B$259))),IF(ISBLANK('OGC API Parameters'!C$259),\"#\",'OGC API Parameters'!C$259),\"\")","v":""},{"$f":"IF(AND(ISNUMBER(SEARCH(\"Maps\",'OGC API Parameters'!C$11)),NOT(ISBLANK('OGC API Parameters'!B$260))),IF(ISBLANK('OGC API Parameters'!C$260),\"#\",'OGC API Parameters'!C$260),\"\")","v":""},{"$f":"IF(AND(ISNUMBER(SEARCH(\"Maps\",'OGC API Parameters'!C$11)),NOT(ISBLANK('OGC API Parameters'!B$261))),IF(ISBLANK('OGC API Parameters'!C$261),\"#\",'OGC API Parameters'!C$261),\"\")","v":""},{"$f":"IF(AND(ISNUMBER(SEARCH(\"Maps\",'OGC API Parameters'!C$11)),NOT(ISBLANK('OGC API Parameters'!B$262))),IF(ISBLANK('OGC API Parameters'!C$262),\"default\",'OGC API Parameters'!C$262),\"\")","v":""}]
[null,null,null,null,null,null,null,null,null,null,null,null,null,null,null,null,null,null,null,null,null,null,null,null,null,{"$f":"IF(ISBLANK('OGC API Parameters'!$C$274),IF(ISBLANK('OGC API Parameters'!$B$274),\"\",\"#\"),'OGC API Parameters'!$C$274)","v":""},null,null,null,null,null,{"$f":"IF(ISBLANK('OGC API Parameters'!$C$290),IF(ISBLANK('OGC API Parameters'!$B$290),\"\",\"#\"),SUBSTITUTE('OGC API Parameters'!$C$290,CHAR(10),\"\\n\"))","v":""},{"$f":"IF(ISBLANK('OGC API Parameters'!$D$290),IF(ISBLANK('OGC API Parameters'!$B$290),\"\",\"#\"),SUBSTITUTE('OGC API Parameters'!$D$290,CHAR(10),\"\\n\"))","v":""},{"$f":"IF(ISBLANK('OGC API Parameters'!$B$291),\"\",\"#\")","v":""},{"$f":"IF(ISBLANK('OGC API Parameters'!$B$291),\"\",\"#\")","v":""},{"$f":"IF(ISBLANK('OGC API Parameters'!$C$289),IF(ISBLANK('OGC API Parameters'!$B$289),\"\",\"#\"),'OGC API Parameters'!$C$289)","v":""},{"$f":"IF(ISBLANK('OGC API Parameters'!$D$289),IF(ISBLANK('OGC API Parameters'!$B$289),\"\",\"#\"),'OGC API Parameters'!$D$289)","v":""},{"$f":"IF(ISBLANK('OGC API Parameters'!$C$284),IF(ISBLANK('OGC API Parameters'!$B$284),\"\",\"#\"),'OGC API Parameters'!$C$284)","v":""},{"$f":"IF(ISBLANK('OGC API Parameters'!$C$285),IF(ISBLANK('OGC API Parameters'!$B$285),\"\",\"#\"),\"[\" & 'OGC API Parameters'!$C$285 & \"]\")","v":""},{"$f":"IF(ISBLANK('OGC API Parameters'!$C$285),\"\",\"http://www.opengis.net/def/crs/OGC/1.3/CRS84\")","v":""},{"$f":"IF(ISBLANK('OGC API Parameters'!$C$286),IF(ISBLANK('OGC API Parameters'!$B$286),\"\",\"#\"),'OGC API Parameters'!$C$286)","v":""},{"$f":"IF(ISBLANK('OGC API Parameters'!$C$287),IF(ISBLANK('OGC API Parameters'!$B$287),\"\",\"\"),'OGC API Parameters'!$C$287)","v":""},{"$f":"IF('OGC API Parameters'!$C$10=\"Raster / Matriciel\",IF(ISBLANK('OGC API Parameters'!C$275),IF(ISBLANK('OGC API Parameters'!B$275),\"\",\"#\"),\"/\" & 'OGC API Parameters'!C$275),\"\")","v":""},{"$f":"IF('OGC API Parameters'!$C$10=\"Raster / Matriciel\",IF(ISBLANK('OGC API Parameters'!C$276),IF(ISBLANK('OGC API Parameters'!B$276),\"\",\"#\"),'OGC API Parameters'!C$276),\"\")","v":""},null,null,"[]",{"$f":"IF('OGC API Parameters'!$C$10=\"Vector / Vectoriel\",IF(OR(ISBLANK('OGC API Parameters'!C$275),ISBLANK('OGC API Parameters'!C$276)),IF(ISBLANK('OGC API Parameters'!B$276),\"\",\"#\"),IF(AND('OGC API Parameters'!C$17=\"CDTK Datastores (Geopackage provided) / Dépôts du CODC (Géopackage fourni)\",'Generic Parameters'!C18=\"No / Non\"),\"gpkg::\" & 'OGC API Parameters'!C$275 & IF(RIGHT('OGC API Parameters'!C$275,5)<>\".gpkg\",\".gpkg\",\"\") & \"|\" & 'OGC API Parameters'!C$276,\"postgis::\" & 'OGC API Parameters'!C$276)),\"\")","v":""},{"$f":"IF('OGC API Parameters'!$C$10=\"Vector / Vectoriel\",IF(AND(ISBLANK('OGC API Parameters'!C$275),ISBLANK('OGC API Parameters'!B$275)),\"\",IF(LEFT('OGC API Parameters'!C$17,4)=\"CDTK\",IF(OR(ISBLANK('Generic Parameters'!C$11),LEN('OGC API Parameters'!C$275)=0),\"#\",LOWER('Generic Parameters'!C$11)),IF('OGC API Parameters'!C$275=\"\",\"#\",'OGC API Parameters'!C$275))),\"\")","v":""},{"$f":"IF(AND(ISNUMBER(SEARCH(\"Features\",'OGC API Parameters'!C$11)),NOT(ISBLANK('OGC API Parameters'!B$277))),IF(ISBLANK('OGC API Parameters'!C$277),\"fid\",'OGC API Parameters'!C$277),\"\")","v":""},{"$f":"IF(AND(ISNUMBER(SEARCH(\"Features\",'OGC API Parameters'!C$11)),NOT(ISBLANK('OGC API Parameters'!B$278))),IF(ISBLANK('OGC API Parameters'!C$278),\"geom\",'OGC API Parameters'!C$278),\"\")","v":""},null,null,{"$f":"IF(AND(ISNUMBER(SEARCH(\"Maps\",'OGC API Parameters'!C$11)),NOT(ISBLANK('OGC API Parameters'!B$280))),IF(ISBLANK('OGC API Parameters'!C$280),\"#\",'OGC API Parameters'!C$280),\"\")","v":""},{"$f":"IF(AND(ISNUMBER(SEARCH(\"Maps\",'OGC API Parameters'!C$11)),NOT(ISBLANK('OGC API Parameters'!B$281))),IF(ISBLANK('OGC API Parameters'!C$281),\"#\",'OGC API Parameters'!C$281),\"\")","v":""},{"$f":"IF(AND(ISNUMBER(SEARCH(\"Maps\",'OGC API Parameters'!C$11)),NOT(ISBLANK('OGC API Parameters'!B$282))),IF(ISBLANK('OGC API Parameters'!C$282),\"#\",'OGC API Parameters'!C$282),\"\")","v":""},{"$f":"IF(AND(ISNUMBER(SEARCH(\"Maps\",'OGC API Parameters'!C$11)),NOT(ISBLANK('OGC API Parameters'!B$283))),IF(ISBLANK('OGC API Parameters'!C$283),\"default\",'OGC API Parameters'!C$283),\"\")","v":""}]
[null,null,null,null,null,null,null,null,null,null,null,null,null,null,null,null,null,null,null,null,null,null,null,null,null,{"$f":"IF(ISBLANK('OGC API Parameters'!$C$295),IF(ISBLANK('OGC API Parameters'!$B$295),\"\",\"#\"),'OGC API Parameters'!$C$295)","v":""},null,null,null,null,null,{"$f":"IF(ISBLANK('OGC API Parameters'!$C$311),IF(ISBLANK('OGC API Parameters'!$B$311),\"\",\"#\"),SUBSTITUTE('OGC API Parameters'!$C$311,CHAR(10),\"\\n\"))","v":""},{"$f":"IF(ISBLANK('OGC API Parameters'!$D$311),IF(ISBLANK('OGC API Parameters'!$B$311),\"\",\"#\"),SUBSTITUTE('OGC API Parameters'!$D$311,CHAR(10),\"\\n\"))","v":""},{"$f":"IF(ISBLANK('OGC API Parameters'!$B$312),\"\",\"#\")","v":""},{"$f":"IF(ISBLANK('OGC API Parameters'!$B$312),\"\",\"#\")","v":""},{"$f":"IF(ISBLANK('OGC API Parameters'!$C$310),IF(ISBLANK('OGC API Parameters'!$B$310),\"\",\"#\"),'OGC API Parameters'!$C$310)","v":""},{"$f":"IF(ISBLANK('OGC API Parameters'!$D$310),IF(ISBLANK('OGC API Parameters'!$B$310),\"\",\"#\"),'OGC API Parameters'!$D$310)","v":""},{"$f":"IF(ISBLANK('OGC API Parameters'!$C$305),IF(ISBLANK('OGC API Parameters'!$B$305),\"\",\"#\"),'OGC API Parameters'!$C$305)","v":""},{"$f":"IF(ISBLANK('OGC API Parameters'!$C$306),IF(ISBLANK('OGC API Parameters'!$B$306),\"\",\"#\"),\"[\" & 'OGC API Parameters'!$C$306 & \"]\")","v":""},{"$f":"IF(ISBLANK('OGC API Parameters'!$C$306),\"\",\"http://www.opengis.net/def/crs/OGC/1.3/CRS84\")","v":""},{"$f":"IF(ISBLANK('OGC API Parameters'!$C$307),IF(ISBLANK('OGC API Parameters'!$B$307),\"\",\"#\"),'OGC API Parameters'!$C$307)","v":""},{"$f":"IF(ISBLANK('OGC API Parameters'!$C$308),IF(ISBLANK('OGC API Parameters'!$B$308),\"\",\"\"),'OGC API Parameters'!$C$308)","v":""},{"$f":"IF('OGC API Parameters'!$C$10=\"Raster / Matriciel\",IF(ISBLANK('OGC API Parameters'!C$296),IF(ISBLANK('OGC API Parameters'!B$296),\"\",\"#\"),\"/\" & 'OGC API Parameters'!C$296),\"\")","v":""},{"$f":"IF('OGC API Parameters'!$C$10=\"Raster / Matriciel\",IF(ISBLANK('OGC API Parameters'!C$297),IF(ISBLANK('OGC API Parameters'!B$297),\"\",\"#\"),'OGC API Parameters'!C$297),\"\")","v":""},null,null,"[]",{"$f":"IF('OGC API Parameters'!$C$10=\"Vector / Vectoriel\",IF(OR(ISBLANK('OGC API Parameters'!C$296),ISBLANK('OGC API Parameters'!C$297)),IF(ISBLANK('OGC API Parameters'!B$297),\"\",\"#\"),IF(AND('OGC API Parameters'!C$17=\"CDTK Datastores (Geopackage provided) / Dépôts du CODC (Géopackage fourni)\",'Generic Parameters'!C18=\"No / Non\"),\"gpkg::\" & 'OGC API Parameters'!C$296 & IF(RIGHT('OGC API Parameters'!C$296,5)<>\".gpkg\",\".gpkg\",\"\") & \"|\" & 'OGC API Parameters'!C$297,\"postgis::\" & 'OGC API Parameters'!C$297)),\"\")","v":""},{"$f":"IF('OGC API Parameters'!$C$10=\"Vector / Vectoriel\",IF(AND(ISBLANK('OGC API Parameters'!C$296),ISBLANK('OGC API Parameters'!B$296)),\"\",IF(LEFT('OGC API Parameters'!C$17,4)=\"CDTK\",IF(OR(ISBLANK('Generic Parameters'!C$11),LEN('OGC API Parameters'!C$296)=0),\"#\",LOWER('Generic Parameters'!C$11)),IF('OGC API Parameters'!C$296=\"\",\"#\",'OGC API Parameters'!C$296))),\"\")","v":""},{"$f":"IF(AND(ISNUMBER(SEARCH(\"Features\",'OGC API Parameters'!C$11)),NOT(ISBLANK('OGC API Parameters'!B$298))),IF(ISBLANK('OGC API Parameters'!C$298),\"fid\",'OGC API Parameters'!C$298),\"\")","v":""},{"$f":"IF(AND(ISNUMBER(SEARCH(\"Features\",'OGC API Parameters'!C$11)),NOT(ISBLANK('OGC API Parameters'!B$299))),IF(ISBLANK('OGC API Parameters'!C$299),\"geom\",'OGC API Parameters'!C$299),\"\")","v":""},null,null,{"$f":"IF(AND(ISNUMBER(SEARCH(\"Maps\",'OGC API Parameters'!C$11)),NOT(ISBLANK('OGC API Parameters'!B$301))),IF(ISBLANK('OGC API Parameters'!C$301),\"#\",'OGC API Parameters'!C$301),\"\")","v":""},{"$f":"IF(AND(ISNUMBER(SEARCH(\"Maps\",'OGC API Parameters'!C$11)),NOT(ISBLANK('OGC API Parameters'!B$302))),IF(ISBLANK('OGC API Parameters'!C$302),\"#\",'OGC API Parameters'!C$302),\"\")","v":""},{"$f":"IF(AND(ISNUMBER(SEARCH(\"Maps\",'OGC API Parameters'!C$11)),NOT(ISBLANK('OGC API Parameters'!B$303))),IF(ISBLANK('OGC API Parameters'!C$303),\"#\",'OGC API Parameters'!C$303),\"\")","v":""},{"$f":"IF(AND(ISNUMBER(SEARCH(\"Maps\",'OGC API Parameters'!C$11)),NOT(ISBLANK('OGC API Parameters'!B$304))),IF(ISBLANK('OGC API Parameters'!C$304),\"default\",'OGC API Parameters'!C$304),\"\")","v":""}]
[null,null,null,null,null,null,null,null,null,null,null,null,null,null,null,null,null,null,null,null,null,null,null,null,null,{"$f":"IF(ISBLANK('OGC API Parameters'!$C$316),IF(ISBLANK('OGC API Parameters'!$B$316),\"\",\"#\"),'OGC API Parameters'!$C$316)","v":""},null,null,null,null,null,{"$f":"IF(ISBLANK('OGC API Parameters'!$C$332),IF(ISBLANK('OGC API Parameters'!$B$332),\"\",\"#\"),SUBSTITUTE('OGC API Parameters'!$C$332,CHAR(10),\"\\n\"))","v":""},{"$f":"IF(ISBLANK('OGC API Parameters'!$D$332),IF(ISBLANK('OGC API Parameters'!$B$332),\"\",\"#\"),SUBSTITUTE('OGC API Parameters'!$D$332,CHAR(10),\"\\n\"))","v":""},{"$f":"IF(ISBLANK('OGC API Parameters'!$B$333),\"\",\"#\")","v":""},{"$f":"IF(ISBLANK('OGC API Parameters'!$B$333),\"\",\"#\")","v":""},{"$f":"IF(ISBLANK('OGC API Parameters'!$C$331),IF(ISBLANK('OGC API Parameters'!$B$331),\"\",\"#\"),'OGC API Parameters'!$C$331)","v":""},{"$f":"IF(ISBLANK('OGC API Parameters'!$D$331),IF(ISBLANK('OGC API Parameters'!$B$331),\"\",\"#\"),'OGC API Parameters'!$D$331)","v":""},{"$f":"IF(ISBLANK('OGC API Parameters'!$C$326),IF(ISBLANK('OGC API Parameters'!$B$326),\"\",\"#\"),'OGC API Parameters'!$C$326)","v":""},{"$f":"IF(ISBLANK('OGC API Parameters'!$C$327),IF(ISBLANK('OGC API Parameters'!$B$327),\"\",\"#\"),\"[\" & 'OGC API Parameters'!$C$327 & \"]\")","v":""},{"$f":"IF(ISBLANK('OGC API Parameters'!$C$327),\"\",\"http://www.opengis.net/def/crs/OGC/1.3/CRS84\")","v":""},{"$f":"IF(ISBLANK('OGC API Parameters'!$C$328),IF(ISBLANK('OGC API Parameters'!$B$328),\"\",\"#\"),'OGC API Parameters'!$C$328)","v":""},{"$f":"IF(ISBLANK('OGC API Parameters'!$C$329),IF(ISBLANK('OGC API Parameters'!$B$329),\"\",\"\"),'OGC API Parameters'!$C$329)","v":""},{"$f":"IF('OGC API Parameters'!$C$10=\"Raster / Matriciel\",IF(ISBLANK('OGC API Parameters'!C$317),IF(ISBLANK('OGC API Parameters'!B$317),\"\",\"#\"),\"/\" & 'OGC API Parameters'!C$317),\"\")","v":""},{"$f":"IF('OGC API Parameters'!$C$10=\"Raster / Matriciel\",IF(ISBLANK('OGC API Parameters'!C$318),IF(ISBLANK('OGC API Parameters'!B$318),\"\",\"#\"),'OGC API Parameters'!C$318),\"\")","v":""},null,null,"[]",{"$f":"IF('OGC API Parameters'!$C$10=\"Vector / Vectoriel\",IF(OR(ISBLANK('OGC API Parameters'!C$317),ISBLANK('OGC API Parameters'!C$318)),IF(ISBLANK('OGC API Parameters'!B$318),\"\",\"#\"),IF(AND('OGC API Parameters'!C$17=\"CDTK Datastores (Geopackage provided) / Dépôts du CODC (Géopackage fourni)\",'Generic Parameters'!C18=\"No / Non\"),\"gpkg::\" & 'OGC API Parameters'!C$317 & IF(RIGHT('OGC API Parameters'!C$317,5)<>\".gpkg\",\".gpkg\",\"\") & \"|\" & 'OGC API Parameters'!C$318,\"postgis::\" & 'OGC API Parameters'!C$318)),\"\")","v":""},{"$f":"IF('OGC API Parameters'!$C$10=\"Vector / Vectoriel\",IF(AND(ISBLANK('OGC API Parameters'!C$317),ISBLANK('OGC API Parameters'!B$317)),\"\",IF(LEFT('OGC API Parameters'!C$17,4)=\"CDTK\",IF(OR(ISBLANK('Generic Parameters'!C$11),LEN('OGC API Parameters'!C$317)=0),\"#\",LOWER('Generic Parameters'!C$11)),IF('OGC API Parameters'!C$317=\"\",\"#\",'OGC API Parameters'!C$317))),\"\")","v":""},{"$f":"IF(AND(ISNUMBER(SEARCH(\"Features\",'OGC API Parameters'!C$11)),NOT(ISBLANK('OGC API Parameters'!B$319))),IF(ISBLANK('OGC API Parameters'!C$319),\"fid\",'OGC API Parameters'!C$319),\"\")","v":""},{"$f":"IF(AND(ISNUMBER(SEARCH(\"Features\",'OGC API Parameters'!C$11)),NOT(ISBLANK('OGC API Parameters'!B$320))),IF(ISBLANK('OGC API Parameters'!C$320),\"geom\",'OGC API Parameters'!C$320),\"\")","v":""},null,null,{"$f":"IF(AND(ISNUMBER(SEARCH(\"Maps\",'OGC API Parameters'!C$11)),NOT(ISBLANK('OGC API Parameters'!B$322))),IF(ISBLANK('OGC API Parameters'!C$322),\"#\",'OGC API Parameters'!C$322),\"\")","v":""},{"$f":"IF(AND(ISNUMBER(SEARCH(\"Maps\",'OGC API Parameters'!C$11)),NOT(ISBLANK('OGC API Parameters'!B$323))),IF(ISBLANK('OGC API Parameters'!C$323),\"#\",'OGC API Parameters'!C$323),\"\")","v":""},{"$f":"IF(AND(ISNUMBER(SEARCH(\"Maps\",'OGC API Parameters'!C$11)),NOT(ISBLANK('OGC API Parameters'!B$324))),IF(ISBLANK('OGC API Parameters'!C$324),\"#\",'OGC API Parameters'!C$324),\"\")","v":""},{"$f":"IF(AND(ISNUMBER(SEARCH(\"Maps\",'OGC API Parameters'!C$11)),NOT(ISBLANK('OGC API Parameters'!B$325))),IF(ISBLANK('OGC API Parameters'!C$325),\"default\",'OGC API Parameters'!C$325),\"\")","v":""}]
[null,null,null,null,null,null,null,null,null,null,null,null,null,null,null,null,null,null,null,null,null,null,null,null,null,{"$f":"IF(ISBLANK('OGC API Parameters'!$C$337),IF(ISBLANK('OGC API Parameters'!$B$337),\"\",\"#\"),'OGC API Parameters'!$C$337)","v":""},null,null,null,null,null,{"$f":"IF(ISBLANK('OGC API Parameters'!$C$353),IF(ISBLANK('OGC API Parameters'!$B$353),\"\",\"#\"),SUBSTITUTE('OGC API Parameters'!$C$353,CHAR(10),\"\\n\"))","v":""},{"$f":"IF(ISBLANK('OGC API Parameters'!$D$353),IF(ISBLANK('OGC API Parameters'!$B$353),\"\",\"#\"),SUBSTITUTE('OGC API Parameters'!$D$353,CHAR(10),\"\\n\"))","v":""},{"$f":"IF(ISBLANK('OGC API Parameters'!$B$354),\"\",\"#\")","v":""},{"$f":"IF(ISBLANK('OGC API Parameters'!$B$354),\"\",\"#\")","v":""},{"$f":"IF(ISBLANK('OGC API Parameters'!$C$352),IF(ISBLANK('OGC API Parameters'!$B$352),\"\",\"#\"),'OGC API Parameters'!$C$352)","v":""},{"$f":"IF(ISBLANK('OGC API Parameters'!$D$352),IF(ISBLANK('OGC API Parameters'!$B$352),\"\",\"#\"),'OGC API Parameters'!$D$352)","v":""},{"$f":"IF(ISBLANK('OGC API Parameters'!$C$347),IF(ISBLANK('OGC API Parameters'!$B$347),\"\",\"#\"),'OGC API Parameters'!$C$347)","v":""},{"$f":"IF(ISBLANK('OGC API Parameters'!$C$348),IF(ISBLANK('OGC API Parameters'!$B$348),\"\",\"#\"),\"[\" & 'OGC API Parameters'!$C$348 & \"]\")","v":""},{"$f":"IF(ISBLANK('OGC API Parameters'!$C$348),\"\",\"http://www.opengis.net/def/crs/OGC/1.3/CRS84\")","v":""},{"$f":"IF(ISBLANK('OGC API Parameters'!$C$349),IF(ISBLANK('OGC API Parameters'!$B$349),\"\",\"#\"),'OGC API Parameters'!$C$349)","v":""},{"$f":"IF(ISBLANK('OGC API Parameters'!$C$350),IF(ISBLANK('OGC API Parameters'!$B$350),\"\",\"\"),'OGC API Parameters'!$C$350)","v":""},{"$f":"IF('OGC API Parameters'!$C$10=\"Raster / Matriciel\",IF(ISBLANK('OGC API Parameters'!C$338),IF(ISBLANK('OGC API Parameters'!B$338),\"\",\"#\"),\"/\" & 'OGC API Parameters'!C$338),\"\")","v":""},{"$f":"IF('OGC API Parameters'!$C$10=\"Raster / Matriciel\",IF(ISBLANK('OGC API Parameters'!C$339),IF(ISBLANK('OGC API Parameters'!B$339),\"\",\"#\"),'OGC API Parameters'!C$339),\"\")","v":""},null,null,"[]",{"$f":"IF('OGC API Parameters'!$C$10=\"Vector / Vectoriel\",IF(OR(ISBLANK('OGC API Parameters'!C$338),ISBLANK('OGC API Parameters'!C$339)),IF(ISBLANK('OGC API Parameters'!B$339),\"\",\"#\"),IF(AND('OGC API Parameters'!C$17=\"CDTK Datastores (Geopackage provided) / Dépôts du CODC (Géopackage fourni)\",'Generic Parameters'!C18=\"No / Non\"),\"gpkg::\" & 'OGC API Parameters'!C$338 & IF(RIGHT('OGC API Parameters'!C$338,5)<>\".gpkg\",\".gpkg\",\"\") & \"|\" & 'OGC API Parameters'!C$339,\"postgis::\" & 'OGC API Parameters'!C$339)),\"\")","v":""},{"$f":"IF('OGC API Parameters'!$C$10=\"Vector / Vectoriel\",IF(AND(ISBLANK('OGC API Parameters'!C$338),ISBLANK('OGC API Parameters'!B$338)),\"\",IF(LEFT('OGC API Parameters'!C$17,4)=\"CDTK\",IF(OR(ISBLANK('Generic Parameters'!C$11),LEN('OGC API Parameters'!C$338)=0),\"#\",LOWER('Generic Parameters'!C$11)),IF('OGC API Parameters'!C$338=\"\",\"#\",'OGC API Parameters'!C$338))),\"\")","v":""},{"$f":"IF(AND(ISNUMBER(SEARCH(\"Features\",'OGC API Parameters'!C$11)),NOT(ISBLANK('OGC API Parameters'!B$340))),IF(ISBLANK('OGC API Parameters'!C$340),\"fid\",'OGC API Parameters'!C$340),\"\")","v":""},{"$f":"IF(AND(ISNUMBER(SEARCH(\"Features\",'OGC API Parameters'!C$11)),NOT(ISBLANK('OGC API Parameters'!B$341))),IF(ISBLANK('OGC API Parameters'!C$341),\"geom\",'OGC API Parameters'!C$341),\"\")","v":""},null,null,{"$f":"IF(AND(ISNUMBER(SEARCH(\"Maps\",'OGC API Parameters'!C$11)),NOT(ISBLANK('OGC API Parameters'!B$343))),IF(ISBLANK('OGC API Parameters'!C$343),\"#\",'OGC API Parameters'!C$343),\"\")","v":""},{"$f":"IF(AND(ISNUMBER(SEARCH(\"Maps\",'OGC API Parameters'!C$11)),NOT(ISBLANK('OGC API Parameters'!B$344))),IF(ISBLANK('OGC API Parameters'!C$344),\"#\",'OGC API Parameters'!C$344),\"\")","v":""},{"$f":"IF(AND(ISNUMBER(SEARCH(\"Maps\",'OGC API Parameters'!C$11)),NOT(ISBLANK('OGC API Parameters'!B$345))),IF(ISBLANK('OGC API Parameters'!C$345),\"#\",'OGC API Parameters'!C$345),\"\")","v":""},{"$f":"IF(AND(ISNUMBER(SEARCH(\"Maps\",'OGC API Parameters'!C$11)),NOT(ISBLANK('OGC API Parameters'!B$346))),IF(ISBLANK('OGC API Parameters'!C$346),\"default\",'OGC API Parameters'!C$346),\"\")","v":""}]
[null,null,null,null,null,null,null,null,null,null,null,null,null,null,null,null,null,null,null,null,null,null,null,null,null,{"$f":"IF(ISBLANK('OGC API Parameters'!$C$358),IF(ISBLANK('OGC API Parameters'!$B$358),\"\",\"#\"),'OGC API Parameters'!$C$358)","v":""},null,null,null,null,null,{"$f":"IF(ISBLANK('OGC API Parameters'!$C$374),IF(ISBLANK('OGC API Parameters'!$B$374),\"\",\"#\"),SUBSTITUTE('OGC API Parameters'!$C$374,CHAR(10),\"\\n\"))","v":""},{"$f":"IF(ISBLANK('OGC API Parameters'!$D$374),IF(ISBLANK('OGC API Parameters'!$B$374),\"\",\"#\"),SUBSTITUTE('OGC API Parameters'!$D$374,CHAR(10),\"\\n\"))","v":""},{"$f":"IF(ISBLANK('OGC API Parameters'!$B$375),\"\",\"#\")","v":""},{"$f":"IF(ISBLANK('OGC API Parameters'!$B$375),\"\",\"#\")","v":""},{"$f":"IF(ISBLANK('OGC API Parameters'!$C$373),IF(ISBLANK('OGC API Parameters'!$B$373),\"\",\"#\"),'OGC API Parameters'!$C$373)","v":""},{"$f":"IF(ISBLANK('OGC API Parameters'!$D$373),IF(ISBLANK('OGC API Parameters'!$B$373),\"\",\"#\"),'OGC API Parameters'!$D$373)","v":""},{"$f":"IF(ISBLANK('OGC API Parameters'!$C$368),IF(ISBLANK('OGC API Parameters'!$B$368),\"\",\"#\"),'OGC API Parameters'!$C$368)","v":""},{"$f":"IF(ISBLANK('OGC API Parameters'!$C$369),IF(ISBLANK('OGC API Parameters'!$B$369),\"\",\"#\"),\"[\" & 'OGC API Parameters'!$C$369 & \"]\")","v":""},{"$f":"IF(ISBLANK('OGC API Parameters'!$C$369),\"\",\"http://www.opengis.net/def/crs/OGC/1.3/CRS84\")","v":""},{"$f":"IF(ISBLANK('OGC API Parameters'!$C$370),IF(ISBLANK('OGC API Parameters'!$B$370),\"\",\"#\"),'OGC API Parameters'!$C$370)","v":""},{"$f":"IF(ISBLANK('OGC API Parameters'!$C$371),IF(ISBLANK('OGC API Parameters'!$B$371),\"\",\"\"),'OGC API Parameters'!$C$371)","v":""},{"$f":"IF('OGC API Parameters'!$C$10=\"Raster / Matriciel\",IF(ISBLANK('OGC API Parameters'!C$359),IF(ISBLANK('OGC API Parameters'!B$359),\"\",\"#\"),\"/\" & 'OGC API Parameters'!C$359),\"\")","v":""},{"$f":"IF('OGC API Parameters'!$C$10=\"Raster / Matriciel\",IF(ISBLANK('OGC API Parameters'!C$360),IF(ISBLANK('OGC API Parameters'!B$360),\"\",\"#\"),'OGC API Parameters'!C$360),\"\")","v":""},null,null,"[]",{"$f":"IF('OGC API Parameters'!$C$10=\"Vector / Vectoriel\",IF(OR(ISBLANK('OGC API Parameters'!C$359),ISBLANK('OGC API Parameters'!C$360)),IF(ISBLANK('OGC API Parameters'!B$360),\"\",\"#\"),IF(AND('OGC API Parameters'!C$17=\"CDTK Datastores (Geopackage provided) / Dépôts du CODC (Géopackage fourni)\",'Generic Parameters'!C18=\"No / Non\"),\"gpkg::\" & 'OGC API Parameters'!C$359 & IF(RIGHT('OGC API Parameters'!C$359,5)<>\".gpkg\",\".gpkg\",\"\") & \"|\" & 'OGC API Parameters'!C$360,\"postgis::\" & 'OGC API Parameters'!C$360)),\"\")","v":""},{"$f":"IF('OGC API Parameters'!$C$10=\"Vector / Vectoriel\",IF(AND(ISBLANK('OGC API Parameters'!C$359),ISBLANK('OGC API Parameters'!B$359)),\"\",IF(LEFT('OGC API Parameters'!C$17,4)=\"CDTK\",IF(OR(ISBLANK('Generic Parameters'!C$11),LEN('OGC API Parameters'!C$359)=0),\"#\",LOWER('Generic Parameters'!C$11)),IF('OGC API Parameters'!C$359=\"\",\"#\",'OGC API Parameters'!C$359))),\"\")","v":""},{"$f":"IF(AND(ISNUMBER(SEARCH(\"Features\",'OGC API Parameters'!C$11)),NOT(ISBLANK('OGC API Parameters'!B$361))),IF(ISBLANK('OGC API Parameters'!C$361),\"fid\",'OGC API Parameters'!C$361),\"\")","v":""},{"$f":"IF(AND(ISNUMBER(SEARCH(\"Features\",'OGC API Parameters'!C$11)),NOT(ISBLANK('OGC API Parameters'!B$362))),IF(ISBLANK('OGC API Parameters'!C$362),\"geom\",'OGC API Parameters'!C$362),\"\")","v":""},null,null,{"$f":"IF(AND(ISNUMBER(SEARCH(\"Maps\",'OGC API Parameters'!C$11)),NOT(ISBLANK('OGC API Parameters'!B$364))),IF(ISBLANK('OGC API Parameters'!C$364),\"#\",'OGC API Parameters'!C$364),\"\")","v":""},{"$f":"IF(AND(ISNUMBER(SEARCH(\"Maps\",'OGC API Parameters'!C$11)),NOT(ISBLANK('OGC API Parameters'!B$365))),IF(ISBLANK('OGC API Parameters'!C$365),\"#\",'OGC API Parameters'!C$365),\"\")","v":""},{"$f":"IF(AND(ISNUMBER(SEARCH(\"Maps\",'OGC API Parameters'!C$11)),NOT(ISBLANK('OGC API Parameters'!B$366))),IF(ISBLANK('OGC API Parameters'!C$366),\"#\",'OGC API Parameters'!C$366),\"\")","v":""},{"$f":"IF(AND(ISNUMBER(SEARCH(\"Maps\",'OGC API Parameters'!C$11)),NOT(ISBLANK('OGC API Parameters'!B$367))),IF(ISBLANK('OGC API Parameters'!C$367),\"default\",'OGC API Parameters'!C$367),\"\")","v":""}]
[null,null,null,null,null,null,null,null,null,null,null,null,null,null,null,null,null,null,null,null,null,null,null,null,null,{"$f":"IF(ISBLANK('OGC API Parameters'!$C$379),IF(ISBLANK('OGC API Parameters'!$B$379),\"\",\"#\"),'OGC API Parameters'!$C$379)","v":""},null,null,null,null,null,{"$f":"IF(ISBLANK('OGC API Parameters'!$C$395),IF(ISBLANK('OGC API Parameters'!$B$395),\"\",\"#\"),SUBSTITUTE('OGC API Parameters'!$C$395,CHAR(10),\"\\n\"))","v":""},{"$f":"IF(ISBLANK('OGC API Parameters'!$D$395),IF(ISBLANK('OGC API Parameters'!$B$395),\"\",\"#\"),SUBSTITUTE('OGC API Parameters'!$D$395,CHAR(10),\"\\n\"))","v":""},{"$f":"IF(ISBLANK('OGC API Parameters'!$B$396),\"\",\"#\")","v":""},{"$f":"IF(ISBLANK('OGC API Parameters'!$B$396),\"\",\"#\")","v":""},{"$f":"IF(ISBLANK('OGC API Parameters'!$C$394),IF(ISBLANK('OGC API Parameters'!$B$394),\"\",\"#\"),'OGC API Parameters'!$C$394)","v":""},{"$f":"IF(ISBLANK('OGC API Parameters'!$D$394),IF(ISBLANK('OGC API Parameters'!$B$394),\"\",\"#\"),'OGC API Parameters'!$D$394)","v":""},{"$f":"IF(ISBLANK('OGC API Parameters'!$C$389),IF(ISBLANK('OGC API Parameters'!$B$389),\"\",\"#\"),'OGC API Parameters'!$C$389)","v":""},{"$f":"IF(ISBLANK('OGC API Parameters'!$C$390),IF(ISBLANK('OGC API Parameters'!$B$390),\"\",\"#\"),\"[\" & 'OGC API Parameters'!$C$390 & \"]\")","v":""},{"$f":"IF(ISBLANK('OGC API Parameters'!$C$390),\"\",\"http://www.opengis.net/def/crs/OGC/1.3/CRS84\")","v":""},{"$f":"IF(ISBLANK('OGC API Parameters'!$C$391),IF(ISBLANK('OGC API Parameters'!$B$391),\"\",\"#\"),'OGC API Parameters'!$C$391)","v":""},{"$f":"IF(ISBLANK('OGC API Parameters'!$C$392),IF(ISBLANK('OGC API Parameters'!$B$392),\"\",\"\"),'OGC API Parameters'!$C$392)","v":""},{"$f":"IF('OGC API Parameters'!$C$10=\"Raster / Matriciel\",IF(ISBLANK('OGC API Parameters'!C$380),IF(ISBLANK('OGC API Parameters'!B$380),\"\",\"#\"),\"/\" & 'OGC API Parameters'!C$380),\"\")","v":""},{"$f":"IF('OGC API Parameters'!$C$10=\"Raster / Matriciel\",IF(ISBLANK('OGC API Parameters'!C$381),IF(ISBLANK('OGC API Parameters'!B$381),\"\",\"#\"),'OGC API Parameters'!C$381),\"\")","v":""},null,null,"[]",{"$f":"IF('OGC API Parameters'!$C$10=\"Vector / Vectoriel\",IF(OR(ISBLANK('OGC API Parameters'!C$380),ISBLANK('OGC API Parameters'!C$381)),IF(ISBLANK('OGC API Parameters'!B$381),\"\",\"#\"),IF(AND('OGC API Parameters'!C$17=\"CDTK Datastores (Geopackage provided) / Dépôts du CODC (Géopackage fourni)\",'Generic Parameters'!C18=\"No / Non\"),\"gpkg::\" & 'OGC API Parameters'!C$380 & IF(RIGHT('OGC API Parameters'!C$380,5)<>\".gpkg\",\".gpkg\",\"\") & \"|\" & 'OGC API Parameters'!C$381,\"postgis::\" & 'OGC API Parameters'!C$381)),\"\")","v":""},{"$f":"IF('OGC API Parameters'!$C$10=\"Vector / Vectoriel\",IF(AND(ISBLANK('OGC API Parameters'!C$380),ISBLANK('OGC API Parameters'!B$380)),\"\",IF(LEFT('OGC API Parameters'!C$17,4)=\"CDTK\",IF(OR(ISBLANK('Generic Parameters'!C$11),LEN('OGC API Parameters'!C$380)=0),\"#\",LOWER('Generic Parameters'!C$11)),IF('OGC API Parameters'!C$380=\"\",\"#\",'OGC API Parameters'!C$380))),\"\")","v":""},{"$f":"IF(AND(ISNUMBER(SEARCH(\"Features\",'OGC API Parameters'!C$11)),NOT(ISBLANK('OGC API Parameters'!B$382))),IF(ISBLANK('OGC API Parameters'!C$382),\"fid\",'OGC API Parameters'!C$382),\"\")","v":""},{"$f":"IF(AND(ISNUMBER(SEARCH(\"Features\",'OGC API Parameters'!C$11)),NOT(ISBLANK('OGC API Parameters'!B$383))),IF(ISBLANK('OGC API Parameters'!C$383),\"geom\",'OGC API Parameters'!C$383),\"\")","v":""},null,null,{"$f":"IF(AND(ISNUMBER(SEARCH(\"Maps\",'OGC API Parameters'!C$11)),NOT(ISBLANK('OGC API Parameters'!B$385))),IF(ISBLANK('OGC API Parameters'!C$385),\"#\",'OGC API Parameters'!C$385),\"\")","v":""},{"$f":"IF(AND(ISNUMBER(SEARCH(\"Maps\",'OGC API Parameters'!C$11)),NOT(ISBLANK('OGC API Parameters'!B$386))),IF(ISBLANK('OGC API Parameters'!C$386),\"#\",'OGC API Parameters'!C$386),\"\")","v":""},{"$f":"IF(AND(ISNUMBER(SEARCH(\"Maps\",'OGC API Parameters'!C$11)),NOT(ISBLANK('OGC API Parameters'!B$387))),IF(ISBLANK('OGC API Parameters'!C$387),\"#\",'OGC API Parameters'!C$387),\"\")","v":""},{"$f":"IF(AND(ISNUMBER(SEARCH(\"Maps\",'OGC API Parameters'!C$11)),NOT(ISBLANK('OGC API Parameters'!B$388))),IF(ISBLANK('OGC API Parameters'!C$388),\"default\",'OGC API Parameters'!C$388),\"\")","v":""}]
[null,null,null,null,null,null,null,null,null,null,null,null,null,null,null,null,null,null,null,null,null,null,null,null,null,{"$f":"IF(ISBLANK('OGC API Parameters'!$C$400),IF(ISBLANK('OGC API Parameters'!$B$400),\"\",\"#\"),'OGC API Parameters'!$C$400)","v":""},null,null,null,null,null,{"$f":"IF(ISBLANK('OGC API Parameters'!$C$416),IF(ISBLANK('OGC API Parameters'!$B$416),\"\",\"#\"),SUBSTITUTE('OGC API Parameters'!$C$416,CHAR(10),\"\\n\"))","v":""},{"$f":"IF(ISBLANK('OGC API Parameters'!$D$416),IF(ISBLANK('OGC API Parameters'!$B$416),\"\",\"#\"),SUBSTITUTE('OGC API Parameters'!$D$416,CHAR(10),\"\\n\"))","v":""},{"$f":"IF(ISBLANK('OGC API Parameters'!$B$417),\"\",\"#\")","v":""},{"$f":"IF(ISBLANK('OGC API Parameters'!$B$417),\"\",\"#\")","v":""},{"$f":"IF(ISBLANK('OGC API Parameters'!$C$415),IF(ISBLANK('OGC API Parameters'!$B$415),\"\",\"#\"),'OGC API Parameters'!$C$415)","v":""},{"$f":"IF(ISBLANK('OGC API Parameters'!$D$415),IF(ISBLANK('OGC API Parameters'!$B$415),\"\",\"#\"),'OGC API Parameters'!$D$415)","v":""},{"$f":"IF(ISBLANK('OGC API Parameters'!$C$410),IF(ISBLANK('OGC API Parameters'!$B$410),\"\",\"#\"),'OGC API Parameters'!$C$410)","v":""},{"$f":"IF(ISBLANK('OGC API Parameters'!$C$411),IF(ISBLANK('OGC API Parameters'!$B$411),\"\",\"#\"),\"[\" & 'OGC API Parameters'!$C$411 & \"]\")","v":""},{"$f":"IF(ISBLANK('OGC API Parameters'!$C$411),\"\",\"http://www.opengis.net/def/crs/OGC/1.3/CRS84\")","v":""},{"$f":"IF(ISBLANK('OGC API Parameters'!$C$412),IF(ISBLANK('OGC API Parameters'!$B$412),\"\",\"#\"),'OGC API Parameters'!$C$412)","v":""},{"$f":"IF(ISBLANK('OGC API Parameters'!$C$413),IF(ISBLANK('OGC API Parameters'!$B$413),\"\",\"\"),'OGC API Parameters'!$C$413)","v":""},{"$f":"IF('OGC API Parameters'!$C$10=\"Raster / Matriciel\",IF(ISBLANK('OGC API Parameters'!C$401),IF(ISBLANK('OGC API Parameters'!B$401),\"\",\"#\"),\"/\" & 'OGC API Parameters'!C$401),\"\")","v":""},{"$f":"IF('OGC API Parameters'!$C$10=\"Raster / Matriciel\",IF(ISBLANK('OGC API Parameters'!C$402),IF(ISBLANK('OGC API Parameters'!B$402),\"\",\"#\"),'OGC API Parameters'!C$402),\"\")","v":""},null,null,"[]",{"$f":"IF('OGC API Parameters'!$C$10=\"Vector / Vectoriel\",IF(OR(ISBLANK('OGC API Parameters'!C$401),ISBLANK('OGC API Parameters'!C$402)),IF(ISBLANK('OGC API Parameters'!B$402),\"\",\"#\"),IF(AND('OGC API Parameters'!C$17=\"CDTK Datastores (Geopackage provided) / Dépôts du CODC (Géopackage fourni)\",'Generic Parameters'!C18=\"No / Non\"),\"gpkg::\" & 'OGC API Parameters'!C$401 & IF(RIGHT('OGC API Parameters'!C$401,5)<>\".gpkg\",\".gpkg\",\"\") & \"|\" & 'OGC API Parameters'!C$402,\"postgis::\" & 'OGC API Parameters'!C$402)),\"\")","v":""},{"$f":"IF('OGC API Parameters'!$C$10=\"Vector / Vectoriel\",IF(AND(ISBLANK('OGC API Parameters'!C$401),ISBLANK('OGC API Parameters'!B$401)),\"\",IF(LEFT('OGC API Parameters'!C$17,4)=\"CDTK\",IF(OR(ISBLANK('Generic Parameters'!C$11),LEN('OGC API Parameters'!C$401)=0),\"#\",LOWER('Generic Parameters'!C$11)),IF('OGC API Parameters'!C$401=\"\",\"#\",'OGC API Parameters'!C$401))),\"\")","v":""},{"$f":"IF(AND(ISNUMBER(SEARCH(\"Features\",'OGC API Parameters'!C$11)),NOT(ISBLANK('OGC API Parameters'!B$403))),IF(ISBLANK('OGC API Parameters'!C$403),\"fid\",'OGC API Parameters'!C$403),\"\")","v":""},{"$f":"IF(AND(ISNUMBER(SEARCH(\"Features\",'OGC API Parameters'!C$11)),NOT(ISBLANK('OGC API Parameters'!B$404))),IF(ISBLANK('OGC API Parameters'!C$404),\"geom\",'OGC API Parameters'!C$404),\"\")","v":""},null,null,{"$f":"IF(AND(ISNUMBER(SEARCH(\"Maps\",'OGC API Parameters'!C$11)),NOT(ISBLANK('OGC API Parameters'!B$406))),IF(ISBLANK('OGC API Parameters'!C$406),\"#\",'OGC API Parameters'!C$406),\"\")","v":""},{"$f":"IF(AND(ISNUMBER(SEARCH(\"Maps\",'OGC API Parameters'!C$11)),NOT(ISBLANK('OGC API Parameters'!B$407))),IF(ISBLANK('OGC API Parameters'!C$407),\"#\",'OGC API Parameters'!C$407),\"\")","v":""},{"$f":"IF(AND(ISNUMBER(SEARCH(\"Maps\",'OGC API Parameters'!C$11)),NOT(ISBLANK('OGC API Parameters'!B$408))),IF(ISBLANK('OGC API Parameters'!C$408),\"#\",'OGC API Parameters'!C$408),\"\")","v":""},{"$f":"IF(AND(ISNUMBER(SEARCH(\"Maps\",'OGC API Parameters'!C$11)),NOT(ISBLANK('OGC API Parameters'!B$409))),IF(ISBLANK('OGC API Parameters'!C$409),\"default\",'OGC API Parameters'!C$409),\"\")","v":""}]
[null,null,null,null,null,null,null,null,null,null,null,null,null,null,null,null,null,null,null,null,null,null,null,null,null,{"$f":"IF(ISBLANK('OGC API Parameters'!$C$421),IF(ISBLANK('OGC API Parameters'!$B$421),\"\",\"#\"),'OGC API Parameters'!$C$421)","v":""},null,null,null,null,null,{"$f":"IF(ISBLANK('OGC API Parameters'!$C$437),IF(ISBLANK('OGC API Parameters'!$B$437),\"\",\"#\"),SUBSTITUTE('OGC API Parameters'!$C$437,CHAR(10),\"\\n\"))","v":""},{"$f":"IF(ISBLANK('OGC API Parameters'!$D$437),IF(ISBLANK('OGC API Parameters'!$B$437),\"\",\"#\"),SUBSTITUTE('OGC API Parameters'!$D$437,CHAR(10),\"\\n\"))","v":""},{"$f":"IF(ISBLANK('OGC API Parameters'!$B$438),\"\",\"#\")","v":""},{"$f":"IF(ISBLANK('OGC API Parameters'!$B$438),\"\",\"#\")","v":""},{"$f":"IF(ISBLANK('OGC API Parameters'!$C$436),IF(ISBLANK('OGC API Parameters'!$B$436),\"\",\"#\"),'OGC API Parameters'!$C$436)","v":""},{"$f":"IF(ISBLANK('OGC API Parameters'!$D$436),IF(ISBLANK('OGC API Parameters'!$B$436),\"\",\"#\"),'OGC API Parameters'!$D$436)","v":""},{"$f":"IF(ISBLANK('OGC API Parameters'!$C$431),IF(ISBLANK('OGC API Parameters'!$B$431),\"\",\"#\"),'OGC API Parameters'!$C$431)","v":""},{"$f":"IF(ISBLANK('OGC API Parameters'!$C$432),IF(ISBLANK('OGC API Parameters'!$B$432),\"\",\"#\"),\"[\" & 'OGC API Parameters'!$C$432 & \"]\")","v":""},{"$f":"IF(ISBLANK('OGC API Parameters'!$C$432),\"\",\"http://www.opengis.net/def/crs/OGC/1.3/CRS84\")","v":""},{"$f":"IF(ISBLANK('OGC API Parameters'!$C$433),IF(ISBLANK('OGC API Parameters'!$B$433),\"\",\"#\"),'OGC API Parameters'!$C$433)","v":""},{"$f":"IF(ISBLANK('OGC API Parameters'!$C$434),IF(ISBLANK('OGC API Parameters'!$B$434),\"\",\"\"),'OGC API Parameters'!$C$434)","v":""},{"$f":"IF('OGC API Parameters'!$C$10=\"Raster / Matriciel\",IF(ISBLANK('OGC API Parameters'!C$422),IF(ISBLANK('OGC API Parameters'!B$422),\"\",\"#\"),\"/\" & 'OGC API Parameters'!C$422),\"\")","v":""},{"$f":"IF('OGC API Parameters'!$C$10=\"Raster / Matriciel\",IF(ISBLANK('OGC API Parameters'!C$423),IF(ISBLANK('OGC API Parameters'!B$423),\"\",\"#\"),'OGC API Parameters'!C$423),\"\")","v":""},null,null,"[]",{"$f":"IF('OGC API Parameters'!$C$10=\"Vector / Vectoriel\",IF(OR(ISBLANK('OGC API Parameters'!C$422),ISBLANK('OGC API Parameters'!C$423)),IF(ISBLANK('OGC API Parameters'!B$423),\"\",\"#\"),IF(AND('OGC API Parameters'!C$17=\"CDTK Datastores (Geopackage provided) / Dépôts du CODC (Géopackage fourni)\",'Generic Parameters'!C18=\"No / Non\"),\"gpkg::\" & 'OGC API Parameters'!C$422 & IF(RIGHT('OGC API Parameters'!C$422,5)<>\".gpkg\",\".gpkg\",\"\") & \"|\" & 'OGC API Parameters'!C$423,\"postgis::\" & 'OGC API Parameters'!C$423)),\"\")","v":""},{"$f":"IF('OGC API Parameters'!$C$10=\"Vector / Vectoriel\",IF(AND(ISBLANK('OGC API Parameters'!C$422),ISBLANK('OGC API Parameters'!B$422)),\"\",IF(LEFT('OGC API Parameters'!C$17,4)=\"CDTK\",IF(OR(ISBLANK('Generic Parameters'!C$11),LEN('OGC API Parameters'!C$422)=0),\"#\",LOWER('Generic Parameters'!C$11)),IF('OGC API Parameters'!C$422=\"\",\"#\",'OGC API Parameters'!C$422))),\"\")","v":""},{"$f":"IF(AND(ISNUMBER(SEARCH(\"Features\",'OGC API Parameters'!C$11)),NOT(ISBLANK('OGC API Parameters'!B$424))),IF(ISBLANK('OGC API Parameters'!C$424),\"fid\",'OGC API Parameters'!C$424),\"\")","v":""},{"$f":"IF(AND(ISNUMBER(SEARCH(\"Features\",'OGC API Parameters'!C$11)),NOT(ISBLANK('OGC API Parameters'!B$425))),IF(ISBLANK('OGC API Parameters'!C$425),\"geom\",'OGC API Parameters'!C$425),\"\")","v":""},null,null,{"$f":"IF(AND(ISNUMBER(SEARCH(\"Maps\",'OGC API Parameters'!C$11)),NOT(ISBLANK('OGC API Parameters'!B$427))),IF(ISBLANK('OGC API Parameters'!C$427),\"#\",'OGC API Parameters'!C$427),\"\")","v":""},{"$f":"IF(AND(ISNUMBER(SEARCH(\"Maps\",'OGC API Parameters'!C$11)),NOT(ISBLANK('OGC API Parameters'!B$428))),IF(ISBLANK('OGC API Parameters'!C$428),\"#\",'OGC API Parameters'!C$428),\"\")","v":""},{"$f":"IF(AND(ISNUMBER(SEARCH(\"Maps\",'OGC API Parameters'!C$11)),NOT(ISBLANK('OGC API Parameters'!B$429))),IF(ISBLANK('OGC API Parameters'!C$429),\"#\",'OGC API Parameters'!C$429),\"\")","v":""},{"$f":"IF(AND(ISNUMBER(SEARCH(\"Maps\",'OGC API Parameters'!C$11)),NOT(ISBLANK('OGC API Parameters'!B$430))),IF(ISBLANK('OGC API Parameters'!C$430),\"default\",'OGC API Parameters'!C$430),\"\")","v":""}]
[null,null,null,null,null,null,null,null,null,null,null,null,null,null,null,null,null,null,null,null,null,null,null,null,null,{"$f":"IF(ISBLANK('OGC API Parameters'!$C$442),IF(ISBLANK('OGC API Parameters'!$B$442),\"\",\"#\"),'OGC API Parameters'!$C$442)","v":""},null,null,null,null,null,{"$f":"IF(ISBLANK('OGC API Parameters'!$C$458),IF(ISBLANK('OGC API Parameters'!$B$458),\"\",\"#\"),SUBSTITUTE('OGC API Parameters'!$C$458,CHAR(10),\"\\n\"))","v":""},{"$f":"IF(ISBLANK('OGC API Parameters'!$D$458),IF(ISBLANK('OGC API Parameters'!$B$458),\"\",\"#\"),SUBSTITUTE('OGC API Parameters'!$D$458,CHAR(10),\"\\n\"))","v":""},{"$f":"IF(ISBLANK('OGC API Parameters'!$B$459),\"\",\"#\")","v":""},{"$f":"IF(ISBLANK('OGC API Parameters'!$B$459),\"\",\"#\")","v":""},{"$f":"IF(ISBLANK('OGC API Parameters'!$C$457),IF(ISBLANK('OGC API Parameters'!$B$457),\"\",\"#\"),'OGC API Parameters'!$C$457)","v":""},{"$f":"IF(ISBLANK('OGC API Parameters'!$D$457),IF(ISBLANK('OGC API Parameters'!$B$457),\"\",\"#\"),'OGC API Parameters'!$D$457)","v":""},{"$f":"IF(ISBLANK('OGC API Parameters'!$C$452),IF(ISBLANK('OGC API Parameters'!$B$452),\"\",\"#\"),'OGC API Parameters'!$C$452)","v":""},{"$f":"IF(ISBLANK('OGC API Parameters'!$C$453),IF(ISBLANK('OGC API Parameters'!$B$453),\"\",\"#\"),\"[\" & 'OGC API Parameters'!$C$453 & \"]\")","v":""},{"$f":"IF(ISBLANK('OGC API Parameters'!$C$453),\"\",\"http://www.opengis.net/def/crs/OGC/1.3/CRS84\")","v":""},{"$f":"IF(ISBLANK('OGC API Parameters'!$C$454),IF(ISBLANK('OGC API Parameters'!$B$454),\"\",\"#\"),'OGC API Parameters'!$C$454)","v":""},{"$f":"IF(ISBLANK('OGC API Parameters'!$C$455),IF(ISBLANK('OGC API Parameters'!$B$455),\"\",\"\"),'OGC API Parameters'!$C$455)","v":""},{"$f":"IF('OGC API Parameters'!$C$10=\"Raster / Matriciel\",IF(ISBLANK('OGC API Parameters'!C$443),IF(ISBLANK('OGC API Parameters'!B$443),\"\",\"#\"),\"/\" & 'OGC API Parameters'!C$443),\"\")","v":""},{"$f":"IF('OGC API Parameters'!$C$10=\"Raster / Matriciel\",IF(ISBLANK('OGC API Parameters'!C$444),IF(ISBLANK('OGC API Parameters'!B$444),\"\",\"#\"),'OGC API Parameters'!C$444),\"\")","v":""},null,null,"[]",{"$f":"IF('OGC API Parameters'!$C$10=\"Vector / Vectoriel\",IF(OR(ISBLANK('OGC API Parameters'!C$443),ISBLANK('OGC API Parameters'!C$444)),IF(ISBLANK('OGC API Parameters'!B$444),\"\",\"#\"),IF(AND('OGC API Parameters'!C$17=\"CDTK Datastores (Geopackage provided) / Dépôts du CODC (Géopackage fourni)\",'Generic Parameters'!C18=\"No / Non\"),\"gpkg::\" & 'OGC API Parameters'!C$443 & IF(RIGHT('OGC API Parameters'!C$443,5)<>\".gpkg\",\".gpkg\",\"\") & \"|\" & 'OGC API Parameters'!C$444,\"postgis::\" & 'OGC API Parameters'!C$444)),\"\")","v":""},{"$f":"IF('OGC API Parameters'!$C$10=\"Vector / Vectoriel\",IF(AND(ISBLANK('OGC API Parameters'!C$443),ISBLANK('OGC API Parameters'!B$443)),\"\",IF(LEFT('OGC API Parameters'!C$17,4)=\"CDTK\",IF(OR(ISBLANK('Generic Parameters'!C$11),LEN('OGC API Parameters'!C$443)=0),\"#\",LOWER('Generic Parameters'!C$11)),IF('OGC API Parameters'!C$443=\"\",\"#\",'OGC API Parameters'!C$443))),\"\")","v":""},{"$f":"IF(AND(ISNUMBER(SEARCH(\"Features\",'OGC API Parameters'!C$11)),NOT(ISBLANK('OGC API Parameters'!B$445))),IF(ISBLANK('OGC API Parameters'!C$445),\"fid\",'OGC API Parameters'!C$445),\"\")","v":""},{"$f":"IF(AND(ISNUMBER(SEARCH(\"Features\",'OGC API Parameters'!C$11)),NOT(ISBLANK('OGC API Parameters'!B$446))),IF(ISBLANK('OGC API Parameters'!C$446),\"geom\",'OGC API Parameters'!C$446),\"\")","v":""},null,null,{"$f":"IF(AND(ISNUMBER(SEARCH(\"Maps\",'OGC API Parameters'!C$11)),NOT(ISBLANK('OGC API Parameters'!B$448))),IF(ISBLANK('OGC API Parameters'!C$448),\"#\",'OGC API Parameters'!C$448),\"\")","v":""},{"$f":"IF(AND(ISNUMBER(SEARCH(\"Maps\",'OGC API Parameters'!C$11)),NOT(ISBLANK('OGC API Parameters'!B$449))),IF(ISBLANK('OGC API Parameters'!C$449),\"#\",'OGC API Parameters'!C$449),\"\")","v":""},{"$f":"IF(AND(ISNUMBER(SEARCH(\"Maps\",'OGC API Parameters'!C$11)),NOT(ISBLANK('OGC API Parameters'!B$450))),IF(ISBLANK('OGC API Parameters'!C$450),\"#\",'OGC API Parameters'!C$450),\"\")","v":""},{"$f":"IF(AND(ISNUMBER(SEARCH(\"Maps\",'OGC API Parameters'!C$11)),NOT(ISBLANK('OGC API Parameters'!B$451))),IF(ISBLANK('OGC API Parameters'!C$451),\"default\",'OGC API Parameters'!C$451),\"\")","v":""}]
[null,null,null,null,null,null,null,null,null,null,null,null,null,null,null,null,null,null,null,null,null,null,null,null,null,{"$f":"IF(ISBLANK('OGC API Parameters'!$C$463),IF(ISBLANK('OGC API Parameters'!$B$463),\"\",\"#\"),'OGC API Parameters'!$C$463)","v":""},null,null,null,null,null,{"$f":"IF(ISBLANK('OGC API Parameters'!$C$479),IF(ISBLANK('OGC API Parameters'!$B$479),\"\",\"#\"),SUBSTITUTE('OGC API Parameters'!$C$479,CHAR(10),\"\\n\"))","v":""},{"$f":"IF(ISBLANK('OGC API Parameters'!$D$479),IF(ISBLANK('OGC API Parameters'!$B$479),\"\",\"#\"),SUBSTITUTE('OGC API Parameters'!$D$479,CHAR(10),\"\\n\"))","v":""},{"$f":"IF(ISBLANK('OGC API Parameters'!$B$480),\"\",\"#\")","v":""},{"$f":"IF(ISBLANK('OGC API Parameters'!$B$480),\"\",\"#\")","v":""},{"$f":"IF(ISBLANK('OGC API Parameters'!$C$478),IF(ISBLANK('OGC API Parameters'!$B$478),\"\",\"#\"),'OGC API Parameters'!$C$478)","v":""},{"$f":"IF(ISBLANK('OGC API Parameters'!$D$478),IF(ISBLANK('OGC API Parameters'!$B$478),\"\",\"#\"),'OGC API Parameters'!$D$478)","v":""},{"$f":"IF(ISBLANK('OGC API Parameters'!$C$473),IF(ISBLANK('OGC API Parameters'!$B$473),\"\",\"#\"),'OGC API Parameters'!$C$473)","v":""},{"$f":"IF(ISBLANK('OGC API Parameters'!$C$474),IF(ISBLANK('OGC API Parameters'!$B$474),\"\",\"#\"),\"[\" & 'OGC API Parameters'!$C$474 & \"]\")","v":""},{"$f":"IF(ISBLANK('OGC API Parameters'!$C$474),\"\",\"http://www.opengis.net/def/crs/OGC/1.3/CRS84\")","v":""},{"$f":"IF(ISBLANK('OGC API Parameters'!$C$475),IF(ISBLANK('OGC API Parameters'!$B$475),\"\",\"#\"),'OGC API Parameters'!$C$475)","v":""},{"$f":"IF(ISBLANK('OGC API Parameters'!$C$476),IF(ISBLANK('OGC API Parameters'!$B$476),\"\",\"\"),'OGC API Parameters'!$C$476)","v":""},{"$f":"IF('OGC API Parameters'!$C$10=\"Raster / Matriciel\",IF(ISBLANK('OGC API Parameters'!C$464),IF(ISBLANK('OGC API Parameters'!B$464),\"\",\"#\"),\"/\" & 'OGC API Parameters'!C$464),\"\")","v":""},{"$f":"IF('OGC API Parameters'!$C$10=\"Raster / Matriciel\",IF(ISBLANK('OGC API Parameters'!C$465),IF(ISBLANK('OGC API Parameters'!B$465),\"\",\"#\"),'OGC API Parameters'!C$465),\"\")","v":""},null,null,"[]",{"$f":"IF('OGC API Parameters'!$C$10=\"Vector / Vectoriel\",IF(OR(ISBLANK('OGC API Parameters'!C$464),ISBLANK('OGC API Parameters'!C$465)),IF(ISBLANK('OGC API Parameters'!B$465),\"\",\"#\"),IF(AND('OGC API Parameters'!C$17=\"CDTK Datastores (Geopackage provided) / Dépôts du CODC (Géopackage fourni)\",'Generic Parameters'!C18=\"No / Non\"),\"gpkg::\" & 'OGC API Parameters'!C$464 & IF(RIGHT('OGC API Parameters'!C$464,5)<>\".gpkg\",\".gpkg\",\"\") & \"|\" & 'OGC API Parameters'!C$465,\"postgis::\" & 'OGC API Parameters'!C$465)),\"\")","v":""},{"$f":"IF('OGC API Parameters'!$C$10=\"Vector / Vectoriel\",IF(AND(ISBLANK('OGC API Parameters'!C$464),ISBLANK('OGC API Parameters'!B$464)),\"\",IF(LEFT('OGC API Parameters'!C$17,4)=\"CDTK\",IF(OR(ISBLANK('Generic Parameters'!C$11),LEN('OGC API Parameters'!C$464)=0),\"#\",LOWER('Generic Parameters'!C$11)),IF('OGC API Parameters'!C$464=\"\",\"#\",'OGC API Parameters'!C$464))),\"\")","v":""},{"$f":"IF(AND(ISNUMBER(SEARCH(\"Features\",'OGC API Parameters'!C$11)),NOT(ISBLANK('OGC API Parameters'!B$466))),IF(ISBLANK('OGC API Parameters'!C$466),\"fid\",'OGC API Parameters'!C$466),\"\")","v":""},{"$f":"IF(AND(ISNUMBER(SEARCH(\"Features\",'OGC API Parameters'!C$11)),NOT(ISBLANK('OGC API Parameters'!B$467))),IF(ISBLANK('OGC API Parameters'!C$467),\"geom\",'OGC API Parameters'!C$467),\"\")","v":""},null,null,{"$f":"IF(AND(ISNUMBER(SEARCH(\"Maps\",'OGC API Parameters'!C$11)),NOT(ISBLANK('OGC API Parameters'!B$469))),IF(ISBLANK('OGC API Parameters'!C$469),\"#\",'OGC API Parameters'!C$469),\"\")","v":""},{"$f":"IF(AND(ISNUMBER(SEARCH(\"Maps\",'OGC API Parameters'!C$11)),NOT(ISBLANK('OGC API Parameters'!B$470))),IF(ISBLANK('OGC API Parameters'!C$470),\"#\",'OGC API Parameters'!C$470),\"\")","v":""},{"$f":"IF(AND(ISNUMBER(SEARCH(\"Maps\",'OGC API Parameters'!C$11)),NOT(ISBLANK('OGC API Parameters'!B$471))),IF(ISBLANK('OGC API Parameters'!C$471),\"#\",'OGC API Parameters'!C$471),\"\")","v":""},{"$f":"IF(AND(ISNUMBER(SEARCH(\"Maps\",'OGC API Parameters'!C$11)),NOT(ISBLANK('OGC API Parameters'!B$472))),IF(ISBLANK('OGC API Parameters'!C$472),\"default\",'OGC API Parameters'!C$472),\"\")","v":""}]
[null,null,null,null,null,null,null,null,null,null,null,null,null,null,null,null,null,null,null,null,null,null,null,null,null,{"$f":"IF(ISBLANK('OGC API Parameters'!$C$484),IF(ISBLANK('OGC API Parameters'!$B$484),\"\",\"#\"),'OGC API Parameters'!$C$484)","v":""},null,null,null,null,null,{"$f":"IF(ISBLANK('OGC API Parameters'!$C$500),IF(ISBLANK('OGC API Parameters'!$B$500),\"\",\"#\"),SUBSTITUTE('OGC API Parameters'!$C$500,CHAR(10),\"\\n\"))","v":""},{"$f":"IF(ISBLANK('OGC API Parameters'!$D$500),IF(ISBLANK('OGC API Parameters'!$B$500),\"\",\"#\"),SUBSTITUTE('OGC API Parameters'!$D$500,CHAR(10),\"\\n\"))","v":""},{"$f":"IF(ISBLANK('OGC API Parameters'!$B$501),\"\",\"#\")","v":""},{"$f":"IF(ISBLANK('OGC API Parameters'!$B$501),\"\",\"#\")","v":""},{"$f":"IF(ISBLANK('OGC API Parameters'!$C$499),IF(ISBLANK('OGC API Parameters'!$B$499),\"\",\"#\"),'OGC API Parameters'!$C$499)","v":""},{"$f":"IF(ISBLANK('OGC API Parameters'!$D$499),IF(ISBLANK('OGC API Parameters'!$B$499),\"\",\"#\"),'OGC API Parameters'!$D$499)","v":""},{"$f":"IF(ISBLANK('OGC API Parameters'!$C$494),IF(ISBLANK('OGC API Parameters'!$B$494),\"\",\"#\"),'OGC API Parameters'!$C$494)","v":""},{"$f":"IF(ISBLANK('OGC API Parameters'!$C$495),IF(ISBLANK('OGC API Parameters'!$B$495),\"\",\"#\"),\"[\" & 'OGC API Parameters'!$C$495 & \"]\")","v":""},{"$f":"IF(ISBLANK('OGC API Parameters'!$C$495),\"\",\"http://www.opengis.net/def/crs/OGC/1.3/CRS84\")","v":""},{"$f":"IF(ISBLANK('OGC API Parameters'!$C$496),IF(ISBLANK('OGC API Parameters'!$B$496),\"\",\"#\"),'OGC API Parameters'!$C$496)","v":""},{"$f":"IF(ISBLANK('OGC API Parameters'!$C$497),IF(ISBLANK('OGC API Parameters'!$B$497),\"\",\"\"),'OGC API Parameters'!$C$497)","v":""},{"$f":"IF('OGC API Parameters'!$C$10=\"Raster / Matriciel\",IF(ISBLANK('OGC API Parameters'!C$485),IF(ISBLANK('OGC API Parameters'!B$485),\"\",\"#\"),\"/\" & 'OGC API Parameters'!C$485),\"\")","v":""},{"$f":"IF('OGC API Parameters'!$C$10=\"Raster / Matriciel\",IF(ISBLANK('OGC API Parameters'!C$486),IF(ISBLANK('OGC API Parameters'!B$486),\"\",\"#\"),'OGC API Parameters'!C$486),\"\")","v":""},null,null,"[]",{"$f":"IF('OGC API Parameters'!$C$10=\"Vector / Vectoriel\",IF(OR(ISBLANK('OGC API Parameters'!C$485),ISBLANK('OGC API Parameters'!C$486)),IF(ISBLANK('OGC API Parameters'!B$486),\"\",\"#\"),IF(AND('OGC API Parameters'!C$17=\"CDTK Datastores (Geopackage provided) / Dépôts du CODC (Géopackage fourni)\",'Generic Parameters'!C18=\"No / Non\"),\"gpkg::\" & 'OGC API Parameters'!C$485 & IF(RIGHT('OGC API Parameters'!C$485,5)<>\".gpkg\",\".gpkg\",\"\") & \"|\" & 'OGC API Parameters'!C$486,\"postgis::\" & 'OGC API Parameters'!C$486)),\"\")","v":""},{"$f":"IF('OGC API Parameters'!$C$10=\"Vector / Vectoriel\",IF(AND(ISBLANK('OGC API Parameters'!C$485),ISBLANK('OGC API Parameters'!B$485)),\"\",IF(LEFT('OGC API Parameters'!C$17,4)=\"CDTK\",IF(OR(ISBLANK('Generic Parameters'!C$11),LEN('OGC API Parameters'!C$485)=0),\"#\",LOWER('Generic Parameters'!C$11)),IF('OGC API Parameters'!C$485=\"\",\"#\",'OGC API Parameters'!C$485))),\"\")","v":""},{"$f":"IF(AND(ISNUMBER(SEARCH(\"Features\",'OGC API Parameters'!C$11)),NOT(ISBLANK('OGC API Parameters'!B$487))),IF(ISBLANK('OGC API Parameters'!C$487),\"fid\",'OGC API Parameters'!C$487),\"\")","v":""},{"$f":"IF(AND(ISNUMBER(SEARCH(\"Features\",'OGC API Parameters'!C$11)),NOT(ISBLANK('OGC API Parameters'!B$488))),IF(ISBLANK('OGC API Parameters'!C$488),\"geom\",'OGC API Parameters'!C$488),\"\")","v":""},null,null,{"$f":"IF(AND(ISNUMBER(SEARCH(\"Maps\",'OGC API Parameters'!C$11)),NOT(ISBLANK('OGC API Parameters'!B$490))),IF(ISBLANK('OGC API Parameters'!C$490),\"#\",'OGC API Parameters'!C$490),\"\")","v":""},{"$f":"IF(AND(ISNUMBER(SEARCH(\"Maps\",'OGC API Parameters'!C$11)),NOT(ISBLANK('OGC API Parameters'!B$491))),IF(ISBLANK('OGC API Parameters'!C$491),\"#\",'OGC API Parameters'!C$491),\"\")","v":""},{"$f":"IF(AND(ISNUMBER(SEARCH(\"Maps\",'OGC API Parameters'!C$11)),NOT(ISBLANK('OGC API Parameters'!B$492))),IF(ISBLANK('OGC API Parameters'!C$492),\"#\",'OGC API Parameters'!C$492),\"\")","v":""},{"$f":"IF(AND(ISNUMBER(SEARCH(\"Maps\",'OGC API Parameters'!C$11)),NOT(ISBLANK('OGC API Parameters'!B$493))),IF(ISBLANK('OGC API Parameters'!C$493),\"default\",'OGC API Parameters'!C$493),\"\")","v":""}]
[null,null,null,null,null,null,null,null,null,null,null,null,null,null,null,null,null,null,null,null,null,null,null,null,null,{"$f":"IF(ISBLANK('OGC API Parameters'!$C$505),IF(ISBLANK('OGC API Parameters'!$B$505),\"\",\"#\"),'OGC API Parameters'!$C$505)","v":""},null,null,null,null,null,{"$f":"IF(ISBLANK('OGC API Parameters'!$C$521),IF(ISBLANK('OGC API Parameters'!$B$521),\"\",\"#\"),SUBSTITUTE('OGC API Parameters'!$C$521,CHAR(10),\"\\n\"))","v":""},{"$f":"IF(ISBLANK('OGC API Parameters'!$D$521),IF(ISBLANK('OGC API Parameters'!$B$521),\"\",\"#\"),SUBSTITUTE('OGC API Parameters'!$D$521,CHAR(10),\"\\n\"))","v":""},{"$f":"IF(ISBLANK('OGC API Parameters'!$B$522),\"\",\"#\")","v":""},{"$f":"IF(ISBLANK('OGC API Parameters'!$B$522),\"\",\"#\")","v":""},{"$f":"IF(ISBLANK('OGC API Parameters'!$C$520),IF(ISBLANK('OGC API Parameters'!$B$520),\"\",\"#\"),'OGC API Parameters'!$C$520)","v":""},{"$f":"IF(ISBLANK('OGC API Parameters'!$D$520),IF(ISBLANK('OGC API Parameters'!$B$520),\"\",\"#\"),'OGC API Parameters'!$D$520)","v":""},{"$f":"IF(ISBLANK('OGC API Parameters'!$C$515),IF(ISBLANK('OGC API Parameters'!$B$515),\"\",\"#\"),'OGC API Parameters'!$C$515)","v":""},{"$f":"IF(ISBLANK('OGC API Parameters'!$C$516),IF(ISBLANK('OGC API Parameters'!$B$516),\"\",\"#\"),\"[\" & 'OGC API Parameters'!$C$516 & \"]\")","v":""},{"$f":"IF(ISBLANK('OGC API Parameters'!$C$516),\"\",\"http://www.opengis.net/def/crs/OGC/1.3/CRS84\")","v":""},{"$f":"IF(ISBLANK('OGC API Parameters'!$C$517),IF(ISBLANK('OGC API Parameters'!$B$517),\"\",\"#\"),'OGC API Parameters'!$C$517)","v":""},{"$f":"IF(ISBLANK('OGC API Parameters'!$C$518),IF(ISBLANK('OGC API Parameters'!$B$518),\"\",\"\"),'OGC API Parameters'!$C$518)","v":""},{"$f":"IF('OGC API Parameters'!$C$10=\"Raster / Matriciel\",IF(ISBLANK('OGC API Parameters'!C$506),IF(ISBLANK('OGC API Parameters'!B$506),\"\",\"#\"),\"/\" & 'OGC API Parameters'!C$506),\"\")","v":""},{"$f":"IF('OGC API Parameters'!$C$10=\"Raster / Matriciel\",IF(ISBLANK('OGC API Parameters'!C$507),IF(ISBLANK('OGC API Parameters'!B$507),\"\",\"#\"),'OGC API Parameters'!C$507),\"\")","v":""},null,null,"[]",{"$f":"IF('OGC API Parameters'!$C$10=\"Vector / Vectoriel\",IF(OR(ISBLANK('OGC API Parameters'!C$506),ISBLANK('OGC API Parameters'!C$507)),IF(ISBLANK('OGC API Parameters'!B$507),\"\",\"#\"),IF(AND('OGC API Parameters'!C$17=\"CDTK Datastores (Geopackage provided) / Dépôts du CODC (Géopackage fourni)\",'Generic Parameters'!C18=\"No / Non\"),\"gpkg::\" & 'OGC API Parameters'!C$506 & IF(RIGHT('OGC API Parameters'!C$506,5)<>\".gpkg\",\".gpkg\",\"\") & \"|\" & 'OGC API Parameters'!C$507,\"postgis::\" & 'OGC API Parameters'!C$507)),\"\")","v":""},{"$f":"IF('OGC API Parameters'!$C$10=\"Vector / Vectoriel\",IF(AND(ISBLANK('OGC API Parameters'!C$506),ISBLANK('OGC API Parameters'!B$506)),\"\",IF(LEFT('OGC API Parameters'!C$17,4)=\"CDTK\",IF(OR(ISBLANK('Generic Parameters'!C$11),LEN('OGC API Parameters'!C$506)=0),\"#\",LOWER('Generic Parameters'!C$11)),IF('OGC API Parameters'!C$506=\"\",\"#\",'OGC API Parameters'!C$506))),\"\")","v":""},{"$f":"IF(AND(ISNUMBER(SEARCH(\"Features\",'OGC API Parameters'!C$11)),NOT(ISBLANK('OGC API Parameters'!B$508))),IF(ISBLANK('OGC API Parameters'!C$508),\"fid\",'OGC API Parameters'!C$508),\"\")","v":""},{"$f":"IF(AND(ISNUMBER(SEARCH(\"Features\",'OGC API Parameters'!C$11)),NOT(ISBLANK('OGC API Parameters'!B$509))),IF(ISBLANK('OGC API Parameters'!C$509),\"geom\",'OGC API Parameters'!C$509),\"\")","v":""},null,null,{"$f":"IF(AND(ISNUMBER(SEARCH(\"Maps\",'OGC API Parameters'!C$11)),NOT(ISBLANK('OGC API Parameters'!B$511))),IF(ISBLANK('OGC API Parameters'!C$511),\"#\",'OGC API Parameters'!C$511),\"\")","v":""},{"$f":"IF(AND(ISNUMBER(SEARCH(\"Maps\",'OGC API Parameters'!C$11)),NOT(ISBLANK('OGC API Parameters'!B$512))),IF(ISBLANK('OGC API Parameters'!C$512),\"#\",'OGC API Parameters'!C$512),\"\")","v":""},{"$f":"IF(AND(ISNUMBER(SEARCH(\"Maps\",'OGC API Parameters'!C$11)),NOT(ISBLANK('OGC API Parameters'!B$513))),IF(ISBLANK('OGC API Parameters'!C$513),\"#\",'OGC API Parameters'!C$513),\"\")","v":""},{"$f":"IF(AND(ISNUMBER(SEARCH(\"Maps\",'OGC API Parameters'!C$11)),NOT(ISBLANK('OGC API Parameters'!B$514))),IF(ISBLANK('OGC API Parameters'!C$514),\"default\",'OGC API Parameters'!C$514),\"\")","v":""}]
[null,null,null,null,null,null,null,null,null,null,null,null,null,null,null,null,null,null,null,null,null,null,null,null,null,{"$f":"IF(ISBLANK('OGC API Parameters'!$C$526),IF(ISBLANK('OGC API Parameters'!$B$526),\"\",\"#\"),'OGC API Parameters'!$C$526)","v":""},null,null,null,null,null,{"$f":"IF(ISBLANK('OGC API Parameters'!$C$542),IF(ISBLANK('OGC API Parameters'!$B$542),\"\",\"#\"),SUBSTITUTE('OGC API Parameters'!$C$542,CHAR(10),\"\\n\"))","v":""},{"$f":"IF(ISBLANK('OGC API Parameters'!$D$542),IF(ISBLANK('OGC API Parameters'!$B$542),\"\",\"#\"),SUBSTITUTE('OGC API Parameters'!$D$542,CHAR(10),\"\\n\"))","v":""},{"$f":"IF(ISBLANK('OGC API Parameters'!$B$543),\"\",\"#\")","v":""},{"$f":"IF(ISBLANK('OGC API Parameters'!$B$543),\"\",\"#\")","v":""},{"$f":"IF(ISBLANK('OGC API Parameters'!$C$541),IF(ISBLANK('OGC API Parameters'!$B$541),\"\",\"#\"),'OGC API Parameters'!$C$541)","v":""},{"$f":"IF(ISBLANK('OGC API Parameters'!$D$541),IF(ISBLANK('OGC API Parameters'!$B$541),\"\",\"#\"),'OGC API Parameters'!$D$541)","v":""},{"$f":"IF(ISBLANK('OGC API Parameters'!$C$536),IF(ISBLANK('OGC API Parameters'!$B$536),\"\",\"#\"),'OGC API Parameters'!$C$536)","v":""},{"$f":"IF(ISBLANK('OGC API Parameters'!$C$537),IF(ISBLANK('OGC API Parameters'!$B$537),\"\",\"#\"),\"[\" & 'OGC API Parameters'!$C$537 & \"]\")","v":""},{"$f":"IF(ISBLANK('OGC API Parameters'!$C$537),\"\",\"http://www.opengis.net/def/crs/OGC/1.3/CRS84\")","v":""},{"$f":"IF(ISBLANK('OGC API Parameters'!$C$538),IF(ISBLANK('OGC API Parameters'!$B$538),\"\",\"#\"),'OGC API Parameters'!$C$538)","v":""},{"$f":"IF(ISBLANK('OGC API Parameters'!$C$539),IF(ISBLANK('OGC API Parameters'!$B$539),\"\",\"\"),'OGC API Parameters'!$C$539)","v":""},{"$f":"IF('OGC API Parameters'!$C$10=\"Raster / Matriciel\",IF(ISBLANK('OGC API Parameters'!C$527),IF(ISBLANK('OGC API Parameters'!B$527),\"\",\"#\"),\"/\" & 'OGC API Parameters'!C$527),\"\")","v":""},{"$f":"IF('OGC API Parameters'!$C$10=\"Raster / Matriciel\",IF(ISBLANK('OGC API Parameters'!C$528),IF(ISBLANK('OGC API Parameters'!B$528),\"\",\"#\"),'OGC API Parameters'!C$528),\"\")","v":""},null,null,"[]",{"$f":"IF('OGC API Parameters'!$C$10=\"Vector / Vectoriel\",IF(OR(ISBLANK('OGC API Parameters'!C$527),ISBLANK('OGC API Parameters'!C$528)),IF(ISBLANK('OGC API Parameters'!B$528),\"\",\"#\"),IF(AND('OGC API Parameters'!C$17=\"CDTK Datastores (Geopackage provided) / Dépôts du CODC (Géopackage fourni)\",'Generic Parameters'!C18=\"No / Non\"),\"gpkg::\" & 'OGC API Parameters'!C$527 & IF(RIGHT('OGC API Parameters'!C$527,5)<>\".gpkg\",\".gpkg\",\"\") & \"|\" & 'OGC API Parameters'!C$528,\"postgis::\" & 'OGC API Parameters'!C$528)),\"\")","v":""},{"$f":"IF('OGC API Parameters'!$C$10=\"Vector / Vectoriel\",IF(AND(ISBLANK('OGC API Parameters'!C$527),ISBLANK('OGC API Parameters'!B$527)),\"\",IF(LEFT('OGC API Parameters'!C$17,4)=\"CDTK\",IF(OR(ISBLANK('Generic Parameters'!C$11),LEN('OGC API Parameters'!C$527)=0),\"#\",LOWER('Generic Parameters'!C$11)),IF('OGC API Parameters'!C$527=\"\",\"#\",'OGC API Parameters'!C$527))),\"\")","v":""},{"$f":"IF(AND(ISNUMBER(SEARCH(\"Features\",'OGC API Parameters'!C$11)),NOT(ISBLANK('OGC API Parameters'!B$529))),IF(ISBLANK('OGC API Parameters'!C$529),\"fid\",'OGC API Parameters'!C$529),\"\")","v":""},{"$f":"IF(AND(ISNUMBER(SEARCH(\"Features\",'OGC API Parameters'!C$11)),NOT(ISBLANK('OGC API Parameters'!B$530))),IF(ISBLANK('OGC API Parameters'!C$530),\"geom\",'OGC API Parameters'!C$530),\"\")","v":""},null,null,{"$f":"IF(AND(ISNUMBER(SEARCH(\"Maps\",'OGC API Parameters'!C$11)),NOT(ISBLANK('OGC API Parameters'!B$532))),IF(ISBLANK('OGC API Parameters'!C$532),\"#\",'OGC API Parameters'!C$532),\"\")","v":""},{"$f":"IF(AND(ISNUMBER(SEARCH(\"Maps\",'OGC API Parameters'!C$11)),NOT(ISBLANK('OGC API Parameters'!B$533))),IF(ISBLANK('OGC API Parameters'!C$533),\"#\",'OGC API Parameters'!C$533),\"\")","v":""},{"$f":"IF(AND(ISNUMBER(SEARCH(\"Maps\",'OGC API Parameters'!C$11)),NOT(ISBLANK('OGC API Parameters'!B$534))),IF(ISBLANK('OGC API Parameters'!C$534),\"#\",'OGC API Parameters'!C$534),\"\")","v":""},{"$f":"IF(AND(ISNUMBER(SEARCH(\"Maps\",'OGC API Parameters'!C$11)),NOT(ISBLANK('OGC API Parameters'!B$535))),IF(ISBLANK('OGC API Parameters'!C$535),\"default\",'OGC API Parameters'!C$535),\"\")","v":""}]
[null,null,null,null,null,null,null,null,null,null,null,null,null,null,null,null,null,null,null,null,null,null,null,null,null,{"$f":"IF(ISBLANK('OGC API Parameters'!$C$547),IF(ISBLANK('OGC API Parameters'!$B$547),\"\",\"#\"),'OGC API Parameters'!$C$547)","v":""},null,null,null,null,null,{"$f":"IF(ISBLANK('OGC API Parameters'!$C$563),IF(ISBLANK('OGC API Parameters'!$B$563),\"\",\"#\"),SUBSTITUTE('OGC API Parameters'!$C$563,CHAR(10),\"\\n\"))","v":""},{"$f":"IF(ISBLANK('OGC API Parameters'!$D$563),IF(ISBLANK('OGC API Parameters'!$B$563),\"\",\"#\"),SUBSTITUTE('OGC API Parameters'!$D$563,CHAR(10),\"\\n\"))","v":""},{"$f":"IF(ISBLANK('OGC API Parameters'!$B$564),\"\",\"#\")","v":""},{"$f":"IF(ISBLANK('OGC API Parameters'!$B$564),\"\",\"#\")","v":""},{"$f":"IF(ISBLANK('OGC API Parameters'!$C$562),IF(ISBLANK('OGC API Parameters'!$B$562),\"\",\"#\"),'OGC API Parameters'!$C$562)","v":""},{"$f":"IF(ISBLANK('OGC API Parameters'!$D$562),IF(ISBLANK('OGC API Parameters'!$B$562),\"\",\"#\"),'OGC API Parameters'!$D$562)","v":""},{"$f":"IF(ISBLANK('OGC API Parameters'!$C$557),IF(ISBLANK('OGC API Parameters'!$B$557),\"\",\"#\"),'OGC API Parameters'!$C$557)","v":""},{"$f":"IF(ISBLANK('OGC API Parameters'!$C$558),IF(ISBLANK('OGC API Parameters'!$B$558),\"\",\"#\"),\"[\" & 'OGC API Parameters'!$C$558 & \"]\")","v":""},{"$f":"IF(ISBLANK('OGC API Parameters'!$C$558),\"\",\"http://www.opengis.net/def/crs/OGC/1.3/CRS84\")","v":""},{"$f":"IF(ISBLANK('OGC API Parameters'!$C$559),IF(ISBLANK('OGC API Parameters'!$B$559),\"\",\"#\"),'OGC API Parameters'!$C$559)","v":""},{"$f":"IF(ISBLANK('OGC API Parameters'!$C$560),IF(ISBLANK('OGC API Parameters'!$B$560),\"\",\"\"),'OGC API Parameters'!$C$560)","v":""},{"$f":"IF('OGC API Parameters'!$C$10=\"Raster / Matriciel\",IF(ISBLANK('OGC API Parameters'!C$548),IF(ISBLANK('OGC API Parameters'!B$548),\"\",\"#\"),\"/\" & 'OGC API Parameters'!C$548),\"\")","v":""},{"$f":"IF('OGC API Parameters'!$C$10=\"Raster / Matriciel\",IF(ISBLANK('OGC API Parameters'!C$549),IF(ISBLANK('OGC API Parameters'!B$549),\"\",\"#\"),'OGC API Parameters'!C$549),\"\")","v":""},null,null,"[]",{"$f":"IF('OGC API Parameters'!$C$10=\"Vector / Vectoriel\",IF(OR(ISBLANK('OGC API Parameters'!C$548),ISBLANK('OGC API Parameters'!C$549)),IF(ISBLANK('OGC API Parameters'!B$549),\"\",\"#\"),IF(AND('OGC API Parameters'!C$17=\"CDTK Datastores (Geopackage provided) / Dépôts du CODC (Géopackage fourni)\",'Generic Parameters'!C18=\"No / Non\"),\"gpkg::\" & 'OGC API Parameters'!C$548 & IF(RIGHT('OGC API Parameters'!C$548,5)<>\".gpkg\",\".gpkg\",\"\") & \"|\" & 'OGC API Parameters'!C$549,\"postgis::\" & 'OGC API Parameters'!C$549)),\"\")","v":""},{"$f":"IF('OGC API Parameters'!$C$10=\"Vector / Vectoriel\",IF(AND(ISBLANK('OGC API Parameters'!C$548),ISBLANK('OGC API Parameters'!B$548)),\"\",IF(LEFT('OGC API Parameters'!C$17,4)=\"CDTK\",IF(OR(ISBLANK('Generic Parameters'!C$11),LEN('OGC API Parameters'!C$548)=0),\"#\",LOWER('Generic Parameters'!C$11)),IF('OGC API Parameters'!C$548=\"\",\"#\",'OGC API Parameters'!C$548))),\"\")","v":""},{"$f":"IF(AND(ISNUMBER(SEARCH(\"Features\",'OGC API Parameters'!C$11)),NOT(ISBLANK('OGC API Parameters'!B$550))),IF(ISBLANK('OGC API Parameters'!C$550),\"fid\",'OGC API Parameters'!C$550),\"\")","v":""},{"$f":"IF(AND(ISNUMBER(SEARCH(\"Features\",'OGC API Parameters'!C$11)),NOT(ISBLANK('OGC API Parameters'!B$551))),IF(ISBLANK('OGC API Parameters'!C$551),\"geom\",'OGC API Parameters'!C$551),\"\")","v":""},null,null,{"$f":"IF(AND(ISNUMBER(SEARCH(\"Maps\",'OGC API Parameters'!C$11)),NOT(ISBLANK('OGC API Parameters'!B$553))),IF(ISBLANK('OGC API Parameters'!C$553),\"#\",'OGC API Parameters'!C$553),\"\")","v":""},{"$f":"IF(AND(ISNUMBER(SEARCH(\"Maps\",'OGC API Parameters'!C$11)),NOT(ISBLANK('OGC API Parameters'!B$554))),IF(ISBLANK('OGC API Parameters'!C$554),\"#\",'OGC API Parameters'!C$554),\"\")","v":""},{"$f":"IF(AND(ISNUMBER(SEARCH(\"Maps\",'OGC API Parameters'!C$11)),NOT(ISBLANK('OGC API Parameters'!B$555))),IF(ISBLANK('OGC API Parameters'!C$555),\"#\",'OGC API Parameters'!C$555),\"\")","v":""},{"$f":"IF(AND(ISNUMBER(SEARCH(\"Maps\",'OGC API Parameters'!C$11)),NOT(ISBLANK('OGC API Parameters'!B$556))),IF(ISBLANK('OGC API Parameters'!C$556),\"default\",'OGC API Parameters'!C$556),\"\")","v":""}]
[null,null,null,null,null,null,null,null,null,null,null,null,null,null,null,null,null,null,null,null,null,null,null,null,null,{"$f":"IF(ISBLANK('OGC API Parameters'!$C$568),IF(ISBLANK('OGC API Parameters'!$B$568),\"\",\"#\"),'OGC API Parameters'!$C$568)","v":""},null,null,null,null,null,{"$f":"IF(ISBLANK('OGC API Parameters'!$C$584),IF(ISBLANK('OGC API Parameters'!$B$584),\"\",\"#\"),SUBSTITUTE('OGC API Parameters'!$C$584,CHAR(10),\"\\n\"))","v":""},{"$f":"IF(ISBLANK('OGC API Parameters'!$D$584),IF(ISBLANK('OGC API Parameters'!$B$584),\"\",\"#\"),SUBSTITUTE('OGC API Parameters'!$D$584,CHAR(10),\"\\n\"))","v":""},{"$f":"IF(ISBLANK('OGC API Parameters'!$B$585),\"\",\"#\")","v":""},{"$f":"IF(ISBLANK('OGC API Parameters'!$B$585),\"\",\"#\")","v":""},{"$f":"IF(ISBLANK('OGC API Parameters'!$C$583),IF(ISBLANK('OGC API Parameters'!$B$583),\"\",\"#\"),'OGC API Parameters'!$C$583)","v":""},{"$f":"IF(ISBLANK('OGC API Parameters'!$D$583),IF(ISBLANK('OGC API Parameters'!$B$583),\"\",\"#\"),'OGC API Parameters'!$D$583)","v":""},{"$f":"IF(ISBLANK('OGC API Parameters'!$C$578),IF(ISBLANK('OGC API Parameters'!$B$578),\"\",\"#\"),'OGC API Parameters'!$C$578)","v":""},{"$f":"IF(ISBLANK('OGC API Parameters'!$C$579),IF(ISBLANK('OGC API Parameters'!$B$579),\"\",\"#\"),\"[\" & 'OGC API Parameters'!$C$579 & \"]\")","v":""},{"$f":"IF(ISBLANK('OGC API Parameters'!$C$579),\"\",\"http://www.opengis.net/def/crs/OGC/1.3/CRS84\")","v":""},{"$f":"IF(ISBLANK('OGC API Parameters'!$C$580),IF(ISBLANK('OGC API Parameters'!$B$580),\"\",\"#\"),'OGC API Parameters'!$C$580)","v":""},{"$f":"IF(ISBLANK('OGC API Parameters'!$C$581),IF(ISBLANK('OGC API Parameters'!$B$581),\"\",\"\"),'OGC API Parameters'!$C$581)","v":""},{"$f":"IF('OGC API Parameters'!$C$10=\"Raster / Matriciel\",IF(ISBLANK('OGC API Parameters'!C$569),IF(ISBLANK('OGC API Parameters'!B$569),\"\",\"#\"),\"/\" & 'OGC API Parameters'!C$569),\"\")","v":""},{"$f":"IF('OGC API Parameters'!$C$10=\"Raster / Matriciel\",IF(ISBLANK('OGC API Parameters'!C$570),IF(ISBLANK('OGC API Parameters'!B$570),\"\",\"#\"),'OGC API Parameters'!C$570),\"\")","v":""},null,null,"[]",{"$f":"IF('OGC API Parameters'!$C$10=\"Vector / Vectoriel\",IF(OR(ISBLANK('OGC API Parameters'!C$569),ISBLANK('OGC API Parameters'!C$570)),IF(ISBLANK('OGC API Parameters'!B$570),\"\",\"#\"),IF(AND('OGC API Parameters'!C$17=\"CDTK Datastores (Geopackage provided) / Dépôts du CODC (Géopackage fourni)\",'Generic Parameters'!C18=\"No / Non\"),\"gpkg::\" & 'OGC API Parameters'!C$569 & IF(RIGHT('OGC API Parameters'!C$569,5)<>\".gpkg\",\".gpkg\",\"\") & \"|\" & 'OGC API Parameters'!C$570,\"postgis::\" & 'OGC API Parameters'!C$570)),\"\")","v":""},{"$f":"IF('OGC API Parameters'!$C$10=\"Vector / Vectoriel\",IF(AND(ISBLANK('OGC API Parameters'!C$569),ISBLANK('OGC API Parameters'!B$569)),\"\",IF(LEFT('OGC API Parameters'!C$17,4)=\"CDTK\",IF(OR(ISBLANK('Generic Parameters'!C$11),LEN('OGC API Parameters'!C$569)=0),\"#\",LOWER('Generic Parameters'!C$11)),IF('OGC API Parameters'!C$569=\"\",\"#\",'OGC API Parameters'!C$569))),\"\")","v":""},{"$f":"IF(AND(ISNUMBER(SEARCH(\"Features\",'OGC API Parameters'!C$11)),NOT(ISBLANK('OGC API Parameters'!B$571))),IF(ISBLANK('OGC API Parameters'!C$571),\"fid\",'OGC API Parameters'!C$571),\"\")","v":""},{"$f":"IF(AND(ISNUMBER(SEARCH(\"Features\",'OGC API Parameters'!C$11)),NOT(ISBLANK('OGC API Parameters'!B$572))),IF(ISBLANK('OGC API Parameters'!C$572),\"geom\",'OGC API Parameters'!C$572),\"\")","v":""},null,null,{"$f":"IF(AND(ISNUMBER(SEARCH(\"Maps\",'OGC API Parameters'!C$11)),NOT(ISBLANK('OGC API Parameters'!B$574))),IF(ISBLANK('OGC API Parameters'!C$574),\"#\",'OGC API Parameters'!C$574),\"\")","v":""},{"$f":"IF(AND(ISNUMBER(SEARCH(\"Maps\",'OGC API Parameters'!C$11)),NOT(ISBLANK('OGC API Parameters'!B$575))),IF(ISBLANK('OGC API Parameters'!C$575),\"#\",'OGC API Parameters'!C$575),\"\")","v":""},{"$f":"IF(AND(ISNUMBER(SEARCH(\"Maps\",'OGC API Parameters'!C$11)),NOT(ISBLANK('OGC API Parameters'!B$576))),IF(ISBLANK('OGC API Parameters'!C$576),\"#\",'OGC API Parameters'!C$576),\"\")","v":""},{"$f":"IF(AND(ISNUMBER(SEARCH(\"Maps\",'OGC API Parameters'!C$11)),NOT(ISBLANK('OGC API Parameters'!B$577))),IF(ISBLANK('OGC API Parameters'!C$577),\"default\",'OGC API Parameters'!C$577),\"\")","v":""}]
[null,null,null,null,null,null,null,null,null,null,null,null,null,null,null,null,null,null,null,null,null,null,null,null,null,{"$f":"IF(ISBLANK('OGC API Parameters'!$C$589),IF(ISBLANK('OGC API Parameters'!$B$589),\"\",\"#\"),'OGC API Parameters'!$C$589)","v":""},null,null,null,null,null,{"$f":"IF(ISBLANK('OGC API Parameters'!$C$605),IF(ISBLANK('OGC API Parameters'!$B$605),\"\",\"#\"),SUBSTITUTE('OGC API Parameters'!$C$605,CHAR(10),\"\\n\"))","v":""},{"$f":"IF(ISBLANK('OGC API Parameters'!$D$605),IF(ISBLANK('OGC API Parameters'!$B$605),\"\",\"#\"),SUBSTITUTE('OGC API Parameters'!$D$605,CHAR(10),\"\\n\"))","v":""},{"$f":"IF(ISBLANK('OGC API Parameters'!$B$606),\"\",\"#\")","v":""},{"$f":"IF(ISBLANK('OGC API Parameters'!$B$606),\"\",\"#\")","v":""},{"$f":"IF(ISBLANK('OGC API Parameters'!$C$604),IF(ISBLANK('OGC API Parameters'!$B$604),\"\",\"#\"),'OGC API Parameters'!$C$604)","v":""},{"$f":"IF(ISBLANK('OGC API Parameters'!$D$604),IF(ISBLANK('OGC API Parameters'!$B$604),\"\",\"#\"),'OGC API Parameters'!$D$604)","v":""},{"$f":"IF(ISBLANK('OGC API Parameters'!$C$599),IF(ISBLANK('OGC API Parameters'!$B$599),\"\",\"#\"),'OGC API Parameters'!$C$599)","v":""},{"$f":"IF(ISBLANK('OGC API Parameters'!$C$600),IF(ISBLANK('OGC API Parameters'!$B$600),\"\",\"#\"),\"[\" & 'OGC API Parameters'!$C$600 & \"]\")","v":""},{"$f":"IF(ISBLANK('OGC API Parameters'!$C$600),\"\",\"http://www.opengis.net/def/crs/OGC/1.3/CRS84\")","v":""},{"$f":"IF(ISBLANK('OGC API Parameters'!$C$601),IF(ISBLANK('OGC API Parameters'!$B$601),\"\",\"#\"),'OGC API Parameters'!$C$601)","v":""},{"$f":"IF(ISBLANK('OGC API Parameters'!$C$602),IF(ISBLANK('OGC API Parameters'!$B$602),\"\",\"\"),'OGC API Parameters'!$C$602)","v":""},{"$f":"IF('OGC API Parameters'!$C$10=\"Raster / Matriciel\",IF(ISBLANK('OGC API Parameters'!C$590),IF(ISBLANK('OGC API Parameters'!B$590),\"\",\"#\"),\"/\" & 'OGC API Parameters'!C$590),\"\")","v":""},{"$f":"IF('OGC API Parameters'!$C$10=\"Raster / Matriciel\",IF(ISBLANK('OGC API Parameters'!C$591),IF(ISBLANK('OGC API Parameters'!B$591),\"\",\"#\"),'OGC API Parameters'!C$591),\"\")","v":""},null,null,"[]",{"$f":"IF('OGC API Parameters'!$C$10=\"Vector / Vectoriel\",IF(OR(ISBLANK('OGC API Parameters'!C$590),ISBLANK('OGC API Parameters'!C$591)),IF(ISBLANK('OGC API Parameters'!B$591),\"\",\"#\"),IF(AND('OGC API Parameters'!C$17=\"CDTK Datastores (Geopackage provided) / Dépôts du CODC (Géopackage fourni)\",'Generic Parameters'!C18=\"No / Non\"),\"gpkg::\" & 'OGC API Parameters'!C$590 & IF(RIGHT('OGC API Parameters'!C$590,5)<>\".gpkg\",\".gpkg\",\"\") & \"|\" & 'OGC API Parameters'!C$591,\"postgis::\" & 'OGC API Parameters'!C$591)),\"\")","v":""},{"$f":"IF('OGC API Parameters'!$C$10=\"Vector / Vectoriel\",IF(AND(ISBLANK('OGC API Parameters'!C$590),ISBLANK('OGC API Parameters'!B$590)),\"\",IF(LEFT('OGC API Parameters'!C$17,4)=\"CDTK\",IF(OR(ISBLANK('Generic Parameters'!C$11),LEN('OGC API Parameters'!C$590)=0),\"#\",LOWER('Generic Parameters'!C$11)),IF('OGC API Parameters'!C$590=\"\",\"#\",'OGC API Parameters'!C$590))),\"\")","v":""},{"$f":"IF(AND(ISNUMBER(SEARCH(\"Features\",'OGC API Parameters'!C$11)),NOT(ISBLANK('OGC API Parameters'!B$592))),IF(ISBLANK('OGC API Parameters'!C$592),\"fid\",'OGC API Parameters'!C$592),\"\")","v":""},{"$f":"IF(AND(ISNUMBER(SEARCH(\"Features\",'OGC API Parameters'!C$11)),NOT(ISBLANK('OGC API Parameters'!B$593))),IF(ISBLANK('OGC API Parameters'!C$593),\"geom\",'OGC API Parameters'!C$593),\"\")","v":""},null,null,{"$f":"IF(AND(ISNUMBER(SEARCH(\"Maps\",'OGC API Parameters'!C$11)),NOT(ISBLANK('OGC API Parameters'!B$595))),IF(ISBLANK('OGC API Parameters'!C$595),\"#\",'OGC API Parameters'!C$595),\"\")","v":""},{"$f":"IF(AND(ISNUMBER(SEARCH(\"Maps\",'OGC API Parameters'!C$11)),NOT(ISBLANK('OGC API Parameters'!B$596))),IF(ISBLANK('OGC API Parameters'!C$596),\"#\",'OGC API Parameters'!C$596),\"\")","v":""},{"$f":"IF(AND(ISNUMBER(SEARCH(\"Maps\",'OGC API Parameters'!C$11)),NOT(ISBLANK('OGC API Parameters'!B$597))),IF(ISBLANK('OGC API Parameters'!C$597),\"#\",'OGC API Parameters'!C$597),\"\")","v":""},{"$f":"IF(AND(ISNUMBER(SEARCH(\"Maps\",'OGC API Parameters'!C$11)),NOT(ISBLANK('OGC API Parameters'!B$598))),IF(ISBLANK('OGC API Parameters'!C$598),\"default\",'OGC API Parameters'!C$598),\"\")","v":""}]
[null,null,null,null,null,null,null,null,null,null,null,null,null,null,null,null,null,null,null,null,null,null,null,null,null,{"$f":"IF(ISBLANK('OGC API Parameters'!$C$610),IF(ISBLANK('OGC API Parameters'!$B$610),\"\",\"#\"),'OGC API Parameters'!$C$610)","v":""},null,null,null,null,null,{"$f":"IF(ISBLANK('OGC API Parameters'!$C$626),IF(ISBLANK('OGC API Parameters'!$B$626),\"\",\"#\"),SUBSTITUTE('OGC API Parameters'!$C$626,CHAR(10),\"\\n\"))","v":""},{"$f":"IF(ISBLANK('OGC API Parameters'!$D$626),IF(ISBLANK('OGC API Parameters'!$B$626),\"\",\"#\"),SUBSTITUTE('OGC API Parameters'!$D$626,CHAR(10),\"\\n\"))","v":""},{"$f":"IF(ISBLANK('OGC API Parameters'!$B$627),\"\",\"#\")","v":""},{"$f":"IF(ISBLANK('OGC API Parameters'!$B$627),\"\",\"#\")","v":""},{"$f":"IF(ISBLANK('OGC API Parameters'!$C$625),IF(ISBLANK('OGC API Parameters'!$B$625),\"\",\"#\"),'OGC API Parameters'!$C$625)","v":""},{"$f":"IF(ISBLANK('OGC API Parameters'!$D$625),IF(ISBLANK('OGC API Parameters'!$B$625),\"\",\"#\"),'OGC API Parameters'!$D$625)","v":""},{"$f":"IF(ISBLANK('OGC API Parameters'!$C$620),IF(ISBLANK('OGC API Parameters'!$B$620),\"\",\"#\"),'OGC API Parameters'!$C$620)","v":""},{"$f":"IF(ISBLANK('OGC API Parameters'!$C$621),IF(ISBLANK('OGC API Parameters'!$B$621),\"\",\"#\"),\"[\" & 'OGC API Parameters'!$C$621 & \"]\")","v":""},{"$f":"IF(ISBLANK('OGC API Parameters'!$C$621),\"\",\"http://www.opengis.net/def/crs/OGC/1.3/CRS84\")","v":""},{"$f":"IF(ISBLANK('OGC API Parameters'!$C$622),IF(ISBLANK('OGC API Parameters'!$B$622),\"\",\"#\"),'OGC API Parameters'!$C$622)","v":""},{"$f":"IF(ISBLANK('OGC API Parameters'!$C$623),IF(ISBLANK('OGC API Parameters'!$B$623),\"\",\"\"),'OGC API Parameters'!$C$623)","v":""},{"$f":"IF('OGC API Parameters'!$C$10=\"Raster / Matriciel\",IF(ISBLANK('OGC API Parameters'!C$611),IF(ISBLANK('OGC API Parameters'!B$611),\"\",\"#\"),\"/\" & 'OGC API Parameters'!C$611),\"\")","v":""},{"$f":"IF('OGC API Parameters'!$C$10=\"Raster / Matriciel\",IF(ISBLANK('OGC API Parameters'!C$612),IF(ISBLANK('OGC API Parameters'!B$612),\"\",\"#\"),'OGC API Parameters'!C$612),\"\")","v":""},null,null,"[]",{"$f":"IF('OGC API Parameters'!$C$10=\"Vector / Vectoriel\",IF(OR(ISBLANK('OGC API Parameters'!C$611),ISBLANK('OGC API Parameters'!C$612)),IF(ISBLANK('OGC API Parameters'!B$612),\"\",\"#\"),IF(AND('OGC API Parameters'!C$17=\"CDTK Datastores (Geopackage provided) / Dépôts du CODC (Géopackage fourni)\",'Generic Parameters'!C18=\"No / Non\"),\"gpkg::\" & 'OGC API Parameters'!C$611 & IF(RIGHT('OGC API Parameters'!C$611,5)<>\".gpkg\",\".gpkg\",\"\") & \"|\" & 'OGC API Parameters'!C$612,\"postgis::\" & 'OGC API Parameters'!C$612)),\"\")","v":""},{"$f":"IF('OGC API Parameters'!$C$10=\"Vector / Vectoriel\",IF(AND(ISBLANK('OGC API Parameters'!C$611),ISBLANK('OGC API Parameters'!B$611)),\"\",IF(LEFT('OGC API Parameters'!C$17,4)=\"CDTK\",IF(OR(ISBLANK('Generic Parameters'!C$11),LEN('OGC API Parameters'!C$611)=0),\"#\",LOWER('Generic Parameters'!C$11)),IF('OGC API Parameters'!C$611=\"\",\"#\",'OGC API Parameters'!C$611))),\"\")","v":""},{"$f":"IF(AND(ISNUMBER(SEARCH(\"Features\",'OGC API Parameters'!C$11)),NOT(ISBLANK('OGC API Parameters'!B$613))),IF(ISBLANK('OGC API Parameters'!C$613),\"fid\",'OGC API Parameters'!C$613),\"\")","v":""},{"$f":"IF(AND(ISNUMBER(SEARCH(\"Features\",'OGC API Parameters'!C$11)),NOT(ISBLANK('OGC API Parameters'!B$614))),IF(ISBLANK('OGC API Parameters'!C$614),\"geom\",'OGC API Parameters'!C$614),\"\")","v":""},null,null,{"$f":"IF(AND(ISNUMBER(SEARCH(\"Maps\",'OGC API Parameters'!C$11)),NOT(ISBLANK('OGC API Parameters'!B$616))),IF(ISBLANK('OGC API Parameters'!C$616),\"#\",'OGC API Parameters'!C$616),\"\")","v":""},{"$f":"IF(AND(ISNUMBER(SEARCH(\"Maps\",'OGC API Parameters'!C$11)),NOT(ISBLANK('OGC API Parameters'!B$617))),IF(ISBLANK('OGC API Parameters'!C$617),\"#\",'OGC API Parameters'!C$617),\"\")","v":""},{"$f":"IF(AND(ISNUMBER(SEARCH(\"Maps\",'OGC API Parameters'!C$11)),NOT(ISBLANK('OGC API Parameters'!B$618))),IF(ISBLANK('OGC API Parameters'!C$618),\"#\",'OGC API Parameters'!C$618),\"\")","v":""},{"$f":"IF(AND(ISNUMBER(SEARCH(\"Maps\",'OGC API Parameters'!C$11)),NOT(ISBLANK('OGC API Parameters'!B$619))),IF(ISBLANK('OGC API Parameters'!C$619),\"default\",'OGC API Parameters'!C$619),\"\")","v":""}]
[null,null,null,null,null,null,null,null,null,null,null,null,null,null,null,null,null,null,null,null,null,null,null,null,null,{"$f":"IF(ISBLANK('OGC API Parameters'!$C$631),IF(ISBLANK('OGC API Parameters'!$B$631),\"\",\"#\"),'OGC API Parameters'!$C$631)","v":""},null,null,null,null,null,{"$f":"IF(ISBLANK('OGC API Parameters'!$C$647),IF(ISBLANK('OGC API Parameters'!$B$647),\"\",\"#\"),SUBSTITUTE('OGC API Parameters'!$C$647,CHAR(10),\"\\n\"))","v":""},{"$f":"IF(ISBLANK('OGC API Parameters'!$D$647),IF(ISBLANK('OGC API Parameters'!$B$647),\"\",\"#\"),SUBSTITUTE('OGC API Parameters'!$D$647,CHAR(10),\"\\n\"))","v":""},{"$f":"IF(ISBLANK('OGC API Parameters'!$B$648),\"\",\"#\")","v":""},{"$f":"IF(ISBLANK('OGC API Parameters'!$B$648),\"\",\"#\")","v":""},{"$f":"IF(ISBLANK('OGC API Parameters'!$C$646),IF(ISBLANK('OGC API Parameters'!$B$646),\"\",\"#\"),'OGC API Parameters'!$C$646)","v":""},{"$f":"IF(ISBLANK('OGC API Parameters'!$D$646),IF(ISBLANK('OGC API Parameters'!$B$646),\"\",\"#\"),'OGC API Parameters'!$D$646)","v":""},{"$f":"IF(ISBLANK('OGC API Parameters'!$C$641),IF(ISBLANK('OGC API Parameters'!$B$641),\"\",\"#\"),'OGC API Parameters'!$C$641)","v":""},{"$f":"IF(ISBLANK('OGC API Parameters'!$C$642),IF(ISBLANK('OGC API Parameters'!$B$642),\"\",\"#\"),\"[\" & 'OGC API Parameters'!$C$642 & \"]\")","v":""},{"$f":"IF(ISBLANK('OGC API Parameters'!$C$642),\"\",\"http://www.opengis.net/def/crs/OGC/1.3/CRS84\")","v":""},{"$f":"IF(ISBLANK('OGC API Parameters'!$C$643),IF(ISBLANK('OGC API Parameters'!$B$643),\"\",\"#\"),'OGC API Parameters'!$C$643)","v":""},{"$f":"IF(ISBLANK('OGC API Parameters'!$C$644),IF(ISBLANK('OGC API Parameters'!$B$644),\"\",\"\"),'OGC API Parameters'!$C$644)","v":""},{"$f":"IF('OGC API Parameters'!$C$10=\"Raster / Matriciel\",IF(ISBLANK('OGC API Parameters'!C$632),IF(ISBLANK('OGC API Parameters'!B$632),\"\",\"#\"),\"/\" & 'OGC API Parameters'!C$632),\"\")","v":""},{"$f":"IF('OGC API Parameters'!$C$10=\"Raster / Matriciel\",IF(ISBLANK('OGC API Parameters'!C$633),IF(ISBLANK('OGC API Parameters'!B$633),\"\",\"#\"),'OGC API Parameters'!C$633),\"\")","v":""},null,null,"[]",{"$f":"IF('OGC API Parameters'!$C$10=\"Vector / Vectoriel\",IF(OR(ISBLANK('OGC API Parameters'!C$632),ISBLANK('OGC API Parameters'!C$633)),IF(ISBLANK('OGC API Parameters'!B$633),\"\",\"#\"),IF(AND('OGC API Parameters'!C$17=\"CDTK Datastores (Geopackage provided) / Dépôts du CODC (Géopackage fourni)\",'Generic Parameters'!C18=\"No / Non\"),\"gpkg::\" & 'OGC API Parameters'!C$632 & IF(RIGHT('OGC API Parameters'!C$632,5)<>\".gpkg\",\".gpkg\",\"\") & \"|\" & 'OGC API Parameters'!C$633,\"postgis::\" & 'OGC API Parameters'!C$633)),\"\")","v":""},{"$f":"IF('OGC API Parameters'!$C$10=\"Vector / Vectoriel\",IF(AND(ISBLANK('OGC API Parameters'!C$632),ISBLANK('OGC API Parameters'!B$632)),\"\",IF(LEFT('OGC API Parameters'!C$17,4)=\"CDTK\",IF(OR(ISBLANK('Generic Parameters'!C$11),LEN('OGC API Parameters'!C$632)=0),\"#\",LOWER('Generic Parameters'!C$11)),IF('OGC API Parameters'!C$632=\"\",\"#\",'OGC API Parameters'!C$632))),\"\")","v":""},{"$f":"IF(AND(ISNUMBER(SEARCH(\"Features\",'OGC API Parameters'!C$11)),NOT(ISBLANK('OGC API Parameters'!B$634))),IF(ISBLANK('OGC API Parameters'!C$634),\"fid\",'OGC API Parameters'!C$634),\"\")","v":""},{"$f":"IF(AND(ISNUMBER(SEARCH(\"Features\",'OGC API Parameters'!C$11)),NOT(ISBLANK('OGC API Parameters'!B$635))),IF(ISBLANK('OGC API Parameters'!C$635),\"geom\",'OGC API Parameters'!C$635),\"\")","v":""},null,null,{"$f":"IF(AND(ISNUMBER(SEARCH(\"Maps\",'OGC API Parameters'!C$11)),NOT(ISBLANK('OGC API Parameters'!B$637))),IF(ISBLANK('OGC API Parameters'!C$637),\"#\",'OGC API Parameters'!C$637),\"\")","v":""},{"$f":"IF(AND(ISNUMBER(SEARCH(\"Maps\",'OGC API Parameters'!C$11)),NOT(ISBLANK('OGC API Parameters'!B$638))),IF(ISBLANK('OGC API Parameters'!C$638),\"#\",'OGC API Parameters'!C$638),\"\")","v":""},{"$f":"IF(AND(ISNUMBER(SEARCH(\"Maps\",'OGC API Parameters'!C$11)),NOT(ISBLANK('OGC API Parameters'!B$639))),IF(ISBLANK('OGC API Parameters'!C$639),\"#\",'OGC API Parameters'!C$639),\"\")","v":""},{"$f":"IF(AND(ISNUMBER(SEARCH(\"Maps\",'OGC API Parameters'!C$11)),NOT(ISBLANK('OGC API Parameters'!B$640))),IF(ISBLANK('OGC API Parameters'!C$640),\"default\",'OGC API Parameters'!C$640),\"\")","v":""}]
[null,null,null,null,null,null,null,null,null,null,null,null,null,null,null,null,null,null,null,null,null,null,null,null,null,{"$f":"IF(ISBLANK('OGC API Parameters'!$C$652),IF(ISBLANK('OGC API Parameters'!$B$652),\"\",\"#\"),'OGC API Parameters'!$C$652)","v":""},null,null,null,null,null,{"$f":"IF(ISBLANK('OGC API Parameters'!$C$668),IF(ISBLANK('OGC API Parameters'!$B$668),\"\",\"#\"),SUBSTITUTE('OGC API Parameters'!$C$668,CHAR(10),\"\\n\"))","v":""},{"$f":"IF(ISBLANK('OGC API Parameters'!$D$668),IF(ISBLANK('OGC API Parameters'!$B$668),\"\",\"#\"),SUBSTITUTE('OGC API Parameters'!$D$668,CHAR(10),\"\\n\"))","v":""},{"$f":"IF(ISBLANK('OGC API Parameters'!$B$669),\"\",\"#\")","v":""},{"$f":"IF(ISBLANK('OGC API Parameters'!$B$669),\"\",\"#\")","v":""},{"$f":"IF(ISBLANK('OGC API Parameters'!$C$667),IF(ISBLANK('OGC API Parameters'!$B$667),\"\",\"#\"),'OGC API Parameters'!$C$667)","v":""},{"$f":"IF(ISBLANK('OGC API Parameters'!$D$667),IF(ISBLANK('OGC API Parameters'!$B$667),\"\",\"#\"),'OGC API Parameters'!$D$667)","v":""},{"$f":"IF(ISBLANK('OGC API Parameters'!$C$662),IF(ISBLANK('OGC API Parameters'!$B$662),\"\",\"#\"),'OGC API Parameters'!$C$662)","v":""},{"$f":"IF(ISBLANK('OGC API Parameters'!$C$663),IF(ISBLANK('OGC API Parameters'!$B$663),\"\",\"#\"),\"[\" & 'OGC API Parameters'!$C$663 & \"]\")","v":""},{"$f":"IF(ISBLANK('OGC API Parameters'!$C$663),\"\",\"http://www.opengis.net/def/crs/OGC/1.3/CRS84\")","v":""},{"$f":"IF(ISBLANK('OGC API Parameters'!$C$664),IF(ISBLANK('OGC API Parameters'!$B$664),\"\",\"#\"),'OGC API Parameters'!$C$664)","v":""},{"$f":"IF(ISBLANK('OGC API Parameters'!$C$665),IF(ISBLANK('OGC API Parameters'!$B$665),\"\",\"\"),'OGC API Parameters'!$C$665)","v":""},{"$f":"IF('OGC API Parameters'!$C$10=\"Raster / Matriciel\",IF(ISBLANK('OGC API Parameters'!C$653),IF(ISBLANK('OGC API Parameters'!B$653),\"\",\"#\"),\"/\" & 'OGC API Parameters'!C$653),\"\")","v":""},{"$f":"IF('OGC API Parameters'!$C$10=\"Raster / Matriciel\",IF(ISBLANK('OGC API Parameters'!C$654),IF(ISBLANK('OGC API Parameters'!B$654),\"\",\"#\"),'OGC API Parameters'!C$654),\"\")","v":""},null,null,"[]",{"$f":"IF('OGC API Parameters'!$C$10=\"Vector / Vectoriel\",IF(OR(ISBLANK('OGC API Parameters'!C$653),ISBLANK('OGC API Parameters'!C$654)),IF(ISBLANK('OGC API Parameters'!B$654),\"\",\"#\"),IF(AND('OGC API Parameters'!C$17=\"CDTK Datastores (Geopackage provided) / Dépôts du CODC (Géopackage fourni)\",'Generic Parameters'!C18=\"No / Non\"),\"gpkg::\" & 'OGC API Parameters'!C$653 & IF(RIGHT('OGC API Parameters'!C$653,5)<>\".gpkg\",\".gpkg\",\"\") & \"|\" & 'OGC API Parameters'!C$654,\"postgis::\" & 'OGC API Parameters'!C$654)),\"\")","v":""},{"$f":"IF('OGC API Parameters'!$C$10=\"Vector / Vectoriel\",IF(AND(ISBLANK('OGC API Parameters'!C$653),ISBLANK('OGC API Parameters'!B$653)),\"\",IF(LEFT('OGC API Parameters'!C$17,4)=\"CDTK\",IF(OR(ISBLANK('Generic Parameters'!C$11),LEN('OGC API Parameters'!C$653)=0),\"#\",LOWER('Generic Parameters'!C$11)),IF('OGC API Parameters'!C$653=\"\",\"#\",'OGC API Parameters'!C$653))),\"\")","v":""},{"$f":"IF(AND(ISNUMBER(SEARCH(\"Features\",'OGC API Parameters'!C$11)),NOT(ISBLANK('OGC API Parameters'!B$655))),IF(ISBLANK('OGC API Parameters'!C$655),\"fid\",'OGC API Parameters'!C$655),\"\")","v":""},{"$f":"IF(AND(ISNUMBER(SEARCH(\"Features\",'OGC API Parameters'!C$11)),NOT(ISBLANK('OGC API Parameters'!B$656))),IF(ISBLANK('OGC API Parameters'!C$656),\"geom\",'OGC API Parameters'!C$656),\"\")","v":""},null,null,{"$f":"IF(AND(ISNUMBER(SEARCH(\"Maps\",'OGC API Parameters'!C$11)),NOT(ISBLANK('OGC API Parameters'!B$658))),IF(ISBLANK('OGC API Parameters'!C$658),\"#\",'OGC API Parameters'!C$658),\"\")","v":""},{"$f":"IF(AND(ISNUMBER(SEARCH(\"Maps\",'OGC API Parameters'!C$11)),NOT(ISBLANK('OGC API Parameters'!B$659))),IF(ISBLANK('OGC API Parameters'!C$659),\"#\",'OGC API Parameters'!C$659),\"\")","v":""},{"$f":"IF(AND(ISNUMBER(SEARCH(\"Maps\",'OGC API Parameters'!C$11)),NOT(ISBLANK('OGC API Parameters'!B$660))),IF(ISBLANK('OGC API Parameters'!C$660),\"#\",'OGC API Parameters'!C$660),\"\")","v":""},{"$f":"IF(AND(ISNUMBER(SEARCH(\"Maps\",'OGC API Parameters'!C$11)),NOT(ISBLANK('OGC API Parameters'!B$661))),IF(ISBLANK('OGC API Parameters'!C$661),\"default\",'OGC API Parameters'!C$661),\"\")","v":""}]
[null,null,null,null,null,null,null,null,null,null,null,null,null,null,null,null,null,null,null,null,null,null,null,null,null,{"$f":"IF(ISBLANK('OGC API Parameters'!$C$673),IF(ISBLANK('OGC API Parameters'!$B$673),\"\",\"#\"),'OGC API Parameters'!$C$673)","v":""},null,null,null,null,null,{"$f":"IF(ISBLANK('OGC API Parameters'!$C$689),IF(ISBLANK('OGC API Parameters'!$B$689),\"\",\"#\"),SUBSTITUTE('OGC API Parameters'!$C$689,CHAR(10),\"\\n\"))","v":""},{"$f":"IF(ISBLANK('OGC API Parameters'!$D$689),IF(ISBLANK('OGC API Parameters'!$B$689),\"\",\"#\"),SUBSTITUTE('OGC API Parameters'!$D$689,CHAR(10),\"\\n\"))","v":""},{"$f":"IF(ISBLANK('OGC API Parameters'!$B$690),\"\",\"#\")","v":""},{"$f":"IF(ISBLANK('OGC API Parameters'!$B$690),\"\",\"#\")","v":""},{"$f":"IF(ISBLANK('OGC API Parameters'!$C$688),IF(ISBLANK('OGC API Parameters'!$B$688),\"\",\"#\"),'OGC API Parameters'!$C$688)","v":""},{"$f":"IF(ISBLANK('OGC API Parameters'!$D$688),IF(ISBLANK('OGC API Parameters'!$B$688),\"\",\"#\"),'OGC API Parameters'!$D$688)","v":""},{"$f":"IF(ISBLANK('OGC API Parameters'!$C$683),IF(ISBLANK('OGC API Parameters'!$B$683),\"\",\"#\"),'OGC API Parameters'!$C$683)","v":""},{"$f":"IF(ISBLANK('OGC API Parameters'!$C$684),IF(ISBLANK('OGC API Parameters'!$B$684),\"\",\"#\"),\"[\" & 'OGC API Parameters'!$C$684 & \"]\")","v":""},{"$f":"IF(ISBLANK('OGC API Parameters'!$C$684),\"\",\"http://www.opengis.net/def/crs/OGC/1.3/CRS84\")","v":""},{"$f":"IF(ISBLANK('OGC API Parameters'!$C$685),IF(ISBLANK('OGC API Parameters'!$B$685),\"\",\"#\"),'OGC API Parameters'!$C$685)","v":""},{"$f":"IF(ISBLANK('OGC API Parameters'!$C$686),IF(ISBLANK('OGC API Parameters'!$B$686),\"\",\"\"),'OGC API Parameters'!$C$686)","v":""},{"$f":"IF('OGC API Parameters'!$C$10=\"Raster / Matriciel\",IF(ISBLANK('OGC API Parameters'!C$674),IF(ISBLANK('OGC API Parameters'!B$674),\"\",\"#\"),\"/\" & 'OGC API Parameters'!C$674),\"\")","v":""},{"$f":"IF('OGC API Parameters'!$C$10=\"Raster / Matriciel\",IF(ISBLANK('OGC API Parameters'!C$675),IF(ISBLANK('OGC API Parameters'!B$675),\"\",\"#\"),'OGC API Parameters'!C$675),\"\")","v":""},null,null,"[]",{"$f":"IF('OGC API Parameters'!$C$10=\"Vector / Vectoriel\",IF(OR(ISBLANK('OGC API Parameters'!C$674),ISBLANK('OGC API Parameters'!C$675)),IF(ISBLANK('OGC API Parameters'!B$675),\"\",\"#\"),IF(AND('OGC API Parameters'!C$17=\"CDTK Datastores (Geopackage provided) / Dépôts du CODC (Géopackage fourni)\",'Generic Parameters'!C18=\"No / Non\"),\"gpkg::\" & 'OGC API Parameters'!C$674 & IF(RIGHT('OGC API Parameters'!C$674,5)<>\".gpkg\",\".gpkg\",\"\") & \"|\" & 'OGC API Parameters'!C$675,\"postgis::\" & 'OGC API Parameters'!C$675)),\"\")","v":""},{"$f":"IF('OGC API Parameters'!$C$10=\"Vector / Vectoriel\",IF(AND(ISBLANK('OGC API Parameters'!C$674),ISBLANK('OGC API Parameters'!B$674)),\"\",IF(LEFT('OGC API Parameters'!C$17,4)=\"CDTK\",IF(OR(ISBLANK('Generic Parameters'!C$11),LEN('OGC API Parameters'!C$674)=0),\"#\",LOWER('Generic Parameters'!C$11)),IF('OGC API Parameters'!C$674=\"\",\"#\",'OGC API Parameters'!C$674))),\"\")","v":""},{"$f":"IF(AND(ISNUMBER(SEARCH(\"Features\",'OGC API Parameters'!C$11)),NOT(ISBLANK('OGC API Parameters'!B$676))),IF(ISBLANK('OGC API Parameters'!C$676),\"fid\",'OGC API Parameters'!C$676),\"\")","v":""},{"$f":"IF(AND(ISNUMBER(SEARCH(\"Features\",'OGC API Parameters'!C$11)),NOT(ISBLANK('OGC API Parameters'!B$677))),IF(ISBLANK('OGC API Parameters'!C$677),\"geom\",'OGC API Parameters'!C$677),\"\")","v":""},null,null,{"$f":"IF(AND(ISNUMBER(SEARCH(\"Maps\",'OGC API Parameters'!C$11)),NOT(ISBLANK('OGC API Parameters'!B$679))),IF(ISBLANK('OGC API Parameters'!C$679),\"#\",'OGC API Parameters'!C$679),\"\")","v":""},{"$f":"IF(AND(ISNUMBER(SEARCH(\"Maps\",'OGC API Parameters'!C$11)),NOT(ISBLANK('OGC API Parameters'!B$680))),IF(ISBLANK('OGC API Parameters'!C$680),\"#\",'OGC API Parameters'!C$680),\"\")","v":""},{"$f":"IF(AND(ISNUMBER(SEARCH(\"Maps\",'OGC API Parameters'!C$11)),NOT(ISBLANK('OGC API Parameters'!B$681))),IF(ISBLANK('OGC API Parameters'!C$681),\"#\",'OGC API Parameters'!C$681),\"\")","v":""},{"$f":"IF(AND(ISNUMBER(SEARCH(\"Maps\",'OGC API Parameters'!C$11)),NOT(ISBLANK('OGC API Parameters'!B$682))),IF(ISBLANK('OGC API Parameters'!C$682),\"default\",'OGC API Parameters'!C$682),\"\")","v":""}]
[null,null,null,null,null,null,null,null,null,null,null,null,null,null,null,null,null,null,null,null,null,null,null,null,null,{"$f":"IF(ISBLANK('OGC API Parameters'!$C$694),IF(ISBLANK('OGC API Parameters'!$B$694),\"\",\"#\"),'OGC API Parameters'!$C$694)","v":""},null,null,null,null,null,{"$f":"IF(ISBLANK('OGC API Parameters'!$C$710),IF(ISBLANK('OGC API Parameters'!$B$710),\"\",\"#\"),SUBSTITUTE('OGC API Parameters'!$C$710,CHAR(10),\"\\n\"))","v":""},{"$f":"IF(ISBLANK('OGC API Parameters'!$D$710),IF(ISBLANK('OGC API Parameters'!$B$710),\"\",\"#\"),SUBSTITUTE('OGC API Parameters'!$D$710,CHAR(10),\"\\n\"))","v":""},{"$f":"IF(ISBLANK('OGC API Parameters'!$B$711),\"\",\"#\")","v":""},{"$f":"IF(ISBLANK('OGC API Parameters'!$B$711),\"\",\"#\")","v":""},{"$f":"IF(ISBLANK('OGC API Parameters'!$C$709),IF(ISBLANK('OGC API Parameters'!$B$709),\"\",\"#\"),'OGC API Parameters'!$C$709)","v":""},{"$f":"IF(ISBLANK('OGC API Parameters'!$D$709),IF(ISBLANK('OGC API Parameters'!$B$709),\"\",\"#\"),'OGC API Parameters'!$D$709)","v":""},{"$f":"IF(ISBLANK('OGC API Parameters'!$C$704),IF(ISBLANK('OGC API Parameters'!$B$704),\"\",\"#\"),'OGC API Parameters'!$C$704)","v":""},{"$f":"IF(ISBLANK('OGC API Parameters'!$C$705),IF(ISBLANK('OGC API Parameters'!$B$705),\"\",\"#\"),\"[\" & 'OGC API Parameters'!$C$705 & \"]\")","v":""},{"$f":"IF(ISBLANK('OGC API Parameters'!$C$705),\"\",\"http://www.opengis.net/def/crs/OGC/1.3/CRS84\")","v":""},{"$f":"IF(ISBLANK('OGC API Parameters'!$C$706),IF(ISBLANK('OGC API Parameters'!$B$706),\"\",\"#\"),'OGC API Parameters'!$C$706)","v":""},{"$f":"IF(ISBLANK('OGC API Parameters'!$C$707),IF(ISBLANK('OGC API Parameters'!$B$707),\"\",\"\"),'OGC API Parameters'!$C$707)","v":""},{"$f":"IF('OGC API Parameters'!$C$10=\"Raster / Matriciel\",IF(ISBLANK('OGC API Parameters'!C$695),IF(ISBLANK('OGC API Parameters'!B$695),\"\",\"#\"),\"/\" & 'OGC API Parameters'!C$695),\"\")","v":""},{"$f":"IF('OGC API Parameters'!$C$10=\"Raster / Matriciel\",IF(ISBLANK('OGC API Parameters'!C$696),IF(ISBLANK('OGC API Parameters'!B$696),\"\",\"#\"),'OGC API Parameters'!C$696),\"\")","v":""},null,null,"[]",{"$f":"IF('OGC API Parameters'!$C$10=\"Vector / Vectoriel\",IF(OR(ISBLANK('OGC API Parameters'!C$695),ISBLANK('OGC API Parameters'!C$696)),IF(ISBLANK('OGC API Parameters'!B$696),\"\",\"#\"),IF(AND('OGC API Parameters'!C$17=\"CDTK Datastores (Geopackage provided) / Dépôts du CODC (Géopackage fourni)\",'Generic Parameters'!C18=\"No / Non\"),\"gpkg::\" & 'OGC API Parameters'!C$695 & IF(RIGHT('OGC API Parameters'!C$695,5)<>\".gpkg\",\".gpkg\",\"\") & \"|\" & 'OGC API Parameters'!C$696,\"postgis::\" & 'OGC API Parameters'!C$696)),\"\")","v":""},{"$f":"IF('OGC API Parameters'!$C$10=\"Vector / Vectoriel\",IF(AND(ISBLANK('OGC API Parameters'!C$695),ISBLANK('OGC API Parameters'!B$695)),\"\",IF(LEFT('OGC API Parameters'!C$17,4)=\"CDTK\",IF(OR(ISBLANK('Generic Parameters'!C$11),LEN('OGC API Parameters'!C$695)=0),\"#\",LOWER('Generic Parameters'!C$11)),IF('OGC API Parameters'!C$695=\"\",\"#\",'OGC API Parameters'!C$695))),\"\")","v":""},{"$f":"IF(AND(ISNUMBER(SEARCH(\"Features\",'OGC API Parameters'!C$11)),NOT(ISBLANK('OGC API Parameters'!B$697))),IF(ISBLANK('OGC API Parameters'!C$697),\"fid\",'OGC API Parameters'!C$697),\"\")","v":""},{"$f":"IF(AND(ISNUMBER(SEARCH(\"Features\",'OGC API Parameters'!C$11)),NOT(ISBLANK('OGC API Parameters'!B$698))),IF(ISBLANK('OGC API Parameters'!C$698),\"geom\",'OGC API Parameters'!C$698),\"\")","v":""},null,null,{"$f":"IF(AND(ISNUMBER(SEARCH(\"Maps\",'OGC API Parameters'!C$11)),NOT(ISBLANK('OGC API Parameters'!B$700))),IF(ISBLANK('OGC API Parameters'!C$700),\"#\",'OGC API Parameters'!C$700),\"\")","v":""},{"$f":"IF(AND(ISNUMBER(SEARCH(\"Maps\",'OGC API Parameters'!C$11)),NOT(ISBLANK('OGC API Parameters'!B$701))),IF(ISBLANK('OGC API Parameters'!C$701),\"#\",'OGC API Parameters'!C$701),\"\")","v":""},{"$f":"IF(AND(ISNUMBER(SEARCH(\"Maps\",'OGC API Parameters'!C$11)),NOT(ISBLANK('OGC API Parameters'!B$702))),IF(ISBLANK('OGC API Parameters'!C$702),\"#\",'OGC API Parameters'!C$702),\"\")","v":""},{"$f":"IF(AND(ISNUMBER(SEARCH(\"Maps\",'OGC API Parameters'!C$11)),NOT(ISBLANK('OGC API Parameters'!B$703))),IF(ISBLANK('OGC API Parameters'!C$703),\"default\",'OGC API Parameters'!C$703),\"\")","v":""}]
[null,null,null,null,null,null,null,null,null,null,null,null,null,null,null,null,null,null,null,null,null,null,null,null,null,{"$f":"IF(ISBLANK('OGC API Parameters'!$C$715),IF(ISBLANK('OGC API Parameters'!$B$715),\"\",\"#\"),'OGC API Parameters'!$C$715)","v":""},null,null,null,null,null,{"$f":"IF(ISBLANK('OGC API Parameters'!$C$731),IF(ISBLANK('OGC API Parameters'!$B$731),\"\",\"#\"),SUBSTITUTE('OGC API Parameters'!$C$731,CHAR(10),\"\\n\"))","v":""},{"$f":"IF(ISBLANK('OGC API Parameters'!$D$731),IF(ISBLANK('OGC API Parameters'!$B$731),\"\",\"#\"),SUBSTITUTE('OGC API Parameters'!$D$731,CHAR(10),\"\\n\"))","v":""},{"$f":"IF(ISBLANK('OGC API Parameters'!$B$732),\"\",\"#\")","v":""},{"$f":"IF(ISBLANK('OGC API Parameters'!$B$732),\"\",\"#\")","v":""},{"$f":"IF(ISBLANK('OGC API Parameters'!$C$730),IF(ISBLANK('OGC API Parameters'!$B$730),\"\",\"#\"),'OGC API Parameters'!$C$730)","v":""},{"$f":"IF(ISBLANK('OGC API Parameters'!$D$730),IF(ISBLANK('OGC API Parameters'!$B$730),\"\",\"#\"),'OGC API Parameters'!$D$730)","v":""},{"$f":"IF(ISBLANK('OGC API Parameters'!$C$725),IF(ISBLANK('OGC API Parameters'!$B$725),\"\",\"#\"),'OGC API Parameters'!$C$725)","v":""},{"$f":"IF(ISBLANK('OGC API Parameters'!$C$726),IF(ISBLANK('OGC API Parameters'!$B$726),\"\",\"#\"),\"[\" & 'OGC API Parameters'!$C$726 & \"]\")","v":""},{"$f":"IF(ISBLANK('OGC API Parameters'!$C$726),\"\",\"http://www.opengis.net/def/crs/OGC/1.3/CRS84\")","v":""},{"$f":"IF(ISBLANK('OGC API Parameters'!$C$727),IF(ISBLANK('OGC API Parameters'!$B$727),\"\",\"#\"),'OGC API Parameters'!$C$727)","v":""},{"$f":"IF(ISBLANK('OGC API Parameters'!$C$728),IF(ISBLANK('OGC API Parameters'!$B$728),\"\",\"\"),'OGC API Parameters'!$C$728)","v":""},{"$f":"IF('OGC API Parameters'!$C$10=\"Raster / Matriciel\",IF(ISBLANK('OGC API Parameters'!C$716),IF(ISBLANK('OGC API Parameters'!B$716),\"\",\"#\"),\"/\" & 'OGC API Parameters'!C$716),\"\")","v":""},{"$f":"IF('OGC API Parameters'!$C$10=\"Raster / Matriciel\",IF(ISBLANK('OGC API Parameters'!C$717),IF(ISBLANK('OGC API Parameters'!B$717),\"\",\"#\"),'OGC API Parameters'!C$717),\"\")","v":""},null,null,"[]",{"$f":"IF('OGC API Parameters'!$C$10=\"Vector / Vectoriel\",IF(OR(ISBLANK('OGC API Parameters'!C$716),ISBLANK('OGC API Parameters'!C$717)),IF(ISBLANK('OGC API Parameters'!B$717),\"\",\"#\"),IF(AND('OGC API Parameters'!C$17=\"CDTK Datastores (Geopackage provided) / Dépôts du CODC (Géopackage fourni)\",'Generic Parameters'!C18=\"No / Non\"),\"gpkg::\" & 'OGC API Parameters'!C$716 & IF(RIGHT('OGC API Parameters'!C$716,5)<>\".gpkg\",\".gpkg\",\"\") & \"|\" & 'OGC API Parameters'!C$717,\"postgis::\" & 'OGC API Parameters'!C$717)),\"\")","v":""},{"$f":"IF('OGC API Parameters'!$C$10=\"Vector / Vectoriel\",IF(AND(ISBLANK('OGC API Parameters'!C$716),ISBLANK('OGC API Parameters'!B$716)),\"\",IF(LEFT('OGC API Parameters'!C$17,4)=\"CDTK\",IF(OR(ISBLANK('Generic Parameters'!C$11),LEN('OGC API Parameters'!C$716)=0),\"#\",LOWER('Generic Parameters'!C$11)),IF('OGC API Parameters'!C$716=\"\",\"#\",'OGC API Parameters'!C$716))),\"\")","v":""},{"$f":"IF(AND(ISNUMBER(SEARCH(\"Features\",'OGC API Parameters'!C$11)),NOT(ISBLANK('OGC API Parameters'!B$718))),IF(ISBLANK('OGC API Parameters'!C$718),\"fid\",'OGC API Parameters'!C$718),\"\")","v":""},{"$f":"IF(AND(ISNUMBER(SEARCH(\"Features\",'OGC API Parameters'!C$11)),NOT(ISBLANK('OGC API Parameters'!B$719))),IF(ISBLANK('OGC API Parameters'!C$719),\"geom\",'OGC API Parameters'!C$719),\"\")","v":""},null,null,{"$f":"IF(AND(ISNUMBER(SEARCH(\"Maps\",'OGC API Parameters'!C$11)),NOT(ISBLANK('OGC API Parameters'!B$721))),IF(ISBLANK('OGC API Parameters'!C$721),\"#\",'OGC API Parameters'!C$721),\"\")","v":""},{"$f":"IF(AND(ISNUMBER(SEARCH(\"Maps\",'OGC API Parameters'!C$11)),NOT(ISBLANK('OGC API Parameters'!B$722))),IF(ISBLANK('OGC API Parameters'!C$722),\"#\",'OGC API Parameters'!C$722),\"\")","v":""},{"$f":"IF(AND(ISNUMBER(SEARCH(\"Maps\",'OGC API Parameters'!C$11)),NOT(ISBLANK('OGC API Parameters'!B$723))),IF(ISBLANK('OGC API Parameters'!C$723),\"#\",'OGC API Parameters'!C$723),\"\")","v":""},{"$f":"IF(AND(ISNUMBER(SEARCH(\"Maps\",'OGC API Parameters'!C$11)),NOT(ISBLANK('OGC API Parameters'!B$724))),IF(ISBLANK('OGC API Parameters'!C$724),\"default\",'OGC API Parameters'!C$724),\"\")","v":""}]
[null,null,null,null,null,null,null,null,null,null,null,null,null,null,null,null,null,null,null,null,null,null,null,null,null,{"$f":"IF(ISBLANK('OGC API Parameters'!$C$736),IF(ISBLANK('OGC API Parameters'!$B$736),\"\",\"#\"),'OGC API Parameters'!$C$736)","v":""},null,null,null,null,null,{"$f":"IF(ISBLANK('OGC API Parameters'!$C$752),IF(ISBLANK('OGC API Parameters'!$B$752),\"\",\"#\"),SUBSTITUTE('OGC API Parameters'!$C$752,CHAR(10),\"\\n\"))","v":""},{"$f":"IF(ISBLANK('OGC API Parameters'!$D$752),IF(ISBLANK('OGC API Parameters'!$B$752),\"\",\"#\"),SUBSTITUTE('OGC API Parameters'!$D$752,CHAR(10),\"\\n\"))","v":""},{"$f":"IF(ISBLANK('OGC API Parameters'!$B$753),\"\",\"#\")","v":""},{"$f":"IF(ISBLANK('OGC API Parameters'!$B$753),\"\",\"#\")","v":""},{"$f":"IF(ISBLANK('OGC API Parameters'!$C$751),IF(ISBLANK('OGC API Parameters'!$B$751),\"\",\"#\"),'OGC API Parameters'!$C$751)","v":""},{"$f":"IF(ISBLANK('OGC API Parameters'!$D$751),IF(ISBLANK('OGC API Parameters'!$B$751),\"\",\"#\"),'OGC API Parameters'!$D$751)","v":""},{"$f":"IF(ISBLANK('OGC API Parameters'!$C$746),IF(ISBLANK('OGC API Parameters'!$B$746),\"\",\"#\"),'OGC API Parameters'!$C$746)","v":""},{"$f":"IF(ISBLANK('OGC API Parameters'!$C$747),IF(ISBLANK('OGC API Parameters'!$B$747),\"\",\"#\"),\"[\" & 'OGC API Parameters'!$C$747 & \"]\")","v":""},{"$f":"IF(ISBLANK('OGC API Parameters'!$C$747),\"\",\"http://www.opengis.net/def/crs/OGC/1.3/CRS84\")","v":""},{"$f":"IF(ISBLANK('OGC API Parameters'!$C$748),IF(ISBLANK('OGC API Parameters'!$B$748),\"\",\"#\"),'OGC API Parameters'!$C$748)","v":""},{"$f":"IF(ISBLANK('OGC API Parameters'!$C$749),IF(ISBLANK('OGC API Parameters'!$B$749),\"\",\"\"),'OGC API Parameters'!$C$749)","v":""},{"$f":"IF('OGC API Parameters'!$C$10=\"Raster / Matriciel\",IF(ISBLANK('OGC API Parameters'!C$737),IF(ISBLANK('OGC API Parameters'!B$737),\"\",\"#\"),\"/\" & 'OGC API Parameters'!C$737),\"\")","v":""},{"$f":"IF('OGC API Parameters'!$C$10=\"Raster / Matriciel\",IF(ISBLANK('OGC API Parameters'!C$738),IF(ISBLANK('OGC API Parameters'!B$738),\"\",\"#\"),'OGC API Parameters'!C$738),\"\")","v":""},null,null,"[]",{"$f":"IF('OGC API Parameters'!$C$10=\"Vector / Vectoriel\",IF(OR(ISBLANK('OGC API Parameters'!C$737),ISBLANK('OGC API Parameters'!C$738)),IF(ISBLANK('OGC API Parameters'!B$738),\"\",\"#\"),IF(AND('OGC API Parameters'!C$17=\"CDTK Datastores (Geopackage provided) / Dépôts du CODC (Géopackage fourni)\",'Generic Parameters'!C18=\"No / Non\"),\"gpkg::\" & 'OGC API Parameters'!C$737 & IF(RIGHT('OGC API Parameters'!C$737,5)<>\".gpkg\",\".gpkg\",\"\") & \"|\" & 'OGC API Parameters'!C$738,\"postgis::\" & 'OGC API Parameters'!C$738)),\"\")","v":""},{"$f":"IF('OGC API Parameters'!$C$10=\"Vector / Vectoriel\",IF(AND(ISBLANK('OGC API Parameters'!C$737),ISBLANK('OGC API Parameters'!B$737)),\"\",IF(LEFT('OGC API Parameters'!C$17,4)=\"CDTK\",IF(OR(ISBLANK('Generic Parameters'!C$11),LEN('OGC API Parameters'!C$737)=0),\"#\",LOWER('Generic Parameters'!C$11)),IF('OGC API Parameters'!C$737=\"\",\"#\",'OGC API Parameters'!C$737))),\"\")","v":""},{"$f":"IF(AND(ISNUMBER(SEARCH(\"Features\",'OGC API Parameters'!C$11)),NOT(ISBLANK('OGC API Parameters'!B$739))),IF(ISBLANK('OGC API Parameters'!C$739),\"fid\",'OGC API Parameters'!C$739),\"\")","v":""},{"$f":"IF(AND(ISNUMBER(SEARCH(\"Features\",'OGC API Parameters'!C$11)),NOT(ISBLANK('OGC API Parameters'!B$740))),IF(ISBLANK('OGC API Parameters'!C$740),\"geom\",'OGC API Parameters'!C$740),\"\")","v":""},null,null,{"$f":"IF(AND(ISNUMBER(SEARCH(\"Maps\",'OGC API Parameters'!C$11)),NOT(ISBLANK('OGC API Parameters'!B$742))),IF(ISBLANK('OGC API Parameters'!C$742),\"#\",'OGC API Parameters'!C$742),\"\")","v":""},{"$f":"IF(AND(ISNUMBER(SEARCH(\"Maps\",'OGC API Parameters'!C$11)),NOT(ISBLANK('OGC API Parameters'!B$743))),IF(ISBLANK('OGC API Parameters'!C$743),\"#\",'OGC API Parameters'!C$743),\"\")","v":""},{"$f":"IF(AND(ISNUMBER(SEARCH(\"Maps\",'OGC API Parameters'!C$11)),NOT(ISBLANK('OGC API Parameters'!B$744))),IF(ISBLANK('OGC API Parameters'!C$744),\"#\",'OGC API Parameters'!C$744),\"\")","v":""},{"$f":"IF(AND(ISNUMBER(SEARCH(\"Maps\",'OGC API Parameters'!C$11)),NOT(ISBLANK('OGC API Parameters'!B$745))),IF(ISBLANK('OGC API Parameters'!C$745),\"default\",'OGC API Parameters'!C$745),\"\")","v":""}]
[null,null,null,null,null,null,null,null,null,null,null,null,null,null,null,null,null,null,null,null,null,null,null,null,null,{"$f":"IF(ISBLANK('OGC API Parameters'!$C$757),IF(ISBLANK('OGC API Parameters'!$B$757),\"\",\"#\"),'OGC API Parameters'!$C$757)","v":""},null,null,null,null,null,{"$f":"IF(ISBLANK('OGC API Parameters'!$C$773),IF(ISBLANK('OGC API Parameters'!$B$773),\"\",\"#\"),SUBSTITUTE('OGC API Parameters'!$C$773,CHAR(10),\"\\n\"))","v":""},{"$f":"IF(ISBLANK('OGC API Parameters'!$D$773),IF(ISBLANK('OGC API Parameters'!$B$773),\"\",\"#\"),SUBSTITUTE('OGC API Parameters'!$D$773,CHAR(10),\"\\n\"))","v":""},{"$f":"IF(ISBLANK('OGC API Parameters'!$B$774),\"\",\"#\")","v":""},{"$f":"IF(ISBLANK('OGC API Parameters'!$B$774),\"\",\"#\")","v":""},{"$f":"IF(ISBLANK('OGC API Parameters'!$C$772),IF(ISBLANK('OGC API Parameters'!$B$772),\"\",\"#\"),'OGC API Parameters'!$C$772)","v":""},{"$f":"IF(ISBLANK('OGC API Parameters'!$D$772),IF(ISBLANK('OGC API Parameters'!$B$772),\"\",\"#\"),'OGC API Parameters'!$D$772)","v":""},{"$f":"IF(ISBLANK('OGC API Parameters'!$C$767),IF(ISBLANK('OGC API Parameters'!$B$767),\"\",\"#\"),'OGC API Parameters'!$C$767)","v":""},{"$f":"IF(ISBLANK('OGC API Parameters'!$C$768),IF(ISBLANK('OGC API Parameters'!$B$768),\"\",\"#\"),\"[\" & 'OGC API Parameters'!$C$768 & \"]\")","v":""},{"$f":"IF(ISBLANK('OGC API Parameters'!$C$768),\"\",\"http://www.opengis.net/def/crs/OGC/1.3/CRS84\")","v":""},{"$f":"IF(ISBLANK('OGC API Parameters'!$C$769),IF(ISBLANK('OGC API Parameters'!$B$769),\"\",\"#\"),'OGC API Parameters'!$C$769)","v":""},{"$f":"IF(ISBLANK('OGC API Parameters'!$C$770),IF(ISBLANK('OGC API Parameters'!$B$770),\"\",\"\"),'OGC API Parameters'!$C$770)","v":""},{"$f":"IF('OGC API Parameters'!$C$10=\"Raster / Matriciel\",IF(ISBLANK('OGC API Parameters'!C$758),IF(ISBLANK('OGC API Parameters'!B$758),\"\",\"#\"),\"/\" & 'OGC API Parameters'!C$758),\"\")","v":""},{"$f":"IF('OGC API Parameters'!$C$10=\"Raster / Matriciel\",IF(ISBLANK('OGC API Parameters'!C$759),IF(ISBLANK('OGC API Parameters'!B$759),\"\",\"#\"),'OGC API Parameters'!C$759),\"\")","v":""},null,null,"[]",{"$f":"IF('OGC API Parameters'!$C$10=\"Vector / Vectoriel\",IF(OR(ISBLANK('OGC API Parameters'!C$758),ISBLANK('OGC API Parameters'!C$759)),IF(ISBLANK('OGC API Parameters'!B$759),\"\",\"#\"),IF(AND('OGC API Parameters'!C$17=\"CDTK Datastores (Geopackage provided) / Dépôts du CODC (Géopackage fourni)\",'Generic Parameters'!C18=\"No / Non\"),\"gpkg::\" & 'OGC API Parameters'!C$758 & IF(RIGHT('OGC API Parameters'!C$758,5)<>\".gpkg\",\".gpkg\",\"\") & \"|\" & 'OGC API Parameters'!C$759,\"postgis::\" & 'OGC API Parameters'!C$759)),\"\")","v":""},{"$f":"IF('OGC API Parameters'!$C$10=\"Vector / Vectoriel\",IF(AND(ISBLANK('OGC API Parameters'!C$758),ISBLANK('OGC API Parameters'!B$758)),\"\",IF(LEFT('OGC API Parameters'!C$17,4)=\"CDTK\",IF(OR(ISBLANK('Generic Parameters'!C$11),LEN('OGC API Parameters'!C$758)=0),\"#\",LOWER('Generic Parameters'!C$11)),IF('OGC API Parameters'!C$758=\"\",\"#\",'OGC API Parameters'!C$758))),\"\")","v":""},{"$f":"IF(AND(ISNUMBER(SEARCH(\"Features\",'OGC API Parameters'!C$11)),NOT(ISBLANK('OGC API Parameters'!B$760))),IF(ISBLANK('OGC API Parameters'!C$760),\"fid\",'OGC API Parameters'!C$760),\"\")","v":""},{"$f":"IF(AND(ISNUMBER(SEARCH(\"Features\",'OGC API Parameters'!C$11)),NOT(ISBLANK('OGC API Parameters'!B$761))),IF(ISBLANK('OGC API Parameters'!C$761),\"geom\",'OGC API Parameters'!C$761),\"\")","v":""},null,null,{"$f":"IF(AND(ISNUMBER(SEARCH(\"Maps\",'OGC API Parameters'!C$11)),NOT(ISBLANK('OGC API Parameters'!B$763))),IF(ISBLANK('OGC API Parameters'!C$763),\"#\",'OGC API Parameters'!C$763),\"\")","v":""},{"$f":"IF(AND(ISNUMBER(SEARCH(\"Maps\",'OGC API Parameters'!C$11)),NOT(ISBLANK('OGC API Parameters'!B$764))),IF(ISBLANK('OGC API Parameters'!C$764),\"#\",'OGC API Parameters'!C$764),\"\")","v":""},{"$f":"IF(AND(ISNUMBER(SEARCH(\"Maps\",'OGC API Parameters'!C$11)),NOT(ISBLANK('OGC API Parameters'!B$765))),IF(ISBLANK('OGC API Parameters'!C$765),\"#\",'OGC API Parameters'!C$765),\"\")","v":""},{"$f":"IF(AND(ISNUMBER(SEARCH(\"Maps\",'OGC API Parameters'!C$11)),NOT(ISBLANK('OGC API Parameters'!B$766))),IF(ISBLANK('OGC API Parameters'!C$766),\"default\",'OGC API Parameters'!C$766),\"\")","v":""}]
[null,null,null,null,null,null,null,null,null,null,null,null,null,null,null,null,null,null,null,null,null,null,null,null,null,{"$f":"IF(ISBLANK('OGC API Parameters'!$C$778),IF(ISBLANK('OGC API Parameters'!$B$778),\"\",\"#\"),'OGC API Parameters'!$C$778)","v":""},null,null,null,null,null,{"$f":"IF(ISBLANK('OGC API Parameters'!$C$794),IF(ISBLANK('OGC API Parameters'!$B$794),\"\",\"#\"),SUBSTITUTE('OGC API Parameters'!$C$794,CHAR(10),\"\\n\"))","v":""},{"$f":"IF(ISBLANK('OGC API Parameters'!$D$794),IF(ISBLANK('OGC API Parameters'!$B$794),\"\",\"#\"),SUBSTITUTE('OGC API Parameters'!$D$794,CHAR(10),\"\\n\"))","v":""},{"$f":"IF(ISBLANK('OGC API Parameters'!$B$795),\"\",\"#\")","v":""},{"$f":"IF(ISBLANK('OGC API Parameters'!$B$795),\"\",\"#\")","v":""},{"$f":"IF(ISBLANK('OGC API Parameters'!$C$793),IF(ISBLANK('OGC API Parameters'!$B$793),\"\",\"#\"),'OGC API Parameters'!$C$793)","v":""},{"$f":"IF(ISBLANK('OGC API Parameters'!$D$793),IF(ISBLANK('OGC API Parameters'!$B$793),\"\",\"#\"),'OGC API Parameters'!$D$793)","v":""},{"$f":"IF(ISBLANK('OGC API Parameters'!$C$788),IF(ISBLANK('OGC API Parameters'!$B$788),\"\",\"#\"),'OGC API Parameters'!$C$788)","v":""},{"$f":"IF(ISBLANK('OGC API Parameters'!$C$789),IF(ISBLANK('OGC API Parameters'!$B$789),\"\",\"#\"),\"[\" & 'OGC API Parameters'!$C$789 & \"]\")","v":""},{"$f":"IF(ISBLANK('OGC API Parameters'!$C$789),\"\",\"http://www.opengis.net/def/crs/OGC/1.3/CRS84\")","v":""},{"$f":"IF(ISBLANK('OGC API Parameters'!$C$790),IF(ISBLANK('OGC API Parameters'!$B$790),\"\",\"#\"),'OGC API Parameters'!$C$790)","v":""},{"$f":"IF(ISBLANK('OGC API Parameters'!$C$791),IF(ISBLANK('OGC API Parameters'!$B$791),\"\",\"\"),'OGC API Parameters'!$C$791)","v":""},{"$f":"IF('OGC API Parameters'!$C$10=\"Raster / Matriciel\",IF(ISBLANK('OGC API Parameters'!C$779),IF(ISBLANK('OGC API Parameters'!B$779),\"\",\"#\"),\"/\" & 'OGC API Parameters'!C$779),\"\")","v":""},{"$f":"IF('OGC API Parameters'!$C$10=\"Raster / Matriciel\",IF(ISBLANK('OGC API Parameters'!C$780),IF(ISBLANK('OGC API Parameters'!B$780),\"\",\"#\"),'OGC API Parameters'!C$780),\"\")","v":""},null,null,"[]",{"$f":"IF('OGC API Parameters'!$C$10=\"Vector / Vectoriel\",IF(OR(ISBLANK('OGC API Parameters'!C$779),ISBLANK('OGC API Parameters'!C$780)),IF(ISBLANK('OGC API Parameters'!B$780),\"\",\"#\"),IF(AND('OGC API Parameters'!C$17=\"CDTK Datastores (Geopackage provided) / Dépôts du CODC (Géopackage fourni)\",'Generic Parameters'!C18=\"No / Non\"),\"gpkg::\" & 'OGC API Parameters'!C$779 & IF(RIGHT('OGC API Parameters'!C$779,5)<>\".gpkg\",\".gpkg\",\"\") & \"|\" & 'OGC API Parameters'!C$780,\"postgis::\" & 'OGC API Parameters'!C$780)),\"\")","v":""},{"$f":"IF('OGC API Parameters'!$C$10=\"Vector / Vectoriel\",IF(AND(ISBLANK('OGC API Parameters'!C$779),ISBLANK('OGC API Parameters'!B$779)),\"\",IF(LEFT('OGC API Parameters'!C$17,4)=\"CDTK\",IF(OR(ISBLANK('Generic Parameters'!C$11),LEN('OGC API Parameters'!C$779)=0),\"#\",LOWER('Generic Parameters'!C$11)),IF('OGC API Parameters'!C$779=\"\",\"#\",'OGC API Parameters'!C$779))),\"\")","v":""},{"$f":"IF(AND(ISNUMBER(SEARCH(\"Features\",'OGC API Parameters'!C$11)),NOT(ISBLANK('OGC API Parameters'!B$781))),IF(ISBLANK('OGC API Parameters'!C$781),\"fid\",'OGC API Parameters'!C$781),\"\")","v":""},{"$f":"IF(AND(ISNUMBER(SEARCH(\"Features\",'OGC API Parameters'!C$11)),NOT(ISBLANK('OGC API Parameters'!B$782))),IF(ISBLANK('OGC API Parameters'!C$782),\"geom\",'OGC API Parameters'!C$782),\"\")","v":""},null,null,{"$f":"IF(AND(ISNUMBER(SEARCH(\"Maps\",'OGC API Parameters'!C$11)),NOT(ISBLANK('OGC API Parameters'!B$784))),IF(ISBLANK('OGC API Parameters'!C$784),\"#\",'OGC API Parameters'!C$784),\"\")","v":""},{"$f":"IF(AND(ISNUMBER(SEARCH(\"Maps\",'OGC API Parameters'!C$11)),NOT(ISBLANK('OGC API Parameters'!B$785))),IF(ISBLANK('OGC API Parameters'!C$785),\"#\",'OGC API Parameters'!C$785),\"\")","v":""},{"$f":"IF(AND(ISNUMBER(SEARCH(\"Maps\",'OGC API Parameters'!C$11)),NOT(ISBLANK('OGC API Parameters'!B$786))),IF(ISBLANK('OGC API Parameters'!C$786),\"#\",'OGC API Parameters'!C$786),\"\")","v":""},{"$f":"IF(AND(ISNUMBER(SEARCH(\"Maps\",'OGC API Parameters'!C$11)),NOT(ISBLANK('OGC API Parameters'!B$787))),IF(ISBLANK('OGC API Parameters'!C$787),\"default\",'OGC API Parameters'!C$787),\"\")","v":""}]
[null,null,null,null,null,null,null,null,null,null,null,null,null,null,null,null,null,null,null,null,null,null,null,null,null,{"$f":"IF(ISBLANK('OGC API Parameters'!$C$799),IF(ISBLANK('OGC API Parameters'!$B$799),\"\",\"#\"),'OGC API Parameters'!$C$799)","v":""},null,null,null,null,null,{"$f":"IF(ISBLANK('OGC API Parameters'!$C$815),IF(ISBLANK('OGC API Parameters'!$B$815),\"\",\"#\"),SUBSTITUTE('OGC API Parameters'!$C$815,CHAR(10),\"\\n\"))","v":""},{"$f":"IF(ISBLANK('OGC API Parameters'!$D$815),IF(ISBLANK('OGC API Parameters'!$B$815),\"\",\"#\"),SUBSTITUTE('OGC API Parameters'!$D$815,CHAR(10),\"\\n\"))","v":""},{"$f":"IF(ISBLANK('OGC API Parameters'!$B$816),\"\",\"#\")","v":""},{"$f":"IF(ISBLANK('OGC API Parameters'!$B$816),\"\",\"#\")","v":""},{"$f":"IF(ISBLANK('OGC API Parameters'!$C$814),IF(ISBLANK('OGC API Parameters'!$B$814),\"\",\"#\"),'OGC API Parameters'!$C$814)","v":""},{"$f":"IF(ISBLANK('OGC API Parameters'!$D$814),IF(ISBLANK('OGC API Parameters'!$B$814),\"\",\"#\"),'OGC API Parameters'!$D$814)","v":""},{"$f":"IF(ISBLANK('OGC API Parameters'!$C$809),IF(ISBLANK('OGC API Parameters'!$B$809),\"\",\"#\"),'OGC API Parameters'!$C$809)","v":""},{"$f":"IF(ISBLANK('OGC API Parameters'!$C$810),IF(ISBLANK('OGC API Parameters'!$B$810),\"\",\"#\"),\"[\" & 'OGC API Parameters'!$C$810 & \"]\")","v":""},{"$f":"IF(ISBLANK('OGC API Parameters'!$C$810),\"\",\"http://www.opengis.net/def/crs/OGC/1.3/CRS84\")","v":""},{"$f":"IF(ISBLANK('OGC API Parameters'!$C$811),IF(ISBLANK('OGC API Parameters'!$B$811),\"\",\"#\"),'OGC API Parameters'!$C$811)","v":""},{"$f":"IF(ISBLANK('OGC API Parameters'!$C$812),IF(ISBLANK('OGC API Parameters'!$B$812),\"\",\"\"),'OGC API Parameters'!$C$812)","v":""},{"$f":"IF('OGC API Parameters'!$C$10=\"Raster / Matriciel\",IF(ISBLANK('OGC API Parameters'!C$800),IF(ISBLANK('OGC API Parameters'!B$800),\"\",\"#\"),\"/\" & 'OGC API Parameters'!C$800),\"\")","v":""},{"$f":"IF('OGC API Parameters'!$C$10=\"Raster / Matriciel\",IF(ISBLANK('OGC API Parameters'!C$801),IF(ISBLANK('OGC API Parameters'!B$801),\"\",\"#\"),'OGC API Parameters'!C$801),\"\")","v":""},null,null,"[]",{"$f":"IF('OGC API Parameters'!$C$10=\"Vector / Vectoriel\",IF(OR(ISBLANK('OGC API Parameters'!C$800),ISBLANK('OGC API Parameters'!C$801)),IF(ISBLANK('OGC API Parameters'!B$801),\"\",\"#\"),IF(AND('OGC API Parameters'!C$17=\"CDTK Datastores (Geopackage provided) / Dépôts du CODC (Géopackage fourni)\",'Generic Parameters'!C18=\"No / Non\"),\"gpkg::\" & 'OGC API Parameters'!C$800 & IF(RIGHT('OGC API Parameters'!C$800,5)<>\".gpkg\",\".gpkg\",\"\") & \"|\" & 'OGC API Parameters'!C$801,\"postgis::\" & 'OGC API Parameters'!C$801)),\"\")","v":""},{"$f":"IF('OGC API Parameters'!$C$10=\"Vector / Vectoriel\",IF(AND(ISBLANK('OGC API Parameters'!C$800),ISBLANK('OGC API Parameters'!B$800)),\"\",IF(LEFT('OGC API Parameters'!C$17,4)=\"CDTK\",IF(OR(ISBLANK('Generic Parameters'!C$11),LEN('OGC API Parameters'!C$800)=0),\"#\",LOWER('Generic Parameters'!C$11)),IF('OGC API Parameters'!C$800=\"\",\"#\",'OGC API Parameters'!C$800))),\"\")","v":""},{"$f":"IF(AND(ISNUMBER(SEARCH(\"Features\",'OGC API Parameters'!C$11)),NOT(ISBLANK('OGC API Parameters'!B$802))),IF(ISBLANK('OGC API Parameters'!C$802),\"fid\",'OGC API Parameters'!C$802),\"\")","v":""},{"$f":"IF(AND(ISNUMBER(SEARCH(\"Features\",'OGC API Parameters'!C$11)),NOT(ISBLANK('OGC API Parameters'!B$803))),IF(ISBLANK('OGC API Parameters'!C$803),\"geom\",'OGC API Parameters'!C$803),\"\")","v":""},null,null,{"$f":"IF(AND(ISNUMBER(SEARCH(\"Maps\",'OGC API Parameters'!C$11)),NOT(ISBLANK('OGC API Parameters'!B$805))),IF(ISBLANK('OGC API Parameters'!C$805),\"#\",'OGC API Parameters'!C$805),\"\")","v":""},{"$f":"IF(AND(ISNUMBER(SEARCH(\"Maps\",'OGC API Parameters'!C$11)),NOT(ISBLANK('OGC API Parameters'!B$806))),IF(ISBLANK('OGC API Parameters'!C$806),\"#\",'OGC API Parameters'!C$806),\"\")","v":""},{"$f":"IF(AND(ISNUMBER(SEARCH(\"Maps\",'OGC API Parameters'!C$11)),NOT(ISBLANK('OGC API Parameters'!B$807))),IF(ISBLANK('OGC API Parameters'!C$807),\"#\",'OGC API Parameters'!C$807),\"\")","v":""},{"$f":"IF(AND(ISNUMBER(SEARCH(\"Maps\",'OGC API Parameters'!C$11)),NOT(ISBLANK('OGC API Parameters'!B$808))),IF(ISBLANK('OGC API Parameters'!C$808),\"default\",'OGC API Parameters'!C$808),\"\")","v":""}]
[null,null,null,null,null,null,null,null,null,null,null,null,null,null,null,null,null,null,null,null,null,null,null,null,null,{"$f":"IF(ISBLANK('OGC API Parameters'!$C$820),IF(ISBLANK('OGC API Parameters'!$B$820),\"\",\"#\"),'OGC API Parameters'!$C$820)","v":""},null,null,null,null,null,{"$f":"IF(ISBLANK('OGC API Parameters'!$C$836),IF(ISBLANK('OGC API Parameters'!$B$836),\"\",\"#\"),SUBSTITUTE('OGC API Parameters'!$C$836,CHAR(10),\"\\n\"))","v":""},{"$f":"IF(ISBLANK('OGC API Parameters'!$D$836),IF(ISBLANK('OGC API Parameters'!$B$836),\"\",\"#\"),SUBSTITUTE('OGC API Parameters'!$D$836,CHAR(10),\"\\n\"))","v":""},{"$f":"IF(ISBLANK('OGC API Parameters'!$B$837),\"\",\"#\")","v":""},{"$f":"IF(ISBLANK('OGC API Parameters'!$B$837),\"\",\"#\")","v":""},{"$f":"IF(ISBLANK('OGC API Parameters'!$C$835),IF(ISBLANK('OGC API Parameters'!$B$835),\"\",\"#\"),'OGC API Parameters'!$C$835)","v":""},{"$f":"IF(ISBLANK('OGC API Parameters'!$D$835),IF(ISBLANK('OGC API Parameters'!$B$835),\"\",\"#\"),'OGC API Parameters'!$D$835)","v":""},{"$f":"IF(ISBLANK('OGC API Parameters'!$C$830),IF(ISBLANK('OGC API Parameters'!$B$830),\"\",\"#\"),'OGC API Parameters'!$C$830)","v":""},{"$f":"IF(ISBLANK('OGC API Parameters'!$C$831),IF(ISBLANK('OGC API Parameters'!$B$831),\"\",\"#\"),\"[\" & 'OGC API Parameters'!$C$831 & \"]\")","v":""},{"$f":"IF(ISBLANK('OGC API Parameters'!$C$831),\"\",\"http://www.opengis.net/def/crs/OGC/1.3/CRS84\")","v":""},{"$f":"IF(ISBLANK('OGC API Parameters'!$C$832),IF(ISBLANK('OGC API Parameters'!$B$832),\"\",\"#\"),'OGC API Parameters'!$C$832)","v":""},{"$f":"IF(ISBLANK('OGC API Parameters'!$C$833),IF(ISBLANK('OGC API Parameters'!$B$833),\"\",\"\"),'OGC API Parameters'!$C$833)","v":""},{"$f":"IF('OGC API Parameters'!$C$10=\"Raster / Matriciel\",IF(ISBLANK('OGC API Parameters'!C$821),IF(ISBLANK('OGC API Parameters'!B$821),\"\",\"#\"),\"/\" & 'OGC API Parameters'!C$821),\"\")","v":""},{"$f":"IF('OGC API Parameters'!$C$10=\"Raster / Matriciel\",IF(ISBLANK('OGC API Parameters'!C$822),IF(ISBLANK('OGC API Parameters'!B$822),\"\",\"#\"),'OGC API Parameters'!C$822),\"\")","v":""},null,null,"[]",{"$f":"IF('OGC API Parameters'!$C$10=\"Vector / Vectoriel\",IF(OR(ISBLANK('OGC API Parameters'!C$821),ISBLANK('OGC API Parameters'!C$822)),IF(ISBLANK('OGC API Parameters'!B$822),\"\",\"#\"),IF(AND('OGC API Parameters'!C$17=\"CDTK Datastores (Geopackage provided) / Dépôts du CODC (Géopackage fourni)\",'Generic Parameters'!C18=\"No / Non\"),\"gpkg::\" & 'OGC API Parameters'!C$821 & IF(RIGHT('OGC API Parameters'!C$821,5)<>\".gpkg\",\".gpkg\",\"\") & \"|\" & 'OGC API Parameters'!C$822,\"postgis::\" & 'OGC API Parameters'!C$822)),\"\")","v":""},{"$f":"IF('OGC API Parameters'!$C$10=\"Vector / Vectoriel\",IF(AND(ISBLANK('OGC API Parameters'!C$821),ISBLANK('OGC API Parameters'!B$821)),\"\",IF(LEFT('OGC API Parameters'!C$17,4)=\"CDTK\",IF(OR(ISBLANK('Generic Parameters'!C$11),LEN('OGC API Parameters'!C$821)=0),\"#\",LOWER('Generic Parameters'!C$11)),IF('OGC API Parameters'!C$821=\"\",\"#\",'OGC API Parameters'!C$821))),\"\")","v":""},{"$f":"IF(AND(ISNUMBER(SEARCH(\"Features\",'OGC API Parameters'!C$11)),NOT(ISBLANK('OGC API Parameters'!B$823))),IF(ISBLANK('OGC API Parameters'!C$823),\"fid\",'OGC API Parameters'!C$823),\"\")","v":""},{"$f":"IF(AND(ISNUMBER(SEARCH(\"Features\",'OGC API Parameters'!C$11)),NOT(ISBLANK('OGC API Parameters'!B$824))),IF(ISBLANK('OGC API Parameters'!C$824),\"geom\",'OGC API Parameters'!C$824),\"\")","v":""},null,null,{"$f":"IF(AND(ISNUMBER(SEARCH(\"Maps\",'OGC API Parameters'!C$11)),NOT(ISBLANK('OGC API Parameters'!B$826))),IF(ISBLANK('OGC API Parameters'!C$826),\"#\",'OGC API Parameters'!C$826),\"\")","v":""},{"$f":"IF(AND(ISNUMBER(SEARCH(\"Maps\",'OGC API Parameters'!C$11)),NOT(ISBLANK('OGC API Parameters'!B$827))),IF(ISBLANK('OGC API Parameters'!C$827),\"#\",'OGC API Parameters'!C$827),\"\")","v":""},{"$f":"IF(AND(ISNUMBER(SEARCH(\"Maps\",'OGC API Parameters'!C$11)),NOT(ISBLANK('OGC API Parameters'!B$828))),IF(ISBLANK('OGC API Parameters'!C$828),\"#\",'OGC API Parameters'!C$828),\"\")","v":""},{"$f":"IF(AND(ISNUMBER(SEARCH(\"Maps\",'OGC API Parameters'!C$11)),NOT(ISBLANK('OGC API Parameters'!B$829))),IF(ISBLANK('OGC API Parameters'!C$829),\"default\",'OGC API Parameters'!C$829),\"\")","v":""}]
[null,null,null,null,null,null,null,null,null,null,null,null,null,null,null,null,null,null,null,null,null,null,null,null,null,{"$f":"IF(ISBLANK('OGC API Parameters'!$C$841),IF(ISBLANK('OGC API Parameters'!$B$841),\"\",\"#\"),'OGC API Parameters'!$C$841)","v":""},null,null,null,null,null,{"$f":"IF(ISBLANK('OGC API Parameters'!$C$857),IF(ISBLANK('OGC API Parameters'!$B$857),\"\",\"#\"),SUBSTITUTE('OGC API Parameters'!$C$857,CHAR(10),\"\\n\"))","v":""},{"$f":"IF(ISBLANK('OGC API Parameters'!$D$857),IF(ISBLANK('OGC API Parameters'!$B$857),\"\",\"#\"),SUBSTITUTE('OGC API Parameters'!$D$857,CHAR(10),\"\\n\"))","v":""},{"$f":"IF(ISBLANK('OGC API Parameters'!$B$858),\"\",\"#\")","v":""},{"$f":"IF(ISBLANK('OGC API Parameters'!$B$858),\"\",\"#\")","v":""},{"$f":"IF(ISBLANK('OGC API Parameters'!$C$856),IF(ISBLANK('OGC API Parameters'!$B$856),\"\",\"#\"),'OGC API Parameters'!$C$856)","v":""},{"$f":"IF(ISBLANK('OGC API Parameters'!$D$856),IF(ISBLANK('OGC API Parameters'!$B$856),\"\",\"#\"),'OGC API Parameters'!$D$856)","v":""},{"$f":"IF(ISBLANK('OGC API Parameters'!$C$851),IF(ISBLANK('OGC API Parameters'!$B$851),\"\",\"#\"),'OGC API Parameters'!$C$851)","v":""},{"$f":"IF(ISBLANK('OGC API Parameters'!$C$852),IF(ISBLANK('OGC API Parameters'!$B$852),\"\",\"#\"),\"[\" & 'OGC API Parameters'!$C$852 & \"]\")","v":""},{"$f":"IF(ISBLANK('OGC API Parameters'!$C$852),\"\",\"http://www.opengis.net/def/crs/OGC/1.3/CRS84\")","v":""},{"$f":"IF(ISBLANK('OGC API Parameters'!$C$853),IF(ISBLANK('OGC API Parameters'!$B$853),\"\",\"#\"),'OGC API Parameters'!$C$853)","v":""},{"$f":"IF(ISBLANK('OGC API Parameters'!$C$854),IF(ISBLANK('OGC API Parameters'!$B$854),\"\",\"\"),'OGC API Parameters'!$C$854)","v":""},{"$f":"IF('OGC API Parameters'!$C$10=\"Raster / Matriciel\",IF(ISBLANK('OGC API Parameters'!C$842),IF(ISBLANK('OGC API Parameters'!B$842),\"\",\"#\"),\"/\" & 'OGC API Parameters'!C$842),\"\")","v":""},{"$f":"IF('OGC API Parameters'!$C$10=\"Raster / Matriciel\",IF(ISBLANK('OGC API Parameters'!C$843),IF(ISBLANK('OGC API Parameters'!B$843),\"\",\"#\"),'OGC API Parameters'!C$843),\"\")","v":""},null,null,"[]",{"$f":"IF('OGC API Parameters'!$C$10=\"Vector / Vectoriel\",IF(OR(ISBLANK('OGC API Parameters'!C$842),ISBLANK('OGC API Parameters'!C$843)),IF(ISBLANK('OGC API Parameters'!B$843),\"\",\"#\"),IF(AND('OGC API Parameters'!C$17=\"CDTK Datastores (Geopackage provided) / Dépôts du CODC (Géopackage fourni)\",'Generic Parameters'!C18=\"No / Non\"),\"gpkg::\" & 'OGC API Parameters'!C$842 & IF(RIGHT('OGC API Parameters'!C$842,5)<>\".gpkg\",\".gpkg\",\"\") & \"|\" & 'OGC API Parameters'!C$843,\"postgis::\" & 'OGC API Parameters'!C$843)),\"\")","v":""},{"$f":"IF('OGC API Parameters'!$C$10=\"Vector / Vectoriel\",IF(AND(ISBLANK('OGC API Parameters'!C$842),ISBLANK('OGC API Parameters'!B$842)),\"\",IF(LEFT('OGC API Parameters'!C$17,4)=\"CDTK\",IF(OR(ISBLANK('Generic Parameters'!C$11),LEN('OGC API Parameters'!C$842)=0),\"#\",LOWER('Generic Parameters'!C$11)),IF('OGC API Parameters'!C$842=\"\",\"#\",'OGC API Parameters'!C$842))),\"\")","v":""},{"$f":"IF(AND(ISNUMBER(SEARCH(\"Features\",'OGC API Parameters'!C$11)),NOT(ISBLANK('OGC API Parameters'!B$844))),IF(ISBLANK('OGC API Parameters'!C$844),\"fid\",'OGC API Parameters'!C$844),\"\")","v":""},{"$f":"IF(AND(ISNUMBER(SEARCH(\"Features\",'OGC API Parameters'!C$11)),NOT(ISBLANK('OGC API Parameters'!B$845))),IF(ISBLANK('OGC API Parameters'!C$845),\"geom\",'OGC API Parameters'!C$845),\"\")","v":""},null,null,{"$f":"IF(AND(ISNUMBER(SEARCH(\"Maps\",'OGC API Parameters'!C$11)),NOT(ISBLANK('OGC API Parameters'!B$847))),IF(ISBLANK('OGC API Parameters'!C$847),\"#\",'OGC API Parameters'!C$847),\"\")","v":""},{"$f":"IF(AND(ISNUMBER(SEARCH(\"Maps\",'OGC API Parameters'!C$11)),NOT(ISBLANK('OGC API Parameters'!B$848))),IF(ISBLANK('OGC API Parameters'!C$848),\"#\",'OGC API Parameters'!C$848),\"\")","v":""},{"$f":"IF(AND(ISNUMBER(SEARCH(\"Maps\",'OGC API Parameters'!C$11)),NOT(ISBLANK('OGC API Parameters'!B$849))),IF(ISBLANK('OGC API Parameters'!C$849),\"#\",'OGC API Parameters'!C$849),\"\")","v":""},{"$f":"IF(AND(ISNUMBER(SEARCH(\"Maps\",'OGC API Parameters'!C$11)),NOT(ISBLANK('OGC API Parameters'!B$850))),IF(ISBLANK('OGC API Parameters'!C$850),\"default\",'OGC API Parameters'!C$850),\"\")","v":""}]
[null,null,null,null,null,null,null,null,null,null,null,null,null,null,null,null,null,null,null,null,null,null,null,null,null,{"$f":"IF(ISBLANK('OGC API Parameters'!$C$862),IF(ISBLANK('OGC API Parameters'!$B$862),\"\",\"#\"),'OGC API Parameters'!$C$862)","v":""},null,null,null,null,null,{"$f":"IF(ISBLANK('OGC API Parameters'!$C$878),IF(ISBLANK('OGC API Parameters'!$B$878),\"\",\"#\"),SUBSTITUTE('OGC API Parameters'!$C$878,CHAR(10),\"\\n\"))","v":""},{"$f":"IF(ISBLANK('OGC API Parameters'!$D$878),IF(ISBLANK('OGC API Parameters'!$B$878),\"\",\"#\"),SUBSTITUTE('OGC API Parameters'!$D$878,CHAR(10),\"\\n\"))","v":""},{"$f":"IF(ISBLANK('OGC API Parameters'!$B$879),\"\",\"#\")","v":""},{"$f":"IF(ISBLANK('OGC API Parameters'!$B$879),\"\",\"#\")","v":""},{"$f":"IF(ISBLANK('OGC API Parameters'!$C$877),IF(ISBLANK('OGC API Parameters'!$B$877),\"\",\"#\"),'OGC API Parameters'!$C$877)","v":""},{"$f":"IF(ISBLANK('OGC API Parameters'!$D$877),IF(ISBLANK('OGC API Parameters'!$B$877),\"\",\"#\"),'OGC API Parameters'!$D$877)","v":""},{"$f":"IF(ISBLANK('OGC API Parameters'!$C$872),IF(ISBLANK('OGC API Parameters'!$B$872),\"\",\"#\"),'OGC API Parameters'!$C$872)","v":""},{"$f":"IF(ISBLANK('OGC API Parameters'!$C$873),IF(ISBLANK('OGC API Parameters'!$B$873),\"\",\"#\"),\"[\" & 'OGC API Parameters'!$C$873 & \"]\")","v":""},{"$f":"IF(ISBLANK('OGC API Parameters'!$C$873),\"\",\"http://www.opengis.net/def/crs/OGC/1.3/CRS84\")","v":""},{"$f":"IF(ISBLANK('OGC API Parameters'!$C$874),IF(ISBLANK('OGC API Parameters'!$B$874),\"\",\"#\"),'OGC API Parameters'!$C$874)","v":""},{"$f":"IF(ISBLANK('OGC API Parameters'!$C$875),IF(ISBLANK('OGC API Parameters'!$B$875),\"\",\"\"),'OGC API Parameters'!$C$875)","v":""},{"$f":"IF('OGC API Parameters'!$C$10=\"Raster / Matriciel\",IF(ISBLANK('OGC API Parameters'!C$863),IF(ISBLANK('OGC API Parameters'!B$863),\"\",\"#\"),\"/\" & 'OGC API Parameters'!C$863),\"\")","v":""},{"$f":"IF('OGC API Parameters'!$C$10=\"Raster / Matriciel\",IF(ISBLANK('OGC API Parameters'!C$864),IF(ISBLANK('OGC API Parameters'!B$864),\"\",\"#\"),'OGC API Parameters'!C$864),\"\")","v":""},null,null,"[]",{"$f":"IF('OGC API Parameters'!$C$10=\"Vector / Vectoriel\",IF(OR(ISBLANK('OGC API Parameters'!C$863),ISBLANK('OGC API Parameters'!C$864)),IF(ISBLANK('OGC API Parameters'!B$864),\"\",\"#\"),IF(AND('OGC API Parameters'!C$17=\"CDTK Datastores (Geopackage provided) / Dépôts du CODC (Géopackage fourni)\",'Generic Parameters'!C18=\"No / Non\"),\"gpkg::\" & 'OGC API Parameters'!C$863 & IF(RIGHT('OGC API Parameters'!C$863,5)<>\".gpkg\",\".gpkg\",\"\") & \"|\" & 'OGC API Parameters'!C$864,\"postgis::\" & 'OGC API Parameters'!C$864)),\"\")","v":""},{"$f":"IF('OGC API Parameters'!$C$10=\"Vector / Vectoriel\",IF(AND(ISBLANK('OGC API Parameters'!C$863),ISBLANK('OGC API Parameters'!B$863)),\"\",IF(LEFT('OGC API Parameters'!C$17,4)=\"CDTK\",IF(OR(ISBLANK('Generic Parameters'!C$11),LEN('OGC API Parameters'!C$863)=0),\"#\",LOWER('Generic Parameters'!C$11)),IF('OGC API Parameters'!C$863=\"\",\"#\",'OGC API Parameters'!C$863))),\"\")","v":""},{"$f":"IF(AND(ISNUMBER(SEARCH(\"Features\",'OGC API Parameters'!C$11)),NOT(ISBLANK('OGC API Parameters'!B$865))),IF(ISBLANK('OGC API Parameters'!C$865),\"fid\",'OGC API Parameters'!C$865),\"\")","v":""},{"$f":"IF(AND(ISNUMBER(SEARCH(\"Features\",'OGC API Parameters'!C$11)),NOT(ISBLANK('OGC API Parameters'!B$866))),IF(ISBLANK('OGC API Parameters'!C$866),\"geom\",'OGC API Parameters'!C$866),\"\")","v":""},null,null,{"$f":"IF(AND(ISNUMBER(SEARCH(\"Maps\",'OGC API Parameters'!C$11)),NOT(ISBLANK('OGC API Parameters'!B$868))),IF(ISBLANK('OGC API Parameters'!C$868),\"#\",'OGC API Parameters'!C$868),\"\")","v":""},{"$f":"IF(AND(ISNUMBER(SEARCH(\"Maps\",'OGC API Parameters'!C$11)),NOT(ISBLANK('OGC API Parameters'!B$869))),IF(ISBLANK('OGC API Parameters'!C$869),\"#\",'OGC API Parameters'!C$869),\"\")","v":""},{"$f":"IF(AND(ISNUMBER(SEARCH(\"Maps\",'OGC API Parameters'!C$11)),NOT(ISBLANK('OGC API Parameters'!B$870))),IF(ISBLANK('OGC API Parameters'!C$870),\"#\",'OGC API Parameters'!C$870),\"\")","v":""},{"$f":"IF(AND(ISNUMBER(SEARCH(\"Maps\",'OGC API Parameters'!C$11)),NOT(ISBLANK('OGC API Parameters'!B$871))),IF(ISBLANK('OGC API Parameters'!C$871),\"default\",'OGC API Parameters'!C$871),\"\")","v":""}]
[null,null,null,null,null,null,null,null,null,null,null,null,null,null,null,null,null,null,null,null,null,null,null,null,null,{"$f":"IF(ISBLANK('OGC API Parameters'!$C$883),IF(ISBLANK('OGC API Parameters'!$B$883),\"\",\"#\"),'OGC API Parameters'!$C$883)","v":""},null,null,null,null,null,{"$f":"IF(ISBLANK('OGC API Parameters'!$C$899),IF(ISBLANK('OGC API Parameters'!$B$899),\"\",\"#\"),SUBSTITUTE('OGC API Parameters'!$C$899,CHAR(10),\"\\n\"))","v":""},{"$f":"IF(ISBLANK('OGC API Parameters'!$D$899),IF(ISBLANK('OGC API Parameters'!$B$899),\"\",\"#\"),SUBSTITUTE('OGC API Parameters'!$D$899,CHAR(10),\"\\n\"))","v":""},{"$f":"IF(ISBLANK('OGC API Parameters'!$B$900),\"\",\"#\")","v":""},{"$f":"IF(ISBLANK('OGC API Parameters'!$B$900),\"\",\"#\")","v":""},{"$f":"IF(ISBLANK('OGC API Parameters'!$C$898),IF(ISBLANK('OGC API Parameters'!$B$898),\"\",\"#\"),'OGC API Parameters'!$C$898)","v":""},{"$f":"IF(ISBLANK('OGC API Parameters'!$D$898),IF(ISBLANK('OGC API Parameters'!$B$898),\"\",\"#\"),'OGC API Parameters'!$D$898)","v":""},{"$f":"IF(ISBLANK('OGC API Parameters'!$C$893),IF(ISBLANK('OGC API Parameters'!$B$893),\"\",\"#\"),'OGC API Parameters'!$C$893)","v":""},{"$f":"IF(ISBLANK('OGC API Parameters'!$C$894),IF(ISBLANK('OGC API Parameters'!$B$894),\"\",\"#\"),\"[\" & 'OGC API Parameters'!$C$894 & \"]\")","v":""},{"$f":"IF(ISBLANK('OGC API Parameters'!$C$894),\"\",\"http://www.opengis.net/def/crs/OGC/1.3/CRS84\")","v":""},{"$f":"IF(ISBLANK('OGC API Parameters'!$C$895),IF(ISBLANK('OGC API Parameters'!$B$895),\"\",\"#\"),'OGC API Parameters'!$C$895)","v":""},{"$f":"IF(ISBLANK('OGC API Parameters'!$C$896),IF(ISBLANK('OGC API Parameters'!$B$896),\"\",\"\"),'OGC API Parameters'!$C$896)","v":""},{"$f":"IF('OGC API Parameters'!$C$10=\"Raster / Matriciel\",IF(ISBLANK('OGC API Parameters'!C$884),IF(ISBLANK('OGC API Parameters'!B$884),\"\",\"#\"),\"/\" & 'OGC API Parameters'!C$884),\"\")","v":""},{"$f":"IF('OGC API Parameters'!$C$10=\"Raster / Matriciel\",IF(ISBLANK('OGC API Parameters'!C$885),IF(ISBLANK('OGC API Parameters'!B$885),\"\",\"#\"),'OGC API Parameters'!C$885),\"\")","v":""},null,null,"[]",{"$f":"IF('OGC API Parameters'!$C$10=\"Vector / Vectoriel\",IF(OR(ISBLANK('OGC API Parameters'!C$884),ISBLANK('OGC API Parameters'!C$885)),IF(ISBLANK('OGC API Parameters'!B$885),\"\",\"#\"),IF(AND('OGC API Parameters'!C$17=\"CDTK Datastores (Geopackage provided) / Dépôts du CODC (Géopackage fourni)\",'Generic Parameters'!C18=\"No / Non\"),\"gpkg::\" & 'OGC API Parameters'!C$884 & IF(RIGHT('OGC API Parameters'!C$884,5)<>\".gpkg\",\".gpkg\",\"\") & \"|\" & 'OGC API Parameters'!C$885,\"postgis::\" & 'OGC API Parameters'!C$885)),\"\")","v":""},{"$f":"IF('OGC API Parameters'!$C$10=\"Vector / Vectoriel\",IF(AND(ISBLANK('OGC API Parameters'!C$884),ISBLANK('OGC API Parameters'!B$884)),\"\",IF(LEFT('OGC API Parameters'!C$17,4)=\"CDTK\",IF(OR(ISBLANK('Generic Parameters'!C$11),LEN('OGC API Parameters'!C$884)=0),\"#\",LOWER('Generic Parameters'!C$11)),IF('OGC API Parameters'!C$884=\"\",\"#\",'OGC API Parameters'!C$884))),\"\")","v":""},{"$f":"IF(AND(ISNUMBER(SEARCH(\"Features\",'OGC API Parameters'!C$11)),NOT(ISBLANK('OGC API Parameters'!B$886))),IF(ISBLANK('OGC API Parameters'!C$886),\"fid\",'OGC API Parameters'!C$886),\"\")","v":""},{"$f":"IF(AND(ISNUMBER(SEARCH(\"Features\",'OGC API Parameters'!C$11)),NOT(ISBLANK('OGC API Parameters'!B$887))),IF(ISBLANK('OGC API Parameters'!C$887),\"geom\",'OGC API Parameters'!C$887),\"\")","v":""},null,null,{"$f":"IF(AND(ISNUMBER(SEARCH(\"Maps\",'OGC API Parameters'!C$11)),NOT(ISBLANK('OGC API Parameters'!B$889))),IF(ISBLANK('OGC API Parameters'!C$889),\"#\",'OGC API Parameters'!C$889),\"\")","v":""},{"$f":"IF(AND(ISNUMBER(SEARCH(\"Maps\",'OGC API Parameters'!C$11)),NOT(ISBLANK('OGC API Parameters'!B$890))),IF(ISBLANK('OGC API Parameters'!C$890),\"#\",'OGC API Parameters'!C$890),\"\")","v":""},{"$f":"IF(AND(ISNUMBER(SEARCH(\"Maps\",'OGC API Parameters'!C$11)),NOT(ISBLANK('OGC API Parameters'!B$891))),IF(ISBLANK('OGC API Parameters'!C$891),\"#\",'OGC API Parameters'!C$891),\"\")","v":""},{"$f":"IF(AND(ISNUMBER(SEARCH(\"Maps\",'OGC API Parameters'!C$11)),NOT(ISBLANK('OGC API Parameters'!B$892))),IF(ISBLANK('OGC API Parameters'!C$892),\"default\",'OGC API Parameters'!C$892),\"\")","v":""}]
[null,null,null,null,null,null,null,null,null,null,null,null,null,null,null,null,null,null,null,null,null,null,null,null,null,{"$f":"IF(ISBLANK('OGC API Parameters'!$C$904),IF(ISBLANK('OGC API Parameters'!$B$904),\"\",\"#\"),'OGC API Parameters'!$C$904)","v":""},null,null,null,null,null,{"$f":"IF(ISBLANK('OGC API Parameters'!$C$920),IF(ISBLANK('OGC API Parameters'!$B$920),\"\",\"#\"),SUBSTITUTE('OGC API Parameters'!$C$920,CHAR(10),\"\\n\"))","v":""},{"$f":"IF(ISBLANK('OGC API Parameters'!$D$920),IF(ISBLANK('OGC API Parameters'!$B$920),\"\",\"#\"),SUBSTITUTE('OGC API Parameters'!$D$920,CHAR(10),\"\\n\"))","v":""},{"$f":"IF(ISBLANK('OGC API Parameters'!$B$921),\"\",\"#\")","v":""},{"$f":"IF(ISBLANK('OGC API Parameters'!$B$921),\"\",\"#\")","v":""},{"$f":"IF(ISBLANK('OGC API Parameters'!$C$919),IF(ISBLANK('OGC API Parameters'!$B$919),\"\",\"#\"),'OGC API Parameters'!$C$919)","v":""},{"$f":"IF(ISBLANK('OGC API Parameters'!$D$919),IF(ISBLANK('OGC API Parameters'!$B$919),\"\",\"#\"),'OGC API Parameters'!$D$919)","v":""},{"$f":"IF(ISBLANK('OGC API Parameters'!$C$914),IF(ISBLANK('OGC API Parameters'!$B$914),\"\",\"#\"),'OGC API Parameters'!$C$914)","v":""},{"$f":"IF(ISBLANK('OGC API Parameters'!$C$915),IF(ISBLANK('OGC API Parameters'!$B$915),\"\",\"#\"),\"[\" & 'OGC API Parameters'!$C$915 & \"]\")","v":""},{"$f":"IF(ISBLANK('OGC API Parameters'!$C$915),\"\",\"http://www.opengis.net/def/crs/OGC/1.3/CRS84\")","v":""},{"$f":"IF(ISBLANK('OGC API Parameters'!$C$916),IF(ISBLANK('OGC API Parameters'!$B$916),\"\",\"#\"),'OGC API Parameters'!$C$916)","v":""},{"$f":"IF(ISBLANK('OGC API Parameters'!$C$917),IF(ISBLANK('OGC API Parameters'!$B$917),\"\",\"\"),'OGC API Parameters'!$C$917)","v":""},{"$f":"IF('OGC API Parameters'!$C$10=\"Raster / Matriciel\",IF(ISBLANK('OGC API Parameters'!C$905),IF(ISBLANK('OGC API Parameters'!B$905),\"\",\"#\"),\"/\" & 'OGC API Parameters'!C$905),\"\")","v":""},{"$f":"IF('OGC API Parameters'!$C$10=\"Raster / Matriciel\",IF(ISBLANK('OGC API Parameters'!C$906),IF(ISBLANK('OGC API Parameters'!B$906),\"\",\"#\"),'OGC API Parameters'!C$906),\"\")","v":""},null,null,"[]",{"$f":"IF('OGC API Parameters'!$C$10=\"Vector / Vectoriel\",IF(OR(ISBLANK('OGC API Parameters'!C$905),ISBLANK('OGC API Parameters'!C$906)),IF(ISBLANK('OGC API Parameters'!B$906),\"\",\"#\"),IF(AND('OGC API Parameters'!C$17=\"CDTK Datastores (Geopackage provided) / Dépôts du CODC (Géopackage fourni)\",'Generic Parameters'!C18=\"No / Non\"),\"gpkg::\" & 'OGC API Parameters'!C$905 & IF(RIGHT('OGC API Parameters'!C$905,5)<>\".gpkg\",\".gpkg\",\"\") & \"|\" & 'OGC API Parameters'!C$906,\"postgis::\" & 'OGC API Parameters'!C$906)),\"\")","v":""},{"$f":"IF('OGC API Parameters'!$C$10=\"Vector / Vectoriel\",IF(AND(ISBLANK('OGC API Parameters'!C$905),ISBLANK('OGC API Parameters'!B$905)),\"\",IF(LEFT('OGC API Parameters'!C$17,4)=\"CDTK\",IF(OR(ISBLANK('Generic Parameters'!C$11),LEN('OGC API Parameters'!C$905)=0),\"#\",LOWER('Generic Parameters'!C$11)),IF('OGC API Parameters'!C$905=\"\",\"#\",'OGC API Parameters'!C$905))),\"\")","v":""},{"$f":"IF(AND(ISNUMBER(SEARCH(\"Features\",'OGC API Parameters'!C$11)),NOT(ISBLANK('OGC API Parameters'!B$907))),IF(ISBLANK('OGC API Parameters'!C$907),\"fid\",'OGC API Parameters'!C$907),\"\")","v":""},{"$f":"IF(AND(ISNUMBER(SEARCH(\"Features\",'OGC API Parameters'!C$11)),NOT(ISBLANK('OGC API Parameters'!B$908))),IF(ISBLANK('OGC API Parameters'!C$908),\"geom\",'OGC API Parameters'!C$908),\"\")","v":""},null,null,{"$f":"IF(AND(ISNUMBER(SEARCH(\"Maps\",'OGC API Parameters'!C$11)),NOT(ISBLANK('OGC API Parameters'!B$910))),IF(ISBLANK('OGC API Parameters'!C$910),\"#\",'OGC API Parameters'!C$910),\"\")","v":""},{"$f":"IF(AND(ISNUMBER(SEARCH(\"Maps\",'OGC API Parameters'!C$11)),NOT(ISBLANK('OGC API Parameters'!B$911))),IF(ISBLANK('OGC API Parameters'!C$911),\"#\",'OGC API Parameters'!C$911),\"\")","v":""},{"$f":"IF(AND(ISNUMBER(SEARCH(\"Maps\",'OGC API Parameters'!C$11)),NOT(ISBLANK('OGC API Parameters'!B$912))),IF(ISBLANK('OGC API Parameters'!C$912),\"#\",'OGC API Parameters'!C$912),\"\")","v":""},{"$f":"IF(AND(ISNUMBER(SEARCH(\"Maps\",'OGC API Parameters'!C$11)),NOT(ISBLANK('OGC API Parameters'!B$913))),IF(ISBLANK('OGC API Parameters'!C$913),\"default\",'OGC API Parameters'!C$913),\"\")","v":""}]
[null,null,null,null,null,null,null,null,null,null,null,null,null,null,null,null,null,null,null,null,null,null,null,null,null,{"$f":"IF(ISBLANK('OGC API Parameters'!$C$925),IF(ISBLANK('OGC API Parameters'!$B$925),\"\",\"#\"),'OGC API Parameters'!$C$925)","v":""},null,null,null,null,null,{"$f":"IF(ISBLANK('OGC API Parameters'!$C$941),IF(ISBLANK('OGC API Parameters'!$B$941),\"\",\"#\"),SUBSTITUTE('OGC API Parameters'!$C$941,CHAR(10),\"\\n\"))","v":""},{"$f":"IF(ISBLANK('OGC API Parameters'!$D$941),IF(ISBLANK('OGC API Parameters'!$B$941),\"\",\"#\"),SUBSTITUTE('OGC API Parameters'!$D$941,CHAR(10),\"\\n\"))","v":""},{"$f":"IF(ISBLANK('OGC API Parameters'!$B$942),\"\",\"#\")","v":""},{"$f":"IF(ISBLANK('OGC API Parameters'!$B$942),\"\",\"#\")","v":""},{"$f":"IF(ISBLANK('OGC API Parameters'!$C$940),IF(ISBLANK('OGC API Parameters'!$B$940),\"\",\"#\"),'OGC API Parameters'!$C$940)","v":""},{"$f":"IF(ISBLANK('OGC API Parameters'!$D$940),IF(ISBLANK('OGC API Parameters'!$B$940),\"\",\"#\"),'OGC API Parameters'!$D$940)","v":""},{"$f":"IF(ISBLANK('OGC API Parameters'!$C$935),IF(ISBLANK('OGC API Parameters'!$B$935),\"\",\"#\"),'OGC API Parameters'!$C$935)","v":""},{"$f":"IF(ISBLANK('OGC API Parameters'!$C$936),IF(ISBLANK('OGC API Parameters'!$B$936),\"\",\"#\"),\"[\" & 'OGC API Parameters'!$C$936 & \"]\")","v":""},{"$f":"IF(ISBLANK('OGC API Parameters'!$C$936),\"\",\"http://www.opengis.net/def/crs/OGC/1.3/CRS84\")","v":""},{"$f":"IF(ISBLANK('OGC API Parameters'!$C$937),IF(ISBLANK('OGC API Parameters'!$B$937),\"\",\"#\"),'OGC API Parameters'!$C$937)","v":""},{"$f":"IF(ISBLANK('OGC API Parameters'!$C$938),IF(ISBLANK('OGC API Parameters'!$B$938),\"\",\"\"),'OGC API Parameters'!$C$938)","v":""},{"$f":"IF('OGC API Parameters'!$C$10=\"Raster / Matriciel\",IF(ISBLANK('OGC API Parameters'!C$926),IF(ISBLANK('OGC API Parameters'!B$926),\"\",\"#\"),\"/\" & 'OGC API Parameters'!C$926),\"\")","v":""},{"$f":"IF('OGC API Parameters'!$C$10=\"Raster / Matriciel\",IF(ISBLANK('OGC API Parameters'!C$927),IF(ISBLANK('OGC API Parameters'!B$927),\"\",\"#\"),'OGC API Parameters'!C$927),\"\")","v":""},null,null,"[]",{"$f":"IF('OGC API Parameters'!$C$10=\"Vector / Vectoriel\",IF(OR(ISBLANK('OGC API Parameters'!C$926),ISBLANK('OGC API Parameters'!C$927)),IF(ISBLANK('OGC API Parameters'!B$927),\"\",\"#\"),IF(AND('OGC API Parameters'!C$17=\"CDTK Datastores (Geopackage provided) / Dépôts du CODC (Géopackage fourni)\",'Generic Parameters'!C18=\"No / Non\"),\"gpkg::\" & 'OGC API Parameters'!C$926 & IF(RIGHT('OGC API Parameters'!C$926,5)<>\".gpkg\",\".gpkg\",\"\") & \"|\" & 'OGC API Parameters'!C$927,\"postgis::\" & 'OGC API Parameters'!C$927)),\"\")","v":""},{"$f":"IF('OGC API Parameters'!$C$10=\"Vector / Vectoriel\",IF(AND(ISBLANK('OGC API Parameters'!C$926),ISBLANK('OGC API Parameters'!B$926)),\"\",IF(LEFT('OGC API Parameters'!C$17,4)=\"CDTK\",IF(OR(ISBLANK('Generic Parameters'!C$11),LEN('OGC API Parameters'!C$926)=0),\"#\",LOWER('Generic Parameters'!C$11)),IF('OGC API Parameters'!C$926=\"\",\"#\",'OGC API Parameters'!C$926))),\"\")","v":""},{"$f":"IF(AND(ISNUMBER(SEARCH(\"Features\",'OGC API Parameters'!C$11)),NOT(ISBLANK('OGC API Parameters'!B$928))),IF(ISBLANK('OGC API Parameters'!C$928),\"fid\",'OGC API Parameters'!C$928),\"\")","v":""},{"$f":"IF(AND(ISNUMBER(SEARCH(\"Features\",'OGC API Parameters'!C$11)),NOT(ISBLANK('OGC API Parameters'!B$929))),IF(ISBLANK('OGC API Parameters'!C$929),\"geom\",'OGC API Parameters'!C$929),\"\")","v":""},null,null,{"$f":"IF(AND(ISNUMBER(SEARCH(\"Maps\",'OGC API Parameters'!C$11)),NOT(ISBLANK('OGC API Parameters'!B$931))),IF(ISBLANK('OGC API Parameters'!C$931),\"#\",'OGC API Parameters'!C$931),\"\")","v":""},{"$f":"IF(AND(ISNUMBER(SEARCH(\"Maps\",'OGC API Parameters'!C$11)),NOT(ISBLANK('OGC API Parameters'!B$932))),IF(ISBLANK('OGC API Parameters'!C$932),\"#\",'OGC API Parameters'!C$932),\"\")","v":""},{"$f":"IF(AND(ISNUMBER(SEARCH(\"Maps\",'OGC API Parameters'!C$11)),NOT(ISBLANK('OGC API Parameters'!B$933))),IF(ISBLANK('OGC API Parameters'!C$933),\"#\",'OGC API Parameters'!C$933),\"\")","v":""},{"$f":"IF(AND(ISNUMBER(SEARCH(\"Maps\",'OGC API Parameters'!C$11)),NOT(ISBLANK('OGC API Parameters'!B$934))),IF(ISBLANK('OGC API Parameters'!C$934),\"default\",'OGC API Parameters'!C$934),\"\")","v":""}]
[null,null,null,null,null,null,null,null,null,null,null,null,null,null,null,null,null,null,null,null,null,null,null,null,null,{"$f":"IF(ISBLANK('OGC API Parameters'!$C$946),IF(ISBLANK('OGC API Parameters'!$B$946),\"\",\"#\"),'OGC API Parameters'!$C$946)","v":""},null,null,null,null,null,{"$f":"IF(ISBLANK('OGC API Parameters'!$C$962),IF(ISBLANK('OGC API Parameters'!$B$962),\"\",\"#\"),SUBSTITUTE('OGC API Parameters'!$C$962,CHAR(10),\"\\n\"))","v":""},{"$f":"IF(ISBLANK('OGC API Parameters'!$D$962),IF(ISBLANK('OGC API Parameters'!$B$962),\"\",\"#\"),SUBSTITUTE('OGC API Parameters'!$D$962,CHAR(10),\"\\n\"))","v":""},{"$f":"IF(ISBLANK('OGC API Parameters'!$B$963),\"\",\"#\")","v":""},{"$f":"IF(ISBLANK('OGC API Parameters'!$B$963),\"\",\"#\")","v":""},{"$f":"IF(ISBLANK('OGC API Parameters'!$C$961),IF(ISBLANK('OGC API Parameters'!$B$961),\"\",\"#\"),'OGC API Parameters'!$C$961)","v":""},{"$f":"IF(ISBLANK('OGC API Parameters'!$D$961),IF(ISBLANK('OGC API Parameters'!$B$961),\"\",\"#\"),'OGC API Parameters'!$D$961)","v":""},{"$f":"IF(ISBLANK('OGC API Parameters'!$C$956),IF(ISBLANK('OGC API Parameters'!$B$956),\"\",\"#\"),'OGC API Parameters'!$C$956)","v":""},{"$f":"IF(ISBLANK('OGC API Parameters'!$C$957),IF(ISBLANK('OGC API Parameters'!$B$957),\"\",\"#\"),\"[\" & 'OGC API Parameters'!$C$957 & \"]\")","v":""},{"$f":"IF(ISBLANK('OGC API Parameters'!$C$957),\"\",\"http://www.opengis.net/def/crs/OGC/1.3/CRS84\")","v":""},{"$f":"IF(ISBLANK('OGC API Parameters'!$C$958),IF(ISBLANK('OGC API Parameters'!$B$958),\"\",\"#\"),'OGC API Parameters'!$C$958)","v":""},{"$f":"IF(ISBLANK('OGC API Parameters'!$C$959),IF(ISBLANK('OGC API Parameters'!$B$959),\"\",\"\"),'OGC API Parameters'!$C$959)","v":""},{"$f":"IF('OGC API Parameters'!$C$10=\"Raster / Matriciel\",IF(ISBLANK('OGC API Parameters'!C$947),IF(ISBLANK('OGC API Parameters'!B$947),\"\",\"#\"),\"/\" & 'OGC API Parameters'!C$947),\"\")","v":""},{"$f":"IF('OGC API Parameters'!$C$10=\"Raster / Matriciel\",IF(ISBLANK('OGC API Parameters'!C$948),IF(ISBLANK('OGC API Parameters'!B$948),\"\",\"#\"),'OGC API Parameters'!C$948),\"\")","v":""},null,null,"[]",{"$f":"IF('OGC API Parameters'!$C$10=\"Vector / Vectoriel\",IF(OR(ISBLANK('OGC API Parameters'!C$947),ISBLANK('OGC API Parameters'!C$948)),IF(ISBLANK('OGC API Parameters'!B$948),\"\",\"#\"),IF(AND('OGC API Parameters'!C$17=\"CDTK Datastores (Geopackage provided) / Dépôts du CODC (Géopackage fourni)\",'Generic Parameters'!C18=\"No / Non\"),\"gpkg::\" & 'OGC API Parameters'!C$947 & IF(RIGHT('OGC API Parameters'!C$947,5)<>\".gpkg\",\".gpkg\",\"\") & \"|\" & 'OGC API Parameters'!C$948,\"postgis::\" & 'OGC API Parameters'!C$948)),\"\")","v":""},{"$f":"IF('OGC API Parameters'!$C$10=\"Vector / Vectoriel\",IF(AND(ISBLANK('OGC API Parameters'!C$947),ISBLANK('OGC API Parameters'!B$947)),\"\",IF(LEFT('OGC API Parameters'!C$17,4)=\"CDTK\",IF(OR(ISBLANK('Generic Parameters'!C$11),LEN('OGC API Parameters'!C$947)=0),\"#\",LOWER('Generic Parameters'!C$11)),IF('OGC API Parameters'!C$947=\"\",\"#\",'OGC API Parameters'!C$947))),\"\")","v":""},{"$f":"IF(AND(ISNUMBER(SEARCH(\"Features\",'OGC API Parameters'!C$11)),NOT(ISBLANK('OGC API Parameters'!B$949))),IF(ISBLANK('OGC API Parameters'!C$949),\"fid\",'OGC API Parameters'!C$949),\"\")","v":""},{"$f":"IF(AND(ISNUMBER(SEARCH(\"Features\",'OGC API Parameters'!C$11)),NOT(ISBLANK('OGC API Parameters'!B$950))),IF(ISBLANK('OGC API Parameters'!C$950),\"geom\",'OGC API Parameters'!C$950),\"\")","v":""},null,null,{"$f":"IF(AND(ISNUMBER(SEARCH(\"Maps\",'OGC API Parameters'!C$11)),NOT(ISBLANK('OGC API Parameters'!B$952))),IF(ISBLANK('OGC API Parameters'!C$952),\"#\",'OGC API Parameters'!C$952),\"\")","v":""},{"$f":"IF(AND(ISNUMBER(SEARCH(\"Maps\",'OGC API Parameters'!C$11)),NOT(ISBLANK('OGC API Parameters'!B$953))),IF(ISBLANK('OGC API Parameters'!C$953),\"#\",'OGC API Parameters'!C$953),\"\")","v":""},{"$f":"IF(AND(ISNUMBER(SEARCH(\"Maps\",'OGC API Parameters'!C$11)),NOT(ISBLANK('OGC API Parameters'!B$954))),IF(ISBLANK('OGC API Parameters'!C$954),\"#\",'OGC API Parameters'!C$954),\"\")","v":""},{"$f":"IF(AND(ISNUMBER(SEARCH(\"Maps\",'OGC API Parameters'!C$11)),NOT(ISBLANK('OGC API Parameters'!B$955))),IF(ISBLANK('OGC API Parameters'!C$955),\"default\",'OGC API Parameters'!C$955),\"\")","v":""}]
[null,null,null,null,null,null,null,null,null,null,null,null,null,null,null,null,null,null,null,null,null,null,null,null,null,{"$f":"IF(ISBLANK('OGC API Parameters'!$C$967),IF(ISBLANK('OGC API Parameters'!$B$967),\"\",\"#\"),'OGC API Parameters'!$C$967)","v":""},null,null,null,null,null,{"$f":"IF(ISBLANK('OGC API Parameters'!$C$983),IF(ISBLANK('OGC API Parameters'!$B$983),\"\",\"#\"),SUBSTITUTE('OGC API Parameters'!$C$983,CHAR(10),\"\\n\"))","v":""},{"$f":"IF(ISBLANK('OGC API Parameters'!$D$983),IF(ISBLANK('OGC API Parameters'!$B$983),\"\",\"#\"),SUBSTITUTE('OGC API Parameters'!$D$983,CHAR(10),\"\\n\"))","v":""},{"$f":"IF(ISBLANK('OGC API Parameters'!$B$984),\"\",\"#\")","v":""},{"$f":"IF(ISBLANK('OGC API Parameters'!$B$984),\"\",\"#\")","v":""},{"$f":"IF(ISBLANK('OGC API Parameters'!$C$982),IF(ISBLANK('OGC API Parameters'!$B$982),\"\",\"#\"),'OGC API Parameters'!$C$982)","v":""},{"$f":"IF(ISBLANK('OGC API Parameters'!$D$982),IF(ISBLANK('OGC API Parameters'!$B$982),\"\",\"#\"),'OGC API Parameters'!$D$982)","v":""},{"$f":"IF(ISBLANK('OGC API Parameters'!$C$977),IF(ISBLANK('OGC API Parameters'!$B$977),\"\",\"#\"),'OGC API Parameters'!$C$977)","v":""},{"$f":"IF(ISBLANK('OGC API Parameters'!$C$978),IF(ISBLANK('OGC API Parameters'!$B$978),\"\",\"#\"),\"[\" & 'OGC API Parameters'!$C$978 & \"]\")","v":""},{"$f":"IF(ISBLANK('OGC API Parameters'!$C$978),\"\",\"http://www.opengis.net/def/crs/OGC/1.3/CRS84\")","v":""},{"$f":"IF(ISBLANK('OGC API Parameters'!$C$979),IF(ISBLANK('OGC API Parameters'!$B$979),\"\",\"#\"),'OGC API Parameters'!$C$979)","v":""},{"$f":"IF(ISBLANK('OGC API Parameters'!$C$980),IF(ISBLANK('OGC API Parameters'!$B$980),\"\",\"\"),'OGC API Parameters'!$C$980)","v":""},{"$f":"IF('OGC API Parameters'!$C$10=\"Raster / Matriciel\",IF(ISBLANK('OGC API Parameters'!C$968),IF(ISBLANK('OGC API Parameters'!B$968),\"\",\"#\"),\"/\" & 'OGC API Parameters'!C$968),\"\")","v":""},{"$f":"IF('OGC API Parameters'!$C$10=\"Raster / Matriciel\",IF(ISBLANK('OGC API Parameters'!C$969),IF(ISBLANK('OGC API Parameters'!B$969),\"\",\"#\"),'OGC API Parameters'!C$969),\"\")","v":""},null,null,"[]",{"$f":"IF('OGC API Parameters'!$C$10=\"Vector / Vectoriel\",IF(OR(ISBLANK('OGC API Parameters'!C$968),ISBLANK('OGC API Parameters'!C$969)),IF(ISBLANK('OGC API Parameters'!B$969),\"\",\"#\"),IF(AND('OGC API Parameters'!C$17=\"CDTK Datastores (Geopackage provided) / Dépôts du CODC (Géopackage fourni)\",'Generic Parameters'!C18=\"No / Non\"),\"gpkg::\" & 'OGC API Parameters'!C$968 & IF(RIGHT('OGC API Parameters'!C$968,5)<>\".gpkg\",\".gpkg\",\"\") & \"|\" & 'OGC API Parameters'!C$969,\"postgis::\" & 'OGC API Parameters'!C$969)),\"\")","v":""},{"$f":"IF('OGC API Parameters'!$C$10=\"Vector / Vectoriel\",IF(AND(ISBLANK('OGC API Parameters'!C$968),ISBLANK('OGC API Parameters'!B$968)),\"\",IF(LEFT('OGC API Parameters'!C$17,4)=\"CDTK\",IF(OR(ISBLANK('Generic Parameters'!C$11),LEN('OGC API Parameters'!C$968)=0),\"#\",LOWER('Generic Parameters'!C$11)),IF('OGC API Parameters'!C$968=\"\",\"#\",'OGC API Parameters'!C$968))),\"\")","v":""},{"$f":"IF(AND(ISNUMBER(SEARCH(\"Features\",'OGC API Parameters'!C$11)),NOT(ISBLANK('OGC API Parameters'!B$970))),IF(ISBLANK('OGC API Parameters'!C$970),\"fid\",'OGC API Parameters'!C$970),\"\")","v":""},{"$f":"IF(AND(ISNUMBER(SEARCH(\"Features\",'OGC API Parameters'!C$11)),NOT(ISBLANK('OGC API Parameters'!B$971))),IF(ISBLANK('OGC API Parameters'!C$971),\"geom\",'OGC API Parameters'!C$971),\"\")","v":""},null,null,{"$f":"IF(AND(ISNUMBER(SEARCH(\"Maps\",'OGC API Parameters'!C$11)),NOT(ISBLANK('OGC API Parameters'!B$973))),IF(ISBLANK('OGC API Parameters'!C$973),\"#\",'OGC API Parameters'!C$973),\"\")","v":""},{"$f":"IF(AND(ISNUMBER(SEARCH(\"Maps\",'OGC API Parameters'!C$11)),NOT(ISBLANK('OGC API Parameters'!B$974))),IF(ISBLANK('OGC API Parameters'!C$974),\"#\",'OGC API Parameters'!C$974),\"\")","v":""},{"$f":"IF(AND(ISNUMBER(SEARCH(\"Maps\",'OGC API Parameters'!C$11)),NOT(ISBLANK('OGC API Parameters'!B$975))),IF(ISBLANK('OGC API Parameters'!C$975),\"#\",'OGC API Parameters'!C$975),\"\")","v":""},{"$f":"IF(AND(ISNUMBER(SEARCH(\"Maps\",'OGC API Parameters'!C$11)),NOT(ISBLANK('OGC API Parameters'!B$976))),IF(ISBLANK('OGC API Parameters'!C$976),\"default\",'OGC API Parameters'!C$976),\"\")","v":""}]
[null,null,null,null,null,null,null,null,null,null,null,null,null,null,null,null,null,null,null,null,null,null,null,null,null,{"$f":"IF(ISBLANK('OGC API Parameters'!$C$988),IF(ISBLANK('OGC API Parameters'!$B$988),\"\",\"#\"),'OGC API Parameters'!$C$988)","v":""},null,null,null,null,null,{"$f":"IF(ISBLANK('OGC API Parameters'!$C$1004),IF(ISBLANK('OGC API Parameters'!$B$1004),\"\",\"#\"),SUBSTITUTE('OGC API Parameters'!$C$1004,CHAR(10),\"\\n\"))","v":""},{"$f":"IF(ISBLANK('OGC API Parameters'!$D$1004),IF(ISBLANK('OGC API Parameters'!$B$1004),\"\",\"#\"),SUBSTITUTE('OGC API Parameters'!$D$1004,CHAR(10),\"\\n\"))","v":""},{"$f":"IF(ISBLANK('OGC API Parameters'!$B$1005),\"\",\"#\")","v":""},{"$f":"IF(ISBLANK('OGC API Parameters'!$B$1005),\"\",\"#\")","v":""},{"$f":"IF(ISBLANK('OGC API Parameters'!$C$1003),IF(ISBLANK('OGC API Parameters'!$B$1003),\"\",\"#\"),'OGC API Parameters'!$C$1003)","v":""},{"$f":"IF(ISBLANK('OGC API Parameters'!$D$1003),IF(ISBLANK('OGC API Parameters'!$B$1003),\"\",\"#\"),'OGC API Parameters'!$D$1003)","v":""},{"$f":"IF(ISBLANK('OGC API Parameters'!$C$998),IF(ISBLANK('OGC API Parameters'!$B$998),\"\",\"#\"),'OGC API Parameters'!$C$998)","v":""},{"$f":"IF(ISBLANK('OGC API Parameters'!$C$999),IF(ISBLANK('OGC API Parameters'!$B$999),\"\",\"#\"),\"[\" & 'OGC API Parameters'!$C$999 & \"]\")","v":""},{"$f":"IF(ISBLANK('OGC API Parameters'!$C$999),\"\",\"http://www.opengis.net/def/crs/OGC/1.3/CRS84\")","v":""},{"$f":"IF(ISBLANK('OGC API Parameters'!$C$1000),IF(ISBLANK('OGC API Parameters'!$B$1000),\"\",\"#\"),'OGC API Parameters'!$C$1000)","v":""},{"$f":"IF(ISBLANK('OGC API Parameters'!$C$1001),IF(ISBLANK('OGC API Parameters'!$B$1001),\"\",\"\"),'OGC API Parameters'!$C$1001)","v":""},{"$f":"IF('OGC API Parameters'!$C$10=\"Raster / Matriciel\",IF(ISBLANK('OGC API Parameters'!C$989),IF(ISBLANK('OGC API Parameters'!B$989),\"\",\"#\"),\"/\" & 'OGC API Parameters'!C$989),\"\")","v":""},{"$f":"IF('OGC API Parameters'!$C$10=\"Raster / Matriciel\",IF(ISBLANK('OGC API Parameters'!C$990),IF(ISBLANK('OGC API Parameters'!B$990),\"\",\"#\"),'OGC API Parameters'!C$990),\"\")","v":""},null,null,"[]",{"$f":"IF('OGC API Parameters'!$C$10=\"Vector / Vectoriel\",IF(OR(ISBLANK('OGC API Parameters'!C$989),ISBLANK('OGC API Parameters'!C$990)),IF(ISBLANK('OGC API Parameters'!B$990),\"\",\"#\"),IF(AND('OGC API Parameters'!C$17=\"CDTK Datastores (Geopackage provided) / Dépôts du CODC (Géopackage fourni)\",'Generic Parameters'!C18=\"No / Non\"),\"gpkg::\" & 'OGC API Parameters'!C$989 & IF(RIGHT('OGC API Parameters'!C$989,5)<>\".gpkg\",\".gpkg\",\"\") & \"|\" & 'OGC API Parameters'!C$990,\"postgis::\" & 'OGC API Parameters'!C$990)),\"\")","v":""},{"$f":"IF('OGC API Parameters'!$C$10=\"Vector / Vectoriel\",IF(AND(ISBLANK('OGC API Parameters'!C$989),ISBLANK('OGC API Parameters'!B$989)),\"\",IF(LEFT('OGC API Parameters'!C$17,4)=\"CDTK\",IF(OR(ISBLANK('Generic Parameters'!C$11),LEN('OGC API Parameters'!C$989)=0),\"#\",LOWER('Generic Parameters'!C$11)),IF('OGC API Parameters'!C$989=\"\",\"#\",'OGC API Parameters'!C$989))),\"\")","v":""},{"$f":"IF(AND(ISNUMBER(SEARCH(\"Features\",'OGC API Parameters'!C$11)),NOT(ISBLANK('OGC API Parameters'!B$991))),IF(ISBLANK('OGC API Parameters'!C$991),\"fid\",'OGC API Parameters'!C$991),\"\")","v":""},{"$f":"IF(AND(ISNUMBER(SEARCH(\"Features\",'OGC API Parameters'!C$11)),NOT(ISBLANK('OGC API Parameters'!B$992))),IF(ISBLANK('OGC API Parameters'!C$992),\"geom\",'OGC API Parameters'!C$992),\"\")","v":""},null,null,{"$f":"IF(AND(ISNUMBER(SEARCH(\"Maps\",'OGC API Parameters'!C$11)),NOT(ISBLANK('OGC API Parameters'!B$994))),IF(ISBLANK('OGC API Parameters'!C$994),\"#\",'OGC API Parameters'!C$994),\"\")","v":""},{"$f":"IF(AND(ISNUMBER(SEARCH(\"Maps\",'OGC API Parameters'!C$11)),NOT(ISBLANK('OGC API Parameters'!B$995))),IF(ISBLANK('OGC API Parameters'!C$995),\"#\",'OGC API Parameters'!C$995),\"\")","v":""},{"$f":"IF(AND(ISNUMBER(SEARCH(\"Maps\",'OGC API Parameters'!C$11)),NOT(ISBLANK('OGC API Parameters'!B$996))),IF(ISBLANK('OGC API Parameters'!C$996),\"#\",'OGC API Parameters'!C$996),\"\")","v":""},{"$f":"IF(AND(ISNUMBER(SEARCH(\"Maps\",'OGC API Parameters'!C$11)),NOT(ISBLANK('OGC API Parameters'!B$997))),IF(ISBLANK('OGC API Parameters'!C$997),\"default\",'OGC API Parameters'!C$997),\"\")","v":""}]
[null,null,null,null,null,null,null,null,null,null,null,null,null,null,null,null,null,null,null,null,null,null,null,null,null,{"$f":"IF(ISBLANK('OGC API Parameters'!$C$1009),IF(ISBLANK('OGC API Parameters'!$B$1009),\"\",\"#\"),'OGC API Parameters'!$C$1009)","v":""},null,null,null,null,null,{"$f":"IF(ISBLANK('OGC API Parameters'!$C$1025),IF(ISBLANK('OGC API Parameters'!$B$1025),\"\",\"#\"),SUBSTITUTE('OGC API Parameters'!$C$1025,CHAR(10),\"\\n\"))","v":""},{"$f":"IF(ISBLANK('OGC API Parameters'!$D$1025),IF(ISBLANK('OGC API Parameters'!$B$1025),\"\",\"#\"),SUBSTITUTE('OGC API Parameters'!$D$1025,CHAR(10),\"\\n\"))","v":""},{"$f":"IF(ISBLANK('OGC API Parameters'!$B$1026),\"\",\"#\")","v":""},{"$f":"IF(ISBLANK('OGC API Parameters'!$B$1026),\"\",\"#\")","v":""},{"$f":"IF(ISBLANK('OGC API Parameters'!$C$1024),IF(ISBLANK('OGC API Parameters'!$B$1024),\"\",\"#\"),'OGC API Parameters'!$C$1024)","v":""},{"$f":"IF(ISBLANK('OGC API Parameters'!$D$1024),IF(ISBLANK('OGC API Parameters'!$B$1024),\"\",\"#\"),'OGC API Parameters'!$D$1024)","v":""},{"$f":"IF(ISBLANK('OGC API Parameters'!$C$1019),IF(ISBLANK('OGC API Parameters'!$B$1019),\"\",\"#\"),'OGC API Parameters'!$C$1019)","v":""},{"$f":"IF(ISBLANK('OGC API Parameters'!$C$1020),IF(ISBLANK('OGC API Parameters'!$B$1020),\"\",\"#\"),\"[\" & 'OGC API Parameters'!$C$1020 & \"]\")","v":""},{"$f":"IF(ISBLANK('OGC API Parameters'!$C$1020),\"\",\"http://www.opengis.net/def/crs/OGC/1.3/CRS84\")","v":""},{"$f":"IF(ISBLANK('OGC API Parameters'!$C$1021),IF(ISBLANK('OGC API Parameters'!$B$1021),\"\",\"#\"),'OGC API Parameters'!$C$1021)","v":""},{"$f":"IF(ISBLANK('OGC API Parameters'!$C$1022),IF(ISBLANK('OGC API Parameters'!$B$1022),\"\",\"\"),'OGC API Parameters'!$C$1022)","v":""},{"$f":"IF('OGC API Parameters'!$C$10=\"Raster / Matriciel\",IF(ISBLANK('OGC API Parameters'!C$1010),IF(ISBLANK('OGC API Parameters'!B$1010),\"\",\"#\"),\"/\" & 'OGC API Parameters'!C$1010),\"\")","v":""},{"$f":"IF('OGC API Parameters'!$C$10=\"Raster / Matriciel\",IF(ISBLANK('OGC API Parameters'!C$1011),IF(ISBLANK('OGC API Parameters'!B$1011),\"\",\"#\"),'OGC API Parameters'!C$1011),\"\")","v":""},null,null,"[]",{"$f":"IF('OGC API Parameters'!$C$10=\"Vector / Vectoriel\",IF(OR(ISBLANK('OGC API Parameters'!C$1010),ISBLANK('OGC API Parameters'!C$1011)),IF(ISBLANK('OGC API Parameters'!B$1011),\"\",\"#\"),IF(AND('OGC API Parameters'!C$17=\"CDTK Datastores (Geopackage provided) / Dépôts du CODC (Géopackage fourni)\",'Generic Parameters'!C18=\"No / Non\"),\"gpkg::\" & 'OGC API Parameters'!C$1010 & IF(RIGHT('OGC API Parameters'!C$1010,5)<>\".gpkg\",\".gpkg\",\"\") & \"|\" & 'OGC API Parameters'!C$1011,\"postgis::\" & 'OGC API Parameters'!C$1011)),\"\")","v":""},{"$f":"IF('OGC API Parameters'!$C$10=\"Vector / Vectoriel\",IF(AND(ISBLANK('OGC API Parameters'!C$1010),ISBLANK('OGC API Parameters'!B$1010)),\"\",IF(LEFT('OGC API Parameters'!C$17,4)=\"CDTK\",IF(OR(ISBLANK('Generic Parameters'!C$11),LEN('OGC API Parameters'!C$1010)=0),\"#\",LOWER('Generic Parameters'!C$11)),IF('OGC API Parameters'!C$1010=\"\",\"#\",'OGC API Parameters'!C$1010))),\"\")","v":""},{"$f":"IF(AND(ISNUMBER(SEARCH(\"Features\",'OGC API Parameters'!C$11)),NOT(ISBLANK('OGC API Parameters'!B$1012))),IF(ISBLANK('OGC API Parameters'!C$1012),\"fid\",'OGC API Parameters'!C$1012),\"\")","v":""},{"$f":"IF(AND(ISNUMBER(SEARCH(\"Features\",'OGC API Parameters'!C$11)),NOT(ISBLANK('OGC API Parameters'!B$1013))),IF(ISBLANK('OGC API Parameters'!C$1013),\"geom\",'OGC API Parameters'!C$1013),\"\")","v":""},null,null,{"$f":"IF(AND(ISNUMBER(SEARCH(\"Maps\",'OGC API Parameters'!C$11)),NOT(ISBLANK('OGC API Parameters'!B$1015))),IF(ISBLANK('OGC API Parameters'!C$1015),\"#\",'OGC API Parameters'!C$1015),\"\")","v":""},{"$f":"IF(AND(ISNUMBER(SEARCH(\"Maps\",'OGC API Parameters'!C$11)),NOT(ISBLANK('OGC API Parameters'!B$1016))),IF(ISBLANK('OGC API Parameters'!C$1016),\"#\",'OGC API Parameters'!C$1016),\"\")","v":""},{"$f":"IF(AND(ISNUMBER(SEARCH(\"Maps\",'OGC API Parameters'!C$11)),NOT(ISBLANK('OGC API Parameters'!B$1017))),IF(ISBLANK('OGC API Parameters'!C$1017),\"#\",'OGC API Parameters'!C$1017),\"\")","v":""},{"$f":"IF(AND(ISNUMBER(SEARCH(\"Maps\",'OGC API Parameters'!C$11)),NOT(ISBLANK('OGC API Parameters'!B$1018))),IF(ISBLANK('OGC API Parameters'!C$1018),\"default\",'OGC API Parameters'!C$1018),\"\")","v":""}]
[null,null,null,null,null,null,null,null,null,null,null,null,null,null,null,null,null,null,null,null,null,null,null,null,null,{"$f":"IF(ISBLANK('OGC API Parameters'!$C$1030),IF(ISBLANK('OGC API Parameters'!$B$1030),\"\",\"#\"),'OGC API Parameters'!$C$1030)","v":""},null,null,null,null,null,{"$f":"IF(ISBLANK('OGC API Parameters'!$C$1046),IF(ISBLANK('OGC API Parameters'!$B$1046),\"\",\"#\"),SUBSTITUTE('OGC API Parameters'!$C$1046,CHAR(10),\"\\n\"))","v":""},{"$f":"IF(ISBLANK('OGC API Parameters'!$D$1046),IF(ISBLANK('OGC API Parameters'!$B$1046),\"\",\"#\"),SUBSTITUTE('OGC API Parameters'!$D$1046,CHAR(10),\"\\n\"))","v":""},{"$f":"IF(ISBLANK('OGC API Parameters'!$B$1047),\"\",\"#\")","v":""},{"$f":"IF(ISBLANK('OGC API Parameters'!$B$1047),\"\",\"#\")","v":""},{"$f":"IF(ISBLANK('OGC API Parameters'!$C$1045),IF(ISBLANK('OGC API Parameters'!$B$1045),\"\",\"#\"),'OGC API Parameters'!$C$1045)","v":""},{"$f":"IF(ISBLANK('OGC API Parameters'!$D$1045),IF(ISBLANK('OGC API Parameters'!$B$1045),\"\",\"#\"),'OGC API Parameters'!$D$1045)","v":""},{"$f":"IF(ISBLANK('OGC API Parameters'!$C$1040),IF(ISBLANK('OGC API Parameters'!$B$1040),\"\",\"#\"),'OGC API Parameters'!$C$1040)","v":""},{"$f":"IF(ISBLANK('OGC API Parameters'!$C$1041),IF(ISBLANK('OGC API Parameters'!$B$1041),\"\",\"#\"),\"[\" & 'OGC API Parameters'!$C$1041 & \"]\")","v":""},{"$f":"IF(ISBLANK('OGC API Parameters'!$C$1041),\"\",\"http://www.opengis.net/def/crs/OGC/1.3/CRS84\")","v":""},{"$f":"IF(ISBLANK('OGC API Parameters'!$C$1042),IF(ISBLANK('OGC API Parameters'!$B$1042),\"\",\"#\"),'OGC API Parameters'!$C$1042)","v":""},{"$f":"IF(ISBLANK('OGC API Parameters'!$C$1043),IF(ISBLANK('OGC API Parameters'!$B$1043),\"\",\"\"),'OGC API Parameters'!$C$1043)","v":""},{"$f":"IF('OGC API Parameters'!$C$10=\"Raster / Matriciel\",IF(ISBLANK('OGC API Parameters'!C$1031),IF(ISBLANK('OGC API Parameters'!B$1031),\"\",\"#\"),\"/\" & 'OGC API Parameters'!C$1031),\"\")","v":""},{"$f":"IF('OGC API Parameters'!$C$10=\"Raster / Matriciel\",IF(ISBLANK('OGC API Parameters'!C$1032),IF(ISBLANK('OGC API Parameters'!B$1032),\"\",\"#\"),'OGC API Parameters'!C$1032),\"\")","v":""},null,null,"[]",{"$f":"IF('OGC API Parameters'!$C$10=\"Vector / Vectoriel\",IF(OR(ISBLANK('OGC API Parameters'!C$1031),ISBLANK('OGC API Parameters'!C$1032)),IF(ISBLANK('OGC API Parameters'!B$1032),\"\",\"#\"),IF(AND('OGC API Parameters'!C$17=\"CDTK Datastores (Geopackage provided) / Dépôts du CODC (Géopackage fourni)\",'Generic Parameters'!C18=\"No / Non\"),\"gpkg::\" & 'OGC API Parameters'!C$1031 & IF(RIGHT('OGC API Parameters'!C$1031,5)<>\".gpkg\",\".gpkg\",\"\") & \"|\" & 'OGC API Parameters'!C$1032,\"postgis::\" & 'OGC API Parameters'!C$1032)),\"\")","v":""},{"$f":"IF('OGC API Parameters'!$C$10=\"Vector / Vectoriel\",IF(AND(ISBLANK('OGC API Parameters'!C$1031),ISBLANK('OGC API Parameters'!B$1031)),\"\",IF(LEFT('OGC API Parameters'!C$17,4)=\"CDTK\",IF(OR(ISBLANK('Generic Parameters'!C$11),LEN('OGC API Parameters'!C$1031)=0),\"#\",LOWER('Generic Parameters'!C$11)),IF('OGC API Parameters'!C$1031=\"\",\"#\",'OGC API Parameters'!C$1031))),\"\")","v":""},{"$f":"IF(AND(ISNUMBER(SEARCH(\"Features\",'OGC API Parameters'!C$11)),NOT(ISBLANK('OGC API Parameters'!B$1033))),IF(ISBLANK('OGC API Parameters'!C$1033),\"fid\",'OGC API Parameters'!C$1033),\"\")","v":""},{"$f":"IF(AND(ISNUMBER(SEARCH(\"Features\",'OGC API Parameters'!C$11)),NOT(ISBLANK('OGC API Parameters'!B$1034))),IF(ISBLANK('OGC API Parameters'!C$1034),\"geom\",'OGC API Parameters'!C$1034),\"\")","v":""},null,null,{"$f":"IF(AND(ISNUMBER(SEARCH(\"Maps\",'OGC API Parameters'!C$11)),NOT(ISBLANK('OGC API Parameters'!B$1036))),IF(ISBLANK('OGC API Parameters'!C$1036),\"#\",'OGC API Parameters'!C$1036),\"\")","v":""},{"$f":"IF(AND(ISNUMBER(SEARCH(\"Maps\",'OGC API Parameters'!C$11)),NOT(ISBLANK('OGC API Parameters'!B$1037))),IF(ISBLANK('OGC API Parameters'!C$1037),\"#\",'OGC API Parameters'!C$1037),\"\")","v":""},{"$f":"IF(AND(ISNUMBER(SEARCH(\"Maps\",'OGC API Parameters'!C$11)),NOT(ISBLANK('OGC API Parameters'!B$1038))),IF(ISBLANK('OGC API Parameters'!C$1038),\"#\",'OGC API Parameters'!C$1038),\"\")","v":""},{"$f":"IF(AND(ISNUMBER(SEARCH(\"Maps\",'OGC API Parameters'!C$11)),NOT(ISBLANK('OGC API Parameters'!B$1039))),IF(ISBLANK('OGC API Parameters'!C$1039),\"default\",'OGC API Parameters'!C$1039),\"\")","v":""}]
[null,null,null,null,null,null,null,null,null,null,null,null,null,null,null,null,null,null,null,null,null,null,null,null,null,{"$f":"IF(ISBLANK('OGC API Parameters'!$C$1051),IF(ISBLANK('OGC API Parameters'!$B$1051),\"\",\"#\"),'OGC API Parameters'!$C$1051)","v":""},null,null,null,null,null,{"$f":"IF(ISBLANK('OGC API Parameters'!$C$1067),IF(ISBLANK('OGC API Parameters'!$B$1067),\"\",\"#\"),SUBSTITUTE('OGC API Parameters'!$C$1067,CHAR(10),\"\\n\"))","v":""},{"$f":"IF(ISBLANK('OGC API Parameters'!$D$1067),IF(ISBLANK('OGC API Parameters'!$B$1067),\"\",\"#\"),SUBSTITUTE('OGC API Parameters'!$D$1067,CHAR(10),\"\\n\"))","v":""},{"$f":"IF(ISBLANK('OGC API Parameters'!$B$1068),\"\",\"#\")","v":""},{"$f":"IF(ISBLANK('OGC API Parameters'!$B$1068),\"\",\"#\")","v":""},{"$f":"IF(ISBLANK('OGC API Parameters'!$C$1066),IF(ISBLANK('OGC API Parameters'!$B$1066),\"\",\"#\"),'OGC API Parameters'!$C$1066)","v":""},{"$f":"IF(ISBLANK('OGC API Parameters'!$D$1066),IF(ISBLANK('OGC API Parameters'!$B$1066),\"\",\"#\"),'OGC API Parameters'!$D$1066)","v":""},{"$f":"IF(ISBLANK('OGC API Parameters'!$C$1061),IF(ISBLANK('OGC API Parameters'!$B$1061),\"\",\"#\"),'OGC API Parameters'!$C$1061)","v":""},{"$f":"IF(ISBLANK('OGC API Parameters'!$C$1062),IF(ISBLANK('OGC API Parameters'!$B$1062),\"\",\"#\"),\"[\" & 'OGC API Parameters'!$C$1062 & \"]\")","v":""},{"$f":"IF(ISBLANK('OGC API Parameters'!$C$1062),\"\",\"http://www.opengis.net/def/crs/OGC/1.3/CRS84\")","v":""},{"$f":"IF(ISBLANK('OGC API Parameters'!$C$1063),IF(ISBLANK('OGC API Parameters'!$B$1063),\"\",\"#\"),'OGC API Parameters'!$C$1063)","v":""},{"$f":"IF(ISBLANK('OGC API Parameters'!$C$1064),IF(ISBLANK('OGC API Parameters'!$B$1064),\"\",\"\"),'OGC API Parameters'!$C$1064)","v":""},{"$f":"IF('OGC API Parameters'!$C$10=\"Raster / Matriciel\",IF(ISBLANK('OGC API Parameters'!C$1052),IF(ISBLANK('OGC API Parameters'!B$1052),\"\",\"#\"),\"/\" & 'OGC API Parameters'!C$1052),\"\")","v":""},{"$f":"IF('OGC API Parameters'!$C$10=\"Raster / Matriciel\",IF(ISBLANK('OGC API Parameters'!C$1053),IF(ISBLANK('OGC API Parameters'!B$1053),\"\",\"#\"),'OGC API Parameters'!C$1053),\"\")","v":""},null,null,"[]",{"$f":"IF('OGC API Parameters'!$C$10=\"Vector / Vectoriel\",IF(OR(ISBLANK('OGC API Parameters'!C$1052),ISBLANK('OGC API Parameters'!C$1053)),IF(ISBLANK('OGC API Parameters'!B$1053),\"\",\"#\"),IF(AND('OGC API Parameters'!C$17=\"CDTK Datastores (Geopackage provided) / Dépôts du CODC (Géopackage fourni)\",'Generic Parameters'!C18=\"No / Non\"),\"gpkg::\" & 'OGC API Parameters'!C$1052 & IF(RIGHT('OGC API Parameters'!C$1052,5)<>\".gpkg\",\".gpkg\",\"\") & \"|\" & 'OGC API Parameters'!C$1053,\"postgis::\" & 'OGC API Parameters'!C$1053)),\"\")","v":""},{"$f":"IF('OGC API Parameters'!$C$10=\"Vector / Vectoriel\",IF(AND(ISBLANK('OGC API Parameters'!C$1052),ISBLANK('OGC API Parameters'!B$1052)),\"\",IF(LEFT('OGC API Parameters'!C$17,4)=\"CDTK\",IF(OR(ISBLANK('Generic Parameters'!C$11),LEN('OGC API Parameters'!C$1052)=0),\"#\",LOWER('Generic Parameters'!C$11)),IF('OGC API Parameters'!C$1052=\"\",\"#\",'OGC API Parameters'!C$1052))),\"\")","v":""},{"$f":"IF(AND(ISNUMBER(SEARCH(\"Features\",'OGC API Parameters'!C$11)),NOT(ISBLANK('OGC API Parameters'!B$1054))),IF(ISBLANK('OGC API Parameters'!C$1054),\"fid\",'OGC API Parameters'!C$1054),\"\")","v":""},{"$f":"IF(AND(ISNUMBER(SEARCH(\"Features\",'OGC API Parameters'!C$11)),NOT(ISBLANK('OGC API Parameters'!B$1055))),IF(ISBLANK('OGC API Parameters'!C$1055),\"geom\",'OGC API Parameters'!C$1055),\"\")","v":""},null,null,{"$f":"IF(AND(ISNUMBER(SEARCH(\"Maps\",'OGC API Parameters'!C$11)),NOT(ISBLANK('OGC API Parameters'!B$1057))),IF(ISBLANK('OGC API Parameters'!C$1057),\"#\",'OGC API Parameters'!C$1057),\"\")","v":""},{"$f":"IF(AND(ISNUMBER(SEARCH(\"Maps\",'OGC API Parameters'!C$11)),NOT(ISBLANK('OGC API Parameters'!B$1058))),IF(ISBLANK('OGC API Parameters'!C$1058),\"#\",'OGC API Parameters'!C$1058),\"\")","v":""},{"$f":"IF(AND(ISNUMBER(SEARCH(\"Maps\",'OGC API Parameters'!C$11)),NOT(ISBLANK('OGC API Parameters'!B$1059))),IF(ISBLANK('OGC API Parameters'!C$1059),\"#\",'OGC API Parameters'!C$1059),\"\")","v":""},{"$f":"IF(AND(ISNUMBER(SEARCH(\"Maps\",'OGC API Parameters'!C$11)),NOT(ISBLANK('OGC API Parameters'!B$1060))),IF(ISBLANK('OGC API Parameters'!C$1060),\"default\",'OGC API Parameters'!C$1060),\"\")","v":""}]
[null,null,null,null,null,null,null,null,null,null,null,null,null,null,null,null,null,null,null,null,null,null,null,null,null,null,null,null,null,null,null,null,null,null,null,null,null,null,null,null,null,null,null,null,null,null,null,null,null,null,null,null,null,null,null,null,{"$f":"IF(AND('Generic Parameters'!C19=\"Yes/ Oui\",ISBLANK('OGC API Parameters'!#REF!)),\"#\",\"\")","v":""},null,null,null,{"$f":"IF(AND('Generic Parameters'!C19=\"Yes/ Oui\",ISBLANK('OGC API Parameters'!#REF!)),\"#\",\"\")","v":""}]